Workbook

Sheet Hypothèses
A1: =IF(I1>I2,"Attention, il existe une nouvelle version disponible","") ->  | I1: =TODAY() -> 2024-05-07
I2: 2024-07-31
A5: Simul'easy Prospect CE
A7: Références de la simulation :
D8: Charges Visa natives | E8: Standards
A14: Code activité | E14: =IF('Codes '!M5=2,"Activité High Risk: suivre ce lien pour informations","") -> 
A15: Type contrat
A16: Nombre de contrats
A18: Grand remettant Type 1 : choix enseigne
A19: Grand remettant Type 2 : o/n | C19: =IF(AND(B18<>"",B19="oui"),"Attention, ne renseigner qu'un seul des deux types de GR","") ->  | I19: oui
B20: Automatique | C20: Forcée | I20: non
A21: Tranche autorisations | B21: =IF(B19="oui",'Tranches GR'!I20,"") -> 
A22: Tranche compensation | B22: =IF(B19="oui",'Tranches GR'!I17,"") ->  | I22: MIF+
I23: MIF++
A24: Service NEXO
A25: Service Merchant Portal
A26: Option MIF
A27: =IF(AND(B15<>"",B31<1),"Pas de données pour cette activité, ne pas poursuivre la simulation","") -> 
B30: Moyenne activité / type de contrat | C30: Valeurs à saisir si différentes
A31: Chiffre d'affaires | B31: =IF(B14="","",Calculs!D179) -> 
A32: Poids des autorisations France | B32: =IF(ISNA(VLOOKUP(B15,'Codes '!F2:G13,2,FALSE)),"",VLOOKUP(B15,'Codes '!F2:G13,2,FALSE)) -> 
A34: Répartition régions
A35: Poids UE (dont France) | B35: =IF(OR(B31<1,B31=""),"",Calculs!C624) -> 
A36: Poids hors UE | B36: =IF(OR(B31<1,B31=""),"",Calculs!C625) -> 
A38: Répartition des types de cartes en UE
A39: Particuliers débit immédiat | B39: =IF(OR(B31="",B31<1),"",Calculs!C825) -> 
A40: Particuliers débit différé | B40: =IF(OR(B31="",B31<1),"",Calculs!C826) -> 
A41: Cartes commerciales | B41: =IF(OR(B31<1,B31=""),"",Calculs!C827) -> 
A43: Répartition des flux en UE
A44: Cartes réseau CE | B44: =IF(OR(B31<1,B31=""),"",Calculs!C1033) -> 
A45: France hors réseau CE | B45: =IF(OR(B31="",B31<1),"",Calculs!C1034) -> 
A46: UE hors France | B46: =IF(OR(B31<1,B31=""),"",Calculs!C1035) -> 
A48: Répartition des flux hors UE
A49: Intra régional | B49: =IF(OR(B31<1,B31=""),"",Calculs!C1238) -> 
A50: Inter régional | B50: =IF(OR(B31<1,B31=""),"",Calculs!C1239) -> 
A52: Paniers moyens
A53: UE (dont France) | B53: =IF(OR(B31<1,B31=""),"",Calculs!B1443) -> 
A54: Hors UE | B54: =IF(OR(B31<1,B31=""),"",Calculs!B1444) -> 
A55: Global | B55: =IF(OR(B31="",B31<1),"",Calculs!B1445) ->  | C55: =IF(OR(C53="",C54=""),"",Calculs!C1445) -> 
A58: Cartes en exception tarifaire | I58: x | J58: =IF(C62="x",A62,"") ->  | L58: =IF(AND(C62="x",C71="x"),1,IF(AND(C62="x",C72="x"),1,IF(AND(C62="x",C73="x"),1,IF(AND(C62="x",C68="x"),1,IF(AND(C62="w",C69="x"),1,IF(AND(C62="x",C70="x"),1,0)))))) -> 0
L59: =IF(AND(C63="x",C74="x"),1,IF(AND(C63="x",C75="x"),1,IF(AND(C63="x",C76="x"),1,IF(AND(C63="x",C68="x"),1,IF(AND(C63="x",C69="x"),1,IF(AND(C63="x",C70="x"),1,0)))))) -> 0
L60: =IF(AND(C64="x",C77="x"),1,IF(AND(C64="x",C78="x"),1,IF(AND(C64="x",C79="x"),1,IF(AND(C64="x",C68="x"),1,IF(AND(C64="x",C69="x"),1,IF(AND(C64="x",C70="x"),1,0)))))) -> 0
A61: Marque | B61: Type carte | C61: x pour sélection | L61: =IF(AND(C65="x",C80="x"),1,IF(AND(C65="x",C81="x"),1,IF(AND(C65="x",C82="x"),1,IF(AND(C65="x",C68="x"),1,IF(AND(C65="x",C69="x"),1,IF(AND(C65="x",C70="x"),1,0)))))) -> 0
A62: CB | L62: =IF(AND(C66="x",C83="x"),1,IF(AND(C66="x",C84="x"),1,IF(AND(C66="x",C85="x"),1,IF(AND(C66="x",C68="x"),1,IF(AND(C66="x",C69="x"),1,IF(AND(C66="x",C70="x"),1,0)))))) -> 0
A63: Electron | L63: =IF(AND(C67="x",C86="x"),1,IF(AND(C67="x",C87="x"),1,IF(AND(C67="x",C68="x"),1,IF(AND(C67="x",C69="x"),1,IF(AND(C67="x",C70="x"),1,0))))) -> 0
A64: Maestro | J64: =IF(C68="x",B68,"") ->  | L64: =SUM(L58:L63) -> 0
A65: Mastercard | J65: =IF(C69="x",B69,"") -> 
A66: Visa | J66: =IF(C70="x",B70,"") -> 
A67: VPay | J67: =IF(C71="x",CONCATENATE(A71," ",B71),"") -> 
B68: Commerciale
B69: DD
B70: DI
A71: CB | B71: Commerciale
A72: CB | B72: DD
A73: CB | B73: DI
A74: Electron | B74: Commerciale
A75: Electron | B75: DD
A76: Electron | B76: DI
A77: Maestro | B77: Commerciale
A78: Maestro | B78: DD
A79: Maestro | B79: DI
A80: Mastercard | B80: Commerciale
A81: Mastercard | B81: DD
A82: Mastercard | B82: DI
A83: Visa | B83: Commerciale
A84: Visa | B84: DD
A85: Visa | B85: DI
A86: VPay | B86: Commerciale
A87: VPay | B87: DI
A88: =IF(L64>0,"NON: exception déjà prise en compte","") -> 
C90: =IF(COUNTBLANK(C62:C87)<26,"Cliquez pour saisie des conditions particulières","") -> 
K92: CA | L92: NB | M92: Produits | N92: charges
A93: Saisie des conditions tarifaires | K93: ='Cond. particulières'!N140-'Cond. particulières'!N148 ->  | L93: ='Cond. particulières'!O140-'Cond. particulières'!O148 ->  | M93: =(D97*K93)+(L93*E97) -> 
K94: ='Cond. particulières'!N141-'Cond. particulières'!N149 ->  | L94: ='Cond. particulières'!O141-'Cond. particulières'!O149 ->  | M94: =(D98*K94)+(L94*E98) -> 
K95: ='Cond. particulières'!N142-'Cond. particulières'!N150 ->  | L95: ='Cond. particulières'!O142-'Cond. particulières'!O150 ->  | M95: =(D99*K95)+(L95*E99) -> 
B96: Point mort | C96: Charges | D96: Taux | E96: Fixe | F96: Résultat | K96: ='Cond. particulières'!N143-'Cond. particulières'!N151 ->  | L96: ='Cond. particulières'!O143-'Cond. particulières'!O151 ->  | M96: =(D100*K96)+(L96*E100) -> 
A97: Intra réseau | B97: =IF($B$14="","",IF(K93=0,0,C97/K93)) ->  | C97: =IF($B$14="","",'Cond. particulières'!P140-'Cond. particulières'!P148) ->  | F97: =IF($B$14="","",((K93*D97)+(E97*L93))-C97) ->  | K97: ='Cond. particulières'!N144-'Cond. particulières'!N152 ->  | L97: ='Cond. particulières'!O144-'Cond. particulières'!O152 ->  | M97: =(D101*K97)+(L97*E101) -> 
A98: Commerciales UE | C98: =IF($B$14="","",'Cond. particulières'!P141-'Cond. particulières'!P149) ->  | F98: =IF($B$14="","",((K94*D98)+(E98*L94))-C98) ->  | K98: ='Cond. particulières'!N145-'Cond. particulières'!N153 ->  | L98: ='Cond. particulières'!O145-'Cond. particulières'!O153 ->  | M98: =SUM(M93:M97) -> 
A99: UE | C99: =IF($B$14="","",'Cond. particulières'!P142-'Cond. particulières'!P150) ->  | F99: =IF($B$14="","",((K95*D99)+(E99*L95))-C99) ->  | J99: cond générales | M99: =ROUND(M98,0) ->  | N99: =ROUND(C102,0) -> 
A100: Commerciales hors UE | C100: =IF($B$14="","",'Cond. particulières'!P143-'Cond. particulières'!P151) ->  | F100: =IF($B$14="","",((K96*D100)+(E100*L96))-C100) ->  | J100: cond part | M100: =ROUND('Cond. particulières'!P217,0) ->  | N100: =ROUND('Cond. particulières'!G215,0) -> 0
A101: hors UE | C101: =IF($B$14="","",'Cond. particulières'!P144-'Cond. particulières'!P152) ->  | F101: =IF($B$14="","",((K97*D101)+(E101*L97))-C101) -> 
A102: Global | C102: =IF(B14="","",'Cond. particulières'!P145-'Cond. particulières'!P153) ->  | F102: =IF(B14="","",SUM(F97:F101)) -> 
A105: Résultat annuel
A107: Résultat cas général | B107: =F102 ->  | C107: ="Produits = "&M99&" € et Charges = "&N99&" €" -> 
A108: Résultat cartes en exception | B108: =IF(B14="","",'Cond. particulières'!J136) ->  | C108: ="Produits = "&M100&" € et Charges = "&N100&" €" -> 
A109: Coûts fixes contrats | B109: =IF(B16="","",IF(OR(B15='Codes '!F3,B15='Codes '!F9),(Calculs!B1454*Hypothèses!B16)*-1,((Calculs!B1454+Calculs!B1455)*B16)*-1)) -> 
A110: TOTAL | B110: =IF(B14="","",IF(B109="",B107+B108,B107+B108+B109)) -> 
A112: Charges flux SP Plus | B112: =IF(B15="Internet-Solution Groupe",'SP+'!B17,"") -> 
A113: Produits flux SP Plus | B113: =IF('e-commerce'!E85="",0,'e-commerce'!E85) -> 0
A114: Charges abonnements SP Plus | B114: =IF(B112="","",'e-commerce'!E53) -> 
A115: Produits options SP Plus | B115: =IF('e-commerce'!E52="",0,'e-commerce'!E52) -> 0
A116: Renta SP Plus | B116: =IF(B112<>"",B115+B113-B112-B114,"") -> 
A120: =IF(B26<>"","Option MIF","") -> 
A121: =IF(B26="MIF+","Interchange (MIF+)","") ->  | B121: =IF(B26=I22,SUM('Cond. particulières'!I197:I213)-SUM('Cond. particulières'!J197:J213),"") -> 
A122: =IF(B26="MIF++","Interchange et Scheme fees (MIF++)","") ->  | B122: =IF(B26="MIF++",SUM('Cond. particulières'!I197:I213)-SUM('Cond. particulières'!K197:K213),"") -> 
A123: =IF(B26<>"","Commission banque hors cartes en exception","") ->  | B123: =IF(B26="","",IF(AND(B26<>"",M98=0),"",IF(AND(B26<>"",M98<>0),M98/K98,""))) -> 
A124: =IF(AND((COUNTBLANK(C62:C87))>0,B26<>""),"Commisson banque cartes en exception","") ->  | B124: =IF(A124<>"","cf. Cond. Particulières","") -> 
A125: Marge de la Caisse | B125: =IF(B110="","",IF(C31="",B110/B31,B110/C31)) -> 

Sheet Cond. particulières
A1: Cartes commerciales UE
A3: Avant exceptions | B3: NB | C3: CA | D3: Charges | M3: Somme des exceptions | N3: CA | O3: NB | P3: Charges | Q3: Panier
A4: France hors intra réseau | B4: =C4/Calculs!C1443 ->  | C4: =Calculs!C1434 ->  | D4: =IF(Hypothèses!B26="",Calculs!E1434,IF(Hypothèses!B26=Hypothèses!I22,Calculs!I1434,IF(Hypothèses!B26=Hypothèses!$I$23,Calculs!M1434))) ->  | M4: Commerciales UE | N4: =IF(E27=1,N27,0)+IF(E31=1,N27,0)+IF(E44=1,N44,0)+(IF(E49=1,N44,0)+IF(E62=1,N62,0)+IF(E67=1,N62,0)+IF(E79=1,N79,0)+IF(E83=1,N79,0)+IF(E98=1,N98,0)+IF(E103=1,N98,0)+IF(E113=1,N113,0)+IF(E118=1,N113,0)+IF(E133=1,N133,0)) -> 0 | O4: =IF(E27=1,O27,0)+IF(E31=1,O27,0)+IF(E44=1,O44,0)+(IF(E49=1,O44,0)+IF(E62=1,O62,0)+IF(E67=1,O62,0)+IF(E79=1,O79,0)+IF(E83=1,O79,0)+IF(E98=1,O98,0)+IF(E103=1,O98,0)+IF(E113=1,O113,0)+IF(E118=1,O113,0)+IF(E133=1,O133,0)) -> 0 | P4: =IF(E27=1,Q27,0)+IF(E31=1,Q27,0)+IF(E44=1,Q44,0)+(IF(E49=1,Q44,0)+IF(E62=1,Q62,0)+IF(E67=1,Q62,0)+IF(E79=1,Q79,0)+IF(E83=1,Q79,0)+IF(E98=1,Q98,0)+IF(E103=1,Q98,0)+IF(E113=1,Q113,0)+IF(E118=1,Q113,0)+IF(E133=1,Q133,0)) -> 0 | Q4: =N4/O4 -> 
A5: UE hors France | B5: =C5/Calculs!C1443 ->  | C5: =Calculs!C1435 ->  | D5: =IF(Hypothèses!B26="",Calculs!E1435,IF(Hypothèses!B26=Hypothèses!I22,Calculs!I1435,IF(Hypothèses!B26=Hypothèses!$I$23,Calculs!M1435))) -> 0 | M5: Commerciales hors UE | N5: =IF(E45=1,N45,0)+IF(E50=1,N45,0)+IF(E63=1,N63,0)+IF(E68=1,N63,0)+IF(E80=1,N80,0)+IF(E84=1,N80,0)+IF(E99=1,N99,0)+IF(E104=1,N99,0)+IF(E114=1,N114,0)+IF(E119=1,N114,0)+IF(E134=1,N134,0) -> 0 | O5: =IF(E45=1,O45,0)+IF(E50=1,O45,0)+IF(E63=1,O63,0)+IF(E68=1,O63,0)+IF(E80=1,O80,0)+IF(E84=1,O80,0)+IF(E99=1,O99,0)+IF(E104=1,O99,0)+IF(E114=1,O114,0)+IF(E119=1,O114,0)+IF(E134=1,O134,0) -> 0 | P5: =IF(E45=1,Q45,0)+IF(E50=1,Q45,0)+IF(E63=1,Q63,0)+IF(E68=1,Q63,0)+IF(E80=1,Q80,0)+IF(E84=1,Q80,0)+IF(E99=1,Q99,0)+IF(E104=1,Q99,0)+IF(E114=1,Q114,0)+IF(E119=1,Q114,0)+IF(E134=1,Q134,0) -> 0 | Q5: =N5/O5 -> 
A6: UE | B6: =SUM(B4:B5) ->  | C6: =SUM(C4:C5) ->  | D6: =SUM(D4:D5) -> 
A8: Après exceptions | B8: NB | C8: CA | D8: Charges | E8: Pt mort
A9: UE | B9: =B6-O4 ->  | C9: =C6-N4 ->  | D9: =D6-P4 ->  | E9: =D9/C6 -> 
D15: Les cartes mises en exception tarifaires apparaissent colorées
D17: =CONCATENATE(B18," ",C18) -> CB DI | F17: Point mort | G17: Charges | H17: Taux | I17: Fixe | J17: Résultat | K17: Commission banque | N17: CA | O17: NB | P17: Produits | Q17: Charges
A18: =CONCATENATE(B18," ",C18," ",D18) -> CB DI Intra réseau | B18: CB | C18: DI | D18: Intra réseau | E18: =IF(OR(M18=selection),1,0) -> 0 | F18: =IF(AND(E18=1,Hypothèses!$B$26=""),VLOOKUP(A18,Deliassage!$D$2:$M$74,8,FALSE),IF(AND(E18=1,Hypothèses!$B$26=Hypothèses!$I$22),VLOOKUP(A18,Deliassage!$D$2:$M$74,9,FALSE),IF(AND('Cond. particulières'!E18=1,Hypothèses!$B$26=Hypothèses!$I$23),VLOOKUP(A18,Deliassage!$D$2:$M$74,10,FALSE),""))) ->  | G18: =IF(AND(E18=1,Hypothèses!$B$26=""),VLOOKUP(A18,Deliassage!$D$2:$M$74,3,FALSE),IF(AND(E18=1,Hypothèses!$B$26=Hypothèses!$I$22),VLOOKUP(A18,Deliassage!$D$2:$M$74,4,FALSE),IF(AND('Cond. particulières'!E18=1,Hypothèses!$B$26=Hypothèses!$I$23),VLOOKUP(A18,Deliassage!$D$2:$M$74,5,FALSE),""))) ->  | J18: =IF(E18=1,((H18*N18)+(I18*O18))-G18,"") ->  | K18: =IF(N18=0,0,IF(Hypothèses!$B$26<>"",(('Cond. particulières'!H18*'Cond. particulières'!N18)+('Cond. particulières'!I18*O18))/N18,"")) ->  | M18: =CONCATENATE(B18," ",C18) -> CB DI | N18: =VLOOKUP(A18,Deliassage!$D$2:$J$74,6,FALSE) ->  | O18: =VLOOKUP(A18,Deliassage!$D$2:$J$74,7,FALSE) -> 0 | P18: =(N18*H18)+(I18*O18) -> 
A19: =CONCATENATE(B19," ",C19," ",D19) -> CB DI UE | B19: CB | C19: DI | D19: UE | E19: =IF(OR(M19=selection),1,0) -> 0 | F19: =IF(AND(E19=1,Hypothèses!$B$26=""),VLOOKUP(A19,Deliassage!$D$2:$M$74,8,FALSE),IF(AND(E19=1,Hypothèses!$B$26=Hypothèses!$I$22),VLOOKUP(A19,Deliassage!$D$2:$M$74,9,FALSE),IF(AND('Cond. particulières'!E19=1,Hypothèses!$B$26=Hypothèses!$I$23),VLOOKUP(A19,Deliassage!$D$2:$M$74,10,FALSE),""))) ->  | G19: =IF(AND($E$19=1,Hypothèses!$B$26=""),VLOOKUP($A$19,Deliassage!$D$2:$M$74,3,FALSE),IF(AND($E$19=1,Hypothèses!$B$26=Hypothèses!$I$22),VLOOKUP($A$19,Deliassage!$D$2:$M$74,4,FALSE),IF(AND('Cond. particulières'!$E$19=1,Hypothèses!$B$26=Hypothèses!$I$23),VLOOKUP($A$19,Deliassage!$D$2:$M$74,5,FALSE),""))) ->  | J19: =IF(E19=1,((H19*N19)+(I19*O19))-G19,"") ->  | K19: =IF(N19=0,0,IF(Hypothèses!$B$26<>"",(('Cond. particulières'!H19*'Cond. particulières'!N19)+('Cond. particulières'!I19*O19))/N19,"")) ->  | M19: CB DI | N19: =VLOOKUP(A19,Deliassage!$D$2:$J$74,6,FALSE) ->  | O19: =VLOOKUP(A19,Deliassage!$D$2:$J$74,7,FALSE) -> 0 | P19: =(N19*H19)+(I19*O19) -> 
D21: =CONCATENATE(B22," ",C22) -> CB DD | F21: Point mort | G21: Charges | H21: Taux | I21: Fixe | J21: Résultat | K21: Commission banque
A22: =CONCATENATE(B22," ",C22," ",D22) -> CB DD Intra réseau | B22: CB | C22: DD | D22: Intra réseau | E22: =IF(OR(M22=selection),1,0) -> 0 | F22: =IF(AND(E22=1,Hypothèses!$B$26=""),VLOOKUP(A22,Deliassage!$D$2:$M$74,8,FALSE),IF(AND(E22=1,Hypothèses!$B$26=Hypothèses!$I$22),VLOOKUP(A22,Deliassage!$D$2:$M$74,9,FALSE),IF(AND('Cond. particulières'!E22=1,Hypothèses!$B$26=Hypothèses!$I$23),VLOOKUP(A22,Deliassage!$D$2:$M$74,10,FALSE),""))) ->  | G22: =IF(AND(E22=1,Hypothèses!$B$26=""),VLOOKUP(A22,Deliassage!$D$2:$M$74,3,FALSE),IF(AND(E22=1,Hypothèses!$B$26=Hypothèses!$I$22),VLOOKUP(A22,Deliassage!$D$2:$M$74,4,FALSE),IF(AND('Cond. particulières'!E22=1,Hypothèses!$B$26=Hypothèses!$I$23),VLOOKUP(A22,Deliassage!$D$2:$M$74,5,FALSE),""))) ->  | J22: =IF(E22=1,((H22*N22)+(I22*O22))-G22,"") ->  | K22: =IF(N22=0,0,IF(Hypothèses!$B$26<>"",(('Cond. particulières'!H22*'Cond. particulières'!N22)+('Cond. particulières'!I22*O22))/N22,"")) ->  | M22: CB DD | N22: =VLOOKUP(A22,Deliassage!$D$2:$J$74,6,FALSE) ->  | O22: =VLOOKUP(A22,Deliassage!$D$2:$J$74,7,FALSE) -> 0 | P22: =(N22*H22)+(I22*O22) -> 
A23: =CONCATENATE(B23," ",C23," ",D23) -> CB DD UE | B23: CB | C23: DD | D23: UE | E23: =IF(OR(M23=selection),1,0) -> 0 | F23: =IF(AND(E23=1,Hypothèses!$B$26=""),VLOOKUP(A23,Deliassage!$D$2:$M$74,8,FALSE),IF(AND(E23=1,Hypothèses!$B$26=Hypothèses!$I$22),VLOOKUP(A23,Deliassage!$D$2:$M$74,9,FALSE),IF(AND('Cond. particulières'!E23=1,Hypothèses!$B$26=Hypothèses!$I$23),VLOOKUP(A23,Deliassage!$D$2:$M$74,10,FALSE),""))) ->  | G23: =IF(AND(E23=1,Hypothèses!$B$26=""),VLOOKUP(A23,Deliassage!$D$2:$M$74,3,FALSE),IF(AND(E23=1,Hypothèses!$B$26=Hypothèses!$I$22),VLOOKUP(A23,Deliassage!$D$2:$M$74,4,FALSE),IF(AND('Cond. particulières'!E23=1,Hypothèses!$B$26=Hypothèses!$I$23),VLOOKUP(A23,Deliassage!$D$2:$M$74,5,FALSE),""))) ->  | J23: =IF(E23=1,((H23*N23)+(I23*O23))-G23,"") ->  | K23: =IF(N23=0,0,IF(Hypothèses!$B$26<>"",(('Cond. particulières'!H23*'Cond. particulières'!N23)+('Cond. particulières'!I23*O23))/N23,"")) ->  | M23: CB DD | N23: =VLOOKUP(A23,Deliassage!$D$2:$J$74,6,FALSE) ->  | O23: =VLOOKUP(A23,Deliassage!$D$2:$J$74,7,FALSE) -> 0 | P23: =(N23*H23)+(I23*O23) -> 
D25: =CONCATENATE(B26," ",C26) -> CB Commerciale | F25: Point mort | G25: Charges | H25: Taux | I25: Fixe | J25: Résultat | K25: Commission banque
A26: =CONCATENATE(B26," ",C26," ",D26) -> CB Commerciale Intra réseau | B26: CB | C26: Commerciale | D26: Intra réseau | E26: =IF(OR(M26=selection),1,0) -> 0 | F26: =IF(AND(E26=1,Hypothèses!$B$26=""),VLOOKUP(A26,Deliassage!$D$2:$M$74,8,FALSE),IF(AND(E26=1,Hypothèses!$B$26=Hypothèses!$I$22),VLOOKUP(A26,Deliassage!$D$2:$M$74,9,FALSE),IF(AND('Cond. particulières'!E26=1,Hypothèses!$B$26=Hypothèses!$I$23),VLOOKUP(A26,Deliassage!$D$2:$M$74,10,FALSE),""))) ->  | G26: =IF(AND(E26=1,Hypothèses!$B$26=""),VLOOKUP(A26,Deliassage!$D$2:$M$74,3,FALSE),IF(AND(E26=1,Hypothèses!$B$26=Hypothèses!$I$22),VLOOKUP(A26,Deliassage!$D$2:$M$74,4,FALSE),IF(AND('Cond. particulières'!E26=1,Hypothèses!$B$26=Hypothèses!$I$23),VLOOKUP(A26,Deliassage!$D$2:$M$74,5,FALSE),""))) ->  | J26: =IF(E26=1,((H26*N26)+(I26*O26))-G26,"") ->  | K26: =IF(N26=0,0,IF(Hypothèses!$B$26<>"",(('Cond. particulières'!H26*'Cond. particulières'!N26)+('Cond. particulières'!I26*O26))/N26,"")) ->  | M26: CB Commerciale | N26: =VLOOKUP(A26,Deliassage!$D$2:$J$74,6,FALSE) ->  | O26: =VLOOKUP(A26,Deliassage!$D$2:$J$74,7,FALSE) -> 0 | P26: =(N26*H26)+(I26*O26) -> 
A27: =CONCATENATE(B27," ",C27," ",D27) -> CB Commerciale UE | B27: CB | C27: Commerciale | D27: UE | E27: =IF(OR(M27=selection),1,0) -> 0 | F27: =IF(AND(E27=1,Hypothèses!$B$26=""),VLOOKUP(A27,Deliassage!$D$2:$M$74,8,FALSE),IF(AND(E27=1,Hypothèses!$B$26=Hypothèses!$I$22),VLOOKUP(A27,Deliassage!$D$2:$M$74,9,FALSE),IF(AND('Cond. particulières'!E27=1,Hypothèses!$B$26=Hypothèses!$I$23),VLOOKUP(A27,Deliassage!$D$2:$M$74,10,FALSE),""))) ->  | G27: =IF(AND(E27=1,Hypothèses!$B$26=""),VLOOKUP($A$27,Deliassage!$D$2:$M$74,3,FALSE),IF(AND(E27=1,Hypothèses!$B$26=Hypothèses!$I$22),VLOOKUP($A$27,Deliassage!$D$2:$M$74,4,FALSE),IF(AND('Cond. particulières'!E27=1,Hypothèses!$B$26=Hypothèses!$I$23),VLOOKUP($A$27,Deliassage!$D$2:$M$74,5,FALSE),""))) ->  | J27: =IF(E27=1,((H27*N27)+(I27*O27))-G27,"") ->  | K27: =IF(N27=0,0,IF(Hypothèses!$B$26<>"",(('Cond. particulières'!H27*'Cond. particulières'!N27)+('Cond. particulières'!I27*O27))/N27,"")) ->  | M27: CB Commerciale | N27: =VLOOKUP(A27,Deliassage!$D$2:$J$74,6,FALSE) ->  | O27: =VLOOKUP(A27,Deliassage!$D$2:$J$74,7,FALSE) -> 0 | P27: =(N27*H27)+(I27*O27) ->  | Q27: =IF(Hypothèses!$B$26="",VLOOKUP($A$27,Deliassage!$D$2:$M$74,3,FALSE),IF(Hypothèses!$B$26=Hypothèses!$I$22,VLOOKUP($A$27,Deliassage!$D$2:$M$74,4,FALSE),IF(Hypothèses!$B$26=Hypothèses!$I$23,VLOOKUP($A$27,Deliassage!$D$2:$M$74,5,FALSE),""))) -> 
D29: =CONCATENATE(B30," ",C30) -> CB | F29: Point mort | G29: Charges | H29: Taux | I29: Fixe | J29: Résultat | K29: Commission banque
A30: =CONCATENATE(B30," ",C30," ",D30) -> CB Intra réseau | B30: CB | D30: Intra réseau | E30: =IF(OR(M30=selection),1,0) -> 0 | F30: =IF(AND(E30=1,Hypothèses!$B$26=""),VLOOKUP(A30,Deliassage!$D$2:$M$74,8,FALSE),IF(AND(E30=1,Hypothèses!$B$26=Hypothèses!$I$22),VLOOKUP(A30,Deliassage!$D$2:$M$74,9,FALSE),IF(AND('Cond. particulières'!E30=1,Hypothèses!$B$26=Hypothèses!$I$23),VLOOKUP(A30,Deliassage!$D$2:$M$74,10,FALSE),""))) ->  | G30: =IF(AND(E30=1,Hypothèses!$B$26=""),VLOOKUP(A30,Deliassage!$D$2:$M$74,3,FALSE),IF(AND(E30=1,Hypothèses!$B$26=Hypothèses!$I$22),VLOOKUP(A30,Deliassage!$D$2:$M$74,4,FALSE),IF(AND('Cond. particulières'!E30=1,Hypothèses!$B$26=Hypothèses!$I$23),VLOOKUP(A30,Deliassage!$D$2:$M$74,5,FALSE),""))) ->  | J30: =IF(E30=1,((H30*N30)+(I30*O30))-G30,"") ->  | K30: =IF(N30=0,0,IF(Hypothèses!$B$26<>"",(('Cond. particulières'!H30*'Cond. particulières'!N30)+('Cond. particulières'!I30*O30))/N30,"")) ->  | M30: =B30 -> CB | N30: =VLOOKUP(A30,Deliassage!$D$2:$J$74,6,FALSE) ->  | O30: =VLOOKUP(A30,Deliassage!$D$2:$J$74,7,FALSE) -> 0 | P30: =(N30*H30)+(I30*O30) -> 
A31: =CONCATENATE(B31," ",C31," ",D31) -> CB UE | B31: CB | D31: UE | E31: =IF(OR(M31=selection),1,0) -> 0 | F31: =IF(AND(E31=1,Hypothèses!$B$26=""),VLOOKUP(A31,Deliassage!$D$2:$M$74,8,FALSE),IF(AND(E31=1,Hypothèses!$B$26=Hypothèses!$I$22),VLOOKUP(A31,Deliassage!$D$2:$M$74,9,FALSE),IF(AND('Cond. particulières'!E31=1,Hypothèses!$B$26=Hypothèses!$I$23),VLOOKUP(A31,Deliassage!$D$2:$M$74,10,FALSE),""))) ->  | G31: =IF(AND(E31=1,Hypothèses!$B$26=""),VLOOKUP(A31,Deliassage!$D$2:$M$74,3,FALSE),IF(AND(E31=1,Hypothèses!$B$26=Hypothèses!$I$22),VLOOKUP(A31,Deliassage!$D$2:$M$74,4,FALSE),IF(AND('Cond. particulières'!E31=1,Hypothèses!$B$26=Hypothèses!$I$23),VLOOKUP(A31,Deliassage!$D$2:$M$74,5,FALSE),""))) ->  | J31: =IF(E31=1,((H31*N31)+(I31*O31))-G31,"") ->  | K31: =IF(N31=0,0,IF(Hypothèses!$B$26<>"",(('Cond. particulières'!H31*'Cond. particulières'!N31)+('Cond. particulières'!I31*O31))/N31,"")) ->  | M31: =B31 -> CB | N31: =VLOOKUP(A31,Deliassage!$D$2:$J$74,6,FALSE) ->  | O31: =VLOOKUP(A31,Deliassage!$D$2:$J$74,7,FALSE) -> 0 | P31: =(N31*H31)+(I31*O31) -> 
M32: =CONCATENATE(B32," ",C32) -> 
D33: =CONCATENATE(B34," ",C34) -> Electron DI | F33: Point mort | G33: Charges | H33: Taux | I33: Fixe | J33: Résultat | K33: Commission banque
A34: =CONCATENATE(B34," ",C34," ",D34) -> Electron DI Intra réseau | B34: Electron | C34: DI | D34: Intra réseau | E34: =IF(OR(M34=selection),1,0) -> 0 | F34: =IF(AND(E34=1,Hypothèses!$B$26=""),VLOOKUP(A34,Deliassage!$D$2:$M$74,8,FALSE),IF(AND(E34=1,Hypothèses!$B$26=Hypothèses!$I$22),VLOOKUP(A34,Deliassage!$D$2:$M$74,9,FALSE),IF(AND('Cond. particulières'!E34=1,Hypothèses!$B$26=Hypothèses!$I$23),VLOOKUP(A34,Deliassage!$D$2:$M$74,10,FALSE),""))) ->  | G34: =IF(AND(E34=1,Hypothèses!$B$26=""),VLOOKUP(A34,Deliassage!$D$2:$M$74,3,FALSE),IF(AND(E34=1,Hypothèses!$B$26=Hypothèses!$I$22),VLOOKUP(A34,Deliassage!$D$2:$M$74,4,FALSE),IF(AND('Cond. particulières'!E34=1,Hypothèses!$B$26=Hypothèses!$I$23),VLOOKUP(A34,Deliassage!$D$2:$M$74,5,FALSE),""))) ->  | J34: =IF(E34=1,((H34*N34)+(I34*O34))-G34,"") ->  | K34: =IF(N34=0,0,IF(Hypothèses!$B$26<>"",(('Cond. particulières'!H34*'Cond. particulières'!N34)+('Cond. particulières'!I34*O34))/N34,"")) ->  | M34: Electron DI | N34: =VLOOKUP(A34,Deliassage!$D$2:$J$74,6,FALSE) ->  | O34: =VLOOKUP(A34,Deliassage!$D$2:$J$74,7,FALSE) -> 0 | P34: =(N34*H34)+(I34*O34) -> 
A35: =CONCATENATE(B35," ",C35," ",D35) -> Electron DI UE | B35: Electron | C35: DI | D35: UE | E35: =IF(OR(M35=selection),1,0) -> 0 | F35: =IF(AND(E35=1,Hypothèses!$B$26=""),VLOOKUP(A35,Deliassage!$D$2:$M$74,8,FALSE),IF(AND(E35=1,Hypothèses!$B$26=Hypothèses!$I$22),VLOOKUP(A35,Deliassage!$D$2:$M$74,9,FALSE),IF(AND('Cond. particulières'!E35=1,Hypothèses!$B$26=Hypothèses!$I$23),VLOOKUP(A35,Deliassage!$D$2:$M$74,10,FALSE),""))) ->  | G35: =IF(AND(E35=1,Hypothèses!$B$26=""),VLOOKUP(A35,Deliassage!$D$2:$M$74,3,FALSE),IF(AND(E35=1,Hypothèses!$B$26=Hypothèses!$I$22),VLOOKUP(A35,Deliassage!$D$2:$M$74,4,FALSE),IF(AND('Cond. particulières'!E35=1,Hypothèses!$B$26=Hypothèses!$I$23),VLOOKUP(A35,Deliassage!$D$2:$M$74,5,FALSE),""))) ->  | J35: =IF(E35=1,((H35*N35)+(I35*O35))-G35,"") ->  | K35: =IF(N35=0,0,IF(Hypothèses!$B$26<>"",(('Cond. particulières'!H35*'Cond. particulières'!N35)+('Cond. particulières'!I35*O35))/N35,"")) ->  | M35: Electron DI | N35: =VLOOKUP(A35,Deliassage!$D$2:$J$74,6,FALSE) ->  | O35: =VLOOKUP(A35,Deliassage!$D$2:$J$74,7,FALSE) -> 0 | P35: =(N35*H35)+(I35*O35) -> 
A36: =CONCATENATE(B36," ",C36," ",D36) -> Electron DI hors UE | B36: Electron | C36: DI | D36: hors UE | E36: =IF(OR(M36=selection),1,0) -> 0 | F36: =IF(AND(E36=1,Hypothèses!$B$26=""),VLOOKUP(A36,Deliassage!$D$2:$M$74,8,FALSE),IF(AND(E36=1,Hypothèses!$B$26=Hypothèses!$I$22),VLOOKUP(A36,Deliassage!$D$2:$M$74,9,FALSE),IF(AND('Cond. particulières'!E36=1,Hypothèses!$B$26=Hypothèses!$I$23),VLOOKUP(A36,Deliassage!$D$2:$M$74,10,FALSE),""))) ->  | G36: =IF(AND(E36=1,Hypothèses!$B$26=""),VLOOKUP(A36,Deliassage!$D$2:$M$74,3,FALSE),IF(AND(E36=1,Hypothèses!$B$26=Hypothèses!$I$22),VLOOKUP(A36,Deliassage!$D$2:$M$74,4,FALSE),IF(AND('Cond. particulières'!E36=1,Hypothèses!$B$26=Hypothèses!$I$23),VLOOKUP(A36,Deliassage!$D$2:$M$74,5,FALSE),""))) ->  | J36: =IF(E36=1,((H36*N36)+(I36*O36))-G36,"") ->  | K36: =IF(N36=0,0,IF(Hypothèses!$B$26<>"",(('Cond. particulières'!H36*'Cond. particulières'!N36)+('Cond. particulières'!I36*O36))/N36,"")) ->  | M36: Electron DI | N36: =VLOOKUP(A36,Deliassage!$D$2:$J$74,6,FALSE) ->  | O36: =VLOOKUP(A36,Deliassage!$D$2:$J$74,7,FALSE) -> 0 | P36: =(N36*H36)+(I36*O36) -> 
D38: =CONCATENATE(B39," ",C39) -> Electron DD | F38: Point mort | G38: Charges | H38: Taux | I38: Fixe | J38: Résultat | K38: Commission banque
A39: =CONCATENATE(B39," ",C39," ",D39) -> Electron DD UE | B39: Electron | C39: DD | D39: UE | E39: =IF(OR(M39=selection),1,0) -> 0 | F39: =IF(AND(E39=1,Hypothèses!$B$26=""),VLOOKUP(A39,Deliassage!$D$2:$M$74,8,FALSE),IF(AND(E39=1,Hypothèses!$B$26=Hypothèses!$I$22),VLOOKUP(A39,Deliassage!$D$2:$M$74,9,FALSE),IF(AND('Cond. particulières'!E39=1,Hypothèses!$B$26=Hypothèses!$I$23),VLOOKUP(A39,Deliassage!$D$2:$M$74,10,FALSE),""))) ->  | G39: =IF(AND(E39=1,Hypothèses!$B$26=""),VLOOKUP(A39,Deliassage!$D$2:$M$74,3,FALSE),IF(AND(E39=1,Hypothèses!$B$26=Hypothèses!$I$22),VLOOKUP(A39,Deliassage!$D$2:$M$74,4,FALSE),IF(AND('Cond. particulières'!E39=1,Hypothèses!$B$26=Hypothèses!$I$23),VLOOKUP(A39,Deliassage!$D$2:$M$74,5,FALSE),""))) ->  | J39: =IF(E39=1,((H39*N39)+(I39*O39))-G39,"") ->  | K39: =IF(N39=0,0,IF(Hypothèses!$B$26<>"",(('Cond. particulières'!H39*'Cond. particulières'!N39)+('Cond. particulières'!I39*O39))/N39,"")) ->  | M39: Electron DD | N39: =VLOOKUP(A39,Deliassage!$D$2:$J$74,6,FALSE) ->  | O39: =VLOOKUP(A39,Deliassage!$D$2:$J$74,7,FALSE) -> 0 | P39: =(N39*H39)+(I39*O39) -> 
A40: =CONCATENATE(B40," ",C40," ",D40) -> Electron DD hors UE | B40: Electron | C40: DD | D40: hors UE | E40: =IF(OR(M40=selection),1,0) -> 0 | F40: =IF(AND(E40=1,Hypothèses!$B$26=""),VLOOKUP(A40,Deliassage!$D$2:$M$74,8,FALSE),IF(AND(E40=1,Hypothèses!$B$26=Hypothèses!$I$22),VLOOKUP(A40,Deliassage!$D$2:$M$74,9,FALSE),IF(AND('Cond. particulières'!E40=1,Hypothèses!$B$26=Hypothèses!$I$23),VLOOKUP(A40,Deliassage!$D$2:$M$74,10,FALSE),""))) ->  | G40: =IF(AND(E40=1,Hypothèses!$B$26=""),VLOOKUP(A40,Deliassage!$D$2:$M$74,3,FALSE),IF(AND(E40=1,Hypothèses!$B$26=Hypothèses!$I$22),VLOOKUP(A40,Deliassage!$D$2:$M$74,4,FALSE),IF(AND('Cond. particulières'!E40=1,Hypothèses!$B$26=Hypothèses!$I$23),VLOOKUP(A40,Deliassage!$D$2:$M$74,5,FALSE),""))) ->  | J40: =IF(E40=1,((H40*N40)+(I40*O40))-G40,"") ->  | K40: =IF(N40=0,0,IF(Hypothèses!$B$26<>"",(('Cond. particulières'!H40*'Cond. particulières'!N40)+('Cond. particulières'!I40*O40))/N40,"")) ->  | M40: Electron DD | N40: =VLOOKUP(A40,Deliassage!$D$2:$J$74,6,FALSE) ->  | O40: =VLOOKUP(A40,Deliassage!$D$2:$J$74,7,FALSE) -> 0 | P40: =(N40*H40)+(I40*O40) -> 
F41: =IF(AND(E41=1,Hypothèses!B48=""),VLOOKUP(A41,Deliassage!$D$2:$M$74,8,FALSE),IF(AND(E41=1,Hypothèses!B48=Hypothèses!F48),VLOOKUP(Deliassage!D25:M97,9,FALSE),IF(AND('Cond. particulières'!E41=1,Hypothèses!B48=Hypothèses!F49),VLOOKUP(Deliassage!D25:M97,10,FALSE),""))) -> 
D42: =CONCATENATE(B43," ",C43) -> Electron Commerciale | F42: Point mort | G42: Charges | H42: Taux | I42: Fixe | J42: Résultat | K42: Commission banque
A43: =CONCATENATE(B43," ",C43," ",D43) -> Electron Commerciale Intra réseau | B43: Electron | C43: Commerciale | D43: Intra réseau | E43: =IF(OR(M43=selection),1,0) -> 0 | F43: =IF(AND(E43=1,Hypothèses!$B$26=""),VLOOKUP(A43,Deliassage!$D$2:$M$74,8,FALSE),IF(AND(E43=1,Hypothèses!$B$26=Hypothèses!$I$22),VLOOKUP(A43,Deliassage!$D$2:$M$74,9,FALSE),IF(AND('Cond. particulières'!E43=1,Hypothèses!$B$26=Hypothèses!$I$23),VLOOKUP(A43,Deliassage!$D$2:$M$74,10,FALSE),""))) ->  | G43: =IF(AND(E43=1,Hypothèses!$B$26=""),VLOOKUP(A43,Deliassage!$D$2:$M$74,3,FALSE),IF(AND(E43=1,Hypothèses!$B$26=Hypothèses!$I$22),VLOOKUP(A43,Deliassage!$D$2:$M$74,4,FALSE),IF(AND('Cond. particulières'!E43=1,Hypothèses!$B$26=Hypothèses!$I$23),VLOOKUP(A43,Deliassage!$D$2:$M$74,5,FALSE),""))) ->  | J43: =IF(E43=1,((H43*N43)+(I43*O43))-G43,"") ->  | K43: =IF(N43=0,0,IF(Hypothèses!$B$26<>"",(('Cond. particulières'!H43*'Cond. particulières'!N43)+('Cond. particulières'!I43*O43))/N43,"")) ->  | M43: Electron Commerciale | N43: =VLOOKUP(A43,Deliassage!$D$2:$J$74,6,FALSE) ->  | O43: =VLOOKUP(A43,Deliassage!$D$2:$J$74,7,FALSE) -> 0 | P43: =(N43*H43)+(I43*O43) -> 
A44: =CONCATENATE(B44," ",C44," ",D44) -> Electron Commerciale UE | B44: Electron | C44: Commerciale | D44: UE | E44: =IF(OR(M44=selection),1,0) -> 0 | F44: =IF(AND(E44=1,Hypothèses!$B$26=""),VLOOKUP(A44,Deliassage!$D$2:$M$74,8,FALSE),IF(AND(E44=1,Hypothèses!$B$26=Hypothèses!$I$22),VLOOKUP(A44,Deliassage!$D$2:$M$74,9,FALSE),IF(AND('Cond. particulières'!E44=1,Hypothèses!$B$26=Hypothèses!$I$23),VLOOKUP(A44,Deliassage!$D$2:$M$74,10,FALSE),""))) ->  | G44: =IF(AND(E44=1,Hypothèses!$B$26=""),VLOOKUP($A$44,Deliassage!$D$2:$M$74,3,FALSE),IF(AND(E44=1,Hypothèses!$B$26=Hypothèses!$I$22),VLOOKUP($A$44,Deliassage!$D$2:$M$74,4,FALSE),IF(AND('Cond. particulières'!E44=1,Hypothèses!$B$26=Hypothèses!$I$23),VLOOKUP($A$44,Deliassage!$D$2:$M$74,5,FALSE),""))) ->  | J44: =IF(E44=1,((H44*N44)+(I44*O44))-G44,"") ->  | K44: =IF(N44=0,0,IF(Hypothèses!$B$26<>"",(('Cond. particulières'!H44*'Cond. particulières'!N44)+('Cond. particulières'!I44*O44))/N44,"")) ->  | M44: Electron Commerciale | N44: =VLOOKUP(A44,Deliassage!$D$2:$J$74,6,FALSE) ->  | O44: =VLOOKUP(A44,Deliassage!$D$2:$J$74,7,FALSE) -> 0 | P44: =(N44*H44)+(I44*O44) ->  | Q44: =IF(Hypothèses!$B$26="",VLOOKUP($A$44,Deliassage!$D$2:$M$75,3,FALSE),IF(Hypothèses!$B$26=Hypothèses!$I$22,VLOOKUP($A$44,Deliassage!$D$2:$M$75,4,FALSE),IF(Hypothèses!$B$26=Hypothèses!$I$23,VLOOKUP($A$44,Deliassage!$D$2:$M$75,5,FALSE),""))) -> 0
A45: =CONCATENATE(B45," ",C45," ",D45) -> Electron Commerciale hors UE | B45: Electron | C45: Commerciale | D45: hors UE | E45: =IF(OR(M45=selection),1,0) -> 0 | F45: =IF(AND(E45=1,Hypothèses!$B$26=""),VLOOKUP(A45,Deliassage!$D$2:$M$74,8,FALSE),IF(AND(E45=1,Hypothèses!$B$26=Hypothèses!$I$22),VLOOKUP(A45,Deliassage!$D$2:$M$74,9,FALSE),IF(AND('Cond. particulières'!E45=1,Hypothèses!$B$26=Hypothèses!$I$23),VLOOKUP(A45,Deliassage!$D$2:$M$74,10,FALSE),""))) ->  | G45: =IF(AND(E45=1,Hypothèses!$B$26=""),VLOOKUP(A45,Deliassage!$D$2:$M$74,3,FALSE),IF(AND(E45=1,Hypothèses!$B$26=Hypothèses!$I$22),VLOOKUP(A45,Deliassage!$D$2:$M$74,4,FALSE),IF(AND('Cond. particulières'!E45=1,Hypothèses!$B$26=Hypothèses!$I$23),VLOOKUP(A45,Deliassage!$D$2:$M$74,5,FALSE),""))) ->  | J45: =IF(E45=1,((H45*N45)+(I45*O45))-G45,"") ->  | K45: =IF(N45=0,0,IF(Hypothèses!$B$26<>"",(('Cond. particulières'!H45*'Cond. particulières'!N45)+('Cond. particulières'!I45*O45))/N45,"")) ->  | M45: Electron Commerciale | N45: =VLOOKUP(A45,Deliassage!$D$2:$J$74,6,FALSE) ->  | O45: =VLOOKUP(A45,Deliassage!$D$2:$J$74,7,FALSE) -> 0 | P45: =(N45*H45)+(I45*O45) ->  | Q45: =IF(Hypothèses!$B$26="",VLOOKUP($A$45,Deliassage!$D$2:$M$75,3,FALSE),IF(Hypothèses!$B$26=Hypothèses!$I$22,VLOOKUP($A$45,Deliassage!$D$2:$M$75,4,FALSE),IF(Hypothèses!$B$26=Hypothèses!$I$23,VLOOKUP($A$45,Deliassage!$D$2:$M$75,5,FALSE),""))) -> 0
D47: =CONCATENATE(B48," ",C48) -> Electron | F47: Point mort | G47: Charges | H47: Taux | I47: Fixe | J47: Résultat | K47: Commission banque
A48: =CONCATENATE(B48," ",C48," ",D48) -> Electron Intra réseau | B48: Electron | D48: Intra réseau | E48: =IF(OR(M48=selection),1,0) -> 0 | F48: =IF(AND(E48=1,Hypothèses!$B$26=""),VLOOKUP(A48,Deliassage!$D$2:$M$74,8,FALSE),IF(AND(E48=1,Hypothèses!$B$26=Hypothèses!$I$22),VLOOKUP(A48,Deliassage!$D$2:$M$74,9,FALSE),IF(AND('Cond. particulières'!E48=1,Hypothèses!$B$26=Hypothèses!$I$23),VLOOKUP(A48,Deliassage!$D$2:$M$74,10,FALSE),""))) ->  | G48: =IF(AND(E48=1,Hypothèses!$B$26=""),VLOOKUP(A48,Deliassage!$D$2:$M$74,3,FALSE),IF(AND(E48=1,Hypothèses!$B$26=Hypothèses!$I$22),VLOOKUP(A48,Deliassage!$D$2:$M$74,4,FALSE),IF(AND('Cond. particulières'!E48=1,Hypothèses!$B$26=Hypothèses!$I$23),VLOOKUP(A48,Deliassage!$D$2:$M$74,5,FALSE),""))) ->  | J48: =IF(E48=1,((H48*N48)+(I48*O48))-G48,"") ->  | K48: =IF(N48=0,0,IF(Hypothèses!$B$26<>"",(('Cond. particulières'!H48*'Cond. particulières'!N48)+('Cond. particulières'!I48*O48))/N48,"")) ->  | M48: =B48 -> Electron | N48: =VLOOKUP(A48,Deliassage!$D$2:$J$74,6,FALSE) ->  | O48: =VLOOKUP(A48,Deliassage!$D$2:$J$74,7,FALSE) -> 0 | P48: =(N48*H48)+(I48*O48) -> 
A49: =CONCATENATE(B49," ",C49," ",D49) -> Electron UE | B49: Electron | D49: UE | E49: =IF(OR(M49=selection),1,0) -> 0 | F49: =IF(AND(E49=1,Hypothèses!$B$26=""),VLOOKUP(A49,Deliassage!$D$2:$M$74,8,FALSE),IF(AND(E49=1,Hypothèses!$B$26=Hypothèses!$I$22),VLOOKUP(A49,Deliassage!$D$2:$M$74,9,FALSE),IF(AND('Cond. particulières'!E49=1,Hypothèses!$B$26=Hypothèses!$I$23),VLOOKUP(A49,Deliassage!$D$2:$M$74,10,FALSE),""))) ->  | G49: =IF(AND(E49=1,Hypothèses!$B$26=""),VLOOKUP(A49,Deliassage!$D$2:$M$74,3,FALSE),IF(AND(E49=1,Hypothèses!$B$26=Hypothèses!$I$22),VLOOKUP(A49,Deliassage!$D$2:$M$74,4,FALSE),IF(AND('Cond. particulières'!E49=1,Hypothèses!$B$26=Hypothèses!$I$23),VLOOKUP(A49,Deliassage!$D$2:$M$74,5,FALSE),""))) ->  | J49: =IF(E49=1,((H49*N49)+(I49*O49))-G49,"") ->  | K49: =IF(N49=0,0,IF(Hypothèses!$B$26<>"",(('Cond. particulières'!H49*'Cond. particulières'!N49)+('Cond. particulières'!I49*O49))/N49,"")) ->  | M49: =B49 -> Electron | N49: =VLOOKUP(A49,Deliassage!$D$2:$J$74,6,FALSE) ->  | O49: =VLOOKUP(A49,Deliassage!$D$2:$J$74,7,FALSE) -> 0 | P49: =(N49*H49)+(I49*O49) -> 
A50: =CONCATENATE(B50," ",C50," ",D50) -> Electron hors UE | B50: Electron | D50: hors UE | E50: =IF(OR(M50=selection),1,0) -> 0 | F50: =IF(AND(E50=1,Hypothèses!$B$26=""),VLOOKUP(A50,Deliassage!$D$2:$M$74,8,FALSE),IF(AND(E50=1,Hypothèses!$B$26=Hypothèses!$I$22),VLOOKUP(A50,Deliassage!$D$2:$M$74,9,FALSE),IF(AND('Cond. particulières'!E50=1,Hypothèses!$B$26=Hypothèses!$I$23),VLOOKUP(A50,Deliassage!$D$2:$M$74,10,FALSE),""))) ->  | G50: =IF(AND(E50=1,Hypothèses!$B$26=""),VLOOKUP(A50,Deliassage!$D$2:$M$74,3,FALSE),IF(AND(E50=1,Hypothèses!$B$26=Hypothèses!$I$22),VLOOKUP(A50,Deliassage!$D$2:$M$74,4,FALSE),IF(AND('Cond. particulières'!E50=1,Hypothèses!$B$26=Hypothèses!$I$23),VLOOKUP(A50,Deliassage!$D$2:$M$74,5,FALSE),""))) ->  | J50: =IF(E50=1,((H50*N50)+(I50*O50))-G50,"") ->  | K50: =IF(N50=0,0,IF(Hypothèses!$B$26<>"",(('Cond. particulières'!H50*'Cond. particulières'!N50)+('Cond. particulières'!I50*O50))/N50,"")) ->  | M50: =B50 -> Electron | N50: =VLOOKUP(A50,Deliassage!$D$2:$J$74,6,FALSE) ->  | O50: =VLOOKUP(A50,Deliassage!$D$2:$J$74,7,FALSE) -> 0 | P50: =(N50*H50)+(I50*O50) -> 
M51: =CONCATENATE(B51," ",C51) -> 
D52: =CONCATENATE(B53," ",C53) -> Maestro DI | F52: Point mort | G52: Charges | H52: Taux | I52: Fixe | J52: Résultat | K52: Commission banque
A53: =CONCATENATE(B53," ",C53," ",D53) -> Maestro DI Intra réseau | B53: Maestro | C53: DI | D53: Intra réseau | E53: =IF(OR(M53=selection),1,0) -> 0 | F53: =IF(AND(E53=1,Hypothèses!$B$26=""),VLOOKUP(A53,Deliassage!$D$2:$M$74,8,FALSE),IF(AND(E53=1,Hypothèses!$B$26=Hypothèses!$I$22),VLOOKUP(A53,Deliassage!$D$2:$M$74,9,FALSE),IF(AND('Cond. particulières'!E53=1,Hypothèses!$B$26=Hypothèses!$I$23),VLOOKUP(A53,Deliassage!$D$2:$M$74,10,FALSE),""))) ->  | G53: =IF(AND(E53=1,Hypothèses!$B$26=""),VLOOKUP(A53,Deliassage!$D$2:$M$74,3,FALSE),IF(AND(E53=1,Hypothèses!$B$26=Hypothèses!$I$22),VLOOKUP(A53,Deliassage!$D$2:$M$74,4,FALSE),IF(AND('Cond. particulières'!E53=1,Hypothèses!$B$26=Hypothèses!$I$23),VLOOKUP(A53,Deliassage!$D$2:$M$74,5,FALSE),""))) ->  | J53: =IF(E53=1,((H53*N53)+(I53*O53))-G53,"") ->  | K53: =IF(N53=0,0,IF(Hypothèses!$B$26<>"",(('Cond. particulières'!H53*'Cond. particulières'!N53)+('Cond. particulières'!I53*O53))/N53,"")) ->  | M53: Maestro DI | N53: =VLOOKUP(A53,Deliassage!$D$2:$J$74,6,FALSE) ->  | O53: =VLOOKUP(A53,Deliassage!$D$2:$J$74,7,FALSE) -> 0 | P53: =(N53*H53)+(I53*O53) -> 
A54: =CONCATENATE(B54," ",C54," ",D54) -> Maestro DI UE | B54: Maestro | C54: DI | D54: UE | E54: =IF(OR(M54=selection),1,0) -> 0 | F54: =IF(AND(E54=1,Hypothèses!$B$26=""),VLOOKUP(A54,Deliassage!$D$2:$M$74,8,FALSE),IF(AND(E54=1,Hypothèses!$B$26=Hypothèses!$I$22),VLOOKUP(A54,Deliassage!$D$2:$M$74,9,FALSE),IF(AND('Cond. particulières'!E54=1,Hypothèses!$B$26=Hypothèses!$I$23),VLOOKUP(A54,Deliassage!$D$2:$M$74,10,FALSE),""))) ->  | G54: =IF(AND(E54=1,Hypothèses!$B$26=""),VLOOKUP(A54,Deliassage!$D$2:$M$74,3,FALSE),IF(AND(E54=1,Hypothèses!$B$26=Hypothèses!$I$22),VLOOKUP(A54,Deliassage!$D$2:$M$74,4,FALSE),IF(AND('Cond. particulières'!E54=1,Hypothèses!$B$26=Hypothèses!$I$23),VLOOKUP(A54,Deliassage!$D$2:$M$74,5,FALSE),""))) ->  | J54: =IF(E54=1,((H54*N54)+(I54*O54))-G54,"") ->  | K54: =IF(N54=0,0,IF(Hypothèses!$B$26<>"",(('Cond. particulières'!H54*'Cond. particulières'!N54)+('Cond. particulières'!I54*O54))/N54,"")) ->  | M54: Maestro DI | N54: =VLOOKUP(A54,Deliassage!$D$2:$J$74,6,FALSE) ->  | O54: =VLOOKUP(A54,Deliassage!$D$2:$J$74,7,FALSE) -> 0 | P54: =(N54*H54)+(I54*O54) -> 
A55: =CONCATENATE(B55," ",C55," ",D55) -> Maestro DI hors UE | B55: Maestro | C55: DI | D55: hors UE | E55: =IF(OR(M55=selection),1,0) -> 0 | F55: =IF(AND(E55=1,Hypothèses!$B$26=""),VLOOKUP(A55,Deliassage!$D$2:$M$74,8,FALSE),IF(AND(E55=1,Hypothèses!$B$26=Hypothèses!$I$22),VLOOKUP(A55,Deliassage!$D$2:$M$74,9,FALSE),IF(AND('Cond. particulières'!E55=1,Hypothèses!$B$26=Hypothèses!$I$23),VLOOKUP(A55,Deliassage!$D$2:$M$74,10,FALSE),""))) ->  | G55: =IF(AND(E55=1,Hypothèses!$B$26=""),VLOOKUP(A55,Deliassage!$D$2:$M$74,3,FALSE),IF(AND(E55=1,Hypothèses!$B$26=Hypothèses!$I$22),VLOOKUP(A55,Deliassage!$D$2:$M$74,4,FALSE),IF(AND('Cond. particulières'!E55=1,Hypothèses!$B$26=Hypothèses!$I$23),VLOOKUP(A55,Deliassage!$D$2:$M$74,5,FALSE),""))) ->  | J55: =IF(E55=1,((H55*N55)+(I55*O55))-G55,"") ->  | K55: =IF(N55=0,0,IF(Hypothèses!$B$26<>"",(('Cond. particulières'!H55*'Cond. particulières'!N55)+('Cond. particulières'!I55*O55))/N55,"")) ->  | M55: Maestro DI | N55: =VLOOKUP(A55,Deliassage!$D$2:$J$74,6,FALSE) ->  | O55: =VLOOKUP(A55,Deliassage!$D$2:$J$74,7,FALSE) -> 0 | P55: =(N55*H55)+(I55*O55) -> 
D57: =CONCATENATE(B58," ",C58) -> Maestro DD | F57: Point mort | G57: Charges | H57: Taux | I57: Fixe | J57: Résultat | K57: Commission banque
A58: =CONCATENATE(B58," ",C58," ",D58) -> Maestro DD UE | B58: Maestro | C58: DD | D58: UE | E58: =IF(OR(M58=selection),1,0) -> 0 | F58: =IF(AND(E58=1,Hypothèses!$B$26=""),VLOOKUP(A58,Deliassage!$D$2:$M$74,8,FALSE),IF(AND(E58=1,Hypothèses!$B$26=Hypothèses!$I$22),VLOOKUP(A58,Deliassage!$D$2:$M$74,9,FALSE),IF(AND('Cond. particulières'!E58=1,Hypothèses!$B$26=Hypothèses!$I$23),VLOOKUP(A58,Deliassage!$D$2:$M$74,10,FALSE),""))) ->  | G58: =IF(AND(E58=1,Hypothèses!$B$26=""),VLOOKUP(A58,Deliassage!$D$2:$M$74,3,FALSE),IF(AND(E58=1,Hypothèses!$B$26=Hypothèses!$I$22),VLOOKUP(A58,Deliassage!$D$2:$M$74,4,FALSE),IF(AND('Cond. particulières'!E58=1,Hypothèses!$B$26=Hypothèses!$I$23),VLOOKUP(A58,Deliassage!$D$2:$M$74,5,FALSE),""))) ->  | J58: =IF(E58=1,((H58*N58)+(I58*O58))-G58,"") ->  | K58: =IF(N58=0,0,IF(Hypothèses!$B$26<>"",(('Cond. particulières'!H58*'Cond. particulières'!N58)+('Cond. particulières'!I58*O58))/N58,"")) ->  | M58: Maestro DD | N58: =VLOOKUP(A58,Deliassage!$D$2:$J$74,6,FALSE) ->  | O58: =VLOOKUP(A58,Deliassage!$D$2:$J$74,7,FALSE) -> 0 | P58: =(N58*H58)+(I58*O58) -> 
D60: =CONCATENATE(B61," ",C61) -> Maestro Commerciale | F60: Point mort | G60: Charges | H60: Taux | I60: Fixe | J60: Résultat | K60: Commission banque
A61: =CONCATENATE(B61," ",C61," ",D61) -> Maestro Commerciale Intra réseau | B61: Maestro | C61: Commerciale | D61: Intra réseau | E61: =IF(OR(M61=selection),1,0) -> 0 | F61: =IF(AND(E61=1,Hypothèses!$B$26=""),VLOOKUP(A61,Deliassage!$D$2:$M$74,8,FALSE),IF(AND(E61=1,Hypothèses!$B$26=Hypothèses!$I$22),VLOOKUP(A61,Deliassage!$D$2:$M$74,9,FALSE),IF(AND('Cond. particulières'!E61=1,Hypothèses!$B$26=Hypothèses!$I$23),VLOOKUP(A61,Deliassage!$D$2:$M$74,10,FALSE),""))) ->  | G61: =IF(AND(E61=1,Hypothèses!$B$26=""),VLOOKUP(A61,Deliassage!$D$2:$M$74,3,FALSE),IF(AND(E61=1,Hypothèses!$B$26=Hypothèses!$I$22),VLOOKUP(A61,Deliassage!$D$2:$M$74,4,FALSE),IF(AND('Cond. particulières'!E61=1,Hypothèses!$B$26=Hypothèses!$I$23),VLOOKUP(A61,Deliassage!$D$2:$M$74,5,FALSE),""))) ->  | J61: =IF(E61=1,((H61*N61)+(I61*O61))-G61,"") ->  | K61: =IF(N61=0,0,IF(Hypothèses!$B$26<>"",(('Cond. particulières'!H61*'Cond. particulières'!N61)+('Cond. particulières'!I61*O61))/N61,"")) ->  | M61: Maestro Commerciale | N61: =VLOOKUP(A61,Deliassage!$D$2:$J$74,6,FALSE) ->  | O61: =VLOOKUP(A61,Deliassage!$D$2:$J$74,7,FALSE) -> 0
A62: =CONCATENATE(B62," ",C62," ",D62) -> Maestro Commerciale UE | B62: Maestro | C62: Commerciale | D62: UE | E62: =IF(OR(M62=selection),1,0) -> 0 | F62: =IF(AND(E62=1,Hypothèses!$B$26=""),VLOOKUP($A$62,Deliassage!$D$2:$M$74,8,FALSE),IF(AND(E62=1,Hypothèses!$B$26=Hypothèses!$I$22),VLOOKUP($A$62,Deliassage!$D$2:$M$74,9,FALSE),IF(AND('Cond. particulières'!E62=1,Hypothèses!$B$26=Hypothèses!$I$23),VLOOKUP($A$62,Deliassage!$D$2:$M$74,10,FALSE),""))) ->  | G62: =IF(AND(E62=1,Hypothèses!$B$26=""),VLOOKUP(A62,Deliassage!$D$2:$M$74,3,FALSE),IF(AND(E62=1,Hypothèses!$B$26=Hypothèses!$I$22),VLOOKUP(A62,Deliassage!$D$2:$M$74,4,FALSE),IF(AND('Cond. particulières'!E62=1,Hypothèses!$B$26=Hypothèses!$I$23),VLOOKUP(A62,Deliassage!$D$2:$M$74,5,FALSE),""))) ->  | J62: =IF(E62=1,((H62*N62)+(I62*O62))-G62,"") ->  | K62: =IF(N62=0,0,IF(Hypothèses!$B$26<>"",(('Cond. particulières'!H62*'Cond. particulières'!N62)+('Cond. particulières'!I62*O62))/N62,"")) ->  | M62: Maestro Commerciale | N62: =VLOOKUP(A62,Deliassage!$D$2:$J$74,6,FALSE) ->  | O62: =VLOOKUP(A62,Deliassage!$D$2:$J$74,7,FALSE) -> 0 | P62: =(N62*H62)+(I62*O62) ->  | Q62: =IF(Hypothèses!$B$26="",VLOOKUP($A$62,Deliassage!$D$2:$M$75,3,FALSE),IF(Hypothèses!$B$26=Hypothèses!$I$22,VLOOKUP($A$62,Deliassage!$D$2:$M$75,4,FALSE),IF(Hypothèses!$B$26=Hypothèses!$I$23,VLOOKUP($A$62,Deliassage!$D$2:$M$75,5,FALSE),""))) -> 0
A63: =CONCATENATE(B63," ",C63," ",D63) -> Maestro Commerciale hors UE | B63: Maestro | C63: Commerciale | D63: hors UE | E63: =IF(OR(M63=selection),1,0) -> 0 | F63: =IF(AND(E63=1,Hypothèses!$B$26=""),VLOOKUP(A63,Deliassage!$D$2:$M$74,8,FALSE),IF(AND(E63=1,Hypothèses!$B$26=Hypothèses!$I$22),VLOOKUP(A63,Deliassage!$D$2:$M$74,9,FALSE),IF(AND('Cond. particulières'!E63=1,Hypothèses!$B$26=Hypothèses!$I$23),VLOOKUP(A63,Deliassage!$D$2:$M$74,10,FALSE),""))) ->  | G63: =IF(AND(E63=1,Hypothèses!$B$26=""),VLOOKUP(A63,Deliassage!$D$2:$M$74,3,FALSE),IF(AND(E63=1,Hypothèses!$B$26=Hypothèses!$I$22),VLOOKUP(A63,Deliassage!$D$2:$M$74,4,FALSE),IF(AND('Cond. particulières'!E63=1,Hypothèses!$B$26=Hypothèses!$I$23),VLOOKUP(A63,Deliassage!$D$2:$M$74,5,FALSE),""))) ->  | J63: =IF(E63=1,((H63*N63)+(I63*O63))-G63,"") ->  | K63: =IF(N63=0,0,IF(Hypothèses!$B$26<>"",(('Cond. particulières'!H63*'Cond. particulières'!N63)+('Cond. particulières'!I63*O63))/N63,"")) ->  | M63: Maestro Commerciale | N63: =VLOOKUP(A63,Deliassage!$D$2:$J$74,6,FALSE) ->  | O63: =VLOOKUP(A63,Deliassage!$D$2:$J$74,7,FALSE) -> 0 | Q63: =IF(Hypothèses!$B$26="",VLOOKUP($A$63,Deliassage!$D$2:$M$75,3,FALSE),IF(Hypothèses!$B$26=Hypothèses!$I$22,VLOOKUP($A$63,Deliassage!$D$2:$M$75,4,FALSE),IF(Hypothèses!$B$26=Hypothèses!$I$23,VLOOKUP($A$63,Deliassage!$D$2:$M$75,5,FALSE),""))) -> 0
D65: =CONCATENATE(B66," ",C66) -> Maestro | F65: Point mort | G65: Charges | H65: Taux | I65: Fixe | J65: Résultat | K65: Commission banque
A66: =CONCATENATE(B66," ",C66," ",D66) -> Maestro Intra réseau | B66: Maestro | D66: Intra réseau | E66: =IF(OR(M66=selection),1,0) -> 0 | F66: =IF(AND(E66=1,Hypothèses!$B$26=""),VLOOKUP(A66,Deliassage!$D$2:$M$74,8,FALSE),IF(AND(E66=1,Hypothèses!$B$26=Hypothèses!$I$22),VLOOKUP(A66,Deliassage!$D$2:$M$74,9,FALSE),IF(AND('Cond. particulières'!E66=1,Hypothèses!$B$26=Hypothèses!$I$23),VLOOKUP(A66,Deliassage!$D$2:$M$74,10,FALSE),""))) ->  | G66: =IF(AND(E66=1,Hypothèses!$B$26=""),VLOOKUP(A66,Deliassage!$D$2:$M$74,3,FALSE),IF(AND(E66=1,Hypothèses!$B$26=Hypothèses!$I$22),VLOOKUP(A66,Deliassage!$D$2:$M$74,4,FALSE),IF(AND('Cond. particulières'!E66=1,Hypothèses!$B$26=Hypothèses!$I$23),VLOOKUP(A66,Deliassage!$D$2:$M$74,5,FALSE),""))) ->  | J66: =IF(E66=1,((H66*N66)+(I66*O66))-G66,"") ->  | K66: =IF(N66=0,0,IF(Hypothèses!$B$26<>"",(('Cond. particulières'!H66*'Cond. particulières'!N66)+('Cond. particulières'!I66*O66))/N66,"")) ->  | M66: =B66 -> Maestro | N66: =VLOOKUP(A66,Deliassage!$D$2:$J$74,6,FALSE) ->  | O66: =VLOOKUP(A66,Deliassage!$D$2:$J$74,7,FALSE) -> 0 | P66: =(N66*H66)+(I66*O66) -> 
A67: =CONCATENATE(B67," ",C67," ",D67) -> Maestro UE | B67: Maestro | D67: UE | E67: =IF(OR(M67=selection),1,0) -> 0 | F67: =IF(AND(E67=1,Hypothèses!$B$26=""),VLOOKUP(A67,Deliassage!$D$2:$M$74,8,FALSE),IF(AND(E67=1,Hypothèses!$B$26=Hypothèses!$I$22),VLOOKUP(A67,Deliassage!$D$2:$M$74,9,FALSE),IF(AND('Cond. particulières'!E67=1,Hypothèses!$B$26=Hypothèses!$I$23),VLOOKUP(A67,Deliassage!$D$2:$M$74,10,FALSE),""))) ->  | G67: =IF(AND(E67=1,Hypothèses!$B$26=""),VLOOKUP(A67,Deliassage!$D$2:$M$74,3,FALSE),IF(AND(E67=1,Hypothèses!$B$26=Hypothèses!$I$22),VLOOKUP(A67,Deliassage!$D$2:$M$74,4,FALSE),IF(AND('Cond. particulières'!E67=1,Hypothèses!$B$26=Hypothèses!$I$23),VLOOKUP(A67,Deliassage!$D$2:$M$74,5,FALSE),""))) ->  | J67: =IF(E67=1,((H67*N67)+(I67*O67))-G67,"") ->  | K67: =IF(N67=0,0,IF(Hypothèses!$B$26<>"",(('Cond. particulières'!H67*'Cond. particulières'!N67)+('Cond. particulières'!I67*O67))/N67,"")) ->  | M67: =B67 -> Maestro | N67: =VLOOKUP(A67,Deliassage!$D$2:$J$74,6,FALSE) ->  | O67: =VLOOKUP(A67,Deliassage!$D$2:$J$74,7,FALSE) -> 0 | P67: =(N67*H67)+(I67*O67) -> 
A68: =CONCATENATE(B68," ",C68," ",D68) -> Maestro hors UE | B68: Maestro | D68: hors UE | E68: =IF(OR(M68=selection),1,0) -> 0 | F68: =IF(AND(E68=1,Hypothèses!$B$26=""),VLOOKUP(A68,Deliassage!$D$2:$M$74,8,FALSE),IF(AND(E68=1,Hypothèses!$B$26=Hypothèses!$I$22),VLOOKUP(A68,Deliassage!$D$2:$M$74,9,FALSE),IF(AND('Cond. particulières'!E68=1,Hypothèses!$B$26=Hypothèses!$I$23),VLOOKUP(A68,Deliassage!$D$2:$M$74,10,FALSE),""))) ->  | G68: =IF(AND(E68=1,Hypothèses!$B$26=""),VLOOKUP(A68,Deliassage!$D$2:$M$74,3,FALSE),IF(AND(E68=1,Hypothèses!$B$26=Hypothèses!$I$22),VLOOKUP(A68,Deliassage!$D$2:$M$74,4,FALSE),IF(AND('Cond. particulières'!E68=1,Hypothèses!$B$26=Hypothèses!$I$23),VLOOKUP(A68,Deliassage!$D$2:$M$74,5,FALSE),""))) ->  | J68: =IF(E68=1,((H68*N68)+(I68*O68))-G68,"") ->  | K68: =IF(N68=0,0,IF(Hypothèses!$B$26<>"",(('Cond. particulières'!H68*'Cond. particulières'!N68)+('Cond. particulières'!I68*O68))/N68,"")) ->  | M68: =B68 -> Maestro | N68: =VLOOKUP(A68,Deliassage!$D$2:$J$74,6,FALSE) ->  | O68: =VLOOKUP(A68,Deliassage!$D$2:$J$74,7,FALSE) -> 0 | P68: =(N68*H68)+(I68*O68) -> 
M69: =CONCATENATE(B69," ",C69) -> 
D70: =CONCATENATE(B71," ",C71) -> Mastercard DI | F70: Point mort | G70: Charges | H70: Taux | I70: Fixe | J70: Résultat | K70: Commission banque
A71: =CONCATENATE(B71," ",C71," ",D71) -> Mastercard DI UE | B71: Mastercard | C71: DI | D71: UE | E71: =IF(OR(M71=selection),1,0) -> 0 | F71: =IF(AND(E71=1,Hypothèses!$B$26=""),VLOOKUP(A71,Deliassage!$D$2:$M$74,8,FALSE),IF(AND(E71=1,Hypothèses!$B$26=Hypothèses!$I$22),VLOOKUP(A71,Deliassage!$D$2:$M$74,9,FALSE),IF(AND('Cond. particulières'!E71=1,Hypothèses!$B$26=Hypothèses!$I$23),VLOOKUP(A71,Deliassage!$D$2:$M$74,10,FALSE),""))) ->  | G71: =IF(AND(E71=1,Hypothèses!$B$26=""),VLOOKUP(A71,Deliassage!$D$2:$M$74,3,FALSE),IF(AND(E71=1,Hypothèses!$B$26=Hypothèses!$I$22),VLOOKUP(A71,Deliassage!$D$2:$M$74,4,FALSE),IF(AND('Cond. particulières'!E71=1,Hypothèses!$B$26=Hypothèses!$I$23),VLOOKUP(A71,Deliassage!$D$2:$M$74,5,FALSE),""))) ->  | J71: =IF(E71=1,((H71*N71)+(I71*O71))-G71,"") ->  | K71: =IF(N71=0,0,IF(Hypothèses!$B$26<>"",(('Cond. particulières'!H71*'Cond. particulières'!N71)+('Cond. particulières'!I71*O71))/N71,"")) ->  | M71: Mastercard DI | N71: =VLOOKUP(A71,Deliassage!$D$2:$J$74,6,FALSE) ->  | O71: =VLOOKUP(A71,Deliassage!$D$2:$J$74,7,FALSE) -> 0 | P71: =(N71*H71)+(I71*O71) -> 
A72: =CONCATENATE(B72," ",C72," ",D72) -> Mastercard DI hors UE | B72: Mastercard | C72: DI | D72: hors UE | E72: =IF(OR(M72=selection),1,0) -> 0 | F72: =IF(AND(E72=1,Hypothèses!$B$26=""),VLOOKUP(A72,Deliassage!$D$2:$M$74,8,FALSE),IF(AND(E72=1,Hypothèses!$B$26=Hypothèses!$I$22),VLOOKUP(A72,Deliassage!$D$2:$M$74,9,FALSE),IF(AND('Cond. particulières'!E72=1,Hypothèses!$B$26=Hypothèses!$I$23),VLOOKUP(A72,Deliassage!$D$2:$M$74,10,FALSE),""))) ->  | G72: =IF(AND(E72=1,Hypothèses!$B$26=""),VLOOKUP(A72,Deliassage!$D$2:$M$74,3,FALSE),IF(AND(E72=1,Hypothèses!$B$26=Hypothèses!$I$22),VLOOKUP(A72,Deliassage!$D$2:$M$74,4,FALSE),IF(AND('Cond. particulières'!E72=1,Hypothèses!$B$26=Hypothèses!$I$23),VLOOKUP(A72,Deliassage!$D$2:$M$74,5,FALSE),""))) ->  | J72: =IF(E72=1,((H72*N72)+(I72*O72))-G72,"") ->  | K72: =IF(N72=0,0,IF(Hypothèses!$B$26<>"",(('Cond. particulières'!H72*'Cond. particulières'!N72)+('Cond. particulières'!I72*O72))/N72,"")) ->  | M72: Mastercard DI | N72: =VLOOKUP(A72,Deliassage!$D$2:$J$74,6,FALSE) ->  | O72: =VLOOKUP(A72,Deliassage!$D$2:$J$74,7,FALSE) -> 0 | P72: =(N72*H72)+(I72*O72) -> 
D74: =CONCATENATE(B75," ",C75) -> Mastercard DD | F74: Point mort | G74: Charges | H74: Taux | I74: Fixe | J74: Résultat | K74: Commission banque
A75: =CONCATENATE(B75," ",C75," ",D75) -> Mastercard DD UE | B75: Mastercard | C75: DD | D75: UE | E75: =IF(OR(M75=selection),1,0) -> 0 | F75: =IF(AND(E75=1,Hypothèses!$B$26=""),VLOOKUP(A75,Deliassage!$D$2:$M$74,8,FALSE),IF(AND(E75=1,Hypothèses!$B$26=Hypothèses!$I$22),VLOOKUP(A75,Deliassage!$D$2:$M$74,9,FALSE),IF(AND('Cond. particulières'!E75=1,Hypothèses!$B$26=Hypothèses!$I$23),VLOOKUP(A75,Deliassage!$D$2:$M$74,10,FALSE),""))) ->  | G75: =IF(AND(E75=1,Hypothèses!$B$26=""),VLOOKUP(A75,Deliassage!$D$2:$M$74,3,FALSE),IF(AND(E75=1,Hypothèses!$B$26=Hypothèses!$I$22),VLOOKUP(A75,Deliassage!$D$2:$M$74,4,FALSE),IF(AND('Cond. particulières'!E75=1,Hypothèses!$B$26=Hypothèses!$I$23),VLOOKUP(A75,Deliassage!$D$2:$M$74,5,FALSE),""))) ->  | J75: =IF(E75=1,((H75*N75)+(I75*O75))-G75,"") ->  | K75: =IF(N75=0,0,IF(Hypothèses!$B$26<>"",(('Cond. particulières'!H75*'Cond. particulières'!N75)+('Cond. particulières'!I75*O75))/N75,"")) ->  | M75: Mastercard DD | N75: =VLOOKUP(A75,Deliassage!$D$2:$J$74,6,FALSE) ->  | O75: =VLOOKUP(A75,Deliassage!$D$2:$J$74,7,FALSE) -> 0 | P75: =(N75*H75)+(I75*O75) -> 
A76: =CONCATENATE(B76," ",C76," ",D76) -> Mastercard DD hors UE | B76: Mastercard | C76: DD | D76: hors UE | E76: =IF(OR(M76=selection),1,0) -> 0 | F76: =IF(AND(E76=1,Hypothèses!$B$26=""),VLOOKUP(A76,Deliassage!$D$2:$M$74,8,FALSE),IF(AND(E76=1,Hypothèses!$B$26=Hypothèses!$I$22),VLOOKUP(A76,Deliassage!$D$2:$M$74,9,FALSE),IF(AND('Cond. particulières'!E76=1,Hypothèses!$B$26=Hypothèses!$I$23),VLOOKUP(A76,Deliassage!$D$2:$M$74,10,FALSE),""))) ->  | G76: =IF(AND(E76=1,Hypothèses!$B$26=""),VLOOKUP(A76,Deliassage!$D$2:$M$74,3,FALSE),IF(AND(E76=1,Hypothèses!$B$26=Hypothèses!$I$22),VLOOKUP(A76,Deliassage!$D$2:$M$74,4,FALSE),IF(AND('Cond. particulières'!E76=1,Hypothèses!$B$26=Hypothèses!$I$23),VLOOKUP(A76,Deliassage!$D$2:$M$74,5,FALSE),""))) ->  | J76: =IF(E76=1,((H76*N76)+(I76*O76))-G76,"") ->  | K76: =IF(N76=0,0,IF(Hypothèses!$B$26<>"",(('Cond. particulières'!H76*'Cond. particulières'!N76)+('Cond. particulières'!I76*O76))/N76,"")) ->  | M76: Mastercard DD | N76: =VLOOKUP(A76,Deliassage!$D$2:$J$74,6,FALSE) ->  | O76: =VLOOKUP(A76,Deliassage!$D$2:$J$74,7,FALSE) -> 0 | P76: =(N76*H76)+(I76*O76) -> 
D78: =CONCATENATE(B79," ",C79) -> Mastercard Commerciale | F78: Point mort | G78: Charges | H78: Taux | I78: Fixe | J78: Résultat | K78: Commission banque
A79: =CONCATENATE(B79," ",C79," ",D79) -> Mastercard Commerciale UE | B79: Mastercard | C79: Commerciale | D79: UE | E79: =IF(OR(M79=selection),1,0) -> 0 | F79: =IF(AND(E79=1,Hypothèses!$B$26=""),VLOOKUP(A79,Deliassage!$D$2:$M$74,8,FALSE),IF(AND(E79=1,Hypothèses!$B$26=Hypothèses!$I$22),VLOOKUP(A79,Deliassage!$D$2:$M$74,9,FALSE),IF(AND('Cond. particulières'!E79=1,Hypothèses!$B$26=Hypothèses!$I$23),VLOOKUP(A79,Deliassage!$D$2:$M$74,10,FALSE),""))) ->  | G79: =IF(AND(E79=1,Hypothèses!$B$26=""),VLOOKUP($A$79,Deliassage!$D$2:$M$74,3,FALSE),IF(AND(E79=1,Hypothèses!$B$26=Hypothèses!$I$22),VLOOKUP($A$79,Deliassage!$D$2:$M$74,4,FALSE),IF(AND('Cond. particulières'!E79=1,Hypothèses!$B$26=Hypothèses!$I$23),VLOOKUP($A$79,Deliassage!$D$2:$M$74,5,FALSE),""))) ->  | J79: =IF(E79=1,((H79*N79)+(I79*O79))-G79,"") ->  | K79: =IF(N79=0,0,IF(Hypothèses!$B$26<>"",(('Cond. particulières'!H79*'Cond. particulières'!N79)+('Cond. particulières'!I79*O79))/N79,"")) ->  | M79: Mastercard Commerciale | N79: =VLOOKUP(A79,Deliassage!$D$2:$J$74,6,FALSE) ->  | O79: =VLOOKUP(A79,Deliassage!$D$2:$J$74,7,FALSE) -> 0 | P79: =(N79*H79)+(I79*O79) ->  | Q79: =IF(Hypothèses!$B$26="",VLOOKUP($A$79,Deliassage!$D$2:$M$75,3,FALSE),IF(Hypothèses!$B$26=Hypothèses!$I$22,VLOOKUP($A$79,Deliassage!$D$2:$M$75,4,FALSE),IF(Hypothèses!$B$26=Hypothèses!$I$23,VLOOKUP($A$79,Deliassage!$D$2:$M$75,5,FALSE),""))) -> 0
A80: =CONCATENATE(B80," ",C80," ",D80) -> Mastercard Commerciale hors UE | B80: Mastercard | C80: Commerciale | D80: hors UE | E80: =IF(OR(M80=selection),1,0) -> 0 | F80: =IF(AND(E80=1,Hypothèses!$B$26=""),VLOOKUP(A80,Deliassage!$D$2:$M$74,8,FALSE),IF(AND(E80=1,Hypothèses!$B$26=Hypothèses!$I$22),VLOOKUP(A80,Deliassage!$D$2:$M$74,9,FALSE),IF(AND('Cond. particulières'!E80=1,Hypothèses!$B$26=Hypothèses!$I$23),VLOOKUP(A80,Deliassage!$D$2:$M$74,10,FALSE),""))) ->  | G80: =IF(AND(E80=1,Hypothèses!$B$26=""),VLOOKUP(A80,Deliassage!$D$2:$M$74,3,FALSE),IF(AND(E80=1,Hypothèses!$B$26=Hypothèses!$I$22),VLOOKUP(A80,Deliassage!$D$2:$M$74,4,FALSE),IF(AND('Cond. particulières'!E80=1,Hypothèses!$B$26=Hypothèses!$I$23),VLOOKUP(A80,Deliassage!$D$2:$M$74,5,FALSE),""))) ->  | J80: =IF(E80=1,((H80*N80)+(I80*O80))-G80,"") ->  | K80: =IF(N80=0,0,IF(Hypothèses!$B$26<>"",(('Cond. particulières'!H80*'Cond. particulières'!N80)+('Cond. particulières'!I80*O80))/N80,"")) ->  | M80: Mastercard Commerciale | N80: =VLOOKUP(A80,Deliassage!$D$2:$J$74,6,FALSE) ->  | O80: =VLOOKUP(A80,Deliassage!$D$2:$J$74,7,FALSE) -> 0 | P80: =(N80*H80)+(I80*O80) ->  | Q80: =IF(Hypothèses!$B$26="",VLOOKUP($A$80,Deliassage!$D$2:$M$75,3,FALSE),IF(Hypothèses!$B$26=Hypothèses!$I$22,VLOOKUP($A$80,Deliassage!$D$2:$M$75,4,FALSE),IF(Hypothèses!$B$26=Hypothèses!$I$23,VLOOKUP($A$80,Deliassage!$D$2:$M$75,5,FALSE),""))) -> 0
D82: =CONCATENATE(B83," ",C83) -> Mastercard | F82: Point mort | G82: Charges | H82: Taux | I82: Fixe | J82: Résultat | K82: Commission banque
A83: =CONCATENATE(B83," ",C83," ",D83) -> Mastercard UE | B83: Mastercard | D83: UE | E83: =IF(OR(M83=selection),1,0) -> 0 | F83: =IF(AND(E83=1,Hypothèses!$B$26=""),VLOOKUP(A83,Deliassage!$D$2:$M$74,8,FALSE),IF(AND(E83=1,Hypothèses!$B$26=Hypothèses!$I$22),VLOOKUP(A83,Deliassage!$D$2:$M$74,9,FALSE),IF(AND('Cond. particulières'!E83=1,Hypothèses!$B$26=Hypothèses!$I$23),VLOOKUP(A83,Deliassage!$D$2:$M$74,10,FALSE),""))) ->  | G83: =IF(AND(E83=1,Hypothèses!$B$26=""),VLOOKUP(A83,Deliassage!$D$2:$M$74,3,FALSE),IF(AND(E83=1,Hypothèses!$B$26=Hypothèses!$I$22),VLOOKUP(A83,Deliassage!$D$2:$M$74,4,FALSE),IF(AND('Cond. particulières'!E83=1,Hypothèses!$B$26=Hypothèses!$I$23),VLOOKUP(A83,Deliassage!$D$2:$M$74,5,FALSE),""))) ->  | J83: =IF(E83=1,((H83*N83)+(I83*O83))-G83,"") ->  | K83: =IF(N83=0,0,IF(Hypothèses!$B$26<>"",(('Cond. particulières'!H83*'Cond. particulières'!N83)+('Cond. particulières'!I83*O83))/N83,"")) ->  | M83: =B83 -> Mastercard | N83: =VLOOKUP(A83,Deliassage!$D$2:$J$74,6,FALSE) ->  | O83: =VLOOKUP(A83,Deliassage!$D$2:$J$74,7,FALSE) -> 0 | P83: =(N83*H83)+(I83*O83) -> 
A84: =CONCATENATE(B84," ",C84," ",D84) -> Mastercard hors UE | B84: Mastercard | D84: hors UE | E84: =IF(OR(M84=selection),1,0) -> 0 | F84: =IF(AND(E84=1,Hypothèses!$B$26=""),VLOOKUP(A84,Deliassage!$D$2:$M$74,8,FALSE),IF(AND(E84=1,Hypothèses!$B$26=Hypothèses!$I$22),VLOOKUP(A84,Deliassage!$D$2:$M$74,9,FALSE),IF(AND('Cond. particulières'!E84=1,Hypothèses!$B$26=Hypothèses!$I$23),VLOOKUP(A84,Deliassage!$D$2:$M$74,10,FALSE),""))) ->  | G84: =IF(AND(E84=1,Hypothèses!$B$26=""),VLOOKUP(A84,Deliassage!$D$2:$M$74,3,FALSE),IF(AND(E84=1,Hypothèses!$B$26=Hypothèses!$I$22),VLOOKUP(A84,Deliassage!$D$2:$M$74,4,FALSE),IF(AND('Cond. particulières'!E84=1,Hypothèses!$B$26=Hypothèses!$I$23),VLOOKUP(A84,Deliassage!$D$2:$M$74,5,FALSE),""))) ->  | J84: =IF(E84=1,((H84*N84)+(I84*O84))-G84,"") ->  | K84: =IF(N84=0,0,IF(Hypothèses!$B$26<>"",(('Cond. particulières'!H84*'Cond. particulières'!N84)+('Cond. particulières'!I84*O84))/N84,"")) ->  | M84: =B84 -> Mastercard | N84: =VLOOKUP(A84,Deliassage!$D$2:$J$74,6,FALSE) ->  | O84: =VLOOKUP(A84,Deliassage!$D$2:$J$74,7,FALSE) -> 0 | P84: =(N84*H84)+(I84*O84) -> 
F85: =IF(AND(E85=1,Hypothèses!B84=""),VLOOKUP(A85,Deliassage!$D$2:$M$74,8,FALSE),IF(AND(E85=1,Hypothèses!B84=Hypothèses!F84),VLOOKUP(Deliassage!D79:M141,9,FALSE),IF(AND('Cond. particulières'!E85=1,Hypothèses!B84=Hypothèses!F85),VLOOKUP(Deliassage!D79:M141,10,FALSE),""))) ->  | M85: =CONCATENATE(B85," ",C85) -> 
D86: =CONCATENATE(B88," ",C88) -> Visa DI | F86: Point mort | G86: Charges | H86: Taux | I86: Fixe | J86: Résultat | K86: Commission banque
A87: =CONCATENATE(B87," ",C87," ",D87) -> Visa DI Intra réseau | B87: Visa | C87: DI | D87: Intra réseau | E87: =IF(OR(M87=selection),1,0) -> 0 | F87: =IF(AND(E87=1,Hypothèses!$B$26=""),VLOOKUP(A87,Deliassage!$D$2:$M$74,8,FALSE),IF(AND(E87=1,Hypothèses!$B$26=Hypothèses!$I$22),VLOOKUP(A87,Deliassage!$D$2:$M$74,9,FALSE),IF(AND('Cond. particulières'!E87=1,Hypothèses!$B$26=Hypothèses!$I$23),VLOOKUP(A87,Deliassage!$D$2:$M$74,10,FALSE),""))) ->  | G87: =IF(AND(E87=1,Hypothèses!$B$26=""),VLOOKUP(A87,Deliassage!$D$2:$M$74,3,FALSE),IF(AND(E87=1,Hypothèses!$B$26=Hypothèses!$I$22),VLOOKUP(A87,Deliassage!$D$2:$M$74,4,FALSE),IF(AND('Cond. particulières'!E87=1,Hypothèses!$B$26=Hypothèses!$I$23),VLOOKUP(A87,Deliassage!$D$2:$M$74,5,FALSE),""))) ->  | J87: =IF(E87=1,((H87*N87)+(I87*O87))-G87,"") ->  | K87: =IF(N87=0,0,IF(Hypothèses!$B$26<>"",(('Cond. particulières'!H87*'Cond. particulières'!N87)+('Cond. particulières'!I87*O87))/N87,"")) ->  | M87: Visa DI | N87: =VLOOKUP(A87,Deliassage!$D$2:$J$74,6,FALSE) ->  | O87: =VLOOKUP(A87,Deliassage!$D$2:$J$74,7,FALSE) -> 0 | P87: =(N87*H87)+(I87*O87) -> 
A88: =CONCATENATE(B88," ",C88," ",D88) -> Visa DI UE | B88: Visa | C88: DI | D88: UE | E88: =IF(OR(M88=selection),1,0) -> 0 | F88: =IF(E88=0,"",IF(E88=1,G88/(VLOOKUP(A88,Deliassage!D2:I75,6,FALSE)+VLOOKUP("Visa DI Inter réseau",Deliassage!D2:I75,6,FALSE))))*100 ->  | G88: =IF(E88=0,"",IF(AND(E88=1,Hypothèses!$B$26=""),VLOOKUP(A88,Deliassage!$D$2:$M$74,3,FALSE),IF(AND(E88=1,Hypothèses!$B$26=Hypothèses!$I$22),VLOOKUP(A88,Deliassage!$D$2:$M$74,4,FALSE),IF(AND('Cond. particulières'!E88=1,Hypothèses!$B$26=Hypothèses!$I$23),VLOOKUP(A88,Deliassage!$D$2:$M$74,5,FALSE),"")))+IF(AND(E88=1,Hypothèses!$B$26=""),VLOOKUP("Visa DI inter réseau",Deliassage!$D$2:$M$74,3,FALSE),IF(AND(E88=1,Hypothèses!$B$26=Hypothèses!$I$22),VLOOKUP("Visa DI Inter réseau",Deliassage!$D$2:$M$74,4,FALSE),IF(AND('Cond. particulières'!E88=1,Hypothèses!$B$26=Hypothèses!$I$23),VLOOKUP("Visa DI Inter réseau",Deliassage!$D$2:$M$74,5,FALSE),"")))) ->  | J88: =IF(E88=1,((H88*N88)+(I88*O88))-G88,"") ->  | K88: =IF(N88=0,0,IF(Hypothèses!$B$26<>"",(('Cond. particulières'!H88*'Cond. particulières'!N88)+('Cond. particulières'!I88*O88))/N88,"")) ->  | M88: Visa DI | N88: =VLOOKUP(A88,Deliassage!$D$2:$J$74,6,FALSE) ->  | O88: =VLOOKUP(A88,Deliassage!$D$2:$J$74,7,FALSE) -> 0 | P88: =(N88*H88)+(I88*O88) -> 
A89: =CONCATENATE(B89," ",C89," ",D89) -> Visa DI hors UE | B89: Visa | C89: DI | D89: hors UE | E89: =IF(OR(M89=selection),1,0) -> 0 | F89: =IF(AND(E89=1,Hypothèses!$B$26=""),VLOOKUP(A89,Deliassage!$D$2:$M$74,8,FALSE),IF(AND(E89=1,Hypothèses!$B$26=Hypothèses!$I$22),VLOOKUP(A89,Deliassage!$D$2:$M$74,9,FALSE),IF(AND('Cond. particulières'!E89=1,Hypothèses!$B$26=Hypothèses!$I$23),VLOOKUP(A89,Deliassage!$D$2:$M$74,10,FALSE),""))) ->  | G89: =IF(AND(E89=1,Hypothèses!$B$26=""),VLOOKUP(A89,Deliassage!$D$2:$M$74,3,FALSE),IF(AND(E89=1,Hypothèses!$B$26=Hypothèses!$I$22),VLOOKUP(A89,Deliassage!$D$2:$M$74,4,FALSE),IF(AND('Cond. particulières'!E89=1,Hypothèses!$B$26=Hypothèses!$I$23),VLOOKUP(A89,Deliassage!$D$2:$M$74,5,FALSE),""))) ->  | J89: =IF(E89=1,((H89*N89)+(I89*O89))-G89,"") ->  | K89: =IF(N89=0,0,IF(Hypothèses!$B$26<>"",(('Cond. particulières'!H89*'Cond. particulières'!N89)+('Cond. particulières'!I89*O89))/N89,"")) ->  | M89: Visa DI | N89: =VLOOKUP(A89,Deliassage!$D$2:$J$74,6,FALSE) ->  | O89: =VLOOKUP(A89,Deliassage!$D$2:$J$74,7,FALSE) -> 0 | P89: =(N89*H89)+(I89*O89) -> 
D91: =CONCATENATE(B93," ",C93) -> Visa DD | F91: Point mort | G91: Charges | H91: Taux | I91: Fixe | J91: Résultat | K91: Commission banque
A92: =CONCATENATE(B92," ",C92," ",D92) -> Visa DD Intra réseau | B92: Visa | C92: DD | D92: Intra réseau | E92: =IF(OR(M92=selection),1,0) -> 0 | F92: =IF(AND(E92=1,Hypothèses!$B$26=""),VLOOKUP(A92,Deliassage!$D$2:$M$74,8,FALSE),IF(AND(E92=1,Hypothèses!$B$26=Hypothèses!$I$22),VLOOKUP(A92,Deliassage!$D$2:$M$74,9,FALSE),IF(AND('Cond. particulières'!E92=1,Hypothèses!$B$26=Hypothèses!$I$23),VLOOKUP(A92,Deliassage!$D$2:$M$74,10,FALSE),""))) ->  | G92: =IF(AND(E92=1,Hypothèses!$B$26=""),VLOOKUP(A92,Deliassage!$D$2:$M$74,3,FALSE),IF(AND(E92=1,Hypothèses!$B$26=Hypothèses!$I$22),VLOOKUP(A92,Deliassage!$D$2:$M$74,4,FALSE),IF(AND('Cond. particulières'!E92=1,Hypothèses!$B$26=Hypothèses!$I$23),VLOOKUP(A92,Deliassage!$D$2:$M$74,5,FALSE),""))) ->  | J92: =IF(E92=1,((H92*N92)+(I92*O92))-G92,"") ->  | K92: =IF(N92=0,0,IF(Hypothèses!$B$26<>"",(('Cond. particulières'!H92*'Cond. particulières'!N92)+('Cond. particulières'!I92*O92))/N92,"")) ->  | M92: Visa DD | N92: =VLOOKUP(A92,Deliassage!$D$2:$J$74,6,FALSE) ->  | O92: =VLOOKUP(A92,Deliassage!$D$2:$J$74,7,FALSE) -> 0 | P92: =(N92*H92)+(I92*O92) -> 
A93: =CONCATENATE(B93," ",C93," ",D93) -> Visa DD UE | B93: Visa | C93: DD | D93: UE | E93: =IF(OR(M93=selection),1,0) -> 0 | F93: =IF(E93=0,"",IF(E93=1,G93/(VLOOKUP(A93,Deliassage!D2:I75,6,FALSE)+VLOOKUP("Visa DD Inter réseau",Deliassage!D2:I75,6,FALSE)))) ->  | G93: =IF(E93=0,"",IF(AND(E93=1,Hypothèses!$B$26=""),VLOOKUP(A93,Deliassage!$D$2:$M$74,3,FALSE),IF(AND(E93=1,Hypothèses!$B$26=Hypothèses!$I$22),VLOOKUP(A93,Deliassage!$D$2:$M$74,4,FALSE),IF(AND('Cond. particulières'!E93=1,Hypothèses!$B$26=Hypothèses!$I$23),VLOOKUP(A93,Deliassage!$D$2:$M$74,5,FALSE),"")))+IF(AND(E93=1,Hypothèses!$B$26=""),VLOOKUP("Visa DD Inter réseau",Deliassage!$D$2:$M$74,3,FALSE),IF(AND(E93=1,Hypothèses!$B$26=Hypothèses!$I$22),VLOOKUP("Visa DD Inter réseau",Deliassage!$D$2:$M$74,4,FALSE),IF(AND('Cond. particulières'!E93=1,Hypothèses!$B$26=Hypothèses!$I$23),VLOOKUP("Visa DD Inter réseau",Deliassage!$D$2:$M$74,5,FALSE),"")))) ->  | J93: =IF(E93=1,((H93*N93)+(I93*O93))-G93,"") ->  | K93: =IF(N93=0,0,IF(Hypothèses!$B$26<>"",(('Cond. particulières'!H93*'Cond. particulières'!N93)+('Cond. particulières'!I93*O93))/N93,"")) ->  | M93: Visa DD | N93: =VLOOKUP(A93,Deliassage!$D$2:$J$74,6,FALSE) ->  | O93: =VLOOKUP(A93,Deliassage!$D$2:$J$74,7,FALSE) -> 0 | P93: =(N93*H93)+(I93*O93) -> 
A94: =CONCATENATE(B94," ",C94," ",D94) -> Visa DD hors UE | B94: Visa | C94: DD | D94: hors UE | E94: =IF(OR(M94=selection),1,0) -> 0 | F94: =IF(AND(E94=1,Hypothèses!$B$26=""),VLOOKUP(A94,Deliassage!$D$2:$M$74,8,FALSE),IF(AND(E94=1,Hypothèses!$B$26=Hypothèses!$I$22),VLOOKUP(A94,Deliassage!$D$2:$M$74,9,FALSE),IF(AND('Cond. particulières'!E94=1,Hypothèses!$B$26=Hypothèses!$I$23),VLOOKUP(A94,Deliassage!$D$2:$M$74,10,FALSE),""))) ->  | G94: =IF(AND(E94=1,Hypothèses!$B$26=""),VLOOKUP(A94,Deliassage!$D$2:$M$74,3,FALSE),IF(AND(E94=1,Hypothèses!$B$26=Hypothèses!$I$22),VLOOKUP(A94,Deliassage!$D$2:$M$74,4,FALSE),IF(AND('Cond. particulières'!E94=1,Hypothèses!$B$26=Hypothèses!$I$23),VLOOKUP(A94,Deliassage!$D$2:$M$74,5,FALSE),""))) ->  | J94: =IF(E94=1,((H94*N94)+(I94*O94))-G94,"") ->  | K94: =IF(N94=0,0,IF(Hypothèses!$B$26<>"",(('Cond. particulières'!H94*'Cond. particulières'!N94)+('Cond. particulières'!I94*O94))/N94,"")) ->  | M94: Visa DD | N94: =VLOOKUP(A94,Deliassage!$D$2:$J$74,6,FALSE) ->  | O94: =VLOOKUP(A94,Deliassage!$D$2:$J$74,7,FALSE) -> 0 | P94: =(N94*H94)+(I94*O94) -> 
D96: =CONCATENATE(B98," ",C98) -> Visa Commerciale | F96: Point mort | G96: Charges | H96: Taux | I96: Fixe | J96: Résultat | K96: Commission banque
A97: =CONCATENATE(B97," ",C97," ",D97) -> Visa Commerciale Intra réseau | B97: Visa | C97: Commerciale | D97: Intra réseau | E97: =IF(OR(M97=selection),1,0) -> 0 | F97: =IF(AND(E97=1,Hypothèses!$B$26=""),VLOOKUP(A97,Deliassage!$D$2:$M$74,8,FALSE),IF(AND(E97=1,Hypothèses!$B$26=Hypothèses!$I$22),VLOOKUP(A97,Deliassage!$D$2:$M$74,9,FALSE),IF(AND('Cond. particulières'!E97=1,Hypothèses!$B$26=Hypothèses!$I$23),VLOOKUP(A97,Deliassage!$D$2:$M$74,10,FALSE),""))) ->  | G97: =IF(AND(E97=1,Hypothèses!$B$26=""),VLOOKUP(A97,Deliassage!$D$2:$M$74,3,FALSE),IF(AND(E97=1,Hypothèses!$B$26=Hypothèses!$I$22),VLOOKUP(A97,Deliassage!$D$2:$M$74,4,FALSE),IF(AND('Cond. particulières'!E97=1,Hypothèses!$B$26=Hypothèses!$I$23),VLOOKUP(A97,Deliassage!$D$2:$M$74,5,FALSE),""))) ->  | J97: =IF(E97=1,((H97*N97)+(I97*O97))-G97,"") ->  | K97: =IF(N97=0,0,IF(Hypothèses!$B$26<>"",(('Cond. particulières'!H97*'Cond. particulières'!N97)+('Cond. particulières'!I97*O97))/N97,"")) ->  | M97: Visa Commerciale | N97: =VLOOKUP(A97,Deliassage!$D$2:$J$74,6,FALSE) ->  | O97: =VLOOKUP(A97,Deliassage!$D$2:$J$74,7,FALSE) -> 0 | P97: =(N97*H97)+(I97*O97) -> 
A98: =CONCATENATE(B98," ",C98," ",D98) -> Visa Commerciale UE | B98: Visa | C98: Commerciale | D98: UE | E98: =IF(OR(M98=selection),1,0) -> 0 | F98: =IF(E98=0,"",IF(E98=1,G98/(VLOOKUP(A98,Deliassage!D2:I75,6,FALSE)+VLOOKUP("Visa Commerciale Inter réseau",Deliassage!D2:I75,6,FALSE))))*100 ->  | G98: =IF(E98=0,"",IF(AND(E98=1,Hypothèses!$B$26=""),VLOOKUP($A$98,Deliassage!$D$2:$M$74,3,FALSE),IF(AND(E98=1,Hypothèses!$B$26=Hypothèses!$I$22),VLOOKUP($A$98,Deliassage!$D$2:$M$74,4,FALSE),IF(AND('Cond. particulières'!E98=1,Hypothèses!$B$26=Hypothèses!$I$23),VLOOKUP($A$98,Deliassage!$D$2:$M$74,5,FALSE),"")))+IF(AND(E98=1,Hypothèses!$B$26=""),VLOOKUP("Visa Commerciale Inter réseau",Deliassage!$D$2:$M$74,3,FALSE),IF(AND(E98=1,Hypothèses!$B$26=Hypothèses!$I$22),VLOOKUP("Visa Commerciale Inter réseau",Deliassage!$D$2:$M$74,4,FALSE),IF(AND('Cond. particulières'!E98=1,Hypothèses!$B$26=Hypothèses!$I$23),VLOOKUP("Visa Commerciale Inter réseau",Deliassage!$D$2:$M$74,5,FALSE),"")))) ->  | J98: =IF(E98=1,((H98*N98)+(I98*O98))-G98,"") ->  | K98: =IF(N98=0,0,IF(Hypothèses!$B$26<>"",(('Cond. particulières'!H98*'Cond. particulières'!N98)+('Cond. particulières'!I98*O98))/N98,"")) ->  | M98: Visa Commerciale | N98: =VLOOKUP(A98,Deliassage!$D$2:$J$74,6,FALSE) ->  | O98: =VLOOKUP(A98,Deliassage!$D$2:$J$74,7,FALSE) -> 0 | P98: =(N98*H98)+(I98*O98) ->  | Q98: =IF(Hypothèses!$B$26="",VLOOKUP($A$98,Deliassage!$D$2:$M$75,3,FALSE),IF(Hypothèses!$B$26=Hypothèses!$I$22,VLOOKUP($A$98,Deliassage!$D$2:$M$75,4,FALSE),IF(Hypothèses!$B$26=Hypothèses!$I$23,VLOOKUP($A$98,Deliassage!$D$2:$M$75,5,FALSE),""))) -> 0
A99: =CONCATENATE(B99," ",C99," ",D99) -> Visa Commerciale hors UE | B99: Visa | C99: Commerciale | D99: hors UE | E99: =IF(OR(M99=selection),1,0) -> 0 | F99: =IF(AND(E99=1,Hypothèses!$B$26=""),VLOOKUP(A99,Deliassage!$D$2:$M$74,8,FALSE),IF(AND(E99=1,Hypothèses!$B$26=Hypothèses!$I$22),VLOOKUP(A99,Deliassage!$D$2:$M$74,9,FALSE),IF(AND('Cond. particulières'!E99=1,Hypothèses!$B$26=Hypothèses!$I$23),VLOOKUP(A99,Deliassage!$D$2:$M$74,10,FALSE),""))) ->  | G99: =IF(AND(E99=1,Hypothèses!$B$26=""),VLOOKUP(A99,Deliassage!$D$2:$M$74,3,FALSE),IF(AND(E99=1,Hypothèses!$B$26=Hypothèses!$I$22),VLOOKUP(A99,Deliassage!$D$2:$M$74,4,FALSE),IF(AND('Cond. particulières'!E99=1,Hypothèses!$B$26=Hypothèses!$I$23),VLOOKUP(A99,Deliassage!$D$2:$M$74,5,FALSE),""))) ->  | J99: =IF(E99=1,((H99*N99)+(I99*O99))-G99,"") ->  | K99: =IF(N99=0,0,IF(Hypothèses!$B$26<>"",(('Cond. particulières'!H99*'Cond. particulières'!N99)+('Cond. particulières'!I99*O99))/N99,"")) ->  | M99: Visa Commerciale | N99: =VLOOKUP(A99,Deliassage!$D$2:$J$74,6,FALSE) ->  | O99: =VLOOKUP(A99,Deliassage!$D$2:$J$74,7,FALSE) -> 0 | P99: =(N99*H99)+(I99*O99) ->  | Q99: =IF(Hypothèses!$B$26="",VLOOKUP($A$99,Deliassage!$D$2:$M$75,3,FALSE),IF(Hypothèses!$B$26=Hypothèses!$I$22,VLOOKUP($A$99,Deliassage!$D$2:$M$75,4,FALSE),IF(Hypothèses!$B$26=Hypothèses!$I$23,VLOOKUP($A$99,Deliassage!$D$2:$M$75,5,FALSE),""))) -> 0
D101: =CONCATENATE(B103," ",C103) -> Visa | F101: Point mort | G101: Charges | H101: Taux | I101: Fixe | J101: Résultat | K101: Commission banque
A102: =CONCATENATE(B102," ",C102," ",D102) -> Visa Intra réseau | B102: Visa | D102: Intra réseau | E102: =IF(OR(M102=selection),1,0) -> 0 | F102: =IF(AND(E102=1,Hypothèses!$B$26=""),VLOOKUP(A102,Deliassage!$D$2:$M$74,8,FALSE),IF(AND(E102=1,Hypothèses!$B$26=Hypothèses!$I$22),VLOOKUP(A102,Deliassage!$D$2:$M$74,9,FALSE),IF(AND('Cond. particulières'!E102=1,Hypothèses!$B$26=Hypothèses!$I$23),VLOOKUP(A102,Deliassage!$D$2:$M$74,10,FALSE),""))) ->  | G102: =IF(AND(E102=1,Hypothèses!$B$26=""),VLOOKUP(A102,Deliassage!$D$2:$M$74,3,FALSE),IF(AND(E102=1,Hypothèses!$B$26=Hypothèses!$I$22),VLOOKUP(A102,Deliassage!$D$2:$M$74,4,FALSE),IF(AND('Cond. particulières'!E102=1,Hypothèses!$B$26=Hypothèses!$I$23),VLOOKUP(A102,Deliassage!$D$2:$M$74,5,FALSE),""))) ->  | J102: =IF(E102=1,((H102*N102)+(I102*O102))-G102,"") ->  | K102: =IF(N102=0,0,IF(Hypothèses!$B$26<>"",(('Cond. particulières'!H102*'Cond. particulières'!N102)+('Cond. particulières'!I102*O102))/N102,"")) ->  | M102: =B102 -> Visa | N102: =VLOOKUP(A102,Deliassage!$D$2:$J$74,6,FALSE) ->  | O102: =VLOOKUP(A102,Deliassage!$D$2:$J$74,7,FALSE) -> 0 | P102: =(N102*H102)+(I102*O102) -> 
A103: =CONCATENATE(B103," ",C103," ",D103) -> Visa UE | B103: Visa | D103: UE | E103: =IF(OR(M103=selection),1,0) -> 0 | F103: =IF(E103=0,"",IF(E103=1,G103/(VLOOKUP(A103,Deliassage!D2:I75,6,FALSE)+VLOOKUP("Visa Inter réseau",Deliassage!D2:I75,6,FALSE)))*100) ->  | G103: =IF(E103=0,"",IF(AND(E103=1,Hypothèses!$B$26=""),VLOOKUP(A103,Deliassage!$D$2:$M$74,3,FALSE),IF(AND(E103=1,Hypothèses!$B$26=Hypothèses!$I$22),VLOOKUP(A103,Deliassage!$D$2:$M$74,4,FALSE),IF(AND('Cond. particulières'!E103=1,Hypothèses!$B$26=Hypothèses!$I$23),VLOOKUP(A103,Deliassage!$D$2:$M$74,5,FALSE),"")))+IF(AND(E103=1,Hypothèses!$B$26=""),VLOOKUP("Visa Inter réseau",Deliassage!$D$2:$M$74,3,FALSE),IF(AND(E103=1,Hypothèses!$B$26=Hypothèses!$I$22),VLOOKUP("Visa Inter réseau",Deliassage!$D$2:$M$74,4,FALSE),IF(AND('Cond. particulières'!E103=1,Hypothèses!$B$26=Hypothèses!$I$23),VLOOKUP("Visa Inter réseau",Deliassage!$D$2:$M$74,5,FALSE),"")))) ->  | J103: =IF(E103=1,((H103*N103)+(I103*O103))-G103,"") ->  | K103: =IF(N103=0,0,IF(Hypothèses!$B$26<>"",(('Cond. particulières'!H103*'Cond. particulières'!N103)+('Cond. particulières'!I103*O103))/N103,"")) ->  | M103: =B103 -> Visa | N103: =VLOOKUP(A103,Deliassage!$D$2:$J$74,6,FALSE) ->  | O103: =VLOOKUP(A103,Deliassage!$D$2:$J$74,7,FALSE) -> 0 | P103: =(N103*H103)+(I103*O103) -> 
A104: =CONCATENATE(B104," ",C104," ",D104) -> Visa hors UE | B104: Visa | D104: hors UE | E104: =IF(OR(M104=selection),1,0) -> 0 | F104: =IF(AND(E104=1,Hypothèses!$B$26=""),VLOOKUP(A104,Deliassage!$D$2:$M$74,8,FALSE),IF(AND(E104=1,Hypothèses!$B$26=Hypothèses!$I$22),VLOOKUP(A104,Deliassage!$D$2:$M$74,9,FALSE),IF(AND('Cond. particulières'!E104=1,Hypothèses!$B$26=Hypothèses!$I$23),VLOOKUP(A104,Deliassage!$D$2:$M$74,10,FALSE),""))) ->  | G104: =IF(AND(E104=1,Hypothèses!$B$26=""),VLOOKUP(A104,Deliassage!$D$2:$M$74,3,FALSE),IF(AND(E104=1,Hypothèses!$B$26=Hypothèses!$I$22),VLOOKUP(A104,Deliassage!$D$2:$M$74,4,FALSE),IF(AND('Cond. particulières'!E104=1,Hypothèses!$B$26=Hypothèses!$I$23),VLOOKUP(A104,Deliassage!$D$2:$M$74,5,FALSE),""))) ->  | J104: =IF(E104=1,((H104*N104)+(I104*O104))-G104,"") ->  | K104: =IF(N104=0,0,IF(Hypothèses!$B$26<>"",(('Cond. particulières'!H104*'Cond. particulières'!N104)+('Cond. particulières'!I104*O104))/N104,"")) ->  | M104: =B104 -> Visa | N104: =VLOOKUP(A104,Deliassage!$D$2:$J$74,6,FALSE) ->  | O104: =VLOOKUP(A104,Deliassage!$D$2:$J$74,7,FALSE) -> 0 | P104: =(N104*H104)+(I104*O104) -> 
M105: =CONCATENATE(B105," ",C105) -> 
D106: =CONCATENATE(B107," ",C107) -> VPay DI | F106: Point mort | G106: Charges | H106: Taux | I106: Fixe | J106: Résultat | K106: Commission banque
A107: =CONCATENATE(B107," ",C107," ",D107) -> VPay DI Intra réseau | B107: VPay | C107: DI | D107: Intra réseau | E107: =IF(OR(M107=selection),1,0) -> 0 | F107: =IF(AND(E107=1,Hypothèses!$B$26=""),VLOOKUP(A107,Deliassage!$D$2:$M$74,8,FALSE),IF(AND(E107=1,Hypothèses!$B$26=Hypothèses!$I$22),VLOOKUP(A107,Deliassage!$D$2:$M$74,9,FALSE),IF(AND('Cond. particulières'!E107=1,Hypothèses!$B$26=Hypothèses!$I$23),VLOOKUP(A107,Deliassage!$D$2:$M$74,10,FALSE),""))) ->  | G107: =IF(AND(E107=1,Hypothèses!$B$26=""),VLOOKUP(A107,Deliassage!$D$2:$M$74,3,FALSE),IF(AND(E107=1,Hypothèses!$B$26=Hypothèses!$I$22),VLOOKUP(A107,Deliassage!$D$2:$M$74,4,FALSE),IF(AND('Cond. particulières'!E107=1,Hypothèses!$B$26=Hypothèses!$I$23),VLOOKUP(A107,Deliassage!$D$2:$M$74,5,FALSE),""))) ->  | J107: =IF(E107=1,((H107*N107)+(I107*O107))-G107,"") ->  | K107: =IF(N107=0,0,IF(Hypothèses!$B$26<>"",(('Cond. particulières'!H107*'Cond. particulières'!N107)+('Cond. particulières'!I107*O107))/N107,"")) ->  | M107: VPay DI | N107: =VLOOKUP(A107,Deliassage!$D$2:$J$74,6,FALSE) ->  | O107: =VLOOKUP(A107,Deliassage!$D$2:$J$74,7,FALSE) -> 0 | P107: =(N107*H107)+(I107*O107) -> 
A108: =CONCATENATE(B108," ",C108," ",D108) -> VPay DI UE | B108: VPay | C108: DI | D108: UE | E108: =IF(OR(M108=selection),1,0) -> 0 | F108: =IF(AND(E108=1,Hypothèses!$B$26=""),VLOOKUP(A108,Deliassage!$D$2:$M$74,8,FALSE),IF(AND(E108=1,Hypothèses!$B$26=Hypothèses!$I$22),VLOOKUP(A108,Deliassage!$D$2:$M$74,9,FALSE),IF(AND('Cond. particulières'!E108=1,Hypothèses!$B$26=Hypothèses!$I$23),VLOOKUP(A108,Deliassage!$D$2:$M$74,10,FALSE),""))) ->  | G108: =IF(AND(E108=1,Hypothèses!$B$26=""),VLOOKUP(A108,Deliassage!$D$2:$M$74,3,FALSE),IF(AND(E108=1,Hypothèses!$B$26=Hypothèses!$I$22),VLOOKUP(A108,Deliassage!$D$2:$M$74,4,FALSE),IF(AND('Cond. particulières'!E108=1,Hypothèses!$B$26=Hypothèses!$I$23),VLOOKUP(A108,Deliassage!$D$2:$M$74,5,FALSE),""))) ->  | J108: =IF(E108=1,((H108*N108)+(I108*O108))-G108,"") ->  | K108: =IF(N108=0,0,IF(Hypothèses!$B$26<>"",(('Cond. particulières'!H108*'Cond. particulières'!N108)+('Cond. particulières'!I108*O108))/N108,"")) ->  | M108: VPay DI | N108: =VLOOKUP(A108,Deliassage!$D$2:$J$74,6,FALSE) ->  | O108: =VLOOKUP(A108,Deliassage!$D$2:$J$74,7,FALSE) -> 0 | P108: =(N108*H108)+(I108*O108) -> 
A109: =CONCATENATE(B109," ",C109," ",D109) -> VPay DI hors UE | B109: VPay | C109: DI | D109: hors UE | E109: =IF(OR(M109=selection),1,0) -> 0 | F109: =IF(AND(E109=1,Hypothèses!$B$26=""),VLOOKUP(A109,Deliassage!$D$2:$M$74,8,FALSE),IF(AND(E109=1,Hypothèses!$B$26=Hypothèses!$I$22),VLOOKUP(A109,Deliassage!$D$2:$M$74,9,FALSE),IF(AND('Cond. particulières'!E109=1,Hypothèses!$B$26=Hypothèses!$I$23),VLOOKUP(A109,Deliassage!$D$2:$M$74,10,FALSE),""))) ->  | G109: =IF(AND(E109=1,Hypothèses!$B$26=""),VLOOKUP(A109,Deliassage!$D$2:$M$74,3,FALSE),IF(AND(E109=1,Hypothèses!$B$26=Hypothèses!$I$22),VLOOKUP(A109,Deliassage!$D$2:$M$74,4,FALSE),IF(AND('Cond. particulières'!E109=1,Hypothèses!$B$26=Hypothèses!$I$23),VLOOKUP(A109,Deliassage!$D$2:$M$74,5,FALSE),""))) ->  | J109: =IF(E109=1,((H109*N109)+(I109*O109))-G109,"") ->  | K109: =IF(N109=0,0,IF(Hypothèses!$B$26<>"",(('Cond. particulières'!H109*'Cond. particulières'!N109)+('Cond. particulières'!I109*O109))/N109,"")) ->  | M109: VPay DI | N109: =VLOOKUP(A109,Deliassage!$D$2:$J$74,6,FALSE) ->  | O109: =VLOOKUP(A109,Deliassage!$D$2:$J$74,7,FALSE) -> 0 | P109: =(N109*H109)+(I109*O109) -> 
D111: =CONCATENATE(B112," ",C112) -> VPay Commerciale | F111: Point mort | G111: Charges | H111: Taux | I111: Fixe | J111: Résultat | K111: Commission banque
A112: =CONCATENATE(B112," ",C112," ",D112) -> VPay Commerciale Intra réseau | B112: VPay | C112: Commerciale | D112: Intra réseau | E112: =IF(OR(M112=selection),1,0) -> 0 | F112: =IF(AND(E112=1,Hypothèses!$B$26=""),VLOOKUP(A112,Deliassage!$D$2:$M$74,8,FALSE),IF(AND(E112=1,Hypothèses!$B$26=Hypothèses!$I$22),VLOOKUP(A112,Deliassage!$D$2:$M$74,9,FALSE),IF(AND('Cond. particulières'!E112=1,Hypothèses!$B$26=Hypothèses!$I$23),VLOOKUP(A112,Deliassage!$D$2:$M$74,10,FALSE),""))) ->  | G112: =IF(AND(E112=1,Hypothèses!$B$26=""),VLOOKUP(A112,Deliassage!$D$2:$M$74,3,FALSE),IF(AND(E112=1,Hypothèses!$B$26=Hypothèses!$I$22),VLOOKUP(A112,Deliassage!$D$2:$M$74,4,FALSE),IF(AND('Cond. particulières'!E112=1,Hypothèses!$B$26=Hypothèses!$I$23),VLOOKUP(A112,Deliassage!$D$2:$M$74,5,FALSE),""))) ->  | J112: =IF(E112=1,((H112*N112)+(I112*O112))-G112,"") ->  | K112: =IF(N112=0,0,IF(Hypothèses!$B$26<>"",(('Cond. particulières'!H112*'Cond. particulières'!N112)+('Cond. particulières'!I112*O112))/N112,"")) ->  | M112: VPay Commerciale | N112: =VLOOKUP(A112,Deliassage!$D$2:$J$74,6,FALSE) ->  | O112: =VLOOKUP(A112,Deliassage!$D$2:$J$74,7,FALSE) -> 0 | P112: =(N112*H112)+(I112*O112) -> 
A113: =CONCATENATE(B113," ",C113," ",D113) -> VPay Commerciale UE | B113: VPay | C113: Commerciale | D113: UE | E113: =IF(OR(M113=selection),1,0) -> 0 | F113: =IF(AND(E113=1,Hypothèses!$B$26=""),VLOOKUP(A113,Deliassage!$D$2:$M$74,8,FALSE),IF(AND(E113=1,Hypothèses!$B$26=Hypothèses!$I$22),VLOOKUP(A113,Deliassage!$D$2:$M$74,9,FALSE),IF(AND('Cond. particulières'!E113=1,Hypothèses!$B$26=Hypothèses!$I$23),VLOOKUP(A113,Deliassage!$D$2:$M$74,10,FALSE),""))) ->  | G113: =IF(AND(E113=1,Hypothèses!$B$26=""),VLOOKUP($A$113,Deliassage!$D$2:$M$74,3,FALSE),IF(AND(E113=1,Hypothèses!$B$26=Hypothèses!$I$22),VLOOKUP($A$113,Deliassage!$D$2:$M$74,4,FALSE),IF(AND('Cond. particulières'!E113=1,Hypothèses!$B$26=Hypothèses!$I$23),VLOOKUP($A$113,Deliassage!$D$2:$M$74,5,FALSE),""))) ->  | J113: =IF(E113=1,((H113*N113)+(I113*O113))-G113,"") ->  | K113: =IF(N113=0,0,IF(Hypothèses!$B$26<>"",(('Cond. particulières'!H113*'Cond. particulières'!N113)+('Cond. particulières'!I113*O113))/N113,"")) ->  | M113: VPay Commerciale | N113: =VLOOKUP(A113,Deliassage!$D$2:$J$74,6,FALSE) ->  | O113: =VLOOKUP(A113,Deliassage!$D$2:$J$74,7,FALSE) -> 0 | P113: =(N113*H113)+(I113*O113) ->  | Q113: =IF(Hypothèses!$B$26="",VLOOKUP($A$113,Deliassage!$D$2:$M$75,3,FALSE),IF(Hypothèses!$B$26=Hypothèses!$I$22,VLOOKUP($A$113,Deliassage!$D$2:$M$75,4,FALSE),IF(Hypothèses!$B$26=Hypothèses!$I$23,VLOOKUP($A$113,Deliassage!$D$2:$M$75,5,FALSE),""))) -> 0
A114: =CONCATENATE(B114," ",C114," ",D114) -> VPay Commerciale hors UE | B114: VPay | C114: Commerciale | D114: hors UE | E114: =IF(OR(M114=selection),1,0) -> 0 | F114: =IF(AND(E114=1,Hypothèses!$B$26=""),VLOOKUP(A114,Deliassage!$D$2:$M$74,8,FALSE),IF(AND(E114=1,Hypothèses!$B$26=Hypothèses!$I$22),VLOOKUP(A114,Deliassage!$D$2:$M$74,9,FALSE),IF(AND('Cond. particulières'!E114=1,Hypothèses!$B$26=Hypothèses!$I$23),VLOOKUP(A114,Deliassage!$D$2:$M$74,10,FALSE),""))) ->  | G114: =IF(AND(E114=1,Hypothèses!$B$26=""),VLOOKUP(A114,Deliassage!$D$2:$M$74,3,FALSE),IF(AND(E114=1,Hypothèses!$B$26=Hypothèses!$I$22),VLOOKUP(A114,Deliassage!$D$2:$M$74,4,FALSE),IF(AND('Cond. particulières'!E114=1,Hypothèses!$B$26=Hypothèses!$I$23),VLOOKUP(A114,Deliassage!$D$2:$M$74,5,FALSE),""))) ->  | J114: =IF(E114=1,((H114*N114)+(I114*O114))-G114,"") ->  | K114: =IF(N114=0,0,IF(Hypothèses!$B$26<>"",(('Cond. particulières'!H114*'Cond. particulières'!N114)+('Cond. particulières'!I114*O114))/N114,"")) ->  | M114: VPay Commerciale | N114: =VLOOKUP(A114,Deliassage!$D$2:$J$74,6,FALSE) ->  | O114: =VLOOKUP(A114,Deliassage!$D$2:$J$74,7,FALSE) -> 0 | P114: =(N114*H114)+(I114*O114) ->  | Q114: =IF(Hypothèses!$B$26="",VLOOKUP($A$114,Deliassage!$D$2:$M$75,3,FALSE),IF(Hypothèses!$B$26=Hypothèses!$I$22,VLOOKUP($A$114,Deliassage!$D$2:$M$75,4,FALSE),IF(Hypothèses!$B$26=Hypothèses!$I$23,VLOOKUP($A$114,Deliassage!$D$2:$M$75,5,FALSE),""))) -> 0
D116: =CONCATENATE(B117," ",C117) -> VPay | F116: Point mort | G116: Charges | H116: Taux | I116: Fixe | J116: Résultat | K116: Commission banque
A117: =CONCATENATE(B117," ",C117," ",D117) -> VPay Intra réseau | B117: VPay | D117: Intra réseau | E117: =IF(OR(M117=selection),1,0) -> 0 | F117: =IF(AND(E117=1,Hypothèses!$B$26=""),VLOOKUP(A117,Deliassage!$D$2:$M$74,8,FALSE),IF(AND(E117=1,Hypothèses!$B$26=Hypothèses!$I$22),VLOOKUP(A117,Deliassage!$D$2:$M$74,9,FALSE),IF(AND('Cond. particulières'!E117=1,Hypothèses!$B$26=Hypothèses!$I$23),VLOOKUP(A117,Deliassage!$D$2:$M$74,10,FALSE),""))) ->  | G117: =IF(AND(E117=1,Hypothèses!$B$26=""),VLOOKUP(A117,Deliassage!$D$2:$M$74,3,FALSE),IF(AND(E117=1,Hypothèses!$B$26=Hypothèses!$I$22),VLOOKUP(A117,Deliassage!$D$2:$M$74,4,FALSE),IF(AND('Cond. particulières'!E117=1,Hypothèses!$B$26=Hypothèses!$I$23),VLOOKUP(A117,Deliassage!$D$2:$M$74,5,FALSE),""))) ->  | J117: =IF(E117=1,((H117*N117)+(I117*O117))-G117,"") ->  | K117: =IF(N117=0,0,IF(Hypothèses!$B$26<>"",(('Cond. particulières'!H117*'Cond. particulières'!N117)+('Cond. particulières'!I117*O117))/N117,"")) ->  | M117: =B117 -> VPay | N117: =VLOOKUP(A117,Deliassage!$D$2:$J$74,6,FALSE) ->  | O117: =VLOOKUP(A117,Deliassage!$D$2:$J$74,7,FALSE) -> 0 | P117: =(N117*H117)+(I117*O117) -> 
A118: =CONCATENATE(B118," ",C118," ",D118) -> VPay UE | B118: VPay | D118: UE | E118: =IF(OR(M118=selection),1,0) -> 0 | F118: =IF(AND(E118=1,Hypothèses!$B$26=""),VLOOKUP(A118,Deliassage!$D$2:$M$74,8,FALSE),IF(AND(E118=1,Hypothèses!$B$26=Hypothèses!$I$22),VLOOKUP(A118,Deliassage!$D$2:$M$74,9,FALSE),IF(AND('Cond. particulières'!E118=1,Hypothèses!$B$26=Hypothèses!$I$23),VLOOKUP(A118,Deliassage!$D$2:$M$74,10,FALSE),""))) ->  | G118: =IF(AND(E118=1,Hypothèses!$B$26=""),VLOOKUP(A118,Deliassage!$D$2:$M$74,3,FALSE),IF(AND(E118=1,Hypothèses!$B$26=Hypothèses!$I$22),VLOOKUP(A118,Deliassage!$D$2:$M$74,4,FALSE),IF(AND('Cond. particulières'!E118=1,Hypothèses!$B$26=Hypothèses!$I$23),VLOOKUP(A118,Deliassage!$D$2:$M$74,5,FALSE),""))) ->  | J118: =IF(E118=1,((H118*N118)+(I118*O118))-G118,"") ->  | K118: =IF(N118=0,0,IF(Hypothèses!$B$26<>"",(('Cond. particulières'!H118*'Cond. particulières'!N118)+('Cond. particulières'!I118*O118))/N118,"")) ->  | M118: =B118 -> VPay | N118: =VLOOKUP(A118,Deliassage!$D$2:$J$74,6,FALSE) ->  | O118: =VLOOKUP(A118,Deliassage!$D$2:$J$74,7,FALSE) -> 0 | P118: =(N118*H118)+(I118*O118) -> 
A119: =CONCATENATE(B119," ",C119," ",D119) -> VPay hors UE | B119: VPay | D119: hors UE | E119: =IF(OR(M119=selection),1,0) -> 0 | F119: =IF(AND(E119=1,Hypothèses!$B$26=""),VLOOKUP(A119,Deliassage!$D$2:$M$74,8,FALSE),IF(AND(E119=1,Hypothèses!$B$26=Hypothèses!$I$22),VLOOKUP(A119,Deliassage!$D$2:$M$74,9,FALSE),IF(AND('Cond. particulières'!E119=1,Hypothèses!$B$26=Hypothèses!$I$23),VLOOKUP(A119,Deliassage!$D$2:$M$74,10,FALSE),""))) ->  | G119: =IF(AND(E119=1,Hypothèses!$B$26=""),VLOOKUP(A119,Deliassage!$D$2:$M$74,3,FALSE),IF(AND(E119=1,Hypothèses!$B$26=Hypothèses!$I$22),VLOOKUP(A119,Deliassage!$D$2:$M$74,4,FALSE),IF(AND('Cond. particulières'!E119=1,Hypothèses!$B$26=Hypothèses!$I$23),VLOOKUP(A119,Deliassage!$D$2:$M$74,5,FALSE),""))) ->  | J119: =IF(E119=1,((H119*N119)+(I119*O119))-G119,"") ->  | K119: =IF(N119=0,0,IF(Hypothèses!$B$26<>"",(('Cond. particulières'!H119*'Cond. particulières'!N119)+('Cond. particulières'!I119*O119))/N119,"")) ->  | M119: =B119 -> VPay | N119: =VLOOKUP(A119,Deliassage!$D$2:$J$74,6,FALSE) ->  | O119: =VLOOKUP(A119,Deliassage!$D$2:$J$74,7,FALSE) -> 0 | P119: =(N119*H119)+(I119*O119) -> 
M120: =CONCATENATE(B120," ",C120) -> 
D121: =CONCATENATE(B122," ",C122) -> DI | F121: Point mort | G121: Charges | H121: Taux | I121: Fixe | J121: Résultat | K121: Commission banque | M121: =CONCATENATE(B121," ",C121) -> 
A122: =CONCATENATE(B122," ",C122," ",D122) -> DI Intra réseau | C122: DI | D122: Intra réseau | E122: =IF(OR(M122=selection),1,0) -> 0 | F122: =IF(AND(E122=1,Hypothèses!$B$26=""),VLOOKUP(A122,Deliassage!$D$2:$M$74,8,FALSE),IF(AND(E122=1,Hypothèses!$B$26=Hypothèses!$I$22),VLOOKUP(A122,Deliassage!$D$2:$M$74,9,FALSE),IF(AND('Cond. particulières'!E122=1,Hypothèses!$B$26=Hypothèses!$I$23),VLOOKUP(A122,Deliassage!$D$2:$M$74,10,FALSE),""))) ->  | G122: =IF(AND(E122=1,Hypothèses!$B$26=""),VLOOKUP(A122,Deliassage!$D$2:$M$74,3,FALSE),IF(AND(E122=1,Hypothèses!$B$26=Hypothèses!$I$22),VLOOKUP(A122,Deliassage!$D$2:$M$74,4,FALSE),IF(AND('Cond. particulières'!E122=1,Hypothèses!$B$26=Hypothèses!$I$23),VLOOKUP(A122,Deliassage!$D$2:$M$74,5,FALSE),""))) ->  | J122: =IF(E122=1,((H122*N122)+(I122*O122))-G122,"") ->  | K122: =IF(N122=0,0,IF(Hypothèses!$B$26<>"",(('Cond. particulières'!H122*'Cond. particulières'!N122)+('Cond. particulières'!I122*O122))/N122,"")) ->  | M122: =C122 -> DI | N122: =VLOOKUP(A122,Deliassage!$D$2:$J$74,6,FALSE) ->  | O122: =VLOOKUP(A122,Deliassage!$D$2:$J$74,7,FALSE) -> 0 | P122: =(N122*H122)+(I122*O122) -> 
A123: =CONCATENATE(B123," ",C123," ",D123) -> DI UE | C123: DI | D123: UE | E123: =IF(OR(M123=selection),1,0) -> 0 | F123: =IF(E123=0,"",IF(E123=1,G123/(VLOOKUP(A123,Deliassage!D2:I75,6,FALSE)+VLOOKUP("DI Inter réseau",Deliassage!D2:I75,6,FALSE))))*100 ->  | G123: =IF(E123=0,"",IF(AND(E123=1,Hypothèses!$B$26=""),VLOOKUP(A123,Deliassage!$D$2:$M$75,3,FALSE),IF(AND(E123=1,Hypothèses!$B$26=Hypothèses!$I$22),VLOOKUP(A123,Deliassage!$D$2:$M$75,4,FALSE),IF(AND('Cond. particulières'!E123=1,Hypothèses!$B$26=Hypothèses!$I$23),VLOOKUP(A123,Deliassage!$D$2:$M$75,5,FALSE),"")))+IF(AND(E123=1,Hypothèses!$B$26=""),VLOOKUP("DI Inter réseau",Deliassage!$D$2:$M$75,3,FALSE),IF(AND(E123=1,Hypothèses!$B$26=Hypothèses!$I$22),VLOOKUP("DI Inter réseau",Deliassage!$D$2:$M$75,4,FALSE),IF(AND('Cond. particulières'!E123=1,Hypothèses!$B$26=Hypothèses!$I$23),VLOOKUP("DI Inter réseau",Deliassage!$D$2:$M$75,5,FALSE),"")))) ->  | J123: =IF(E123=1,((H123*N123)+(I123*O123))-G123,"") ->  | K123: =IF(N123=0,0,IF(Hypothèses!$B$26<>"",(('Cond. particulières'!H123*'Cond. particulières'!N123)+('Cond. particulières'!I123*O123))/N123,"")) ->  | M123: =C123 -> DI | N123: =VLOOKUP(A123,Deliassage!$D$2:$J$74,6,FALSE) ->  | O123: =VLOOKUP(A123,Deliassage!$D$2:$J$74,7,FALSE) -> 0 | P123: =(N123*H123)+(I123*O123) -> 
A124: =CONCATENATE(B124," ",C124," ",D124) -> DI hors UE | C124: DI | D124: hors UE | E124: =IF(OR(M124=selection),1,0) -> 0 | F124: =IF(AND(E124=1,Hypothèses!$B$26=""),VLOOKUP(A124,Deliassage!$D$2:$M$74,8,FALSE),IF(AND(E124=1,Hypothèses!$B$26=Hypothèses!$I$22),VLOOKUP(A124,Deliassage!$D$2:$M$74,9,FALSE),IF(AND('Cond. particulières'!E124=1,Hypothèses!$B$26=Hypothèses!$I$23),VLOOKUP(A124,Deliassage!$D$2:$M$74,10,FALSE),""))) ->  | G124: =IF(AND(E124=1,Hypothèses!$B$26=""),VLOOKUP(A124,Deliassage!$D$2:$M$74,3,FALSE),IF(AND(E124=1,Hypothèses!$B$26=Hypothèses!$I$22),VLOOKUP(A124,Deliassage!$D$2:$M$74,4,FALSE),IF(AND('Cond. particulières'!E124=1,Hypothèses!$B$26=Hypothèses!$I$23),VLOOKUP(A124,Deliassage!$D$2:$M$74,5,FALSE),""))) ->  | J124: =IF(E124=1,((H124*N124)+(I124*O124))-G124,"") ->  | K124: =IF(N124=0,0,IF(Hypothèses!$B$26<>"",(('Cond. particulières'!H124*'Cond. particulières'!N124)+('Cond. particulières'!I124*O124))/N124,"")) ->  | M124: =C124 -> DI | N124: =VLOOKUP(A124,Deliassage!$D$2:$J$74,6,FALSE) ->  | O124: =VLOOKUP(A124,Deliassage!$D$2:$J$74,7,FALSE) -> 0 | P124: =(N124*H124)+(I124*O124) -> 
M125: =CONCATENATE(B125," ",C125) -> 
D126: =CONCATENATE(B127," ",C127) -> DD | F126: Point mort | G126: Charges | H126: Taux | I126: Fixe | J126: Résultat | K126: Commission banque | M126: =CONCATENATE(B126," ",C126) -> 
A127: =CONCATENATE(B127," ",C127," ",D127) -> DD Intra réseau | C127: DD | D127: Intra réseau | E127: =IF(OR(M127=selection),1,0) -> 0 | F127: =IF(AND(E127=1,Hypothèses!$B$26=""),VLOOKUP(A127,Deliassage!$D$2:$M$74,8,FALSE),IF(AND(E127=1,Hypothèses!$B$26=Hypothèses!$I$22),VLOOKUP(A127,Deliassage!$D$2:$M$74,9,FALSE),IF(AND('Cond. particulières'!E127=1,Hypothèses!$B$26=Hypothèses!$I$23),VLOOKUP(A127,Deliassage!$D$2:$M$74,10,FALSE),""))) ->  | G127: =IF(AND(E127=1,Hypothèses!$B$26=""),VLOOKUP(A127,Deliassage!$D$2:$M$74,3,FALSE),IF(AND(E127=1,Hypothèses!$B$26=Hypothèses!$I$22),VLOOKUP(A127,Deliassage!$D$2:$M$74,4,FALSE),IF(AND('Cond. particulières'!E127=1,Hypothèses!$B$26=Hypothèses!$I$23),VLOOKUP(A127,Deliassage!$D$2:$M$74,5,FALSE),""))) ->  | J127: =IF(E127=1,((H127*N127)+(I127*O127))-G127,"") ->  | K127: =IF(N127=0,0,IF(Hypothèses!$B$26<>"",(('Cond. particulières'!H127*'Cond. particulières'!N127)+('Cond. particulières'!I127*O127))/N127,"")) ->  | M127: =C127 -> DD | N127: =VLOOKUP(A127,Deliassage!$D$2:$J$74,6,FALSE) ->  | O127: =VLOOKUP(A127,Deliassage!$D$2:$J$74,7,FALSE) -> 0 | P127: =(N127*H127)+(I127*O127) -> 
A128: =CONCATENATE(B128," ",C128," ",D128) -> DD UE | C128: DD | D128: UE | E128: =IF(OR(M128=selection),1,0) -> 0 | F128: =IF(E128=0,"",IF(E128=1,G128/(VLOOKUP(A128,Deliassage!D2:I75,6,FALSE)+VLOOKUP("DD Inter réseau",Deliassage!D2:I75,6,FALSE))))*100 ->  | G128: =IF(E128=0,"",IF(AND(E128=1,Hypothèses!$B$26=""),VLOOKUP(A128,Deliassage!$D$2:$M$74,3,FALSE),IF(AND(E128=1,Hypothèses!$B$26=Hypothèses!$I$22),VLOOKUP(A128,Deliassage!$D$2:$M$74,4,FALSE),IF(AND('Cond. particulières'!E128=1,Hypothèses!$B$26=Hypothèses!$I$23),VLOOKUP(A128,Deliassage!$D$2:$M$74,5,FALSE),"")))+IF(AND(E128=1,Hypothèses!$B$26=""),VLOOKUP("DD Inter réseau",Deliassage!$D$2:$M$74,3,FALSE),IF(AND(E128=1,Hypothèses!$B$26=Hypothèses!$I$22),VLOOKUP("DD Inter réseau",Deliassage!$D$2:$M$74,4,FALSE),IF(AND('Cond. particulières'!E128=1,Hypothèses!$B$26=Hypothèses!$I$23),VLOOKUP("DD Inter réseau",Deliassage!$D$2:$M$74,5,FALSE),"")))) ->  | J128: =IF(E128=1,((H128*N128)+(I128*O128))-G128,"") ->  | K128: =IF(N128=0,0,IF(Hypothèses!$B$26<>"",(('Cond. particulières'!H128*'Cond. particulières'!N128)+('Cond. particulières'!I128*O128))/N128,"")) ->  | M128: =C128 -> DD | N128: =VLOOKUP(A128,Deliassage!$D$2:$J$74,6,FALSE) ->  | O128: =VLOOKUP(A128,Deliassage!$D$2:$J$74,7,FALSE) -> 0 | P128: =(N128*H128)+(I128*O128) -> 
A129: =CONCATENATE(B129," ",C129," ",D129) -> DD hors UE | C129: DD | D129: hors UE | E129: =IF(OR(M129=selection),1,0) -> 0 | F129: =IF(AND(E129=1,Hypothèses!$B$26=""),VLOOKUP(A129,Deliassage!$D$2:$M$74,8,FALSE),IF(AND(E129=1,Hypothèses!$B$26=Hypothèses!$I$22),VLOOKUP(A129,Deliassage!$D$2:$M$74,9,FALSE),IF(AND('Cond. particulières'!E129=1,Hypothèses!$B$26=Hypothèses!$I$23),VLOOKUP(A129,Deliassage!$D$2:$M$74,10,FALSE),""))) ->  | G129: =IF(AND(E129=1,Hypothèses!$B$26=""),VLOOKUP(A129,Deliassage!$D$2:$M$74,3,FALSE),IF(AND(E129=1,Hypothèses!$B$26=Hypothèses!$I$22),VLOOKUP(A129,Deliassage!$D$2:$M$74,4,FALSE),IF(AND('Cond. particulières'!E129=1,Hypothèses!$B$26=Hypothèses!$I$23),VLOOKUP(A129,Deliassage!$D$2:$M$74,5,FALSE),""))) ->  | J129: =IF(E129=1,((H129*N129)+(I129*O129))-G129,"") ->  | K129: =IF(N129=0,0,IF(Hypothèses!$B$26<>"",(('Cond. particulières'!H129*'Cond. particulières'!N129)+('Cond. particulières'!I129*O129))/N129,"")) ->  | M129: =C129 -> DD | N129: =VLOOKUP(A129,Deliassage!$D$2:$J$74,6,FALSE) ->  | O129: =VLOOKUP(A129,Deliassage!$D$2:$J$74,7,FALSE) -> 0 | P129: =(N129*H129)+(I129*O129) -> 
M130: =CONCATENATE(B130," ",C130) -> 
D131: =CONCATENATE(B132," ",C132) -> Commerciale | F131: Point mort | G131: Charges | H131: Taux | I131: Fixe | J131: Résultat | K131: Commission banque | M131: =CONCATENATE(B131," ",C131) -> 
A132: =CONCATENATE(B132," ",C132," ",D132) -> Commerciale Intra réseau | C132: Commerciale | D132: Intra réseau | E132: =IF(OR(M132=selection),1,0) -> 0 | F132: =IF(AND(E132=1,Hypothèses!$B$26=""),VLOOKUP(A132,Deliassage!$D$2:$M$74,8,FALSE),IF(AND(E132=1,Hypothèses!$B$26=Hypothèses!$I$22),VLOOKUP(A132,Deliassage!$D$2:$M$74,9,FALSE),IF(AND('Cond. particulières'!E132=1,Hypothèses!$B$26=Hypothèses!$I$23),VLOOKUP(A132,Deliassage!$D$2:$M$74,10,FALSE),""))) ->  | G132: =IF(AND(E132=1,Hypothèses!$B$26=""),VLOOKUP(A132,Deliassage!$D$2:$M$74,3,FALSE),IF(AND(E132=1,Hypothèses!$B$26=Hypothèses!$I$22),VLOOKUP(A132,Deliassage!$D$2:$M$74,4,FALSE),IF(AND('Cond. particulières'!E132=1,Hypothèses!$B$26=Hypothèses!$I$23),VLOOKUP(A132,Deliassage!$D$2:$M$74,5,FALSE),""))) ->  | J132: =IF(E132=1,((H132*N132)+(I132*O132))-G132,"") ->  | K132: =IF(N132=0,0,IF(Hypothèses!$B$26<>"",(('Cond. particulières'!H132*'Cond. particulières'!N132)+('Cond. particulières'!I132*O132))/N132,"")) ->  | M132: =C132 -> Commerciale | N132: =VLOOKUP(A132,Deliassage!$D$2:$J$74,6,FALSE) ->  | O132: =VLOOKUP(A132,Deliassage!$D$2:$J$74,7,FALSE) -> 0 | P132: =(N132*H132)+(I132*O132) -> 
A133: =CONCATENATE(B133," ",C133," ",D133) -> Commerciale UE | C133: Commerciale | D133: UE | E133: =IF(OR(M133=selection),1,0) -> 0 | F133: =IF(E133=0,"",IF(E133=1,G133/(VLOOKUP(A133,Deliassage!D2:I75,6,FALSE)+VLOOKUP("Commerciale Inter réseau",Deliassage!D2:I75,6,FALSE))))*100 ->  | G133: =IF(E133=0,"",IF(AND(E133=1,Hypothèses!$B$26=""),VLOOKUP($A$133,Deliassage!$D$2:$M$74,3,FALSE),IF(AND(E133=1,Hypothèses!$B$26=Hypothèses!$I$22),VLOOKUP($A$133,Deliassage!$D$2:$M$74,4,FALSE),IF(AND('Cond. particulières'!E133=1,Hypothèses!$B$26=Hypothèses!$I$23),VLOOKUP($A$133,Deliassage!$D$2:$M$74,5,FALSE),"")))+IF(AND(E133=1,Hypothèses!$B$26=""),VLOOKUP("Commerciale Inter réseau",Deliassage!$D$2:$M$74,3,FALSE),IF(AND(E133=1,Hypothèses!$B$26=Hypothèses!$I$22),VLOOKUP("Commerciale Inter réseau",Deliassage!$D$2:$M$74,4,FALSE),IF(AND('Cond. particulières'!E133=1,Hypothèses!$B$26=Hypothèses!$I$23),VLOOKUP("Commerciale Inter réseau",Deliassage!$D$2:$M$74,5,FALSE),"")))) ->  | J133: =IF(E133=1,((H133*N133)+(I133*O133))-G133,"") ->  | K133: =IF(N133=0,0,IF(Hypothèses!$B$26<>"",(('Cond. particulières'!H133*'Cond. particulières'!N133)+('Cond. particulières'!I133*O133))/N133,"")) ->  | M133: =C133 -> Commerciale | N133: =VLOOKUP(A133,Deliassage!$D$2:$J$74,6,FALSE) ->  | O133: =VLOOKUP(A133,Deliassage!$D$2:$J$74,7,FALSE) -> 0 | P133: =(N133*H133)+(I133*O133) ->  | Q133: =IF(Hypothèses!$B$26="",VLOOKUP($A$133,Deliassage!$D$2:$M$75,3,FALSE),IF(Hypothèses!$B$26=Hypothèses!$I$22,VLOOKUP($A$133,Deliassage!$D$2:$M$75,4,FALSE),IF(Hypothèses!$B$26=Hypothèses!$I$23,VLOOKUP($A$133,Deliassage!$D$2:$M$75,5,FALSE),""))) -> 
A134: =CONCATENATE(B134," ",C134," ",D134) -> Commerciale hors UE | C134: Commerciale | D134: hors UE | E134: =IF(OR(M134=selection),1,0) -> 0 | F134: =IF(AND(E134=1,Hypothèses!$B$26=""),VLOOKUP(A134,Deliassage!$D$2:$M$74,8,FALSE),IF(AND(E134=1,Hypothèses!$B$26=Hypothèses!$I$22),VLOOKUP(A134,Deliassage!$D$2:$M$74,9,FALSE),IF(AND('Cond. particulières'!E134=1,Hypothèses!$B$26=Hypothèses!$I$23),VLOOKUP(A134,Deliassage!$D$2:$M$74,10,FALSE),""))) ->  | G134: =IF(AND(E134=1,Hypothèses!$B$26=""),VLOOKUP(A134,Deliassage!$D$2:$M$74,3,FALSE),IF(AND(E134=1,Hypothèses!$B$26=Hypothèses!$I$22),VLOOKUP(A134,Deliassage!$D$2:$M$74,4,FALSE),IF(AND('Cond. particulières'!E134=1,Hypothèses!$B$26=Hypothèses!$I$23),VLOOKUP(A134,Deliassage!$D$2:$M$74,5,FALSE),""))) ->  | J134: =IF(E134=1,((H134*N134)+(I134*O134))-G134,"") ->  | K134: =IF(N134=0,0,IF(Hypothèses!$B$26<>"",(('Cond. particulières'!H134*'Cond. particulières'!N134)+('Cond. particulières'!I134*O134))/N134,"")) ->  | M134: =C134 -> Commerciale | N134: =VLOOKUP(A134,Deliassage!$D$2:$J$74,6,FALSE) ->  | O134: =VLOOKUP(A134,Deliassage!$D$2:$J$74,7,FALSE) -> 0 | P134: =(N134*H134)+(I134*O134) ->  | Q134: =IF(Hypothèses!$B$26="",VLOOKUP($A$134,Deliassage!$D$2:$M$75,3,FALSE),IF(Hypothèses!$B$26=Hypothèses!$I$22,VLOOKUP($A$134,Deliassage!$D$2:$M$75,4,FALSE),IF(Hypothèses!$B$26=Hypothèses!$I$23,VLOOKUP($A$134,Deliassage!$D$2:$M$75,5,FALSE),""))) -> 0
F135: =IF(E135=1,VLOOKUP(A135,Deliassage!$D$2:$M$74,8,FALSE),"") -> 
G136: =SUM(G16:G135) -> 0 | J136: =SUM(J16:J135) -> 0 | N136: =SUM(N16:N135) ->  | O136: =SUM(O16:O135) -> 0
A139: CONCATENER | B139: marque | C139: debit | D139: CONCATENER2 | E139: pec ou non | F139: CONCATENER3 | G139: CA | H139: NB | I139: Charges | J139: Chg MIF+ | K139: Chg MIF++ | N139: CA | O139: NB | P139: Charges
A140: =CONCATENATE(B140," ",C140," ",D140) -> CB Commerciale Intra réseau | B140: CB | C140: Commerciale | D140: Intra réseau | E140: =IF(OR(F140=selection),1,0) -> 0 | F140: =CONCATENATE(B140," ",C140) -> CB Commerciale | G140: =VLOOKUP(A140,Deliassage!$D$2:$J$75,6,FALSE) ->  | H140: =VLOOKUP(A140,Deliassage!$D$2:$J$75,7,FALSE) -> 0 | I140: =VLOOKUP(A140,Deliassage!$D$2:$J$75,3,FALSE) ->  | J140: =VLOOKUP(A140,Deliassage!$D$2:$J$75,4,FALSE) ->  | K140: =VLOOKUP(A140,Deliassage!$D$2:$J$75,5,FALSE) ->  | M140: Intra réseau | N140: =Calculs!C1429 ->  | O140: =N140/Calculs!$C$1443 ->  | P140: =IF(Hypothèses!E8='Codes '!H21,IF(Hypothèses!$B$26="",Calculs!E1429,IF(Hypothèses!$B$26=Hypothèses!$I$22,Calculs!I1429,IF(Hypothèses!$B$26=Hypothèses!$I$23,Calculs!M1429))),IF(Hypothèses!$B$26="",Calculs!E1643,IF(Hypothèses!$B$26=Hypothèses!$I$22,Calculs!I1643,IF(Hypothèses!$B$26=Hypothèses!$I$23,Calculs!M1643)))) -> 
A141: CB Commerciale UE | B141: CB | C141: Commerciale | D141: UE | E141: =IF(OR(F141=selection),1,0) -> 0 | F141: CB Commerciale | G141: =VLOOKUP(A141,Deliassage!$D$2:$J$75,6,FALSE) ->  | H141: =VLOOKUP(A141,Deliassage!$D$2:$J$75,7,FALSE) -> 0 | I141: =VLOOKUP(A141,Deliassage!$D$2:$J$75,3,FALSE) ->  | J141: =VLOOKUP(A141,Deliassage!$D$2:$J$75,4,FALSE) ->  | K141: =VLOOKUP(A141,Deliassage!$D$2:$J$75,5,FALSE) ->  | M141: Commerciales UE | N141: =Calculs!C1434+Calculs!C1435 ->  | O141: =N141/Calculs!C1443 ->  | P141: =IF(Hypothèses!E8='Codes '!H21,IF(Hypothèses!$B$26="",Calculs!E1434+Calculs!E1435,IF(Hypothèses!$B$26=Hypothèses!$I$22,Calculs!I1434+Calculs!I1435,IF(Hypothèses!$B$26=Hypothèses!$I$23,Calculs!M1434+Calculs!M1435))),IF(Hypothèses!$B$26="",Calculs!E1648+Calculs!E1649,IF(Hypothèses!$B$26=Hypothèses!$I$22,Calculs!I1648+Calculs!I1649,IF(Hypothèses!$B$26=Hypothèses!$I$23,Calculs!M1648+Calculs!M1649)))) ->  | Q141: =P141-P149 -> 
A142: CB DD Intra réseau | B142: CB | C142: DD | D142: Intra réseau | E142: =IF(OR(F142=selection),1,0) -> 0 | F142: CB DD | G142: =VLOOKUP(A142,Deliassage!$D$2:$J$75,6,FALSE) ->  | H142: =VLOOKUP(A142,Deliassage!$D$2:$J$75,7,FALSE) -> 0 | I142: =VLOOKUP(A142,Deliassage!$D$2:$J$75,3,FALSE) ->  | J142: =VLOOKUP(A142,Deliassage!$D$2:$J$75,4,FALSE) ->  | K142: =VLOOKUP(A142,Deliassage!$D$2:$J$75,5,FALSE) ->  | M142: UE | N142: =Calculs!C1430+Calculs!C1431 ->  | O142: =N142/Calculs!$C$1443 ->  | P142: =IF(Hypothèses!E8='Codes '!H21,IF(Hypothèses!$B$26="",Calculs!E1430+Calculs!E1431,IF(Hypothèses!$B$26=Hypothèses!$I$22,Calculs!I1430+Calculs!I1431,IF(Hypothèses!$B$26=Hypothèses!$I$23,Calculs!M1430+Calculs!M1431))),IF(Hypothèses!$B$26="",Calculs!E1644+Calculs!E1645,IF(Hypothèses!$B$26=Hypothèses!$I$22,Calculs!I1644+Calculs!I1645,IF(Hypothèses!$B$26=Hypothèses!$I$23,Calculs!M1644+Calculs!M1645)))) ->  | Q142: =P142-P150 -> 
A143: CB DD UE | B143: CB | C143: DD | D143: UE | E143: =IF(OR(F143=selection),1,0) -> 0 | F143: CB DD | G143: =VLOOKUP(A143,Deliassage!$D$2:$J$75,6,FALSE) ->  | H143: =VLOOKUP(A143,Deliassage!$D$2:$J$75,7,FALSE) -> 0 | I143: =VLOOKUP(A143,Deliassage!$D$2:$J$75,3,FALSE) ->  | J143: =VLOOKUP(A143,Deliassage!$D$2:$J$75,4,FALSE) ->  | K143: =VLOOKUP(A143,Deliassage!$D$2:$J$75,5,FALSE) ->  | M143: Commerciales hors UE | N143: =Calculs!C1436+Calculs!C1437 ->  | O143: =N143/Calculs!C1444 ->  | P143: =IF(Hypothèses!E8='Codes '!H21,IF(Hypothèses!$B$26="",Calculs!E1436+Calculs!E1437,IF(Hypothèses!$B$26=Hypothèses!$I$22,Calculs!I1436+Calculs!I1437,IF(Hypothèses!$B$26=Hypothèses!$I$23,Calculs!M1436+Calculs!M1437))),IF(Hypothèses!$B$26="",Calculs!E1650+Calculs!E1651,IF(Hypothèses!$B$26=Hypothèses!$I$22,Calculs!I1650+Calculs!I1651,IF(Hypothèses!$B$26=Hypothèses!$I$23,Calculs!M1650+Calculs!M1651)))) -> 0
A144: CB DI Intra réseau | B144: CB | C144: DI | D144: Intra réseau | E144: =IF(OR(F144=selection),1,0) -> 0 | F144: CB DI | G144: =VLOOKUP(A144,Deliassage!$D$2:$J$75,6,FALSE) ->  | H144: =VLOOKUP(A144,Deliassage!$D$2:$J$75,7,FALSE) -> 0 | I144: =VLOOKUP(A144,Deliassage!$D$2:$J$75,3,FALSE) ->  | J144: =VLOOKUP(A144,Deliassage!$D$2:$J$75,4,FALSE) ->  | K144: =VLOOKUP(A144,Deliassage!$D$2:$J$75,5,FALSE) ->  | M144: hors UE | N144: =Calculs!C1432+Calculs!C1433 ->  | O144: =N144/Calculs!$C$1444 ->  | P144: =IF(Hypothèses!E8='Codes '!H21,IF(Hypothèses!$B$26="",Calculs!E1432+Calculs!E1433,IF(Hypothèses!$B$26=Hypothèses!$I$22,Calculs!I1432+Calculs!I1433,IF(Hypothèses!$B$26=Hypothèses!$I$23,Calculs!M1432+Calculs!M1433))),IF(Hypothèses!$B$26="",Calculs!E1646+Calculs!E1647,IF(Hypothèses!$B$26=Hypothèses!$I$22,Calculs!I1646+Calculs!I1647,IF(Hypothèses!$B$26=Hypothèses!$I$23,Calculs!M1646+Calculs!M1647)))) -> 0
A145: CB DI UE | B145: CB | C145: DI | D145: UE | E145: =IF(OR(F145=selection),1,0) -> 0 | F145: CB DI | G145: =VLOOKUP(A145,Deliassage!$D$2:$J$75,6,FALSE) ->  | H145: =VLOOKUP(A145,Deliassage!$D$2:$J$75,7,FALSE) -> 0 | I145: =VLOOKUP(A145,Deliassage!$D$2:$J$75,3,FALSE) ->  | J145: =VLOOKUP(A145,Deliassage!$D$2:$J$75,4,FALSE) ->  | K145: =VLOOKUP(A145,Deliassage!$D$2:$J$75,5,FALSE) ->  | N145: =SUM(N140:N144) ->  | O145: =SUM(O140:O144) ->  | P145: =SUM(P140:P144) -> 
A146: Electron Commerciale Intra réseau | B146: Electron | C146: Commerciale | D146: Intra réseau | E146: =IF(OR(F146=selection),1,0) -> 0 | F146: Electron Commerciale | G146: =VLOOKUP(A146,Deliassage!$D$2:$J$75,6,FALSE) ->  | H146: =VLOOKUP(A146,Deliassage!$D$2:$J$75,7,FALSE) -> 0 | I146: =VLOOKUP(A146,Deliassage!$D$2:$J$75,3,FALSE) -> 0 | J146: =VLOOKUP(A146,Deliassage!$D$2:$J$75,4,FALSE) -> 0 | K146: =VLOOKUP(A146,Deliassage!$D$2:$J$75,5,FALSE) -> 0
A147: Electron Commerciale UE | B147: Electron | C147: Commerciale | D147: UE | E147: =IF(OR(F147=selection),1,0) -> 0 | F147: Electron Commerciale | G147: =VLOOKUP(A147,Deliassage!$D$2:$J$75,6,FALSE) ->  | H147: =VLOOKUP(A147,Deliassage!$D$2:$J$75,7,FALSE) -> 0 | I147: =VLOOKUP(A147,Deliassage!$D$2:$J$75,3,FALSE) -> 0 | J147: =VLOOKUP(A147,Deliassage!$D$2:$J$75,4,FALSE) -> 0 | K147: =VLOOKUP(A147,Deliassage!$D$2:$J$75,5,FALSE) -> 0 | N147: CA except | O147: NB except | P147: Charges excep
A148: Electron Commerciale hors UE | B148: Electron | C148: Commerciale | D148: hors UE | E148: =IF(OR(F148=selection),1,0) -> 0 | F148: Electron Commerciale | G148: =VLOOKUP(A148,Deliassage!$D$2:$J$75,6,FALSE) ->  | H148: =VLOOKUP(A148,Deliassage!$D$2:$J$75,7,FALSE) -> 0 | I148: =VLOOKUP(A148,Deliassage!$D$2:$J$75,3,FALSE) -> 0 | J148: =VLOOKUP(A148,Deliassage!$D$2:$J$75,4,FALSE) -> 0 | K148: =VLOOKUP(A148,Deliassage!$D$2:$J$75,5,FALSE) -> 0 | M148: Intra réseau | N148: =SUMIFS($G$140:$G$213,$D$140:$D$213,"Intra réseau",$E$140:$E$213,1) -> 0 | O148: =N148/Calculs!$C$1443 ->  | P148: =IF(Hypothèses!$B$26="",SUMIFS($I$140:$I$213,$D$140:$D$213,"Intra réseau",$E$140:$E$213,1),IF(Hypothèses!$B$26=Hypothèses!$I$22,SUMIFS($J$140:$J$213,$D$140:$D$213,"Intra réseau",$E$140:$E$213,1),IF(Hypothèses!$B$26=Hypothèses!$I$23,SUMIFS($K$140:$K$213,$D$140:$D$213,"Intra réseau",$E$140:$E$213,1)))) -> 0
A149: Electron DD UE | B149: Electron | C149: DD | D149: UE | E149: =IF(OR(F149=selection),1,0) -> 0 | F149: Electron DD | G149: =VLOOKUP(A149,Deliassage!$D$2:$J$75,6,FALSE) ->  | H149: =VLOOKUP(A149,Deliassage!$D$2:$J$75,7,FALSE) -> 0 | I149: =VLOOKUP(A149,Deliassage!$D$2:$J$75,3,FALSE) -> 0 | J149: =VLOOKUP(A149,Deliassage!$D$2:$J$75,4,FALSE) -> 0 | K149: =VLOOKUP(A149,Deliassage!$D$2:$J$75,5,FALSE) -> 0 | M149: Commerciales UE | N149: =N4 -> 0 | O149: =N149/Calculs!C1443 ->  | P149: =P4 -> 0
A150: Electron DD hors UE | B150: Electron | C150: DD | D150: hors UE | E150: =IF(OR(F150=selection),1,0) -> 0 | F150: Electron DD | G150: =VLOOKUP(A150,Deliassage!$D$2:$J$75,6,FALSE) ->  | H150: =VLOOKUP(A150,Deliassage!$D$2:$J$75,7,FALSE) -> 0 | I150: =VLOOKUP(A150,Deliassage!$D$2:$J$75,3,FALSE) -> 0 | J150: =VLOOKUP(A150,Deliassage!$D$2:$J$75,4,FALSE) -> 0 | K150: =VLOOKUP(A150,Deliassage!$D$2:$J$75,5,FALSE) -> 0 | M150: UE | N150: =SUMIFS($G$140:$G$213,$D$140:$D$213,"UE",$E$140:$E$213,1)+SUMIFS($G$140:$G$213,$D$140:$D$213,"Inter réseau",$E$140:$E$213,1)-N149 -> 0 | O150: =N150/Calculs!$C$1443 ->  | P150: =IF(Hypothèses!$B$26="",SUMIFS($I$140:$I$213,$D$140:$D$213,"UE",$E$140:$E$213,1),IF(Hypothèses!$B$26=Hypothèses!$I$22,SUMIFS($J$140:$J$213,$D$140:$D$213,"UE",$E$140:$E$213,1),IF(Hypothèses!$B$26=Hypothèses!$I$23,SUMIFS($K$140:$K$213,$D$140:$D$213,"UE",$E$140:$E$213,1))))+IF(Hypothèses!$B$26="",SUMIFS($I$140:$I$213,$D$140:$D$213,"Inter réseau",$E$140:$E$213,1),IF(Hypothèses!$B$26=Hypothèses!$I$22,SUMIFS($J$140:$J$213,$D$140:$D$213,"Inter réseau",$E$140:$E$213,1),IF(Hypothèses!$B$26=Hypothèses!$I$23,SUMIFS($K$140:$K$213,$D$140:$D$213,"Inter réseau",$E$140:$E$213,1))))-P149 -> 0
A151: Electron DI Intra réseau | B151: Electron | C151: DI | D151: Intra réseau | E151: =IF(OR(F151=selection),1,0) -> 0 | F151: Electron DI | G151: =VLOOKUP(A151,Deliassage!$D$2:$J$75,6,FALSE) ->  | H151: =VLOOKUP(A151,Deliassage!$D$2:$J$75,7,FALSE) -> 0 | I151: =VLOOKUP(A151,Deliassage!$D$2:$J$75,3,FALSE) -> 0 | J151: =VLOOKUP(A151,Deliassage!$D$2:$J$75,4,FALSE) -> 0 | K151: =VLOOKUP(A151,Deliassage!$D$2:$J$75,5,FALSE) -> 0 | M151: Commerciales hors UE | N151: =N5 -> 0 | O151: =N151/Calculs!C1444 ->  | P151: =P5 -> 0
A152: Electron DI UE | B152: Electron | C152: DI | D152: UE | E152: =IF(OR(F152=selection),1,0) -> 0 | F152: Electron DI | G152: =VLOOKUP(A152,Deliassage!$D$2:$J$75,6,FALSE) ->  | H152: =VLOOKUP(A152,Deliassage!$D$2:$J$75,7,FALSE) -> 0 | I152: =VLOOKUP(A152,Deliassage!$D$2:$J$75,3,FALSE) -> 0 | J152: =VLOOKUP(A152,Deliassage!$D$2:$J$75,4,FALSE) -> 0 | K152: =VLOOKUP(A152,Deliassage!$D$2:$J$75,5,FALSE) -> 0 | M152: hors UE | N152: =SUMIFS($G$140:$G$213,$D$140:$D$213,"hors UE",$E$140:$E$213,1)-N151 -> 0 | O152: =N152/Calculs!$C$1444 ->  | P152: =IF(Hypothèses!$B$26="",SUMIFS($I$140:$I$213,$D$140:$D$213,"hors UE",$E$140:$E$213,1),IF(Hypothèses!$B$26=Hypothèses!$I$22,SUMIFS($J$140:$J$213,$D$140:$D$213,"hors UE",$E$140:$E$213,1),IF(Hypothèses!$B$26=Hypothèses!$I$23,SUMIFS($K$140:$K$213,$D$140:$D$213,"hors UE",$E$140:$E$213,1))))-P151 -> 0
A153: Electron DI hors UE | B153: Electron | C153: DI | D153: hors UE | E153: =IF(OR(F153=selection),1,0) -> 0 | F153: Electron DI | G153: =VLOOKUP(A153,Deliassage!$D$2:$J$75,6,FALSE) ->  | H153: =VLOOKUP(A153,Deliassage!$D$2:$J$75,7,FALSE) -> 0 | I153: =VLOOKUP(A153,Deliassage!$D$2:$J$75,3,FALSE) -> 0 | J153: =VLOOKUP(A153,Deliassage!$D$2:$J$75,4,FALSE) -> 0 | K153: =VLOOKUP(A153,Deliassage!$D$2:$J$75,5,FALSE) -> 0 | N153: =SUM(N148:N152) -> 0 | O153: =SUM(O148:O152) ->  | P153: =SUM(P148:P152) -> 0
A154: Maestro Commerciale Intra réseau | B154: Maestro | C154: Commerciale | D154: Intra réseau | E154: =IF(OR(F154=selection),1,0) -> 0 | F154: Maestro Commerciale | G154: =VLOOKUP(A154,Deliassage!$D$2:$J$75,6,FALSE) ->  | H154: =VLOOKUP(A154,Deliassage!$D$2:$J$75,7,FALSE) -> 0 | I154: =VLOOKUP(A154,Deliassage!$D$2:$J$75,3,FALSE) -> 0 | J154: =VLOOKUP(A154,Deliassage!$D$2:$J$75,4,FALSE) -> 0 | K154: =VLOOKUP(A154,Deliassage!$D$2:$J$75,5,FALSE) -> 0
A155: Maestro Commerciale UE | B155: Maestro | C155: Commerciale | D155: UE | E155: =IF(OR(F155=selection),1,0) -> 0 | F155: Maestro Commerciale | G155: =VLOOKUP(A155,Deliassage!$D$2:$J$75,6,FALSE) ->  | H155: =VLOOKUP(A155,Deliassage!$D$2:$J$75,7,FALSE) -> 0 | I155: =VLOOKUP(A155,Deliassage!$D$2:$J$75,3,FALSE) -> 0 | J155: =VLOOKUP(A155,Deliassage!$D$2:$J$75,4,FALSE) -> 0 | K155: =VLOOKUP(A155,Deliassage!$D$2:$J$75,5,FALSE) -> 0
A156: Maestro Commerciale hors UE | B156: Maestro | C156: Commerciale | D156: hors UE | E156: =IF(OR(F156=selection),1,0) -> 0 | F156: Maestro Commerciale | G156: =VLOOKUP(A156,Deliassage!$D$2:$J$75,6,FALSE) ->  | H156: =VLOOKUP(A156,Deliassage!$D$2:$J$75,7,FALSE) -> 0 | I156: =VLOOKUP(A156,Deliassage!$D$2:$J$75,3,FALSE) -> 0 | J156: =VLOOKUP(A156,Deliassage!$D$2:$J$75,4,FALSE) -> 0 | K156: =VLOOKUP(A156,Deliassage!$D$2:$J$75,5,FALSE) -> 0
A157: Maestro DD UE | B157: Maestro | C157: DD | D157: UE | E157: =IF(OR(F157=selection),1,0) -> 0 | F157: Maestro DD | G157: =VLOOKUP(A157,Deliassage!$D$2:$J$75,6,FALSE) ->  | H157: =VLOOKUP(A157,Deliassage!$D$2:$J$75,7,FALSE) -> 0 | I157: =VLOOKUP(A157,Deliassage!$D$2:$J$75,3,FALSE) -> 0 | J157: =VLOOKUP(A157,Deliassage!$D$2:$J$75,4,FALSE) -> 0 | K157: =VLOOKUP(A157,Deliassage!$D$2:$J$75,5,FALSE) -> 0
A158: Maestro DI Intra réseau | B158: Maestro | C158: DI | D158: Intra réseau | E158: =IF(OR(F158=selection),1,0) -> 0 | F158: Maestro DI | G158: =VLOOKUP(A158,Deliassage!$D$2:$J$75,6,FALSE) ->  | H158: =VLOOKUP(A158,Deliassage!$D$2:$J$75,7,FALSE) -> 0 | I158: =VLOOKUP(A158,Deliassage!$D$2:$J$75,3,FALSE) -> 0 | J158: =VLOOKUP(A158,Deliassage!$D$2:$J$75,4,FALSE) -> 0 | K158: =VLOOKUP(A158,Deliassage!$D$2:$J$75,5,FALSE) -> 0
A159: Maestro DI UE | B159: Maestro | C159: DI | D159: UE | E159: =IF(OR(F159=selection),1,0) -> 0 | F159: Maestro DI | G159: =VLOOKUP(A159,Deliassage!$D$2:$J$75,6,FALSE) ->  | H159: =VLOOKUP(A159,Deliassage!$D$2:$J$75,7,FALSE) -> 0 | I159: =VLOOKUP(A159,Deliassage!$D$2:$J$75,3,FALSE) -> 0 | J159: =VLOOKUP(A159,Deliassage!$D$2:$J$75,4,FALSE) -> 0 | K159: =VLOOKUP(A159,Deliassage!$D$2:$J$75,5,FALSE) -> 0
A160: Maestro DI hors UE | B160: Maestro | C160: DI | D160: hors UE | E160: =IF(OR(F160=selection),1,0) -> 0 | F160: Maestro DI | G160: =VLOOKUP(A160,Deliassage!$D$2:$J$75,6,FALSE) ->  | H160: =VLOOKUP(A160,Deliassage!$D$2:$J$75,7,FALSE) -> 0 | I160: =VLOOKUP(A160,Deliassage!$D$2:$J$75,3,FALSE) -> 0 | J160: =VLOOKUP(A160,Deliassage!$D$2:$J$75,4,FALSE) -> 0 | K160: =VLOOKUP(A160,Deliassage!$D$2:$J$75,5,FALSE) -> 0
A161: Mastercard Commerciale UE | B161: Mastercard | C161: Commerciale | D161: UE | E161: =IF(OR(F161=selection),1,0) -> 0 | F161: Mastercard Commerciale | G161: =VLOOKUP(A161,Deliassage!$D$2:$J$75,6,FALSE) ->  | H161: =VLOOKUP(A161,Deliassage!$D$2:$J$75,7,FALSE) -> 0 | I161: =VLOOKUP(A161,Deliassage!$D$2:$J$75,3,FALSE) -> 0 | J161: =VLOOKUP(A161,Deliassage!$D$2:$J$75,4,FALSE) -> 0 | K161: =VLOOKUP(A161,Deliassage!$D$2:$J$75,5,FALSE) -> 0
A162: Mastercard Commerciale hors UE | B162: Mastercard | C162: Commerciale | D162: hors UE | E162: =IF(OR(F162=selection),1,0) -> 0 | F162: Mastercard Commerciale | G162: =VLOOKUP(A162,Deliassage!$D$2:$J$75,6,FALSE) ->  | H162: =VLOOKUP(A162,Deliassage!$D$2:$J$75,7,FALSE) -> 0 | I162: =VLOOKUP(A162,Deliassage!$D$2:$J$75,3,FALSE) -> 0 | J162: =VLOOKUP(A162,Deliassage!$D$2:$J$75,4,FALSE) -> 0 | K162: =VLOOKUP(A162,Deliassage!$D$2:$J$75,5,FALSE) -> 0
A163: Mastercard DD UE | B163: Mastercard | C163: DD | D163: UE | E163: =IF(OR(F163=selection),1,0) -> 0 | F163: Mastercard DD | G163: =VLOOKUP(A163,Deliassage!$D$2:$J$75,6,FALSE) ->  | H163: =VLOOKUP(A163,Deliassage!$D$2:$J$75,7,FALSE) -> 0 | I163: =VLOOKUP(A163,Deliassage!$D$2:$J$75,3,FALSE) -> 0 | J163: =VLOOKUP(A163,Deliassage!$D$2:$J$75,4,FALSE) -> 0 | K163: =VLOOKUP(A163,Deliassage!$D$2:$J$75,5,FALSE) -> 0
A164: Mastercard DD hors UE | B164: Mastercard | C164: DD | D164: hors UE | E164: =IF(OR(F164=selection),1,0) -> 0 | F164: Mastercard DD | G164: =VLOOKUP(A164,Deliassage!$D$2:$J$75,6,FALSE) ->  | H164: =VLOOKUP(A164,Deliassage!$D$2:$J$75,7,FALSE) -> 0 | I164: =VLOOKUP(A164,Deliassage!$D$2:$J$75,3,FALSE) -> 0 | J164: =VLOOKUP(A164,Deliassage!$D$2:$J$75,4,FALSE) -> 0 | K164: =VLOOKUP(A164,Deliassage!$D$2:$J$75,5,FALSE) -> 0
A165: Mastercard DI UE | B165: Mastercard | C165: DI | D165: UE | E165: =IF(OR(F165=selection),1,0) -> 0 | F165: Mastercard DI | G165: =VLOOKUP(A165,Deliassage!$D$2:$J$75,6,FALSE) ->  | H165: =VLOOKUP(A165,Deliassage!$D$2:$J$75,7,FALSE) -> 0 | I165: =VLOOKUP(A165,Deliassage!$D$2:$J$75,3,FALSE) -> 0 | J165: =VLOOKUP(A165,Deliassage!$D$2:$J$75,4,FALSE) -> 0 | K165: =VLOOKUP(A165,Deliassage!$D$2:$J$75,5,FALSE) -> 0
A166: Mastercard DI hors UE | B166: Mastercard | C166: DI | D166: hors UE | E166: =IF(OR(F166=selection),1,0) -> 0 | F166: Mastercard DI | G166: =VLOOKUP(A166,Deliassage!$D$2:$J$75,6,FALSE) ->  | H166: =VLOOKUP(A166,Deliassage!$D$2:$J$75,7,FALSE) -> 0 | I166: =VLOOKUP(A166,Deliassage!$D$2:$J$75,3,FALSE) -> 0 | J166: =VLOOKUP(A166,Deliassage!$D$2:$J$75,4,FALSE) -> 0 | K166: =VLOOKUP(A166,Deliassage!$D$2:$J$75,5,FALSE) -> 0
A167: Visa Commerciale Intra réseau | B167: Visa | C167: Commerciale | D167: Intra réseau | E167: =IF(OR(F167=selection),1,0) -> 0 | F167: Visa Commerciale | G167: =VLOOKUP(A167,Deliassage!$D$2:$J$75,6,FALSE) ->  | H167: =VLOOKUP(A167,Deliassage!$D$2:$J$75,7,FALSE) -> 0 | I167: =VLOOKUP(A167,Deliassage!$D$2:$J$75,3,FALSE) -> 0 | J167: =VLOOKUP(A167,Deliassage!$D$2:$J$75,4,FALSE) -> 0 | K167: =VLOOKUP(A167,Deliassage!$D$2:$J$75,5,FALSE) -> 0
A168: =CONCATENATE(B168," ",C168," ",D168) -> Visa Commerciale Inter réseau | B168: Visa | C168: Commerciale | D168: Inter réseau | E168: =IF(OR(F168=selection),1,0) -> 0 | F168: =CONCATENATE(B168," ",C168) -> Visa Commerciale | G168: =VLOOKUP(A168,Deliassage!$D$2:$J$75,6,FALSE) ->  | H168: =VLOOKUP(A168,Deliassage!$D$2:$J$75,7,FALSE) -> 0 | I168: =VLOOKUP(A168,Deliassage!$D$2:$J$75,3,FALSE) -> 0 | J168: =VLOOKUP(A168,Deliassage!$D$2:$J$75,4,FALSE) -> 0 | K168: =VLOOKUP(A168,Deliassage!$D$2:$J$75,5,FALSE) -> 0
A169: Visa Commerciale UE | B169: Visa | C169: Commerciale | D169: UE | E169: =IF(OR(F169=selection),1,0) -> 0 | F169: Visa Commerciale | G169: =VLOOKUP(A169,Deliassage!$D$2:$J$75,6,FALSE) ->  | H169: =VLOOKUP(A169,Deliassage!$D$2:$J$75,7,FALSE) -> 0 | I169: =VLOOKUP(A169,Deliassage!$D$2:$J$75,3,FALSE) -> 0 | J169: =VLOOKUP(A169,Deliassage!$D$2:$J$75,4,FALSE) -> 0 | K169: =VLOOKUP(A169,Deliassage!$D$2:$J$75,5,FALSE) -> 0
A170: Visa Commerciale hors UE | B170: Visa | C170: Commerciale | D170: hors UE | E170: =IF(OR(F170=selection),1,0) -> 0 | F170: Visa Commerciale | G170: =VLOOKUP(A170,Deliassage!$D$2:$J$75,6,FALSE) ->  | H170: =VLOOKUP(A170,Deliassage!$D$2:$J$75,7,FALSE) -> 0 | I170: =VLOOKUP(A170,Deliassage!$D$2:$J$75,3,FALSE) -> 0 | J170: =VLOOKUP(A170,Deliassage!$D$2:$J$75,4,FALSE) -> 0 | K170: =VLOOKUP(A170,Deliassage!$D$2:$J$75,5,FALSE) -> 0
A171: Visa DD Intra réseau | B171: Visa | C171: DD | D171: Intra réseau | E171: =IF(OR(F171=selection),1,0) -> 0 | F171: Visa DD | G171: =VLOOKUP(A171,Deliassage!$D$2:$J$75,6,FALSE) ->  | H171: =VLOOKUP(A171,Deliassage!$D$2:$J$75,7,FALSE) -> 0 | I171: =VLOOKUP(A171,Deliassage!$D$2:$J$75,3,FALSE) -> 0 | J171: =VLOOKUP(A171,Deliassage!$D$2:$J$75,4,FALSE) -> 0 | K171: =VLOOKUP(A171,Deliassage!$D$2:$J$75,5,FALSE) -> 0
A172: Visa DD Inter réseau | B172: Visa | C172: DD | D172: Inter réseau | E172: =IF(OR(F172=selection),1,0) -> 0 | F172: Visa DD | G172: =VLOOKUP(A172,Deliassage!$D$2:$J$75,6,FALSE) ->  | H172: =VLOOKUP(A172,Deliassage!$D$2:$J$75,7,FALSE) -> 0 | I172: =VLOOKUP(A172,Deliassage!$D$2:$J$75,3,FALSE) -> 0 | J172: =VLOOKUP(A172,Deliassage!$D$2:$J$75,4,FALSE) -> 0 | K172: =VLOOKUP(A172,Deliassage!$D$2:$J$75,5,FALSE) -> 0
A173: Visa DD UE | B173: Visa | C173: DD | D173: UE | E173: =IF(OR(F173=selection),1,0) -> 0 | F173: Visa DD | G173: =VLOOKUP(A173,Deliassage!$D$2:$J$75,6,FALSE) ->  | H173: =VLOOKUP(A173,Deliassage!$D$2:$J$75,7,FALSE) -> 0 | I173: =VLOOKUP(A173,Deliassage!$D$2:$J$75,3,FALSE) -> 0 | J173: =VLOOKUP(A173,Deliassage!$D$2:$J$75,4,FALSE) -> 0 | K173: =VLOOKUP(A173,Deliassage!$D$2:$J$75,5,FALSE) -> 0
A174: Visa DD hors UE | B174: Visa | C174: DD | D174: hors UE | E174: =IF(OR(F174=selection),1,0) -> 0 | F174: Visa DD | G174: =VLOOKUP(A174,Deliassage!$D$2:$J$75,6,FALSE) ->  | H174: =VLOOKUP(A174,Deliassage!$D$2:$J$75,7,FALSE) -> 0 | I174: =VLOOKUP(A174,Deliassage!$D$2:$J$75,3,FALSE) -> 0 | J174: =VLOOKUP(A174,Deliassage!$D$2:$J$75,4,FALSE) -> 0 | K174: =VLOOKUP(A174,Deliassage!$D$2:$J$75,5,FALSE) -> 0
A175: Visa DI Intra réseau | B175: Visa | C175: DI | D175: Intra réseau | E175: =IF(OR(F175=selection),1,0) -> 0 | F175: Visa DI | G175: =VLOOKUP(A175,Deliassage!$D$2:$J$75,6,FALSE) ->  | H175: =VLOOKUP(A175,Deliassage!$D$2:$J$75,7,FALSE) -> 0 | I175: =VLOOKUP(A175,Deliassage!$D$2:$J$75,3,FALSE) -> 0 | J175: =VLOOKUP(A175,Deliassage!$D$2:$J$75,4,FALSE) -> 0 | K175: =VLOOKUP(A175,Deliassage!$D$2:$J$75,5,FALSE) -> 0
A176: =CONCATENATE(B176," ",C176," ",D176) -> Visa DI Inter réseau | B176: Visa | C176: DI | D176: Inter réseau | E176: =IF(OR(F176=selection),1,0) -> 0 | F176: =CONCATENATE(B176," ",C176) -> Visa DI | G176: =VLOOKUP(A176,Deliassage!$D$2:$J$75,6,FALSE) ->  | H176: =VLOOKUP(A176,Deliassage!$D$2:$J$75,7,FALSE) -> 0 | I176: =VLOOKUP(A176,Deliassage!$D$2:$J$75,3,FALSE) -> 0 | J176: =VLOOKUP(A176,Deliassage!$D$2:$J$75,4,FALSE) -> 0 | K176: =VLOOKUP(A176,Deliassage!$D$2:$J$75,5,FALSE) -> 0
A177: Visa DI UE | B177: Visa | C177: DI | D177: UE | E177: =IF(OR(F177=selection),1,0) -> 0 | F177: Visa DI | G177: =VLOOKUP(A177,Deliassage!$D$2:$J$75,6,FALSE) ->  | H177: =VLOOKUP(A177,Deliassage!$D$2:$J$75,7,FALSE) -> 0 | I177: =VLOOKUP(A177,Deliassage!$D$2:$J$75,3,FALSE) -> 0 | J177: =VLOOKUP(A177,Deliassage!$D$2:$J$75,4,FALSE) -> 0 | K177: =VLOOKUP(A177,Deliassage!$D$2:$J$75,5,FALSE) -> 0
A178: =CONCATENATE(B178," ",C178," ",D178) -> Visa DI hors UE | B178: Visa | C178: DI | D178: hors UE | E178: =IF(OR(F178=selection),1,0) -> 0 | F178: Visa DI | G178: =VLOOKUP(A178,Deliassage!$D$2:$J$75,6,FALSE) ->  | H178: =VLOOKUP(A178,Deliassage!$D$2:$J$75,7,FALSE) -> 0 | I178: =VLOOKUP(A178,Deliassage!$D$2:$J$75,3,FALSE) -> 0 | J178: =VLOOKUP(A178,Deliassage!$D$2:$J$75,4,FALSE) -> 0 | K178: =VLOOKUP(A178,Deliassage!$D$2:$J$75,5,FALSE) -> 0
A179: VPay Commerciale Intra réseau | B179: VPay | C179: Commerciale | D179: Intra réseau | E179: =IF(OR(F179=selection),1,0) -> 0 | F179: VPay Commerciale | G179: =VLOOKUP(A179,Deliassage!$D$2:$J$75,6,FALSE) ->  | H179: =VLOOKUP(A179,Deliassage!$D$2:$J$75,7,FALSE) -> 0 | I179: =VLOOKUP(A179,Deliassage!$D$2:$J$75,3,FALSE) -> 0 | J179: =VLOOKUP(A179,Deliassage!$D$2:$J$75,4,FALSE) -> 0 | K179: =VLOOKUP(A179,Deliassage!$D$2:$J$75,5,FALSE) -> 0
A180: VPay Commerciale UE | B180: VPay | C180: Commerciale | D180: UE | E180: =IF(OR(F180=selection),1,0) -> 0 | F180: VPay Commerciale | G180: =VLOOKUP(A180,Deliassage!$D$2:$J$75,6,FALSE) ->  | H180: =VLOOKUP(A180,Deliassage!$D$2:$J$75,7,FALSE) -> 0 | I180: =VLOOKUP(A180,Deliassage!$D$2:$J$75,3,FALSE) -> 0 | J180: =VLOOKUP(A180,Deliassage!$D$2:$J$75,4,FALSE) -> 0 | K180: =VLOOKUP(A180,Deliassage!$D$2:$J$75,5,FALSE) -> 0
A181: VPay Commerciale hors UE | B181: VPay | C181: Commerciale | D181: hors UE | E181: =IF(OR(F181=selection),1,0) -> 0 | F181: VPay Commerciale | G181: =VLOOKUP(A181,Deliassage!$D$2:$J$75,6,FALSE) ->  | H181: =VLOOKUP(A181,Deliassage!$D$2:$J$75,7,FALSE) -> 0 | I181: =VLOOKUP(A181,Deliassage!$D$2:$J$75,3,FALSE) -> 0 | J181: =VLOOKUP(A181,Deliassage!$D$2:$J$75,4,FALSE) -> 0 | K181: =VLOOKUP(A181,Deliassage!$D$2:$J$75,5,FALSE) -> 0
A182: VPay DI Intra réseau | B182: VPay | C182: DI | D182: Intra réseau | E182: =IF(OR(F182=selection),1,0) -> 0 | F182: VPay DI | G182: =VLOOKUP(A182,Deliassage!$D$2:$J$75,6,FALSE) ->  | H182: =VLOOKUP(A182,Deliassage!$D$2:$J$75,7,FALSE) -> 0 | I182: =VLOOKUP(A182,Deliassage!$D$2:$J$75,3,FALSE) -> 0 | J182: =VLOOKUP(A182,Deliassage!$D$2:$J$75,4,FALSE) -> 0 | K182: =VLOOKUP(A182,Deliassage!$D$2:$J$75,5,FALSE) -> 0
A183: VPay DI UE | B183: VPay | C183: DI | D183: UE | E183: =IF(OR(F183=selection),1,0) -> 0 | F183: VPay DI | G183: =VLOOKUP(A183,Deliassage!$D$2:$J$75,6,FALSE) ->  | H183: =VLOOKUP(A183,Deliassage!$D$2:$J$75,7,FALSE) -> 0 | I183: =VLOOKUP(A183,Deliassage!$D$2:$J$75,3,FALSE) -> 0 | J183: =VLOOKUP(A183,Deliassage!$D$2:$J$75,4,FALSE) -> 0 | K183: =VLOOKUP(A183,Deliassage!$D$2:$J$75,5,FALSE) -> 0
A184: VPay DI hors UE | B184: VPay | C184: DI | D184: hors UE | E184: =IF(OR(F184=selection),1,0) -> 0 | F184: VPay DI | G184: =VLOOKUP(A184,Deliassage!$D$2:$J$75,6,FALSE) ->  | H184: =VLOOKUP(A184,Deliassage!$D$2:$J$75,7,FALSE) -> 0 | I184: =VLOOKUP(A184,Deliassage!$D$2:$J$75,3,FALSE) -> 0 | J184: =VLOOKUP(A184,Deliassage!$D$2:$J$75,4,FALSE) -> 0 | K184: =VLOOKUP(A184,Deliassage!$D$2:$J$75,5,FALSE) -> 0
A185: Commerciale Intra réseau | C185: Commerciale | D185: Intra réseau | E185: =IF(OR(F185=selection),1,0) -> 0 | F185: =C185 -> Commerciale | G185: =VLOOKUP(A185,Deliassage!$D$2:$J$75,6,FALSE) ->  | H185: =VLOOKUP(A185,Deliassage!$D$2:$J$75,7,FALSE) -> 0 | I185: =VLOOKUP(A185,Deliassage!$D$2:$J$75,3,FALSE) ->  | J185: =VLOOKUP(A185,Deliassage!$D$2:$J$75,4,FALSE) ->  | K185: =VLOOKUP(A185,Deliassage!$D$2:$J$75,5,FALSE) -> 
A186: Commerciale UE | C186: Commerciale | D186: UE | E186: =IF(OR(F186=selection),1,0) -> 0 | F186: Commerciale | G186: =VLOOKUP(A186,Deliassage!$D$2:$J$75,6,FALSE) ->  | H186: =VLOOKUP(A186,Deliassage!$D$2:$J$75,7,FALSE) -> 0 | I186: =VLOOKUP(A186,Deliassage!$D$2:$J$75,3,FALSE) ->  | J186: =VLOOKUP(A186,Deliassage!$D$2:$J$75,4,FALSE) ->  | K186: =VLOOKUP(A186,Deliassage!$D$2:$J$75,5,FALSE) -> 
A187: Commerciale hors UE | C187: Commerciale | D187: hors UE | E187: =IF(OR(F187=selection),1,0) -> 0 | F187: Commerciale | G187: =VLOOKUP(A187,Deliassage!$D$2:$J$75,6,FALSE) ->  | H187: =VLOOKUP(A187,Deliassage!$D$2:$J$75,7,FALSE) -> 0 | I187: =VLOOKUP(A187,Deliassage!$D$2:$J$75,3,FALSE) -> 0 | J187: =VLOOKUP(A187,Deliassage!$D$2:$J$75,4,FALSE) -> 0 | K187: =VLOOKUP(A187,Deliassage!$D$2:$J$75,5,FALSE) -> 0
A188: Commerciale Inter réseau | C188: Commerciale | D188: Inter réseau | E188: =IF(OR(F188=selection),1,0) -> 0 | F188: =C188 -> Commerciale | G188: =VLOOKUP(A188,Deliassage!$D$2:$J$75,6,FALSE) ->  | H188: =VLOOKUP(A188,Deliassage!$D$2:$J$75,7,FALSE) -> 0 | I188: =VLOOKUP(A188,Deliassage!$D$2:$J$75,3,FALSE) -> 0 | J188: =VLOOKUP(A188,Deliassage!$D$2:$J$75,4,FALSE) -> 0 | K188: =VLOOKUP(A188,Deliassage!$D$2:$J$75,5,FALSE) -> 0
A189: DD Intra réseau | C189: DD | D189: Intra réseau | E189: =IF(OR(F189=selection),1,0) -> 0 | F189: DD | G189: =VLOOKUP(A189,Deliassage!$D$2:$J$75,6,FALSE) ->  | H189: =VLOOKUP(A189,Deliassage!$D$2:$J$75,7,FALSE) -> 0 | I189: =VLOOKUP(A189,Deliassage!$D$2:$J$75,3,FALSE) ->  | J189: =VLOOKUP(A189,Deliassage!$D$2:$J$75,4,FALSE) ->  | K189: =VLOOKUP(A189,Deliassage!$D$2:$J$75,5,FALSE) -> 
A190: DD UE | C190: DD | D190: UE | E190: =IF(OR(F190=selection),1,0) -> 0 | F190: DD | G190: =VLOOKUP(A190,Deliassage!$D$2:$J$75,6,FALSE) ->  | H190: =VLOOKUP(A190,Deliassage!$D$2:$J$75,7,FALSE) -> 0 | I190: =VLOOKUP(A190,Deliassage!$D$2:$J$75,3,FALSE) ->  | J190: =VLOOKUP(A190,Deliassage!$D$2:$J$75,4,FALSE) ->  | K190: =VLOOKUP(A190,Deliassage!$D$2:$J$75,5,FALSE) -> 
A191: DD hors UE | C191: DD | D191: hors UE | E191: =IF(OR(F191=selection),1,0) -> 0 | F191: DD | G191: =VLOOKUP(A191,Deliassage!$D$2:$J$75,6,FALSE) ->  | H191: =VLOOKUP(A191,Deliassage!$D$2:$J$75,7,FALSE) -> 0 | I191: =VLOOKUP(A191,Deliassage!$D$2:$J$75,3,FALSE) -> 0 | J191: =VLOOKUP(A191,Deliassage!$D$2:$J$75,4,FALSE) -> 0 | K191: =VLOOKUP(A191,Deliassage!$D$2:$J$75,5,FALSE) -> 0
A192: DD inter réseau | C192: DD | D192: Inter réseau | E192: =IF(OR(F192=selection),1,0) -> 0 | F192: DD | G192: =VLOOKUP(A192,Deliassage!$D$2:$J$75,6,FALSE) ->  | H192: =VLOOKUP(A192,Deliassage!$D$2:$J$75,7,FALSE) -> 0 | I192: =VLOOKUP(A192,Deliassage!$D$2:$J$75,3,FALSE) -> 0 | J192: =VLOOKUP(A192,Deliassage!$D$2:$J$75,4,FALSE) -> 0 | K192: =VLOOKUP(A192,Deliassage!$D$2:$J$75,5,FALSE) -> 0
A193: DI Intra réseau | C193: DI | D193: Intra réseau | E193: =IF(OR(F193=selection),1,0) -> 0 | F193: DI | G193: =VLOOKUP(A193,Deliassage!$D$2:$J$75,6,FALSE) ->  | H193: =VLOOKUP(A193,Deliassage!$D$2:$J$75,7,FALSE) -> 0 | I193: =VLOOKUP(A193,Deliassage!$D$2:$J$75,3,FALSE) ->  | J193: =VLOOKUP(A193,Deliassage!$D$2:$J$75,4,FALSE) ->  | K193: =VLOOKUP(A193,Deliassage!$D$2:$J$75,5,FALSE) -> 
A194: DI UE | C194: DI | D194: UE | E194: =IF(OR(F194=selection),1,0) -> 0 | F194: DI | G194: =VLOOKUP(A194,Deliassage!$D$2:$J$75,6,FALSE) ->  | H194: =VLOOKUP(A194,Deliassage!$D$2:$J$75,7,FALSE) -> 0 | I194: =VLOOKUP(A194,Deliassage!$D$2:$J$75,3,FALSE) ->  | J194: =VLOOKUP(A194,Deliassage!$D$2:$J$75,4,FALSE) ->  | K194: =VLOOKUP(A194,Deliassage!$D$2:$J$75,5,FALSE) -> 
A195: DI hors UE | C195: DI | D195: hors UE | E195: =IF(OR(F195=selection),1,0) -> 0 | F195: DI | G195: =VLOOKUP(A195,Deliassage!$D$2:$J$75,6,FALSE) ->  | H195: =VLOOKUP(A195,Deliassage!$D$2:$J$75,7,FALSE) -> 0 | I195: =VLOOKUP(A195,Deliassage!$D$2:$J$75,3,FALSE) -> 0 | J195: =VLOOKUP(A195,Deliassage!$D$2:$J$75,4,FALSE) -> 0 | K195: =VLOOKUP(A195,Deliassage!$D$2:$J$75,5,FALSE) -> 0
A196: DI Inter réseau | C196: DI | D196: Inter réseau | E196: =IF(OR(F196=selection),1,0) -> 0 | F196: DI | G196: =VLOOKUP(A196,Deliassage!$D$2:$J$75,6,FALSE) ->  | H196: =VLOOKUP(A196,Deliassage!$D$2:$J$75,7,FALSE) -> 0 | I196: =VLOOKUP(A196,Deliassage!$D$2:$J$75,3,FALSE) -> 0 | J196: =VLOOKUP(A196,Deliassage!$D$2:$J$75,4,FALSE) -> 0 | K196: =VLOOKUP(A196,Deliassage!$D$2:$J$75,5,FALSE) -> 0
A197: CB Intra réseau | B197: CB | D197: Intra réseau | E197: =IF(OR(F197=selection),1,0) -> 0 | F197: =B197 -> CB | G197: =VLOOKUP(A197,Deliassage!$D$2:$J$75,6,FALSE) ->  | H197: =VLOOKUP(A197,Deliassage!$D$2:$J$75,7,FALSE) -> 0 | I197: =VLOOKUP(A197,Deliassage!$D$2:$J$75,3,FALSE) ->  | J197: =VLOOKUP(A197,Deliassage!$D$2:$J$75,4,FALSE) ->  | K197: =VLOOKUP(A197,Deliassage!$D$2:$J$75,5,FALSE) -> 
A198: CB UE | B198: CB | D198: UE | E198: =IF(OR(F198=selection),1,0) -> 0 | F198: CB | G198: =VLOOKUP(A198,Deliassage!$D$2:$J$75,6,FALSE) ->  | H198: =VLOOKUP(A198,Deliassage!$D$2:$J$75,7,FALSE) -> 0 | I198: =VLOOKUP(A198,Deliassage!$D$2:$J$75,3,FALSE) ->  | J198: =VLOOKUP(A198,Deliassage!$D$2:$J$75,4,FALSE) ->  | K198: =VLOOKUP(A198,Deliassage!$D$2:$J$75,5,FALSE) -> 
A199: Electron Intra réseau | B199: Electron | D199: Intra réseau | E199: =IF(OR(F199=selection),1,0) -> 0 | F199: Electron | G199: =VLOOKUP(A199,Deliassage!$D$2:$J$75,6,FALSE) ->  | H199: =VLOOKUP(A199,Deliassage!$D$2:$J$75,7,FALSE) -> 0 | I199: =VLOOKUP(A199,Deliassage!$D$2:$J$75,3,FALSE) -> 0 | J199: =VLOOKUP(A199,Deliassage!$D$2:$J$75,4,FALSE) -> 0 | K199: =VLOOKUP(A199,Deliassage!$D$2:$J$75,5,FALSE) -> 0
A200: Electron UE | B200: Electron | D200: UE | E200: =IF(OR(F200=selection),1,0) -> 0 | F200: Electron | G200: =VLOOKUP(A200,Deliassage!$D$2:$J$75,6,FALSE) ->  | H200: =VLOOKUP(A200,Deliassage!$D$2:$J$75,7,FALSE) -> 0 | I200: =VLOOKUP(A200,Deliassage!$D$2:$J$75,3,FALSE) -> 0 | J200: =VLOOKUP(A200,Deliassage!$D$2:$J$75,4,FALSE) -> 0 | K200: =VLOOKUP(A200,Deliassage!$D$2:$J$75,5,FALSE) -> 0
A201: Electron hors UE | B201: Electron | D201: hors UE | E201: =IF(OR(F201=selection),1,0) -> 0 | F201: Electron | G201: =VLOOKUP(A201,Deliassage!$D$2:$J$75,6,FALSE) ->  | H201: =VLOOKUP(A201,Deliassage!$D$2:$J$75,7,FALSE) -> 0 | I201: =VLOOKUP(A201,Deliassage!$D$2:$J$75,3,FALSE) -> 0 | J201: =VLOOKUP(A201,Deliassage!$D$2:$J$75,4,FALSE) -> 0 | K201: =VLOOKUP(A201,Deliassage!$D$2:$J$75,5,FALSE) -> 0
A202: Maestro Intra réseau | B202: Maestro | D202: Intra réseau | E202: =IF(OR(F202=selection),1,0) -> 0 | F202: Maestro | G202: =VLOOKUP(A202,Deliassage!$D$2:$J$75,6,FALSE) ->  | H202: =VLOOKUP(A202,Deliassage!$D$2:$J$75,7,FALSE) -> 0 | I202: =VLOOKUP(A202,Deliassage!$D$2:$J$75,3,FALSE) -> 0 | J202: =VLOOKUP(A202,Deliassage!$D$2:$J$75,4,FALSE) -> 0 | K202: =VLOOKUP(A202,Deliassage!$D$2:$J$75,5,FALSE) -> 0
A203: Maestro UE | B203: Maestro | D203: UE | E203: =IF(OR(F203=selection),1,0) -> 0 | F203: Maestro | G203: =VLOOKUP(A203,Deliassage!$D$2:$J$75,6,FALSE) ->  | H203: =VLOOKUP(A203,Deliassage!$D$2:$J$75,7,FALSE) -> 0 | I203: =VLOOKUP(A203,Deliassage!$D$2:$J$75,3,FALSE) -> 0 | J203: =VLOOKUP(A203,Deliassage!$D$2:$J$75,4,FALSE) -> 0 | K203: =VLOOKUP(A203,Deliassage!$D$2:$J$75,5,FALSE) -> 0
A204: Maestro hors UE | B204: Maestro | D204: hors UE | E204: =IF(OR(F204=selection),1,0) -> 0 | F204: Maestro | G204: =VLOOKUP(A204,Deliassage!$D$2:$J$75,6,FALSE) ->  | H204: =VLOOKUP(A204,Deliassage!$D$2:$J$75,7,FALSE) -> 0 | I204: =VLOOKUP(A204,Deliassage!$D$2:$J$75,3,FALSE) -> 0 | J204: =VLOOKUP(A204,Deliassage!$D$2:$J$75,4,FALSE) -> 0 | K204: =VLOOKUP(A204,Deliassage!$D$2:$J$75,5,FALSE) -> 0
A205: Mastercard UE | B205: Mastercard | D205: UE | E205: =IF(OR(F205=selection),1,0) -> 0 | F205: Mastercard | G205: =VLOOKUP(A205,Deliassage!$D$2:$J$75,6,FALSE) ->  | H205: =VLOOKUP(A205,Deliassage!$D$2:$J$75,7,FALSE) -> 0 | I205: =VLOOKUP(A205,Deliassage!$D$2:$J$75,3,FALSE) -> 0 | J205: =VLOOKUP(A205,Deliassage!$D$2:$J$75,4,FALSE) -> 0 | K205: =VLOOKUP(A205,Deliassage!$D$2:$J$75,5,FALSE) -> 0
A206: Mastercard hors UE | B206: Mastercard | D206: hors UE | E206: =IF(OR(F206=selection),1,0) -> 0 | F206: Mastercard | G206: =VLOOKUP(A206,Deliassage!$D$2:$J$75,6,FALSE) ->  | H206: =VLOOKUP(A206,Deliassage!$D$2:$J$75,7,FALSE) -> 0 | I206: =VLOOKUP(A206,Deliassage!$D$2:$J$75,3,FALSE) -> 0 | J206: =VLOOKUP(A206,Deliassage!$D$2:$J$75,4,FALSE) -> 0 | K206: =VLOOKUP(A206,Deliassage!$D$2:$J$75,5,FALSE) -> 0
A207: Visa Intra réseau | B207: Visa | D207: Intra réseau | E207: =IF(OR(F207=selection),1,0) -> 0 | F207: Visa | G207: =VLOOKUP(A207,Deliassage!$D$2:$J$75,6,FALSE) ->  | H207: =VLOOKUP(A207,Deliassage!$D$2:$J$75,7,FALSE) -> 0 | I207: =VLOOKUP(A207,Deliassage!$D$2:$J$75,3,FALSE) -> 0 | J207: =VLOOKUP(A207,Deliassage!$D$2:$J$75,4,FALSE) -> 0 | K207: =VLOOKUP(A207,Deliassage!$D$2:$J$75,5,FALSE) -> 0
A208: Visa Inter réseau | B208: Visa | D208: Inter réseau | E208: =IF(OR(F208=selection),1,0) -> 0 | F208: =B208 -> Visa | G208: =VLOOKUP(A208,Deliassage!$D$2:$J$75,6,FALSE) ->  | H208: =VLOOKUP(A208,Deliassage!$D$2:$J$75,7,FALSE) -> 0 | I208: =VLOOKUP(A208,Deliassage!$D$2:$J$75,3,FALSE) -> 0 | J208: =VLOOKUP(A208,Deliassage!$D$2:$J$75,4,FALSE) -> 0 | K208: =VLOOKUP(A208,Deliassage!$D$2:$J$75,5,FALSE) -> 0
A209: Visa UE | B209: Visa | D209: UE | E209: =IF(OR(F209=selection),1,0) -> 0 | F209: Visa | G209: =VLOOKUP(A209,Deliassage!$D$2:$J$75,6,FALSE) ->  | H209: =VLOOKUP(A209,Deliassage!$D$2:$J$75,7,FALSE) -> 0 | I209: =VLOOKUP(A209,Deliassage!$D$2:$J$75,3,FALSE) -> 0 | J209: =VLOOKUP(A209,Deliassage!$D$2:$J$75,4,FALSE) -> 0 | K209: =VLOOKUP(A209,Deliassage!$D$2:$J$75,5,FALSE) -> 0
A210: Visa hors UE | B210: Visa | D210: hors UE | E210: =IF(OR(F210=selection),1,0) -> 0 | F210: Visa | G210: =VLOOKUP(A210,Deliassage!$D$2:$J$75,6,FALSE) ->  | H210: =VLOOKUP(A210,Deliassage!$D$2:$J$75,7,FALSE) -> 0 | I210: =VLOOKUP(A210,Deliassage!$D$2:$J$75,3,FALSE) -> 0 | J210: =VLOOKUP(A210,Deliassage!$D$2:$J$75,4,FALSE) -> 0 | K210: =VLOOKUP(A210,Deliassage!$D$2:$J$75,5,FALSE) -> 0
A211: VPay Intra réseau | B211: VPay | D211: Intra réseau | E211: =IF(OR(F211=selection),1,0) -> 0 | F211: VPay | G211: =VLOOKUP(A211,Deliassage!$D$2:$J$75,6,FALSE) ->  | H211: =VLOOKUP(A211,Deliassage!$D$2:$J$75,7,FALSE) -> 0 | I211: =VLOOKUP(A211,Deliassage!$D$2:$J$75,3,FALSE) -> 0 | J211: =VLOOKUP(A211,Deliassage!$D$2:$J$75,4,FALSE) -> 0 | K211: =VLOOKUP(A211,Deliassage!$D$2:$J$75,5,FALSE) -> 0
A212: VPay UE | B212: VPay | D212: UE | E212: =IF(OR(F212=selection),1,0) -> 0 | F212: VPay | G212: =VLOOKUP(A212,Deliassage!$D$2:$J$75,6,FALSE) ->  | H212: =VLOOKUP(A212,Deliassage!$D$2:$J$75,7,FALSE) -> 0 | I212: =VLOOKUP(A212,Deliassage!$D$2:$J$75,3,FALSE) -> 0 | J212: =VLOOKUP(A212,Deliassage!$D$2:$J$75,4,FALSE) -> 0 | K212: =VLOOKUP(A212,Deliassage!$D$2:$J$75,5,FALSE) -> 0
A213: VPay hors UE | B213: VPay | D213: hors UE | E213: =IF(OR(F213=selection),1,0) -> 0 | F213: VPay | G213: =VLOOKUP(A213,Deliassage!$D$2:$J$75,6,FALSE) ->  | H213: =VLOOKUP(A213,Deliassage!$D$2:$J$75,7,FALSE) -> 0 | I213: =VLOOKUP(A213,Deliassage!$D$2:$J$75,3,FALSE) -> 0 | J213: =VLOOKUP(A213,Deliassage!$D$2:$J$75,4,FALSE) -> 0 | K213: =VLOOKUP(A213,Deliassage!$D$2:$J$75,5,FALSE) -> 0
G215: =SUM(G18:G134) -> 0
P217: =SUM(P18:P134) -> 

Sheet Calculs (hidden)
A3: concat | B3: Panier | C3: NB | D3: CA | E3: Zone | F3: Type de carte | G3: Type de debit | H3: Zone precise | I3: Reseau | J3: Marques | K3: Type de compte
A4: =E4&F4&G4&H4&I4&J4&K4 -> UEParticulierDDFrance hors intra réseauMastercardMastercardP | B4: =IF(AND(ISNA(VLOOKUP(A4,Clients!$B$3:$U$165,19,FALSE)),E4="UE"),$G$199,IF(AND(ISNA(VLOOKUP(A4,Clients!$B$3:$U$165,19,FALSE)),E4="Etranger hors UE"),$G$200,D4/C4)) -> 0 | C4: =IF(ISNA(VLOOKUP(A4,Clients!$B$3:$U$165,18,FALSE)),D4/B4,VLOOKUP(A4,Clients!$B$3:$U$165,18,FALSE)) ->  | D4: =IF(ISNA(VLOOKUP(A4,Clients!$B$3:$U$200,19,FALSE)),0.0000000001,VLOOKUP(A4,Clients!$B$3:$U$200,19,FALSE)) -> 1e-10 | E4: UE | F4: Particulier | G4: DD | H4: France hors intra réseau | I4: Mastercard | J4: Mastercard | K4: P
A5: =E5&F5&G5&H5&I5&J5&K5 -> Etranger hors UECommerciale BusinessDDInter régionalMastercardMastercardE | B5: =IF(AND(ISNA(VLOOKUP(A5,Clients!$B$3:$U$165,19,FALSE)),E5="UE"),$G$199,IF(AND(ISNA(VLOOKUP(A5,Clients!$B$3:$U$165,19,FALSE)),E5="Etranger hors UE"),$G$200,D5/C5)) -> 0 | C5: =IF(ISNA(VLOOKUP(A5,Clients!$B$3:$U$165,18,FALSE)),D5/B5,VLOOKUP(A5,Clients!$B$3:$U$165,18,FALSE)) ->  | D5: =IF(ISNA(VLOOKUP(A5,Clients!$B$3:$U$200,19,FALSE)),0.0000000001,VLOOKUP(A5,Clients!$B$3:$U$200,19,FALSE)) -> 1e-10 | E5: Etranger hors UE | F5: Commerciale Business | G5: DD | H5: Inter régional | I5: Mastercard | J5: Mastercard | K5: E
A6: Etranger hors UECommerciale CorporateDDInter régionalMastercardMastercardE | B6: =IF(AND(ISNA(VLOOKUP(A6,Clients!$B$3:$U$165,19,FALSE)),E6="UE"),$G$199,IF(AND(ISNA(VLOOKUP(A6,Clients!$B$3:$U$165,19,FALSE)),E6="Etranger hors UE"),$G$200,D6/C6)) -> 0 | C6: =IF(ISNA(VLOOKUP(A6,Clients!$B$3:$U$165,18,FALSE)),D6/B6,VLOOKUP(A6,Clients!$B$3:$U$165,18,FALSE)) ->  | D6: =IF(ISNA(VLOOKUP(A6,Clients!$B$3:$U$200,19,FALSE)),0.0000000001,VLOOKUP(A6,Clients!$B$3:$U$200,19,FALSE)) -> 1e-10 | E6: Etranger hors UE | F6: Commerciale Corporate | G6: DD | H6: Inter régional | I6: Mastercard | J6: Mastercard | K6: E
A7: Etranger hors UECommerciale BusinessDDInter régionalMastercardMastercardP | B7: =IF(AND(ISNA(VLOOKUP(A7,Clients!$B$3:$U$165,19,FALSE)),E7="UE"),$G$199,IF(AND(ISNA(VLOOKUP(A7,Clients!$B$3:$U$165,19,FALSE)),E7="Etranger hors UE"),$G$200,D7/C7)) -> 0 | C7: =IF(ISNA(VLOOKUP(A7,Clients!$B$3:$U$165,18,FALSE)),D7/B7,VLOOKUP(A7,Clients!$B$3:$U$165,18,FALSE)) ->  | D7: =IF(ISNA(VLOOKUP(A7,Clients!$B$3:$U$200,19,FALSE)),0.0000000001,VLOOKUP(A7,Clients!$B$3:$U$200,19,FALSE)) -> 1e-10 | E7: Etranger hors UE | F7: Commerciale Business | G7: DD | H7: Inter régional | I7: Mastercard | J7: Mastercard | K7: P
A8: Etranger hors UECommerciale CorporateDDInter régionalMastercardMastercardP | B8: =IF(AND(ISNA(VLOOKUP(A8,Clients!$B$3:$U$165,19,FALSE)),E8="UE"),$G$199,IF(AND(ISNA(VLOOKUP(A8,Clients!$B$3:$U$165,19,FALSE)),E8="Etranger hors UE"),$G$200,D8/C8)) -> 0 | C8: =IF(ISNA(VLOOKUP(A8,Clients!$B$3:$U$165,18,FALSE)),D8/B8,VLOOKUP(A8,Clients!$B$3:$U$165,18,FALSE)) ->  | D8: =IF(ISNA(VLOOKUP(A8,Clients!$B$3:$U$200,19,FALSE)),0.0000000001,VLOOKUP(A8,Clients!$B$3:$U$200,19,FALSE)) -> 1e-10 | E8: Etranger hors UE | F8: Commerciale Corporate | G8: DD | H8: Inter régional | I8: Mastercard | J8: Mastercard | K8: P
A9: Etranger hors UEParticulierDDInter régionalMastercardMastercardP | B9: =IF(AND(ISNA(VLOOKUP(A9,Clients!$B$3:$U$165,19,FALSE)),E9="UE"),$G$199,IF(AND(ISNA(VLOOKUP(A9,Clients!$B$3:$U$165,19,FALSE)),E9="Etranger hors UE"),$G$200,D9/C9)) -> 0 | C9: =IF(ISNA(VLOOKUP(A9,Clients!$B$3:$U$165,18,FALSE)),D9/B9,VLOOKUP(A9,Clients!$B$3:$U$165,18,FALSE)) ->  | D9: =IF(ISNA(VLOOKUP(A9,Clients!$B$3:$U$200,19,FALSE)),0.0000000001,VLOOKUP(A9,Clients!$B$3:$U$200,19,FALSE)) -> 1e-10 | E9: Etranger hors UE | F9: Particulier | G9: DD | H9: Inter régional | I9: Mastercard | J9: Mastercard | K9: P
A10: Etranger hors UECommerciale BusinessDIInter régionalMastercardMastercardE | B10: =IF(AND(ISNA(VLOOKUP(A10,Clients!$B$3:$U$165,19,FALSE)),E10="UE"),$G$199,IF(AND(ISNA(VLOOKUP(A10,Clients!$B$3:$U$165,19,FALSE)),E10="Etranger hors UE"),$G$200,D10/C10)) -> 0 | C10: =IF(ISNA(VLOOKUP(A10,Clients!$B$3:$U$165,18,FALSE)),D10/B10,VLOOKUP(A10,Clients!$B$3:$U$165,18,FALSE)) ->  | D10: =IF(ISNA(VLOOKUP(A10,Clients!$B$3:$U$200,19,FALSE)),0.0000000001,VLOOKUP(A10,Clients!$B$3:$U$200,19,FALSE)) -> 1e-10 | E10: Etranger hors UE | F10: Commerciale Business | G10: DI | H10: Inter régional | I10: Mastercard | J10: Mastercard | K10: E
A11: Etranger hors UECommerciale CorporateDIInter régionalMastercardMastercardE | B11: =IF(AND(ISNA(VLOOKUP(A11,Clients!$B$3:$U$165,19,FALSE)),E11="UE"),$G$199,IF(AND(ISNA(VLOOKUP(A11,Clients!$B$3:$U$165,19,FALSE)),E11="Etranger hors UE"),$G$200,D11/C11)) -> 0 | C11: =IF(ISNA(VLOOKUP(A11,Clients!$B$3:$U$165,18,FALSE)),D11/B11,VLOOKUP(A11,Clients!$B$3:$U$165,18,FALSE)) ->  | D11: =IF(ISNA(VLOOKUP(A11,Clients!$B$3:$U$200,19,FALSE)),0.0000000001,VLOOKUP(A11,Clients!$B$3:$U$200,19,FALSE)) -> 1e-10 | E11: Etranger hors UE | F11: Commerciale Corporate | G11: DI | H11: Inter régional | I11: Mastercard | J11: Mastercard | K11: E
A12: Etranger hors UECommerciale BusinessDIInter régionalMastercardMaestroP | B12: =IF(AND(ISNA(VLOOKUP(A12,Clients!$B$3:$U$165,19,FALSE)),E12="UE"),$G$199,IF(AND(ISNA(VLOOKUP(A12,Clients!$B$3:$U$165,19,FALSE)),E12="Etranger hors UE"),$G$200,D12/C12)) -> 0 | C12: =IF(ISNA(VLOOKUP(A12,Clients!$B$3:$U$165,18,FALSE)),D12/B12,VLOOKUP(A12,Clients!$B$3:$U$165,18,FALSE)) ->  | D12: =IF(ISNA(VLOOKUP(A12,Clients!$B$3:$U$200,19,FALSE)),0.0000000001,VLOOKUP(A12,Clients!$B$3:$U$200,19,FALSE)) -> 1e-10 | E12: Etranger hors UE | F12: Commerciale Business | G12: DI | H12: Inter régional | I12: Mastercard | J12: Maestro | K12: P
A13: Etranger hors UECommerciale BusinessDIInter régionalMastercardMastercardP | B13: =IF(AND(ISNA(VLOOKUP(A13,Clients!$B$3:$U$165,19,FALSE)),E13="UE"),$G$199,IF(AND(ISNA(VLOOKUP(A13,Clients!$B$3:$U$165,19,FALSE)),E13="Etranger hors UE"),$G$200,D13/C13)) -> 0 | C13: =IF(ISNA(VLOOKUP(A13,Clients!$B$3:$U$165,18,FALSE)),D13/B13,VLOOKUP(A13,Clients!$B$3:$U$165,18,FALSE)) ->  | D13: =IF(ISNA(VLOOKUP(A13,Clients!$B$3:$U$200,19,FALSE)),0.0000000001,VLOOKUP(A13,Clients!$B$3:$U$200,19,FALSE)) -> 1e-10 | E13: Etranger hors UE | F13: Commerciale Business | G13: DI | H13: Inter régional | I13: Mastercard | J13: Mastercard | K13: P
A14: Etranger hors UECommerciale CorporateDIInter régionalMastercardMaestroP | B14: =IF(AND(ISNA(VLOOKUP(A14,Clients!$B$3:$U$165,19,FALSE)),E14="UE"),$G$199,IF(AND(ISNA(VLOOKUP(A14,Clients!$B$3:$U$165,19,FALSE)),E14="Etranger hors UE"),$G$200,D14/C14)) -> 0 | C14: =IF(ISNA(VLOOKUP(A14,Clients!$B$3:$U$165,18,FALSE)),D14/B14,VLOOKUP(A14,Clients!$B$3:$U$165,18,FALSE)) ->  | D14: =IF(ISNA(VLOOKUP(A14,Clients!$B$3:$U$200,19,FALSE)),0.0000000001,VLOOKUP(A14,Clients!$B$3:$U$200,19,FALSE)) -> 1e-10 | E14: Etranger hors UE | F14: Commerciale Corporate | G14: DI | H14: Inter régional | I14: Mastercard | J14: Maestro | K14: P
A15: Etranger hors UECommerciale CorporateDIInter régionalMastercardMastercardP | B15: =IF(AND(ISNA(VLOOKUP(A15,Clients!$B$3:$U$165,19,FALSE)),E15="UE"),$G$199,IF(AND(ISNA(VLOOKUP(A15,Clients!$B$3:$U$165,19,FALSE)),E15="Etranger hors UE"),$G$200,D15/C15)) -> 0 | C15: =IF(ISNA(VLOOKUP(A15,Clients!$B$3:$U$165,18,FALSE)),D15/B15,VLOOKUP(A15,Clients!$B$3:$U$165,18,FALSE)) ->  | D15: =IF(ISNA(VLOOKUP(A15,Clients!$B$3:$U$200,19,FALSE)),0.0000000001,VLOOKUP(A15,Clients!$B$3:$U$200,19,FALSE)) -> 1e-10 | E15: Etranger hors UE | F15: Commerciale Corporate | G15: DI | H15: Inter régional | I15: Mastercard | J15: Mastercard | K15: P
A16: Etranger hors UEParticulierDIInter régionalMastercardMaestroP | B16: =IF(AND(ISNA(VLOOKUP(A16,Clients!$B$3:$U$165,19,FALSE)),E16="UE"),$G$199,IF(AND(ISNA(VLOOKUP(A16,Clients!$B$3:$U$165,19,FALSE)),E16="Etranger hors UE"),$G$200,D16/C16)) -> 0 | C16: =IF(ISNA(VLOOKUP(A16,Clients!$B$3:$U$165,18,FALSE)),D16/B16,VLOOKUP(A16,Clients!$B$3:$U$165,18,FALSE)) ->  | D16: =IF(ISNA(VLOOKUP(A16,Clients!$B$3:$U$200,19,FALSE)),0.0000000001,VLOOKUP(A16,Clients!$B$3:$U$200,19,FALSE)) -> 1e-10 | E16: Etranger hors UE | F16: Particulier | G16: DI | H16: Inter régional | I16: Mastercard | J16: Maestro | K16: P
A17: Etranger hors UEParticulierDIInter régionalMastercardMastercardP | B17: =IF(AND(ISNA(VLOOKUP(A17,Clients!$B$3:$U$165,19,FALSE)),E17="UE"),$G$199,IF(AND(ISNA(VLOOKUP(A17,Clients!$B$3:$U$165,19,FALSE)),E17="Etranger hors UE"),$G$200,D17/C17)) -> 0 | C17: =IF(ISNA(VLOOKUP(A17,Clients!$B$3:$U$165,18,FALSE)),D17/B17,VLOOKUP(A17,Clients!$B$3:$U$165,18,FALSE)) ->  | D17: =IF(ISNA(VLOOKUP(A17,Clients!$B$3:$U$200,19,FALSE)),0.0000000001,VLOOKUP(A17,Clients!$B$3:$U$200,19,FALSE)) -> 1e-10 | E17: Etranger hors UE | F17: Particulier | G17: DI | H17: Inter régional | I17: Mastercard | J17: Mastercard | K17: P
A18: Etranger hors UECommerciale BusinessDDIntra régional hors UEMastercardMastercardE | B18: =IF(AND(ISNA(VLOOKUP(A18,Clients!$B$3:$U$165,19,FALSE)),E18="UE"),$G$199,IF(AND(ISNA(VLOOKUP(A18,Clients!$B$3:$U$165,19,FALSE)),E18="Etranger hors UE"),$G$200,D18/C18)) -> 0 | C18: =IF(ISNA(VLOOKUP(A18,Clients!$B$3:$U$165,18,FALSE)),D18/B18,VLOOKUP(A18,Clients!$B$3:$U$165,18,FALSE)) ->  | D18: =IF(ISNA(VLOOKUP(A18,Clients!$B$3:$U$200,19,FALSE)),0.0000000001,VLOOKUP(A18,Clients!$B$3:$U$200,19,FALSE)) -> 1e-10 | E18: Etranger hors UE | F18: Commerciale Business | G18: DD | H18: Intra régional hors UE | I18: Mastercard | J18: Mastercard | K18: E
A19: Etranger hors UECommerciale CorporateDDIntra régional hors UEMastercardMastercardE | B19: =IF(AND(ISNA(VLOOKUP(A19,Clients!$B$3:$U$165,19,FALSE)),E19="UE"),$G$199,IF(AND(ISNA(VLOOKUP(A19,Clients!$B$3:$U$165,19,FALSE)),E19="Etranger hors UE"),$G$200,D19/C19)) -> 0 | C19: =IF(ISNA(VLOOKUP(A19,Clients!$B$3:$U$165,18,FALSE)),D19/B19,VLOOKUP(A19,Clients!$B$3:$U$165,18,FALSE)) ->  | D19: =IF(ISNA(VLOOKUP(A19,Clients!$B$3:$U$200,19,FALSE)),0.0000000001,VLOOKUP(A19,Clients!$B$3:$U$200,19,FALSE)) -> 1e-10 | E19: Etranger hors UE | F19: Commerciale Corporate | G19: DD | H19: Intra régional hors UE | I19: Mastercard | J19: Mastercard | K19: E
A20: Etranger hors UECommerciale BusinessDDIntra régional hors UEMastercardMastercardP | B20: =IF(AND(ISNA(VLOOKUP(A20,Clients!$B$3:$U$165,19,FALSE)),E20="UE"),$G$199,IF(AND(ISNA(VLOOKUP(A20,Clients!$B$3:$U$165,19,FALSE)),E20="Etranger hors UE"),$G$200,D20/C20)) -> 0 | C20: =IF(ISNA(VLOOKUP(A20,Clients!$B$3:$U$165,18,FALSE)),D20/B20,VLOOKUP(A20,Clients!$B$3:$U$165,18,FALSE)) ->  | D20: =IF(ISNA(VLOOKUP(A20,Clients!$B$3:$U$200,19,FALSE)),0.0000000001,VLOOKUP(A20,Clients!$B$3:$U$200,19,FALSE)) -> 1e-10 | E20: Etranger hors UE | F20: Commerciale Business | G20: DD | H20: Intra régional hors UE | I20: Mastercard | J20: Mastercard | K20: P
A21: Etranger hors UECommerciale CorporateDDIntra régional hors UEMastercardMastercardP | B21: =IF(AND(ISNA(VLOOKUP(A21,Clients!$B$3:$U$165,19,FALSE)),E21="UE"),$G$199,IF(AND(ISNA(VLOOKUP(A21,Clients!$B$3:$U$165,19,FALSE)),E21="Etranger hors UE"),$G$200,D21/C21)) -> 0 | C21: =IF(ISNA(VLOOKUP(A21,Clients!$B$3:$U$165,18,FALSE)),D21/B21,VLOOKUP(A21,Clients!$B$3:$U$165,18,FALSE)) ->  | D21: =IF(ISNA(VLOOKUP(A21,Clients!$B$3:$U$200,19,FALSE)),0.0000000001,VLOOKUP(A21,Clients!$B$3:$U$200,19,FALSE)) -> 1e-10 | E21: Etranger hors UE | F21: Commerciale Corporate | G21: DD | H21: Intra régional hors UE | I21: Mastercard | J21: Mastercard | K21: P
A22: Etranger hors UEParticulierDDIntra régional hors UEMastercardMastercardP | B22: =IF(AND(ISNA(VLOOKUP(A22,Clients!$B$3:$U$165,19,FALSE)),E22="UE"),$G$199,IF(AND(ISNA(VLOOKUP(A22,Clients!$B$3:$U$165,19,FALSE)),E22="Etranger hors UE"),$G$200,D22/C22)) -> 0 | C22: =IF(ISNA(VLOOKUP(A22,Clients!$B$3:$U$165,18,FALSE)),D22/B22,VLOOKUP(A22,Clients!$B$3:$U$165,18,FALSE)) ->  | D22: =IF(ISNA(VLOOKUP(A22,Clients!$B$3:$U$200,19,FALSE)),0.0000000001,VLOOKUP(A22,Clients!$B$3:$U$200,19,FALSE)) -> 1e-10 | E22: Etranger hors UE | F22: Particulier | G22: DD | H22: Intra régional hors UE | I22: Mastercard | J22: Mastercard | K22: P
A23: Etranger hors UECommerciale BusinessDIIntra régional hors UEMastercardMastercardE | B23: =IF(AND(ISNA(VLOOKUP(A23,Clients!$B$3:$U$165,19,FALSE)),E23="UE"),$G$199,IF(AND(ISNA(VLOOKUP(A23,Clients!$B$3:$U$165,19,FALSE)),E23="Etranger hors UE"),$G$200,D23/C23)) -> 0 | C23: =IF(ISNA(VLOOKUP(A23,Clients!$B$3:$U$165,18,FALSE)),D23/B23,VLOOKUP(A23,Clients!$B$3:$U$165,18,FALSE)) ->  | D23: =IF(ISNA(VLOOKUP(A23,Clients!$B$3:$U$200,19,FALSE)),0.0000000001,VLOOKUP(A23,Clients!$B$3:$U$200,19,FALSE)) -> 1e-10 | E23: Etranger hors UE | F23: Commerciale Business | G23: DI | H23: Intra régional hors UE | I23: Mastercard | J23: Mastercard | K23: E
A24: Etranger hors UECommerciale CorporateDIIntra régional hors UEMastercardMastercardE | B24: =IF(AND(ISNA(VLOOKUP(A24,Clients!$B$3:$U$165,19,FALSE)),E24="UE"),$G$199,IF(AND(ISNA(VLOOKUP(A24,Clients!$B$3:$U$165,19,FALSE)),E24="Etranger hors UE"),$G$200,D24/C24)) -> 0 | C24: =IF(ISNA(VLOOKUP(A24,Clients!$B$3:$U$165,18,FALSE)),D24/B24,VLOOKUP(A24,Clients!$B$3:$U$165,18,FALSE)) ->  | D24: =IF(ISNA(VLOOKUP(A24,Clients!$B$3:$U$200,19,FALSE)),0.0000000001,VLOOKUP(A24,Clients!$B$3:$U$200,19,FALSE)) -> 1e-10 | E24: Etranger hors UE | F24: Commerciale Corporate | G24: DI | H24: Intra régional hors UE | I24: Mastercard | J24: Mastercard | K24: E
A25: Etranger hors UECommerciale BusinessDIIntra régional hors UEMastercardMaestroP | B25: =IF(AND(ISNA(VLOOKUP(A25,Clients!$B$3:$U$165,19,FALSE)),E25="UE"),$G$199,IF(AND(ISNA(VLOOKUP(A25,Clients!$B$3:$U$165,19,FALSE)),E25="Etranger hors UE"),$G$200,D25/C25)) -> 0 | C25: =IF(ISNA(VLOOKUP(A25,Clients!$B$3:$U$165,18,FALSE)),D25/B25,VLOOKUP(A25,Clients!$B$3:$U$165,18,FALSE)) ->  | D25: =IF(ISNA(VLOOKUP(A25,Clients!$B$3:$U$200,19,FALSE)),0.0000000001,VLOOKUP(A25,Clients!$B$3:$U$200,19,FALSE)) -> 1e-10 | E25: Etranger hors UE | F25: Commerciale Business | G25: DI | H25: Intra régional hors UE | I25: Mastercard | J25: Maestro | K25: P
A26: Etranger hors UECommerciale BusinessDIIntra régional hors UEMastercardMastercardP | B26: =IF(AND(ISNA(VLOOKUP(A26,Clients!$B$3:$U$165,19,FALSE)),E26="UE"),$G$199,IF(AND(ISNA(VLOOKUP(A26,Clients!$B$3:$U$165,19,FALSE)),E26="Etranger hors UE"),$G$200,D26/C26)) -> 0 | C26: =IF(ISNA(VLOOKUP(A26,Clients!$B$3:$U$165,18,FALSE)),D26/B26,VLOOKUP(A26,Clients!$B$3:$U$165,18,FALSE)) ->  | D26: =IF(ISNA(VLOOKUP(A26,Clients!$B$3:$U$200,19,FALSE)),0.0000000001,VLOOKUP(A26,Clients!$B$3:$U$200,19,FALSE)) -> 1e-10 | E26: Etranger hors UE | F26: Commerciale Business | G26: DI | H26: Intra régional hors UE | I26: Mastercard | J26: Mastercard | K26: P
A27: Etranger hors UECommerciale CorporateDIIntra régional hors UEMastercardMaestroP | B27: =IF(AND(ISNA(VLOOKUP(A27,Clients!$B$3:$U$165,19,FALSE)),E27="UE"),$G$199,IF(AND(ISNA(VLOOKUP(A27,Clients!$B$3:$U$165,19,FALSE)),E27="Etranger hors UE"),$G$200,D27/C27)) -> 0 | C27: =IF(ISNA(VLOOKUP(A27,Clients!$B$3:$U$165,18,FALSE)),D27/B27,VLOOKUP(A27,Clients!$B$3:$U$165,18,FALSE)) ->  | D27: =IF(ISNA(VLOOKUP(A27,Clients!$B$3:$U$200,19,FALSE)),0.0000000001,VLOOKUP(A27,Clients!$B$3:$U$200,19,FALSE)) -> 1e-10 | E27: Etranger hors UE | F27: Commerciale Corporate | G27: DI | H27: Intra régional hors UE | I27: Mastercard | J27: Maestro | K27: P
A28: Etranger hors UECommerciale CorporateDIIntra régional hors UEMastercardMastercardP | B28: =IF(AND(ISNA(VLOOKUP(A28,Clients!$B$3:$U$165,19,FALSE)),E28="UE"),$G$199,IF(AND(ISNA(VLOOKUP(A28,Clients!$B$3:$U$165,19,FALSE)),E28="Etranger hors UE"),$G$200,D28/C28)) -> 0 | C28: =IF(ISNA(VLOOKUP(A28,Clients!$B$3:$U$165,18,FALSE)),D28/B28,VLOOKUP(A28,Clients!$B$3:$U$165,18,FALSE)) ->  | D28: =IF(ISNA(VLOOKUP(A28,Clients!$B$3:$U$200,19,FALSE)),0.0000000001,VLOOKUP(A28,Clients!$B$3:$U$200,19,FALSE)) -> 1e-10 | E28: Etranger hors UE | F28: Commerciale Corporate | G28: DI | H28: Intra régional hors UE | I28: Mastercard | J28: Mastercard | K28: P
A29: Etranger hors UEParticulierDIIntra régional hors UEMastercardMaestroP | B29: =IF(AND(ISNA(VLOOKUP(A29,Clients!$B$3:$U$165,19,FALSE)),E29="UE"),$G$199,IF(AND(ISNA(VLOOKUP(A29,Clients!$B$3:$U$165,19,FALSE)),E29="Etranger hors UE"),$G$200,D29/C29)) -> 0 | C29: =IF(ISNA(VLOOKUP(A29,Clients!$B$3:$U$165,18,FALSE)),D29/B29,VLOOKUP(A29,Clients!$B$3:$U$165,18,FALSE)) ->  | D29: =IF(ISNA(VLOOKUP(A29,Clients!$B$3:$U$200,19,FALSE)),0.0000000001,VLOOKUP(A29,Clients!$B$3:$U$200,19,FALSE)) -> 1e-10 | E29: Etranger hors UE | F29: Particulier | G29: DI | H29: Intra régional hors UE | I29: Mastercard | J29: Maestro | K29: P
A30: Etranger hors UEParticulierDIIntra régional hors UEMastercardMastercardP | B30: =IF(AND(ISNA(VLOOKUP(A30,Clients!$B$3:$U$165,19,FALSE)),E30="UE"),$G$199,IF(AND(ISNA(VLOOKUP(A30,Clients!$B$3:$U$165,19,FALSE)),E30="Etranger hors UE"),$G$200,D30/C30)) -> 0 | C30: =IF(ISNA(VLOOKUP(A30,Clients!$B$3:$U$165,18,FALSE)),D30/B30,VLOOKUP(A30,Clients!$B$3:$U$165,18,FALSE)) ->  | D30: =IF(ISNA(VLOOKUP(A30,Clients!$B$3:$U$200,19,FALSE)),0.0000000001,VLOOKUP(A30,Clients!$B$3:$U$200,19,FALSE)) -> 1e-10 | E30: Etranger hors UE | F30: Particulier | G30: DI | H30: Intra régional hors UE | I30: Mastercard | J30: Mastercard | K30: P
A31: UECommerciale BusinessDDUE hors FranceMastercardMastercardE | B31: =IF(AND(ISNA(VLOOKUP(A31,Clients!$B$3:$U$165,19,FALSE)),E31="UE"),$G$199,IF(AND(ISNA(VLOOKUP(A31,Clients!$B$3:$U$165,19,FALSE)),E31="Etranger hors UE"),$G$200,D31/C31)) -> 0 | C31: =IF(ISNA(VLOOKUP(A31,Clients!$B$3:$U$165,18,FALSE)),D31/B31,VLOOKUP(A31,Clients!$B$3:$U$165,18,FALSE)) ->  | D31: =IF(ISNA(VLOOKUP(A31,Clients!$B$3:$U$200,19,FALSE)),0.0000000001,VLOOKUP(A31,Clients!$B$3:$U$200,19,FALSE)) -> 1e-10 | E31: UE | F31: Commerciale Business | G31: DD | H31: UE hors France | I31: Mastercard | J31: Mastercard | K31: E
A32: UECommerciale CorporateDDUE hors FranceMastercardMastercardE | B32: =IF(AND(ISNA(VLOOKUP(A32,Clients!$B$3:$U$165,19,FALSE)),E32="UE"),$G$199,IF(AND(ISNA(VLOOKUP(A32,Clients!$B$3:$U$165,19,FALSE)),E32="Etranger hors UE"),$G$200,D32/C32)) -> 0 | C32: =IF(ISNA(VLOOKUP(A32,Clients!$B$3:$U$165,18,FALSE)),D32/B32,VLOOKUP(A32,Clients!$B$3:$U$165,18,FALSE)) ->  | D32: =IF(ISNA(VLOOKUP(A32,Clients!$B$3:$U$200,19,FALSE)),0.0000000001,VLOOKUP(A32,Clients!$B$3:$U$200,19,FALSE)) -> 1e-10 | E32: UE | F32: Commerciale Corporate | G32: DD | H32: UE hors France | I32: Mastercard | J32: Mastercard | K32: E
A33: UECommerciale BusinessDDUE hors FranceMastercardMastercardP | B33: =IF(AND(ISNA(VLOOKUP(A33,Clients!$B$3:$U$165,19,FALSE)),E33="UE"),$G$199,IF(AND(ISNA(VLOOKUP(A33,Clients!$B$3:$U$165,19,FALSE)),E33="Etranger hors UE"),$G$200,D33/C33)) -> 0 | C33: =IF(ISNA(VLOOKUP(A33,Clients!$B$3:$U$165,18,FALSE)),D33/B33,VLOOKUP(A33,Clients!$B$3:$U$165,18,FALSE)) ->  | D33: =IF(ISNA(VLOOKUP(A33,Clients!$B$3:$U$200,19,FALSE)),0.0000000001,VLOOKUP(A33,Clients!$B$3:$U$200,19,FALSE)) -> 1e-10 | E33: UE | F33: Commerciale Business | G33: DD | H33: UE hors France | I33: Mastercard | J33: Mastercard | K33: P
A34: UECommerciale CorporateDDUE hors FranceMastercardMastercardP | B34: =IF(AND(ISNA(VLOOKUP(A34,Clients!$B$3:$U$165,19,FALSE)),E34="UE"),$G$199,IF(AND(ISNA(VLOOKUP(A34,Clients!$B$3:$U$165,19,FALSE)),E34="Etranger hors UE"),$G$200,D34/C34)) -> 0 | C34: =IF(ISNA(VLOOKUP(A34,Clients!$B$3:$U$165,18,FALSE)),D34/B34,VLOOKUP(A34,Clients!$B$3:$U$165,18,FALSE)) ->  | D34: =IF(ISNA(VLOOKUP(A34,Clients!$B$3:$U$200,19,FALSE)),0.0000000001,VLOOKUP(A34,Clients!$B$3:$U$200,19,FALSE)) -> 1e-10 | E34: UE | F34: Commerciale Corporate | G34: DD | H34: UE hors France | I34: Mastercard | J34: Mastercard | K34: P
A35: UEParticulierDDUE hors FranceMastercardMaestroP | B35: =IF(AND(ISNA(VLOOKUP(A35,Clients!$B$3:$U$165,19,FALSE)),E35="UE"),$G$199,IF(AND(ISNA(VLOOKUP(A35,Clients!$B$3:$U$165,19,FALSE)),E35="Etranger hors UE"),$G$200,D35/C35)) -> 0 | C35: =IF(ISNA(VLOOKUP(A35,Clients!$B$3:$U$165,18,FALSE)),D35/B35,VLOOKUP(A35,Clients!$B$3:$U$165,18,FALSE)) ->  | D35: =IF(ISNA(VLOOKUP(A35,Clients!$B$3:$U$200,19,FALSE)),0.0000000001,VLOOKUP(A35,Clients!$B$3:$U$200,19,FALSE)) -> 1e-10 | E35: UE | F35: Particulier | G35: DD | H35: UE hors France | I35: Mastercard | J35: Maestro | K35: P
A36: UEParticulierDDUE hors FranceMastercardMastercardP | B36: =IF(AND(ISNA(VLOOKUP(A36,Clients!$B$3:$U$165,19,FALSE)),E36="UE"),$G$199,IF(AND(ISNA(VLOOKUP(A36,Clients!$B$3:$U$165,19,FALSE)),E36="Etranger hors UE"),$G$200,D36/C36)) -> 0 | C36: =IF(ISNA(VLOOKUP(A36,Clients!$B$3:$U$165,18,FALSE)),D36/B36,VLOOKUP(A36,Clients!$B$3:$U$165,18,FALSE)) ->  | D36: =IF(ISNA(VLOOKUP(A36,Clients!$B$3:$U$200,19,FALSE)),0.0000000001,VLOOKUP(A36,Clients!$B$3:$U$200,19,FALSE)) -> 1e-10 | E36: UE | F36: Particulier | G36: DD | H36: UE hors France | I36: Mastercard | J36: Mastercard | K36: P
A37: UECommerciale BusinessDIUE hors FranceMastercardMaestroE | B37: =IF(AND(ISNA(VLOOKUP(A37,Clients!$B$3:$U$165,19,FALSE)),E37="UE"),$G$199,IF(AND(ISNA(VLOOKUP(A37,Clients!$B$3:$U$165,19,FALSE)),E37="Etranger hors UE"),$G$200,D37/C37)) -> 0 | C37: =IF(ISNA(VLOOKUP(A37,Clients!$B$3:$U$165,18,FALSE)),D37/B37,VLOOKUP(A37,Clients!$B$3:$U$165,18,FALSE)) ->  | D37: =IF(ISNA(VLOOKUP(A37,Clients!$B$3:$U$200,19,FALSE)),0.0000000001,VLOOKUP(A37,Clients!$B$3:$U$200,19,FALSE)) -> 1e-10 | E37: UE | F37: Commerciale Business | G37: DI | H37: UE hors France | I37: Mastercard | J37: Maestro | K37: E
A38: UECommerciale BusinessDIUE hors FranceMastercardMastercardE | B38: =IF(AND(ISNA(VLOOKUP(A38,Clients!$B$3:$U$165,19,FALSE)),E38="UE"),$G$199,IF(AND(ISNA(VLOOKUP(A38,Clients!$B$3:$U$165,19,FALSE)),E38="Etranger hors UE"),$G$200,D38/C38)) -> 0 | C38: =IF(ISNA(VLOOKUP(A38,Clients!$B$3:$U$165,18,FALSE)),D38/B38,VLOOKUP(A38,Clients!$B$3:$U$165,18,FALSE)) ->  | D38: =IF(ISNA(VLOOKUP(A38,Clients!$B$3:$U$200,19,FALSE)),0.0000000001,VLOOKUP(A38,Clients!$B$3:$U$200,19,FALSE)) -> 1e-10 | E38: UE | F38: Commerciale Business | G38: DI | H38: UE hors France | I38: Mastercard | J38: Mastercard | K38: E
A39: UECommerciale CorporateDIUE hors FranceMastercardMaestroE | B39: =IF(AND(ISNA(VLOOKUP(A39,Clients!$B$3:$U$165,19,FALSE)),E39="UE"),$G$199,IF(AND(ISNA(VLOOKUP(A39,Clients!$B$3:$U$165,19,FALSE)),E39="Etranger hors UE"),$G$200,D39/C39)) -> 0 | C39: =IF(ISNA(VLOOKUP(A39,Clients!$B$3:$U$165,18,FALSE)),D39/B39,VLOOKUP(A39,Clients!$B$3:$U$165,18,FALSE)) ->  | D39: =IF(ISNA(VLOOKUP(A39,Clients!$B$3:$U$200,19,FALSE)),0.0000000001,VLOOKUP(A39,Clients!$B$3:$U$200,19,FALSE)) -> 1e-10 | E39: UE | F39: Commerciale Corporate | G39: DI | H39: UE hors France | I39: Mastercard | J39: Maestro | K39: E
A40: UECommerciale CorporateDIUE hors FranceMastercardMastercardE | B40: =IF(AND(ISNA(VLOOKUP(A40,Clients!$B$3:$U$165,19,FALSE)),E40="UE"),$G$199,IF(AND(ISNA(VLOOKUP(A40,Clients!$B$3:$U$165,19,FALSE)),E40="Etranger hors UE"),$G$200,D40/C40)) -> 0 | C40: =IF(ISNA(VLOOKUP(A40,Clients!$B$3:$U$165,18,FALSE)),D40/B40,VLOOKUP(A40,Clients!$B$3:$U$165,18,FALSE)) ->  | D40: =IF(ISNA(VLOOKUP(A40,Clients!$B$3:$U$200,19,FALSE)),0.0000000001,VLOOKUP(A40,Clients!$B$3:$U$200,19,FALSE)) -> 1e-10 | E40: UE | F40: Commerciale Corporate | G40: DI | H40: UE hors France | I40: Mastercard | J40: Mastercard | K40: E
A41: UECommerciale BusinessDIUE hors FranceMastercardMaestroP | B41: =IF(AND(ISNA(VLOOKUP(A41,Clients!$B$3:$U$165,19,FALSE)),E41="UE"),$G$199,IF(AND(ISNA(VLOOKUP(A41,Clients!$B$3:$U$165,19,FALSE)),E41="Etranger hors UE"),$G$200,D41/C41)) -> 0 | C41: =IF(ISNA(VLOOKUP(A41,Clients!$B$3:$U$165,18,FALSE)),D41/B41,VLOOKUP(A41,Clients!$B$3:$U$165,18,FALSE)) ->  | D41: =IF(ISNA(VLOOKUP(A41,Clients!$B$3:$U$200,19,FALSE)),0.0000000001,VLOOKUP(A41,Clients!$B$3:$U$200,19,FALSE)) -> 1e-10 | E41: UE | F41: Commerciale Business | G41: DI | H41: UE hors France | I41: Mastercard | J41: Maestro | K41: P
A42: UECommerciale BusinessDIUE hors FranceMastercardMastercardP | B42: =IF(AND(ISNA(VLOOKUP(A42,Clients!$B$3:$U$165,19,FALSE)),E42="UE"),$G$199,IF(AND(ISNA(VLOOKUP(A42,Clients!$B$3:$U$165,19,FALSE)),E42="Etranger hors UE"),$G$200,D42/C42)) -> 0 | C42: =IF(ISNA(VLOOKUP(A42,Clients!$B$3:$U$165,18,FALSE)),D42/B42,VLOOKUP(A42,Clients!$B$3:$U$165,18,FALSE)) ->  | D42: =IF(ISNA(VLOOKUP(A42,Clients!$B$3:$U$200,19,FALSE)),0.0000000001,VLOOKUP(A42,Clients!$B$3:$U$200,19,FALSE)) -> 1e-10 | E42: UE | F42: Commerciale Business | G42: DI | H42: UE hors France | I42: Mastercard | J42: Mastercard | K42: P
A43: UECommerciale CorporateDIUE hors FranceMastercardMaestroP | B43: =IF(AND(ISNA(VLOOKUP(A43,Clients!$B$3:$U$165,19,FALSE)),E43="UE"),$G$199,IF(AND(ISNA(VLOOKUP(A43,Clients!$B$3:$U$165,19,FALSE)),E43="Etranger hors UE"),$G$200,D43/C43)) -> 0 | C43: =IF(ISNA(VLOOKUP(A43,Clients!$B$3:$U$165,18,FALSE)),D43/B43,VLOOKUP(A43,Clients!$B$3:$U$165,18,FALSE)) ->  | D43: =IF(ISNA(VLOOKUP(A43,Clients!$B$3:$U$200,19,FALSE)),0.0000000001,VLOOKUP(A43,Clients!$B$3:$U$200,19,FALSE)) -> 1e-10 | E43: UE | F43: Commerciale Corporate | G43: DI | H43: UE hors France | I43: Mastercard | J43: Maestro | K43: P
A44: UECommerciale CorporateDIUE hors FranceMastercardMastercardP | B44: =IF(AND(ISNA(VLOOKUP(A44,Clients!$B$3:$U$165,19,FALSE)),E44="UE"),$G$199,IF(AND(ISNA(VLOOKUP(A44,Clients!$B$3:$U$165,19,FALSE)),E44="Etranger hors UE"),$G$200,D44/C44)) -> 0 | C44: =IF(ISNA(VLOOKUP(A44,Clients!$B$3:$U$165,18,FALSE)),D44/B44,VLOOKUP(A44,Clients!$B$3:$U$165,18,FALSE)) ->  | D44: =IF(ISNA(VLOOKUP(A44,Clients!$B$3:$U$200,19,FALSE)),0.0000000001,VLOOKUP(A44,Clients!$B$3:$U$200,19,FALSE)) -> 1e-10 | E44: UE | F44: Commerciale Corporate | G44: DI | H44: UE hors France | I44: Mastercard | J44: Mastercard | K44: P
A45: UEParticulierDIUE hors FranceMastercardMaestroP | B45: =IF(AND(ISNA(VLOOKUP(A45,Clients!$B$3:$U$165,19,FALSE)),E45="UE"),$G$199,IF(AND(ISNA(VLOOKUP(A45,Clients!$B$3:$U$165,19,FALSE)),E45="Etranger hors UE"),$G$200,D45/C45)) -> 0 | C45: =IF(ISNA(VLOOKUP(A45,Clients!$B$3:$U$165,18,FALSE)),D45/B45,VLOOKUP(A45,Clients!$B$3:$U$165,18,FALSE)) ->  | D45: =IF(ISNA(VLOOKUP(A45,Clients!$B$3:$U$200,19,FALSE)),0.0000000001,VLOOKUP(A45,Clients!$B$3:$U$200,19,FALSE)) -> 1e-10 | E45: UE | F45: Particulier | G45: DI | H45: UE hors France | I45: Mastercard | J45: Maestro | K45: P
A46: UEParticulierDIUE hors FranceMastercardMastercardP | B46: =IF(AND(ISNA(VLOOKUP(A46,Clients!$B$3:$U$165,19,FALSE)),E46="UE"),$G$199,IF(AND(ISNA(VLOOKUP(A46,Clients!$B$3:$U$165,19,FALSE)),E46="Etranger hors UE"),$G$200,D46/C46)) -> 0 | C46: =IF(ISNA(VLOOKUP(A46,Clients!$B$3:$U$165,18,FALSE)),D46/B46,VLOOKUP(A46,Clients!$B$3:$U$165,18,FALSE)) ->  | D46: =IF(ISNA(VLOOKUP(A46,Clients!$B$3:$U$200,19,FALSE)),0.0000000001,VLOOKUP(A46,Clients!$B$3:$U$200,19,FALSE)) -> 1e-10 | E46: UE | F46: Particulier | G46: DI | H46: UE hors France | I46: Mastercard | J46: Mastercard | K46: P
A47: UECommerciale BusinessDDFrance hors intra réseauMastercard - CBMastercard - CBE | B47: =IF(AND(ISNA(VLOOKUP(A47,Clients!$B$3:$U$165,19,FALSE)),E47="UE"),$G$199,IF(AND(ISNA(VLOOKUP(A47,Clients!$B$3:$U$165,19,FALSE)),E47="Etranger hors UE"),$G$200,D47/C47)) -> 0 | C47: =IF(ISNA(VLOOKUP(A47,Clients!$B$3:$U$165,18,FALSE)),D47/B47,VLOOKUP(A47,Clients!$B$3:$U$165,18,FALSE)) ->  | D47: =IF(ISNA(VLOOKUP(A47,Clients!$B$3:$U$200,19,FALSE)),0.0000000001,VLOOKUP(A47,Clients!$B$3:$U$200,19,FALSE)) -> 1e-10 | E47: UE | F47: Commerciale Business | G47: DD | H47: France hors intra réseau | I47: Mastercard - CB | J47: Mastercard - CB | K47: E
A48: UECommerciale CorporateDDFrance hors intra réseauMastercard - CBMastercard - CBE | B48: =IF(AND(ISNA(VLOOKUP(A48,Clients!$B$3:$U$165,19,FALSE)),E48="UE"),$G$199,IF(AND(ISNA(VLOOKUP(A48,Clients!$B$3:$U$165,19,FALSE)),E48="Etranger hors UE"),$G$200,D48/C48)) -> 0 | C48: =IF(ISNA(VLOOKUP(A48,Clients!$B$3:$U$165,18,FALSE)),D48/B48,VLOOKUP(A48,Clients!$B$3:$U$165,18,FALSE)) ->  | D48: =IF(ISNA(VLOOKUP(A48,Clients!$B$3:$U$200,19,FALSE)),0.0000000001,VLOOKUP(A48,Clients!$B$3:$U$200,19,FALSE)) -> 1e-10 | E48: UE | F48: Commerciale Corporate | G48: DD | H48: France hors intra réseau | I48: Mastercard - CB | J48: Mastercard - CB | K48: E
A49: UECommerciale BusinessDDFrance hors intra réseauMastercard - CBMastercard - CBP | B49: =IF(AND(ISNA(VLOOKUP(A49,Clients!$B$3:$U$165,19,FALSE)),E49="UE"),$G$199,IF(AND(ISNA(VLOOKUP(A49,Clients!$B$3:$U$165,19,FALSE)),E49="Etranger hors UE"),$G$200,D49/C49)) -> 0 | C49: =IF(ISNA(VLOOKUP(A49,Clients!$B$3:$U$165,18,FALSE)),D49/B49,VLOOKUP(A49,Clients!$B$3:$U$165,18,FALSE)) ->  | D49: =IF(ISNA(VLOOKUP(A49,Clients!$B$3:$U$200,19,FALSE)),0.0000000001,VLOOKUP(A49,Clients!$B$3:$U$200,19,FALSE)) -> 1e-10 | E49: UE | F49: Commerciale Business | G49: DD | H49: France hors intra réseau | I49: Mastercard - CB | J49: Mastercard - CB | K49: P
A50: UECommerciale CorporateDDFrance hors intra réseauMastercard - CBMastercard - CBP | B50: =IF(AND(ISNA(VLOOKUP(A50,Clients!$B$3:$U$165,19,FALSE)),E50="UE"),$G$199,IF(AND(ISNA(VLOOKUP(A50,Clients!$B$3:$U$165,19,FALSE)),E50="Etranger hors UE"),$G$200,D50/C50)) -> 0 | C50: =IF(ISNA(VLOOKUP(A50,Clients!$B$3:$U$165,18,FALSE)),D50/B50,VLOOKUP(A50,Clients!$B$3:$U$165,18,FALSE)) ->  | D50: =IF(ISNA(VLOOKUP(A50,Clients!$B$3:$U$200,19,FALSE)),0.0000000001,VLOOKUP(A50,Clients!$B$3:$U$200,19,FALSE)) -> 1e-10 | E50: UE | F50: Commerciale Corporate | G50: DD | H50: France hors intra réseau | I50: Mastercard - CB | J50: Mastercard - CB | K50: P
A51: UEParticulierDDFrance hors intra réseauMastercard - CBMastercard - CBP | B51: =IF(AND(ISNA(VLOOKUP(A51,Clients!$B$3:$U$165,19,FALSE)),E51="UE"),$G$199,IF(AND(ISNA(VLOOKUP(A51,Clients!$B$3:$U$165,19,FALSE)),E51="Etranger hors UE"),$G$200,D51/C51)) -> 0 | C51: =IF(ISNA(VLOOKUP(A51,Clients!$B$3:$U$165,18,FALSE)),D51/B51,VLOOKUP(A51,Clients!$B$3:$U$165,18,FALSE)) ->  | D51: =IF(ISNA(VLOOKUP(A51,Clients!$B$3:$U$200,19,FALSE)),0.0000000001,VLOOKUP(A51,Clients!$B$3:$U$200,19,FALSE)) -> 1e-10 | E51: UE | F51: Particulier | G51: DD | H51: France hors intra réseau | I51: Mastercard - CB | J51: Mastercard - CB | K51: P
A52: UECommerciale BusinessDIFrance hors intra réseauMastercard - CBMastercard - CBE | B52: =IF(AND(ISNA(VLOOKUP(A52,Clients!$B$3:$U$165,19,FALSE)),E52="UE"),$G$199,IF(AND(ISNA(VLOOKUP(A52,Clients!$B$3:$U$165,19,FALSE)),E52="Etranger hors UE"),$G$200,D52/C52)) -> 0 | C52: =IF(ISNA(VLOOKUP(A52,Clients!$B$3:$U$165,18,FALSE)),D52/B52,VLOOKUP(A52,Clients!$B$3:$U$165,18,FALSE)) ->  | D52: =IF(ISNA(VLOOKUP(A52,Clients!$B$3:$U$200,19,FALSE)),0.0000000001,VLOOKUP(A52,Clients!$B$3:$U$200,19,FALSE)) -> 1e-10 | E52: UE | F52: Commerciale Business | G52: DI | H52: France hors intra réseau | I52: Mastercard - CB | J52: Mastercard - CB | K52: E
A53: UECommerciale CorporateDIFrance hors intra réseauMastercard - CBMastercard - CBE | B53: =IF(AND(ISNA(VLOOKUP(A53,Clients!$B$3:$U$165,19,FALSE)),E53="UE"),$G$199,IF(AND(ISNA(VLOOKUP(A53,Clients!$B$3:$U$165,19,FALSE)),E53="Etranger hors UE"),$G$200,D53/C53)) -> 0 | C53: =IF(ISNA(VLOOKUP(A53,Clients!$B$3:$U$165,18,FALSE)),D53/B53,VLOOKUP(A53,Clients!$B$3:$U$165,18,FALSE)) ->  | D53: =IF(ISNA(VLOOKUP(A53,Clients!$B$3:$U$200,19,FALSE)),0.0000000001,VLOOKUP(A53,Clients!$B$3:$U$200,19,FALSE)) -> 1e-10 | E53: UE | F53: Commerciale Corporate | G53: DI | H53: France hors intra réseau | I53: Mastercard - CB | J53: Mastercard - CB | K53: E
A54: UECommerciale BusinessDIFrance hors intra réseauMastercard - CBMaestroP | B54: =IF(AND(ISNA(VLOOKUP(A54,Clients!$B$3:$U$165,19,FALSE)),E54="UE"),$G$199,IF(AND(ISNA(VLOOKUP(A54,Clients!$B$3:$U$165,19,FALSE)),E54="Etranger hors UE"),$G$200,D54/C54)) -> 0 | C54: =IF(ISNA(VLOOKUP(A54,Clients!$B$3:$U$165,18,FALSE)),D54/B54,VLOOKUP(A54,Clients!$B$3:$U$165,18,FALSE)) ->  | D54: =IF(ISNA(VLOOKUP(A54,Clients!$B$3:$U$200,19,FALSE)),0.0000000001,VLOOKUP(A54,Clients!$B$3:$U$200,19,FALSE)) -> 1e-10 | E54: UE | F54: Commerciale Business | G54: DI | H54: France hors intra réseau | I54: Mastercard - CB | J54: Maestro | K54: P
A55: UECommerciale BusinessDIFrance hors intra réseauMastercard - CBMastercard - CBP | B55: =IF(AND(ISNA(VLOOKUP(A55,Clients!$B$3:$U$165,19,FALSE)),E55="UE"),$G$199,IF(AND(ISNA(VLOOKUP(A55,Clients!$B$3:$U$165,19,FALSE)),E55="Etranger hors UE"),$G$200,D55/C55)) -> 0 | C55: =IF(ISNA(VLOOKUP(A55,Clients!$B$3:$U$165,18,FALSE)),D55/B55,VLOOKUP(A55,Clients!$B$3:$U$165,18,FALSE)) ->  | D55: =IF(ISNA(VLOOKUP(A55,Clients!$B$3:$U$200,19,FALSE)),0.0000000001,VLOOKUP(A55,Clients!$B$3:$U$200,19,FALSE)) -> 1e-10 | E55: UE | F55: Commerciale Business | G55: DI | H55: France hors intra réseau | I55: Mastercard - CB | J55: Mastercard - CB | K55: P
A56: UECommerciale CorporateDIFrance hors intra réseauMastercard - CBMaestroP | B56: =IF(AND(ISNA(VLOOKUP(A56,Clients!$B$3:$U$165,19,FALSE)),E56="UE"),$G$199,IF(AND(ISNA(VLOOKUP(A56,Clients!$B$3:$U$165,19,FALSE)),E56="Etranger hors UE"),$G$200,D56/C56)) -> 0 | C56: =IF(ISNA(VLOOKUP(A56,Clients!$B$3:$U$165,18,FALSE)),D56/B56,VLOOKUP(A56,Clients!$B$3:$U$165,18,FALSE)) ->  | D56: =IF(ISNA(VLOOKUP(A56,Clients!$B$3:$U$200,19,FALSE)),0.0000000001,VLOOKUP(A56,Clients!$B$3:$U$200,19,FALSE)) -> 1e-10 | E56: UE | F56: Commerciale Corporate | G56: DI | H56: France hors intra réseau | I56: Mastercard - CB | J56: Maestro | K56: P
A57: UECommerciale CorporateDIFrance hors intra réseauMastercard - CBMastercard - CBP | B57: =IF(AND(ISNA(VLOOKUP(A57,Clients!$B$3:$U$165,19,FALSE)),E57="UE"),$G$199,IF(AND(ISNA(VLOOKUP(A57,Clients!$B$3:$U$165,19,FALSE)),E57="Etranger hors UE"),$G$200,D57/C57)) -> 0 | C57: =IF(ISNA(VLOOKUP(A57,Clients!$B$3:$U$165,18,FALSE)),D57/B57,VLOOKUP(A57,Clients!$B$3:$U$165,18,FALSE)) ->  | D57: =IF(ISNA(VLOOKUP(A57,Clients!$B$3:$U$200,19,FALSE)),0.0000000001,VLOOKUP(A57,Clients!$B$3:$U$200,19,FALSE)) -> 1e-10 | E57: UE | F57: Commerciale Corporate | G57: DI | H57: France hors intra réseau | I57: Mastercard - CB | J57: Mastercard - CB | K57: P
A58: UEParticulierDIFrance hors intra réseauMastercard - CBMaestroP | B58: =IF(AND(ISNA(VLOOKUP(A58,Clients!$B$3:$U$165,19,FALSE)),E58="UE"),$G$199,IF(AND(ISNA(VLOOKUP(A58,Clients!$B$3:$U$165,19,FALSE)),E58="Etranger hors UE"),$G$200,D58/C58)) -> 0 | C58: =IF(ISNA(VLOOKUP(A58,Clients!$B$3:$U$165,18,FALSE)),D58/B58,VLOOKUP(A58,Clients!$B$3:$U$165,18,FALSE)) ->  | D58: =IF(ISNA(VLOOKUP(A58,Clients!$B$3:$U$200,19,FALSE)),0.0000000001,VLOOKUP(A58,Clients!$B$3:$U$200,19,FALSE)) -> 1e-10 | E58: UE | F58: Particulier | G58: DI | H58: France hors intra réseau | I58: Mastercard - CB | J58: Maestro | K58: P
A59: UEParticulierDIFrance hors intra réseauMastercard - CBMastercard - CBP | B59: =IF(AND(ISNA(VLOOKUP(A59,Clients!$B$3:$U$165,19,FALSE)),E59="UE"),$G$199,IF(AND(ISNA(VLOOKUP(A59,Clients!$B$3:$U$165,19,FALSE)),E59="Etranger hors UE"),$G$200,D59/C59)) -> 0 | C59: =IF(ISNA(VLOOKUP(A59,Clients!$B$3:$U$165,18,FALSE)),D59/B59,VLOOKUP(A59,Clients!$B$3:$U$165,18,FALSE)) ->  | D59: =IF(ISNA(VLOOKUP(A59,Clients!$B$3:$U$200,19,FALSE)),0.0000000001,VLOOKUP(A59,Clients!$B$3:$U$200,19,FALSE)) -> 1e-10 | E59: UE | F59: Particulier | G59: DI | H59: France hors intra réseau | I59: Mastercard - CB | J59: Mastercard - CB | K59: P
A60: UECommerciale BusinessDDIntra réseauMastercard - CBMastercard - CBE | B60: =IF(AND(ISNA(VLOOKUP(A60,Clients!$B$3:$U$165,19,FALSE)),E60="UE"),$G$199,IF(AND(ISNA(VLOOKUP(A60,Clients!$B$3:$U$165,19,FALSE)),E60="Etranger hors UE"),$G$200,D60/C60)) -> 0 | C60: =IF(ISNA(VLOOKUP(A60,Clients!$B$3:$U$165,18,FALSE)),D60/B60,VLOOKUP(A60,Clients!$B$3:$U$165,18,FALSE)) ->  | D60: =IF(ISNA(VLOOKUP(A60,Clients!$B$3:$U$200,19,FALSE)),0.0000000001,VLOOKUP(A60,Clients!$B$3:$U$200,19,FALSE)) -> 1e-10 | E60: UE | F60: Commerciale Business | G60: DD | H60: Intra réseau | I60: Mastercard - CB | J60: Mastercard - CB | K60: E
A61: UECommerciale BusinessDDIntra réseauMastercard - CBMastercard - CBP | B61: =IF(AND(ISNA(VLOOKUP(A61,Clients!$B$3:$U$165,19,FALSE)),E61="UE"),$G$199,IF(AND(ISNA(VLOOKUP(A61,Clients!$B$3:$U$165,19,FALSE)),E61="Etranger hors UE"),$G$200,D61/C61)) -> 0 | C61: =IF(ISNA(VLOOKUP(A61,Clients!$B$3:$U$165,18,FALSE)),D61/B61,VLOOKUP(A61,Clients!$B$3:$U$165,18,FALSE)) ->  | D61: =IF(ISNA(VLOOKUP(A61,Clients!$B$3:$U$200,19,FALSE)),0.0000000001,VLOOKUP(A61,Clients!$B$3:$U$200,19,FALSE)) -> 1e-10 | E61: UE | F61: Commerciale Business | G61: DD | H61: Intra réseau | I61: Mastercard - CB | J61: Mastercard - CB | K61: P
A62: UECommerciale CorporateDDIntra réseauMastercard - CBMastercard - CBP | B62: =IF(AND(ISNA(VLOOKUP(A62,Clients!$B$3:$U$165,19,FALSE)),E62="UE"),$G$199,IF(AND(ISNA(VLOOKUP(A62,Clients!$B$3:$U$165,19,FALSE)),E62="Etranger hors UE"),$G$200,D62/C62)) -> 0 | C62: =IF(ISNA(VLOOKUP(A62,Clients!$B$3:$U$165,18,FALSE)),D62/B62,VLOOKUP(A62,Clients!$B$3:$U$165,18,FALSE)) ->  | D62: =IF(ISNA(VLOOKUP(A62,Clients!$B$3:$U$200,19,FALSE)),0.0000000001,VLOOKUP(A62,Clients!$B$3:$U$200,19,FALSE)) -> 1e-10 | E62: UE | F62: Commerciale Corporate | G62: DD | H62: Intra réseau | I62: Mastercard - CB | J62: Mastercard - CB | K62: P
A63: UEParticulierDDIntra réseauMastercard - CBMastercard - CBP | B63: =IF(AND(ISNA(VLOOKUP(A63,Clients!$B$3:$U$165,19,FALSE)),E63="UE"),$G$199,IF(AND(ISNA(VLOOKUP(A63,Clients!$B$3:$U$165,19,FALSE)),E63="Etranger hors UE"),$G$200,D63/C63)) -> 0 | C63: =IF(ISNA(VLOOKUP(A63,Clients!$B$3:$U$165,18,FALSE)),D63/B63,VLOOKUP(A63,Clients!$B$3:$U$165,18,FALSE)) ->  | D63: =IF(ISNA(VLOOKUP(A63,Clients!$B$3:$U$200,19,FALSE)),0.0000000001,VLOOKUP(A63,Clients!$B$3:$U$200,19,FALSE)) -> 1e-10 | E63: UE | F63: Particulier | G63: DD | H63: Intra réseau | I63: Mastercard - CB | J63: Mastercard - CB | K63: P
A64: UECommerciale BusinessDIIntra réseauMastercard - CBMastercard - CBE | B64: =IF(AND(ISNA(VLOOKUP(A64,Clients!$B$3:$U$165,19,FALSE)),E64="UE"),$G$199,IF(AND(ISNA(VLOOKUP(A64,Clients!$B$3:$U$165,19,FALSE)),E64="Etranger hors UE"),$G$200,D64/C64)) -> 0 | C64: =IF(ISNA(VLOOKUP(A64,Clients!$B$3:$U$165,18,FALSE)),D64/B64,VLOOKUP(A64,Clients!$B$3:$U$165,18,FALSE)) ->  | D64: =IF(ISNA(VLOOKUP(A64,Clients!$B$3:$U$200,19,FALSE)),0.0000000001,VLOOKUP(A64,Clients!$B$3:$U$200,19,FALSE)) -> 1e-10 | E64: UE | F64: Commerciale Business | G64: DI | H64: Intra réseau | I64: Mastercard - CB | J64: Mastercard - CB | K64: E
A65: UECommerciale BusinessDIIntra réseauMastercard - CBMaestroP | B65: =IF(AND(ISNA(VLOOKUP(A65,Clients!$B$3:$U$165,19,FALSE)),E65="UE"),$G$199,IF(AND(ISNA(VLOOKUP(A65,Clients!$B$3:$U$165,19,FALSE)),E65="Etranger hors UE"),$G$200,D65/C65)) -> 0 | C65: =IF(ISNA(VLOOKUP(A65,Clients!$B$3:$U$165,18,FALSE)),D65/B65,VLOOKUP(A65,Clients!$B$3:$U$165,18,FALSE)) ->  | D65: =IF(ISNA(VLOOKUP(A65,Clients!$B$3:$U$200,19,FALSE)),0.0000000001,VLOOKUP(A65,Clients!$B$3:$U$200,19,FALSE)) -> 1e-10 | E65: UE | F65: Commerciale Business | G65: DI | H65: Intra réseau | I65: Mastercard - CB | J65: Maestro | K65: P
A66: UECommerciale BusinessDIIntra réseauMastercard - CBMastercard - CBP | B66: =IF(AND(ISNA(VLOOKUP(A66,Clients!$B$3:$U$165,19,FALSE)),E66="UE"),$G$199,IF(AND(ISNA(VLOOKUP(A66,Clients!$B$3:$U$165,19,FALSE)),E66="Etranger hors UE"),$G$200,D66/C66)) -> 0 | C66: =IF(ISNA(VLOOKUP(A66,Clients!$B$3:$U$165,18,FALSE)),D66/B66,VLOOKUP(A66,Clients!$B$3:$U$165,18,FALSE)) ->  | D66: =IF(ISNA(VLOOKUP(A66,Clients!$B$3:$U$200,19,FALSE)),0.0000000001,VLOOKUP(A66,Clients!$B$3:$U$200,19,FALSE)) -> 1e-10 | E66: UE | F66: Commerciale Business | G66: DI | H66: Intra réseau | I66: Mastercard - CB | J66: Mastercard - CB | K66: P
A67: UECommerciale CorporateDIIntra réseauMastercard - CBMaestroP | B67: =IF(AND(ISNA(VLOOKUP(A67,Clients!$B$3:$U$165,19,FALSE)),E67="UE"),$G$199,IF(AND(ISNA(VLOOKUP(A67,Clients!$B$3:$U$165,19,FALSE)),E67="Etranger hors UE"),$G$200,D67/C67)) -> 0 | C67: =IF(ISNA(VLOOKUP(A67,Clients!$B$3:$U$165,18,FALSE)),D67/B67,VLOOKUP(A67,Clients!$B$3:$U$165,18,FALSE)) ->  | D67: =IF(ISNA(VLOOKUP(A67,Clients!$B$3:$U$200,19,FALSE)),0.0000000001,VLOOKUP(A67,Clients!$B$3:$U$200,19,FALSE)) -> 1e-10 | E67: UE | F67: Commerciale Corporate | G67: DI | H67: Intra réseau | I67: Mastercard - CB | J67: Maestro | K67: P
A68: UECommerciale CorporateDIIntra réseauMastercard - CBMastercard - CBP | B68: =IF(AND(ISNA(VLOOKUP(A68,Clients!$B$3:$U$165,19,FALSE)),E68="UE"),$G$199,IF(AND(ISNA(VLOOKUP(A68,Clients!$B$3:$U$165,19,FALSE)),E68="Etranger hors UE"),$G$200,D68/C68)) -> 0 | C68: =IF(ISNA(VLOOKUP(A68,Clients!$B$3:$U$165,18,FALSE)),D68/B68,VLOOKUP(A68,Clients!$B$3:$U$165,18,FALSE)) ->  | D68: =IF(ISNA(VLOOKUP(A68,Clients!$B$3:$U$200,19,FALSE)),0.0000000001,VLOOKUP(A68,Clients!$B$3:$U$200,19,FALSE)) -> 1e-10 | E68: UE | F68: Commerciale Corporate | G68: DI | H68: Intra réseau | I68: Mastercard - CB | J68: Mastercard - CB | K68: P
A69: =E69&F69&G69&H69&I69&J69&K69 -> UEParticulierDIIntra réseauMastercard - CBMaestroP | B69: =IF(AND(ISNA(VLOOKUP(A69,Clients!$B$3:$U$165,19,FALSE)),E69="UE"),$G$199,IF(AND(ISNA(VLOOKUP(A69,Clients!$B$3:$U$165,19,FALSE)),E69="Etranger hors UE"),$G$200,D69/C69)) -> 0 | C69: =IF(ISNA(VLOOKUP(A69,Clients!$B$3:$U$165,18,FALSE)),D69/B69,VLOOKUP(A69,Clients!$B$3:$U$165,18,FALSE)) ->  | D69: =IF(ISNA(VLOOKUP(A69,Clients!$B$3:$U$200,19,FALSE)),0.0000000001,VLOOKUP(A69,Clients!$B$3:$U$200,19,FALSE)) -> 1e-10 | E69: UE | F69: Particulier | G69: DI | H69: Intra réseau | I69: Mastercard - CB | J69: Maestro | K69: P
A70: UEParticulierDIIntra réseauMastercard - CBMastercard - CBP | B70: =IF(AND(ISNA(VLOOKUP(A70,Clients!$B$3:$U$165,19,FALSE)),E70="UE"),$G$199,IF(AND(ISNA(VLOOKUP(A70,Clients!$B$3:$U$165,19,FALSE)),E70="Etranger hors UE"),$G$200,D70/C70)) -> 0 | C70: =IF(ISNA(VLOOKUP(A70,Clients!$B$3:$U$165,18,FALSE)),D70/B70,VLOOKUP(A70,Clients!$B$3:$U$165,18,FALSE)) ->  | D70: =IF(ISNA(VLOOKUP(A70,Clients!$B$3:$U$200,19,FALSE)),0.0000000001,VLOOKUP(A70,Clients!$B$3:$U$200,19,FALSE)) -> 1e-10 | E70: UE | F70: Particulier | G70: DI | H70: Intra réseau | I70: Mastercard - CB | J70: Mastercard - CB | K70: P
A71: UEParticulierDDFrance hors intra réseauVisaElectronP | B71: =IF(AND(ISNA(VLOOKUP(A71,Clients!$B$3:$U$165,19,FALSE)),E71="UE"),$G$199,IF(AND(ISNA(VLOOKUP(A71,Clients!$B$3:$U$165,19,FALSE)),E71="Etranger hors UE"),$G$200,D71/C71)) -> 0 | C71: =IF(ISNA(VLOOKUP(A71,Clients!$B$3:$U$165,18,FALSE)),D71/B71,VLOOKUP(A71,Clients!$B$3:$U$165,18,FALSE)) ->  | D71: =IF(ISNA(VLOOKUP(A71,Clients!$B$3:$U$200,19,FALSE)),0.0000000001,VLOOKUP(A71,Clients!$B$3:$U$200,19,FALSE)) -> 1e-10 | E71: UE | F71: Particulier | G71: DD | H71: France hors intra réseau | I71: Visa | J71: Electron | K71: P
A72: UEParticulierDDFrance hors intra réseauVisaVisaP | B72: =IF(AND(ISNA(VLOOKUP(A72,Clients!$B$3:$U$165,19,FALSE)),E72="UE"),$G$199,IF(AND(ISNA(VLOOKUP(A72,Clients!$B$3:$U$165,19,FALSE)),E72="Etranger hors UE"),$G$200,D72/C72)) -> 0 | C72: =IF(ISNA(VLOOKUP(A72,Clients!$B$3:$U$165,18,FALSE)),D72/B72,VLOOKUP(A72,Clients!$B$3:$U$165,18,FALSE)) ->  | D72: =IF(ISNA(VLOOKUP(A72,Clients!$B$3:$U$200,19,FALSE)),0.0000000001,VLOOKUP(A72,Clients!$B$3:$U$200,19,FALSE)) -> 1e-10 | E72: UE | F72: Particulier | G72: DD | H72: France hors intra réseau | I72: Visa | J72: Visa | K72: P
A73: UEParticulierDIFrance hors intra réseauVisaVisaP | B73: =IF(AND(ISNA(VLOOKUP(A73,Clients!$B$3:$U$165,19,FALSE)),E73="UE"),$G$199,IF(AND(ISNA(VLOOKUP(A73,Clients!$B$3:$U$165,19,FALSE)),E73="Etranger hors UE"),$G$200,D73/C73)) -> 0 | C73: =IF(ISNA(VLOOKUP(A73,Clients!$B$3:$U$165,18,FALSE)),D73/B73,VLOOKUP(A73,Clients!$B$3:$U$165,18,FALSE)) ->  | D73: =IF(ISNA(VLOOKUP(A73,Clients!$B$3:$U$200,19,FALSE)),0.0000000001,VLOOKUP(A73,Clients!$B$3:$U$200,19,FALSE)) -> 1e-10 | E73: UE | F73: Particulier | G73: DI | H73: France hors intra réseau | I73: Visa | J73: Visa | K73: P
A74: Etranger hors UECommerciale BusinessDDInter régionalVisaVisaE | B74: =IF(AND(ISNA(VLOOKUP(A74,Clients!$B$3:$U$165,19,FALSE)),E74="UE"),$G$199,IF(AND(ISNA(VLOOKUP(A74,Clients!$B$3:$U$165,19,FALSE)),E74="Etranger hors UE"),$G$200,D74/C74)) -> 0 | C74: =IF(ISNA(VLOOKUP(A74,Clients!$B$3:$U$165,18,FALSE)),D74/B74,VLOOKUP(A74,Clients!$B$3:$U$165,18,FALSE)) ->  | D74: =IF(ISNA(VLOOKUP(A74,Clients!$B$3:$U$200,19,FALSE)),0.0000000001,VLOOKUP(A74,Clients!$B$3:$U$200,19,FALSE)) -> 1e-10 | E74: Etranger hors UE | F74: Commerciale Business | G74: DD | H74: Inter régional | I74: Visa | J74: Visa | K74: E
A75: Etranger hors UECommerciale CorporateDDInter régionalVisaVisaE | B75: =IF(AND(ISNA(VLOOKUP(A75,Clients!$B$3:$U$165,19,FALSE)),E75="UE"),$G$199,IF(AND(ISNA(VLOOKUP(A75,Clients!$B$3:$U$165,19,FALSE)),E75="Etranger hors UE"),$G$200,D75/C75)) -> 0 | C75: =IF(ISNA(VLOOKUP(A75,Clients!$B$3:$U$165,18,FALSE)),D75/B75,VLOOKUP(A75,Clients!$B$3:$U$165,18,FALSE)) ->  | D75: =IF(ISNA(VLOOKUP(A75,Clients!$B$3:$U$200,19,FALSE)),0.0000000001,VLOOKUP(A75,Clients!$B$3:$U$200,19,FALSE)) -> 1e-10 | E75: Etranger hors UE | F75: Commerciale Corporate | G75: DD | H75: Inter régional | I75: Visa | J75: Visa | K75: E
A76: Etranger hors UECommerciale BusinessDDInter régionalVisaVisaP | B76: =IF(AND(ISNA(VLOOKUP(A76,Clients!$B$3:$U$165,19,FALSE)),E76="UE"),$G$199,IF(AND(ISNA(VLOOKUP(A76,Clients!$B$3:$U$165,19,FALSE)),E76="Etranger hors UE"),$G$200,D76/C76)) -> 0 | C76: =IF(ISNA(VLOOKUP(A76,Clients!$B$3:$U$165,18,FALSE)),D76/B76,VLOOKUP(A76,Clients!$B$3:$U$165,18,FALSE)) ->  | D76: =IF(ISNA(VLOOKUP(A76,Clients!$B$3:$U$200,19,FALSE)),0.0000000001,VLOOKUP(A76,Clients!$B$3:$U$200,19,FALSE)) -> 1e-10 | E76: Etranger hors UE | F76: Commerciale Business | G76: DD | H76: Inter régional | I76: Visa | J76: Visa | K76: P
A77: Etranger hors UECommerciale CorporateDDInter régionalVisaVisaP | B77: =IF(AND(ISNA(VLOOKUP(A77,Clients!$B$3:$U$165,19,FALSE)),E77="UE"),$G$199,IF(AND(ISNA(VLOOKUP(A77,Clients!$B$3:$U$165,19,FALSE)),E77="Etranger hors UE"),$G$200,D77/C77)) -> 0 | C77: =IF(ISNA(VLOOKUP(A77,Clients!$B$3:$U$165,18,FALSE)),D77/B77,VLOOKUP(A77,Clients!$B$3:$U$165,18,FALSE)) ->  | D77: =IF(ISNA(VLOOKUP(A77,Clients!$B$3:$U$200,19,FALSE)),0.0000000001,VLOOKUP(A77,Clients!$B$3:$U$200,19,FALSE)) -> 1e-10 | E77: Etranger hors UE | F77: Commerciale Corporate | G77: DD | H77: Inter régional | I77: Visa | J77: Visa | K77: P
A78: Etranger hors UEParticulierDDInter régionalVisaElectronP | B78: =IF(AND(ISNA(VLOOKUP(A78,Clients!$B$3:$U$165,19,FALSE)),E78="UE"),$G$199,IF(AND(ISNA(VLOOKUP(A78,Clients!$B$3:$U$165,19,FALSE)),E78="Etranger hors UE"),$G$200,D78/C78)) -> 0 | C78: =IF(ISNA(VLOOKUP(A78,Clients!$B$3:$U$165,18,FALSE)),D78/B78,VLOOKUP(A78,Clients!$B$3:$U$165,18,FALSE)) ->  | D78: =IF(ISNA(VLOOKUP(A78,Clients!$B$3:$U$200,19,FALSE)),0.0000000001,VLOOKUP(A78,Clients!$B$3:$U$200,19,FALSE)) -> 1e-10 | E78: Etranger hors UE | F78: Particulier | G78: DD | H78: Inter régional | I78: Visa | J78: Electron | K78: P
A79: Etranger hors UEParticulierDDInter régionalVisaVisaP | B79: =IF(AND(ISNA(VLOOKUP(A79,Clients!$B$3:$U$165,19,FALSE)),E79="UE"),$G$199,IF(AND(ISNA(VLOOKUP(A79,Clients!$B$3:$U$165,19,FALSE)),E79="Etranger hors UE"),$G$200,D79/C79)) -> 0 | C79: =IF(ISNA(VLOOKUP(A79,Clients!$B$3:$U$165,18,FALSE)),D79/B79,VLOOKUP(A79,Clients!$B$3:$U$165,18,FALSE)) ->  | D79: =IF(ISNA(VLOOKUP(A79,Clients!$B$3:$U$200,19,FALSE)),0.0000000001,VLOOKUP(A79,Clients!$B$3:$U$200,19,FALSE)) -> 1e-10 | E79: Etranger hors UE | F79: Particulier | G79: DD | H79: Inter régional | I79: Visa | J79: Visa | K79: P
A80: Etranger hors UECommerciale BusinessDIInter régionalVisaVisaE | B80: =IF(AND(ISNA(VLOOKUP(A80,Clients!$B$3:$U$165,19,FALSE)),E80="UE"),$G$199,IF(AND(ISNA(VLOOKUP(A80,Clients!$B$3:$U$165,19,FALSE)),E80="Etranger hors UE"),$G$200,D80/C80)) -> 0 | C80: =IF(ISNA(VLOOKUP(A80,Clients!$B$3:$U$165,18,FALSE)),D80/B80,VLOOKUP(A80,Clients!$B$3:$U$165,18,FALSE)) ->  | D80: =IF(ISNA(VLOOKUP(A80,Clients!$B$3:$U$200,19,FALSE)),0.0000000001,VLOOKUP(A80,Clients!$B$3:$U$200,19,FALSE)) -> 1e-10 | E80: Etranger hors UE | F80: Commerciale Business | G80: DI | H80: Inter régional | I80: Visa | J80: Visa | K80: E
A81: Etranger hors UECommerciale CorporateDIInter régionalVisaVisaE | B81: =IF(AND(ISNA(VLOOKUP(A81,Clients!$B$3:$U$165,19,FALSE)),E81="UE"),$G$199,IF(AND(ISNA(VLOOKUP(A81,Clients!$B$3:$U$165,19,FALSE)),E81="Etranger hors UE"),$G$200,D81/C81)) -> 0 | C81: =IF(ISNA(VLOOKUP(A81,Clients!$B$3:$U$165,18,FALSE)),D81/B81,VLOOKUP(A81,Clients!$B$3:$U$165,18,FALSE)) ->  | D81: =IF(ISNA(VLOOKUP(A81,Clients!$B$3:$U$200,19,FALSE)),0.0000000001,VLOOKUP(A81,Clients!$B$3:$U$200,19,FALSE)) -> 1e-10 | E81: Etranger hors UE | F81: Commerciale Corporate | G81: DI | H81: Inter régional | I81: Visa | J81: Visa | K81: E
A82: Etranger hors UECommerciale BusinessDIInter régionalVisaElectronP | B82: =IF(AND(ISNA(VLOOKUP(A82,Clients!$B$3:$U$165,19,FALSE)),E82="UE"),$G$199,IF(AND(ISNA(VLOOKUP(A82,Clients!$B$3:$U$165,19,FALSE)),E82="Etranger hors UE"),$G$200,D82/C82)) -> 0 | C82: =IF(ISNA(VLOOKUP(A82,Clients!$B$3:$U$165,18,FALSE)),D82/B82,VLOOKUP(A82,Clients!$B$3:$U$165,18,FALSE)) ->  | D82: =IF(ISNA(VLOOKUP(A82,Clients!$B$3:$U$200,19,FALSE)),0.0000000001,VLOOKUP(A82,Clients!$B$3:$U$200,19,FALSE)) -> 1e-10 | E82: Etranger hors UE | F82: Commerciale Business | G82: DI | H82: Inter régional | I82: Visa | J82: Electron | K82: P
A83: Etranger hors UECommerciale BusinessDIInter régionalVisaVisaP | B83: =IF(AND(ISNA(VLOOKUP(A83,Clients!$B$3:$U$165,19,FALSE)),E83="UE"),$G$199,IF(AND(ISNA(VLOOKUP(A83,Clients!$B$3:$U$165,19,FALSE)),E83="Etranger hors UE"),$G$200,D83/C83)) -> 0 | C83: =IF(ISNA(VLOOKUP(A83,Clients!$B$3:$U$165,18,FALSE)),D83/B83,VLOOKUP(A83,Clients!$B$3:$U$165,18,FALSE)) ->  | D83: =IF(ISNA(VLOOKUP(A83,Clients!$B$3:$U$200,19,FALSE)),0.0000000001,VLOOKUP(A83,Clients!$B$3:$U$200,19,FALSE)) -> 1e-10 | E83: Etranger hors UE | F83: Commerciale Business | G83: DI | H83: Inter régional | I83: Visa | J83: Visa | K83: P
A84: Etranger hors UECommerciale BusinessDIInter régionalVisaVPayP | B84: =IF(AND(ISNA(VLOOKUP(A84,Clients!$B$3:$U$165,19,FALSE)),E84="UE"),$G$199,IF(AND(ISNA(VLOOKUP(A84,Clients!$B$3:$U$165,19,FALSE)),E84="Etranger hors UE"),$G$200,D84/C84)) -> 0 | C84: =IF(ISNA(VLOOKUP(A84,Clients!$B$3:$U$165,18,FALSE)),D84/B84,VLOOKUP(A84,Clients!$B$3:$U$165,18,FALSE)) ->  | D84: =IF(ISNA(VLOOKUP(A84,Clients!$B$3:$U$200,19,FALSE)),0.0000000001,VLOOKUP(A84,Clients!$B$3:$U$200,19,FALSE)) -> 1e-10 | E84: Etranger hors UE | F84: Commerciale Business | G84: DI | H84: Inter régional | I84: Visa | J84: VPay | K84: P
A85: Etranger hors UECommerciale CorporateDIInter régionalVisaElectronP | B85: =IF(AND(ISNA(VLOOKUP(A85,Clients!$B$3:$U$165,19,FALSE)),E85="UE"),$G$199,IF(AND(ISNA(VLOOKUP(A85,Clients!$B$3:$U$165,19,FALSE)),E85="Etranger hors UE"),$G$200,D85/C85)) -> 0 | C85: =IF(ISNA(VLOOKUP(A85,Clients!$B$3:$U$165,18,FALSE)),D85/B85,VLOOKUP(A85,Clients!$B$3:$U$165,18,FALSE)) ->  | D85: =IF(ISNA(VLOOKUP(A85,Clients!$B$3:$U$200,19,FALSE)),0.0000000001,VLOOKUP(A85,Clients!$B$3:$U$200,19,FALSE)) -> 1e-10 | E85: Etranger hors UE | F85: Commerciale Corporate | G85: DI | H85: Inter régional | I85: Visa | J85: Electron | K85: P
A86: Etranger hors UECommerciale CorporateDIInter régionalVisaVisaP | B86: =IF(AND(ISNA(VLOOKUP(A86,Clients!$B$3:$U$165,19,FALSE)),E86="UE"),$G$199,IF(AND(ISNA(VLOOKUP(A86,Clients!$B$3:$U$165,19,FALSE)),E86="Etranger hors UE"),$G$200,D86/C86)) -> 0 | C86: =IF(ISNA(VLOOKUP(A86,Clients!$B$3:$U$165,18,FALSE)),D86/B86,VLOOKUP(A86,Clients!$B$3:$U$165,18,FALSE)) ->  | D86: =IF(ISNA(VLOOKUP(A86,Clients!$B$3:$U$200,19,FALSE)),0.0000000001,VLOOKUP(A86,Clients!$B$3:$U$200,19,FALSE)) -> 1e-10 | E86: Etranger hors UE | F86: Commerciale Corporate | G86: DI | H86: Inter régional | I86: Visa | J86: Visa | K86: P
A87: Etranger hors UECommerciale CorporateDIInter régionalVisaVPayP | B87: =IF(AND(ISNA(VLOOKUP(A87,Clients!$B$3:$U$165,19,FALSE)),E87="UE"),$G$199,IF(AND(ISNA(VLOOKUP(A87,Clients!$B$3:$U$165,19,FALSE)),E87="Etranger hors UE"),$G$200,D87/C87)) -> 0 | C87: =IF(ISNA(VLOOKUP(A87,Clients!$B$3:$U$165,18,FALSE)),D87/B87,VLOOKUP(A87,Clients!$B$3:$U$165,18,FALSE)) ->  | D87: =IF(ISNA(VLOOKUP(A87,Clients!$B$3:$U$200,19,FALSE)),0.0000000001,VLOOKUP(A87,Clients!$B$3:$U$200,19,FALSE)) -> 1e-10 | E87: Etranger hors UE | F87: Commerciale Corporate | G87: DI | H87: Inter régional | I87: Visa | J87: VPay | K87: P
A88: Etranger hors UEParticulierDIInter régionalVisaElectronP | B88: =IF(AND(ISNA(VLOOKUP(A88,Clients!$B$3:$U$165,19,FALSE)),E88="UE"),$G$199,IF(AND(ISNA(VLOOKUP(A88,Clients!$B$3:$U$165,19,FALSE)),E88="Etranger hors UE"),$G$200,D88/C88)) -> 0 | C88: =IF(ISNA(VLOOKUP(A88,Clients!$B$3:$U$165,18,FALSE)),D88/B88,VLOOKUP(A88,Clients!$B$3:$U$165,18,FALSE)) ->  | D88: =IF(ISNA(VLOOKUP(A88,Clients!$B$3:$U$200,19,FALSE)),0.0000000001,VLOOKUP(A88,Clients!$B$3:$U$200,19,FALSE)) -> 1e-10 | E88: Etranger hors UE | F88: Particulier | G88: DI | H88: Inter régional | I88: Visa | J88: Electron | K88: P
A89: Etranger hors UEParticulierDIInter régionalVisaVisaP | B89: =IF(AND(ISNA(VLOOKUP(A89,Clients!$B$3:$U$165,19,FALSE)),E89="UE"),$G$199,IF(AND(ISNA(VLOOKUP(A89,Clients!$B$3:$U$165,19,FALSE)),E89="Etranger hors UE"),$G$200,D89/C89)) -> 0 | C89: =IF(ISNA(VLOOKUP(A89,Clients!$B$3:$U$165,18,FALSE)),D89/B89,VLOOKUP(A89,Clients!$B$3:$U$165,18,FALSE)) ->  | D89: =IF(ISNA(VLOOKUP(A89,Clients!$B$3:$U$200,19,FALSE)),0.0000000001,VLOOKUP(A89,Clients!$B$3:$U$200,19,FALSE)) -> 1e-10 | E89: Etranger hors UE | F89: Particulier | G89: DI | H89: Inter régional | I89: Visa | J89: Visa | K89: P
A90: Etranger hors UEParticulierDIInter régionalVisaVPayP | B90: =IF(AND(ISNA(VLOOKUP(A90,Clients!$B$3:$U$165,19,FALSE)),E90="UE"),$G$199,IF(AND(ISNA(VLOOKUP(A90,Clients!$B$3:$U$165,19,FALSE)),E90="Etranger hors UE"),$G$200,D90/C90)) -> 0 | C90: =IF(ISNA(VLOOKUP(A90,Clients!$B$3:$U$165,18,FALSE)),D90/B90,VLOOKUP(A90,Clients!$B$3:$U$165,18,FALSE)) ->  | D90: =IF(ISNA(VLOOKUP(A90,Clients!$B$3:$U$200,19,FALSE)),0.0000000001,VLOOKUP(A90,Clients!$B$3:$U$200,19,FALSE)) -> 1e-10 | E90: Etranger hors UE | F90: Particulier | G90: DI | H90: Inter régional | I90: Visa | J90: VPay | K90: P
A91: Etranger hors UECommerciale BusinessDDIntra régional hors UEVisaVisaE | B91: =IF(AND(ISNA(VLOOKUP(A91,Clients!$B$3:$U$165,19,FALSE)),E91="UE"),$G$199,IF(AND(ISNA(VLOOKUP(A91,Clients!$B$3:$U$165,19,FALSE)),E91="Etranger hors UE"),$G$200,D91/C91)) -> 0 | C91: =IF(ISNA(VLOOKUP(A91,Clients!$B$3:$U$165,18,FALSE)),D91/B91,VLOOKUP(A91,Clients!$B$3:$U$165,18,FALSE)) ->  | D91: =IF(ISNA(VLOOKUP(A91,Clients!$B$3:$U$200,19,FALSE)),0.0000000001,VLOOKUP(A91,Clients!$B$3:$U$200,19,FALSE)) -> 1e-10 | E91: Etranger hors UE | F91: Commerciale Business | G91: DD | H91: Intra régional hors UE | I91: Visa | J91: Visa | K91: E
A92: Etranger hors UECommerciale CorporateDDIntra régional hors UEVisaVisaE | B92: =IF(AND(ISNA(VLOOKUP(A92,Clients!$B$3:$U$165,19,FALSE)),E92="UE"),$G$199,IF(AND(ISNA(VLOOKUP(A92,Clients!$B$3:$U$165,19,FALSE)),E92="Etranger hors UE"),$G$200,D92/C92)) -> 0 | C92: =IF(ISNA(VLOOKUP(A92,Clients!$B$3:$U$165,18,FALSE)),D92/B92,VLOOKUP(A92,Clients!$B$3:$U$165,18,FALSE)) ->  | D92: =IF(ISNA(VLOOKUP(A92,Clients!$B$3:$U$200,19,FALSE)),0.0000000001,VLOOKUP(A92,Clients!$B$3:$U$200,19,FALSE)) -> 1e-10 | E92: Etranger hors UE | F92: Commerciale Corporate | G92: DD | H92: Intra régional hors UE | I92: Visa | J92: Visa | K92: E
A93: Etranger hors UECommerciale BusinessDDIntra régional hors UEVisaVisaP | B93: =IF(AND(ISNA(VLOOKUP(A93,Clients!$B$3:$U$165,19,FALSE)),E93="UE"),$G$199,IF(AND(ISNA(VLOOKUP(A93,Clients!$B$3:$U$165,19,FALSE)),E93="Etranger hors UE"),$G$200,D93/C93)) -> 0 | C93: =IF(ISNA(VLOOKUP(A93,Clients!$B$3:$U$165,18,FALSE)),D93/B93,VLOOKUP(A93,Clients!$B$3:$U$165,18,FALSE)) ->  | D93: =IF(ISNA(VLOOKUP(A93,Clients!$B$3:$U$200,19,FALSE)),0.0000000001,VLOOKUP(A93,Clients!$B$3:$U$200,19,FALSE)) -> 1e-10 | E93: Etranger hors UE | F93: Commerciale Business | G93: DD | H93: Intra régional hors UE | I93: Visa | J93: Visa | K93: P
A94: Etranger hors UECommerciale CorporateDDIntra régional hors UEVisaVisaP | B94: =IF(AND(ISNA(VLOOKUP(A94,Clients!$B$3:$U$165,19,FALSE)),E94="UE"),$G$199,IF(AND(ISNA(VLOOKUP(A94,Clients!$B$3:$U$165,19,FALSE)),E94="Etranger hors UE"),$G$200,D94/C94)) -> 0 | C94: =IF(ISNA(VLOOKUP(A94,Clients!$B$3:$U$165,18,FALSE)),D94/B94,VLOOKUP(A94,Clients!$B$3:$U$165,18,FALSE)) ->  | D94: =IF(ISNA(VLOOKUP(A94,Clients!$B$3:$U$200,19,FALSE)),0.0000000001,VLOOKUP(A94,Clients!$B$3:$U$200,19,FALSE)) -> 1e-10 | E94: Etranger hors UE | F94: Commerciale Corporate | G94: DD | H94: Intra régional hors UE | I94: Visa | J94: Visa | K94: P
A95: Etranger hors UEParticulierDDIntra régional hors UEVisaElectronP | B95: =IF(AND(ISNA(VLOOKUP(A95,Clients!$B$3:$U$165,19,FALSE)),E95="UE"),$G$199,IF(AND(ISNA(VLOOKUP(A95,Clients!$B$3:$U$165,19,FALSE)),E95="Etranger hors UE"),$G$200,D95/C95)) -> 0 | C95: =IF(ISNA(VLOOKUP(A95,Clients!$B$3:$U$165,18,FALSE)),D95/B95,VLOOKUP(A95,Clients!$B$3:$U$165,18,FALSE)) ->  | D95: =IF(ISNA(VLOOKUP(A95,Clients!$B$3:$U$200,19,FALSE)),0.0000000001,VLOOKUP(A95,Clients!$B$3:$U$200,19,FALSE)) -> 1e-10 | E95: Etranger hors UE | F95: Particulier | G95: DD | H95: Intra régional hors UE | I95: Visa | J95: Electron | K95: P
A96: Etranger hors UEParticulierDDIntra régional hors UEVisaVisaP | B96: =IF(AND(ISNA(VLOOKUP(A96,Clients!$B$3:$U$165,19,FALSE)),E96="UE"),$G$199,IF(AND(ISNA(VLOOKUP(A96,Clients!$B$3:$U$165,19,FALSE)),E96="Etranger hors UE"),$G$200,D96/C96)) -> 0 | C96: =IF(ISNA(VLOOKUP(A96,Clients!$B$3:$U$165,18,FALSE)),D96/B96,VLOOKUP(A96,Clients!$B$3:$U$165,18,FALSE)) ->  | D96: =IF(ISNA(VLOOKUP(A96,Clients!$B$3:$U$200,19,FALSE)),0.0000000001,VLOOKUP(A96,Clients!$B$3:$U$200,19,FALSE)) -> 1e-10 | E96: Etranger hors UE | F96: Particulier | G96: DD | H96: Intra régional hors UE | I96: Visa | J96: Visa | K96: P
A97: Etranger hors UECommerciale BusinessDIIntra régional hors UEVisaVisaE | B97: =IF(AND(ISNA(VLOOKUP(A97,Clients!$B$3:$U$165,19,FALSE)),E97="UE"),$G$199,IF(AND(ISNA(VLOOKUP(A97,Clients!$B$3:$U$165,19,FALSE)),E97="Etranger hors UE"),$G$200,D97/C97)) -> 0 | C97: =IF(ISNA(VLOOKUP(A97,Clients!$B$3:$U$165,18,FALSE)),D97/B97,VLOOKUP(A97,Clients!$B$3:$U$165,18,FALSE)) ->  | D97: =IF(ISNA(VLOOKUP(A97,Clients!$B$3:$U$200,19,FALSE)),0.0000000001,VLOOKUP(A97,Clients!$B$3:$U$200,19,FALSE)) -> 1e-10 | E97: Etranger hors UE | F97: Commerciale Business | G97: DI | H97: Intra régional hors UE | I97: Visa | J97: Visa | K97: E
A98: Etranger hors UECommerciale BusinessDIIntra régional hors UEVisaElectronP | B98: =IF(AND(ISNA(VLOOKUP(A98,Clients!$B$3:$U$165,19,FALSE)),E98="UE"),$G$199,IF(AND(ISNA(VLOOKUP(A98,Clients!$B$3:$U$165,19,FALSE)),E98="Etranger hors UE"),$G$200,D98/C98)) -> 0 | C98: =IF(ISNA(VLOOKUP(A98,Clients!$B$3:$U$165,18,FALSE)),D98/B98,VLOOKUP(A98,Clients!$B$3:$U$165,18,FALSE)) ->  | D98: =IF(ISNA(VLOOKUP(A98,Clients!$B$3:$U$200,19,FALSE)),0.0000000001,VLOOKUP(A98,Clients!$B$3:$U$200,19,FALSE)) -> 1e-10 | E98: Etranger hors UE | F98: Commerciale Business | G98: DI | H98: Intra régional hors UE | I98: Visa | J98: Electron | K98: P
A99: Etranger hors UECommerciale BusinessDIIntra régional hors UEVisaVisaP | B99: =IF(AND(ISNA(VLOOKUP(A99,Clients!$B$3:$U$165,19,FALSE)),E99="UE"),$G$199,IF(AND(ISNA(VLOOKUP(A99,Clients!$B$3:$U$165,19,FALSE)),E99="Etranger hors UE"),$G$200,D99/C99)) -> 0 | C99: =IF(ISNA(VLOOKUP(A99,Clients!$B$3:$U$165,18,FALSE)),D99/B99,VLOOKUP(A99,Clients!$B$3:$U$165,18,FALSE)) ->  | D99: =IF(ISNA(VLOOKUP(A99,Clients!$B$3:$U$200,19,FALSE)),0.0000000001,VLOOKUP(A99,Clients!$B$3:$U$200,19,FALSE)) -> 1e-10 | E99: Etranger hors UE | F99: Commerciale Business | G99: DI | H99: Intra régional hors UE | I99: Visa | J99: Visa | K99: P
A100: Etranger hors UECommerciale BusinessDIIntra régional hors UEVisaVPayP | B100: =IF(AND(ISNA(VLOOKUP(A100,Clients!$B$3:$U$165,19,FALSE)),E100="UE"),$G$199,IF(AND(ISNA(VLOOKUP(A100,Clients!$B$3:$U$165,19,FALSE)),E100="Etranger hors UE"),$G$200,D100/C100)) -> 0 | C100: =IF(ISNA(VLOOKUP(A100,Clients!$B$3:$U$165,18,FALSE)),D100/B100,VLOOKUP(A100,Clients!$B$3:$U$165,18,FALSE)) ->  | D100: =IF(ISNA(VLOOKUP(A100,Clients!$B$3:$U$200,19,FALSE)),0.0000000001,VLOOKUP(A100,Clients!$B$3:$U$200,19,FALSE)) -> 1e-10 | E100: Etranger hors UE | F100: Commerciale Business | G100: DI | H100: Intra régional hors UE | I100: Visa | J100: VPay | K100: P
A101: Etranger hors UECommerciale CorporateDIIntra régional hors UEVisaElectronP | B101: =IF(AND(ISNA(VLOOKUP(A101,Clients!$B$3:$U$165,19,FALSE)),E101="UE"),$G$199,IF(AND(ISNA(VLOOKUP(A101,Clients!$B$3:$U$165,19,FALSE)),E101="Etranger hors UE"),$G$200,D101/C101)) -> 0 | C101: =IF(ISNA(VLOOKUP(A101,Clients!$B$3:$U$165,18,FALSE)),D101/B101,VLOOKUP(A101,Clients!$B$3:$U$165,18,FALSE)) ->  | D101: =IF(ISNA(VLOOKUP(A101,Clients!$B$3:$U$200,19,FALSE)),0.0000000001,VLOOKUP(A101,Clients!$B$3:$U$200,19,FALSE)) -> 1e-10 | E101: Etranger hors UE | F101: Commerciale Corporate | G101: DI | H101: Intra régional hors UE | I101: Visa | J101: Electron | K101: P
A102: Etranger hors UECommerciale CorporateDIIntra régional hors UEVisaVisaP | B102: =IF(AND(ISNA(VLOOKUP(A102,Clients!$B$3:$U$165,19,FALSE)),E102="UE"),$G$199,IF(AND(ISNA(VLOOKUP(A102,Clients!$B$3:$U$165,19,FALSE)),E102="Etranger hors UE"),$G$200,D102/C102)) -> 0 | C102: =IF(ISNA(VLOOKUP(A102,Clients!$B$3:$U$165,18,FALSE)),D102/B102,VLOOKUP(A102,Clients!$B$3:$U$165,18,FALSE)) ->  | D102: =IF(ISNA(VLOOKUP(A102,Clients!$B$3:$U$200,19,FALSE)),0.0000000001,VLOOKUP(A102,Clients!$B$3:$U$200,19,FALSE)) -> 1e-10 | E102: Etranger hors UE | F102: Commerciale Corporate | G102: DI | H102: Intra régional hors UE | I102: Visa | J102: Visa | K102: P
A103: Etranger hors UECommerciale CorporateDIIntra régional hors UEVisaVPayP | B103: =IF(AND(ISNA(VLOOKUP(A103,Clients!$B$3:$U$165,19,FALSE)),E103="UE"),$G$199,IF(AND(ISNA(VLOOKUP(A103,Clients!$B$3:$U$165,19,FALSE)),E103="Etranger hors UE"),$G$200,D103/C103)) -> 0 | C103: =IF(ISNA(VLOOKUP(A103,Clients!$B$3:$U$165,18,FALSE)),D103/B103,VLOOKUP(A103,Clients!$B$3:$U$165,18,FALSE)) ->  | D103: =IF(ISNA(VLOOKUP(A103,Clients!$B$3:$U$200,19,FALSE)),0.0000000001,VLOOKUP(A103,Clients!$B$3:$U$200,19,FALSE)) -> 1e-10 | E103: Etranger hors UE | F103: Commerciale Corporate | G103: DI | H103: Intra régional hors UE | I103: Visa | J103: VPay | K103: P
A104: Etranger hors UEParticulierDIIntra régional hors UEVisaElectronP | B104: =IF(AND(ISNA(VLOOKUP(A104,Clients!$B$3:$U$165,19,FALSE)),E104="UE"),$G$199,IF(AND(ISNA(VLOOKUP(A104,Clients!$B$3:$U$165,19,FALSE)),E104="Etranger hors UE"),$G$200,D104/C104)) -> 0 | C104: =IF(ISNA(VLOOKUP(A104,Clients!$B$3:$U$165,18,FALSE)),D104/B104,VLOOKUP(A104,Clients!$B$3:$U$165,18,FALSE)) ->  | D104: =IF(ISNA(VLOOKUP(A104,Clients!$B$3:$U$200,19,FALSE)),0.0000000001,VLOOKUP(A104,Clients!$B$3:$U$200,19,FALSE)) -> 1e-10 | E104: Etranger hors UE | F104: Particulier | G104: DI | H104: Intra régional hors UE | I104: Visa | J104: Electron | K104: P
A105: Etranger hors UEParticulierDIIntra régional hors UEVisaVisaP | B105: =IF(AND(ISNA(VLOOKUP(A105,Clients!$B$3:$U$165,19,FALSE)),E105="UE"),$G$199,IF(AND(ISNA(VLOOKUP(A105,Clients!$B$3:$U$165,19,FALSE)),E105="Etranger hors UE"),$G$200,D105/C105)) -> 0 | C105: =IF(ISNA(VLOOKUP(A105,Clients!$B$3:$U$165,18,FALSE)),D105/B105,VLOOKUP(A105,Clients!$B$3:$U$165,18,FALSE)) ->  | D105: =IF(ISNA(VLOOKUP(A105,Clients!$B$3:$U$200,19,FALSE)),0.0000000001,VLOOKUP(A105,Clients!$B$3:$U$200,19,FALSE)) -> 1e-10 | E105: Etranger hors UE | F105: Particulier | G105: DI | H105: Intra régional hors UE | I105: Visa | J105: Visa | K105: P
A106: Etranger hors UEParticulierDIIntra régional hors UEVisaVPayP | B106: =IF(AND(ISNA(VLOOKUP(A106,Clients!$B$3:$U$165,19,FALSE)),E106="UE"),$G$199,IF(AND(ISNA(VLOOKUP(A106,Clients!$B$3:$U$165,19,FALSE)),E106="Etranger hors UE"),$G$200,D106/C106)) -> 0 | C106: =IF(ISNA(VLOOKUP(A106,Clients!$B$3:$U$165,18,FALSE)),D106/B106,VLOOKUP(A106,Clients!$B$3:$U$165,18,FALSE)) ->  | D106: =IF(ISNA(VLOOKUP(A106,Clients!$B$3:$U$200,19,FALSE)),0.0000000001,VLOOKUP(A106,Clients!$B$3:$U$200,19,FALSE)) -> 1e-10 | E106: Etranger hors UE | F106: Particulier | G106: DI | H106: Intra régional hors UE | I106: Visa | J106: VPay | K106: P
A107: UECommerciale BusinessDDUE hors FranceVisaVisaE | B107: =IF(AND(ISNA(VLOOKUP(A107,Clients!$B$3:$U$165,19,FALSE)),E107="UE"),$G$199,IF(AND(ISNA(VLOOKUP(A107,Clients!$B$3:$U$165,19,FALSE)),E107="Etranger hors UE"),$G$200,D107/C107)) -> 0 | C107: =IF(ISNA(VLOOKUP(A107,Clients!$B$3:$U$165,18,FALSE)),D107/B107,VLOOKUP(A107,Clients!$B$3:$U$165,18,FALSE)) ->  | D107: =IF(ISNA(VLOOKUP(A107,Clients!$B$3:$U$200,19,FALSE)),0.0000000001,VLOOKUP(A107,Clients!$B$3:$U$200,19,FALSE)) -> 1e-10 | E107: UE | F107: Commerciale Business | G107: DD | H107: UE hors France | I107: Visa | J107: Visa | K107: E
A108: UECommerciale CorporateDDUE hors FranceVisaVisaE | B108: =IF(AND(ISNA(VLOOKUP(A108,Clients!$B$3:$U$165,19,FALSE)),E108="UE"),$G$199,IF(AND(ISNA(VLOOKUP(A108,Clients!$B$3:$U$165,19,FALSE)),E108="Etranger hors UE"),$G$200,D108/C108)) -> 0 | C108: =IF(ISNA(VLOOKUP(A108,Clients!$B$3:$U$165,18,FALSE)),D108/B108,VLOOKUP(A108,Clients!$B$3:$U$165,18,FALSE)) ->  | D108: =IF(ISNA(VLOOKUP(A108,Clients!$B$3:$U$200,19,FALSE)),0.0000000001,VLOOKUP(A108,Clients!$B$3:$U$200,19,FALSE)) -> 1e-10 | E108: UE | F108: Commerciale Corporate | G108: DD | H108: UE hors France | I108: Visa | J108: Visa | K108: E
A109: UECommerciale BusinessDDUE hors FranceVisaVisaP | B109: =IF(AND(ISNA(VLOOKUP(A109,Clients!$B$3:$U$165,19,FALSE)),E109="UE"),$G$199,IF(AND(ISNA(VLOOKUP(A109,Clients!$B$3:$U$165,19,FALSE)),E109="Etranger hors UE"),$G$200,D109/C109)) -> 0 | C109: =IF(ISNA(VLOOKUP(A109,Clients!$B$3:$U$165,18,FALSE)),D109/B109,VLOOKUP(A109,Clients!$B$3:$U$165,18,FALSE)) ->  | D109: =IF(ISNA(VLOOKUP(A109,Clients!$B$3:$U$200,19,FALSE)),0.0000000001,VLOOKUP(A109,Clients!$B$3:$U$200,19,FALSE)) -> 1e-10 | E109: UE | F109: Commerciale Business | G109: DD | H109: UE hors France | I109: Visa | J109: Visa | K109: P
A110: UECommerciale CorporateDDUE hors FranceVisaVisaP | B110: =IF(AND(ISNA(VLOOKUP(A110,Clients!$B$3:$U$165,19,FALSE)),E110="UE"),$G$199,IF(AND(ISNA(VLOOKUP(A110,Clients!$B$3:$U$165,19,FALSE)),E110="Etranger hors UE"),$G$200,D110/C110)) -> 0 | C110: =IF(ISNA(VLOOKUP(A110,Clients!$B$3:$U$165,18,FALSE)),D110/B110,VLOOKUP(A110,Clients!$B$3:$U$165,18,FALSE)) ->  | D110: =IF(ISNA(VLOOKUP(A110,Clients!$B$3:$U$200,19,FALSE)),0.0000000001,VLOOKUP(A110,Clients!$B$3:$U$200,19,FALSE)) -> 1e-10 | E110: UE | F110: Commerciale Corporate | G110: DD | H110: UE hors France | I110: Visa | J110: Visa | K110: P
A111: UEParticulierDDUE hors FranceVisaElectronP | B111: =IF(AND(ISNA(VLOOKUP(A111,Clients!$B$3:$U$165,19,FALSE)),E111="UE"),$G$199,IF(AND(ISNA(VLOOKUP(A111,Clients!$B$3:$U$165,19,FALSE)),E111="Etranger hors UE"),$G$200,D111/C111)) -> 0 | C111: =IF(ISNA(VLOOKUP(A111,Clients!$B$3:$U$165,18,FALSE)),D111/B111,VLOOKUP(A111,Clients!$B$3:$U$165,18,FALSE)) ->  | D111: =IF(ISNA(VLOOKUP(A111,Clients!$B$3:$U$200,19,FALSE)),0.0000000001,VLOOKUP(A111,Clients!$B$3:$U$200,19,FALSE)) -> 1e-10 | E111: UE | F111: Particulier | G111: DD | H111: UE hors France | I111: Visa | J111: Electron | K111: P
A112: UEParticulierDDUE hors FranceVisaVisaP | B112: =IF(AND(ISNA(VLOOKUP(A112,Clients!$B$3:$U$165,19,FALSE)),E112="UE"),$G$199,IF(AND(ISNA(VLOOKUP(A112,Clients!$B$3:$U$165,19,FALSE)),E112="Etranger hors UE"),$G$200,D112/C112)) -> 0 | C112: =IF(ISNA(VLOOKUP(A112,Clients!$B$3:$U$165,18,FALSE)),D112/B112,VLOOKUP(A112,Clients!$B$3:$U$165,18,FALSE)) ->  | D112: =IF(ISNA(VLOOKUP(A112,Clients!$B$3:$U$200,19,FALSE)),0.0000000001,VLOOKUP(A112,Clients!$B$3:$U$200,19,FALSE)) -> 1e-10 | E112: UE | F112: Particulier | G112: DD | H112: UE hors France | I112: Visa | J112: Visa | K112: P
A113: UECommerciale BusinessDIUE hors FranceVisaElectronE | B113: =IF(AND(ISNA(VLOOKUP(A113,Clients!$B$3:$U$165,19,FALSE)),E113="UE"),$G$199,IF(AND(ISNA(VLOOKUP(A113,Clients!$B$3:$U$165,19,FALSE)),E113="Etranger hors UE"),$G$200,D113/C113)) -> 0 | C113: =IF(ISNA(VLOOKUP(A113,Clients!$B$3:$U$165,18,FALSE)),D113/B113,VLOOKUP(A113,Clients!$B$3:$U$165,18,FALSE)) ->  | D113: =IF(ISNA(VLOOKUP(A113,Clients!$B$3:$U$200,19,FALSE)),0.0000000001,VLOOKUP(A113,Clients!$B$3:$U$200,19,FALSE)) -> 1e-10 | E113: UE | F113: Commerciale Business | G113: DI | H113: UE hors France | I113: Visa | J113: Electron | K113: E
A114: UECommerciale BusinessDIUE hors FranceVisaVisaE | B114: =IF(AND(ISNA(VLOOKUP(A114,Clients!$B$3:$U$165,19,FALSE)),E114="UE"),$G$199,IF(AND(ISNA(VLOOKUP(A114,Clients!$B$3:$U$165,19,FALSE)),E114="Etranger hors UE"),$G$200,D114/C114)) -> 0 | C114: =IF(ISNA(VLOOKUP(A114,Clients!$B$3:$U$165,18,FALSE)),D114/B114,VLOOKUP(A114,Clients!$B$3:$U$165,18,FALSE)) ->  | D114: =IF(ISNA(VLOOKUP(A114,Clients!$B$3:$U$200,19,FALSE)),0.0000000001,VLOOKUP(A114,Clients!$B$3:$U$200,19,FALSE)) -> 1e-10 | E114: UE | F114: Commerciale Business | G114: DI | H114: UE hors France | I114: Visa | J114: Visa | K114: E
A115: UECommerciale CorporateDIUE hors FranceVisaElectronE | B115: =IF(AND(ISNA(VLOOKUP(A115,Clients!$B$3:$U$165,19,FALSE)),E115="UE"),$G$199,IF(AND(ISNA(VLOOKUP(A115,Clients!$B$3:$U$165,19,FALSE)),E115="Etranger hors UE"),$G$200,D115/C115)) -> 0 | C115: =IF(ISNA(VLOOKUP(A115,Clients!$B$3:$U$165,18,FALSE)),D115/B115,VLOOKUP(A115,Clients!$B$3:$U$165,18,FALSE)) ->  | D115: =IF(ISNA(VLOOKUP(A115,Clients!$B$3:$U$200,19,FALSE)),0.0000000001,VLOOKUP(A115,Clients!$B$3:$U$200,19,FALSE)) -> 1e-10 | E115: UE | F115: Commerciale Corporate | G115: DI | H115: UE hors France | I115: Visa | J115: Electron | K115: E
A116: UECommerciale CorporateDIUE hors FranceVisaVisaE | B116: =IF(AND(ISNA(VLOOKUP(A116,Clients!$B$3:$U$165,19,FALSE)),E116="UE"),$G$199,IF(AND(ISNA(VLOOKUP(A116,Clients!$B$3:$U$165,19,FALSE)),E116="Etranger hors UE"),$G$200,D116/C116)) -> 0 | C116: =IF(ISNA(VLOOKUP(A116,Clients!$B$3:$U$165,18,FALSE)),D116/B116,VLOOKUP(A116,Clients!$B$3:$U$165,18,FALSE)) ->  | D116: =IF(ISNA(VLOOKUP(A116,Clients!$B$3:$U$200,19,FALSE)),0.0000000001,VLOOKUP(A116,Clients!$B$3:$U$200,19,FALSE)) -> 1e-10 | E116: UE | F116: Commerciale Corporate | G116: DI | H116: UE hors France | I116: Visa | J116: Visa | K116: E
A117: UECommerciale BusinessDIUE hors FranceVisaElectronP | B117: =IF(AND(ISNA(VLOOKUP(A117,Clients!$B$3:$U$165,19,FALSE)),E117="UE"),$G$199,IF(AND(ISNA(VLOOKUP(A117,Clients!$B$3:$U$165,19,FALSE)),E117="Etranger hors UE"),$G$200,D117/C117)) -> 0 | C117: =IF(ISNA(VLOOKUP(A117,Clients!$B$3:$U$165,18,FALSE)),D117/B117,VLOOKUP(A117,Clients!$B$3:$U$165,18,FALSE)) ->  | D117: =IF(ISNA(VLOOKUP(A117,Clients!$B$3:$U$200,19,FALSE)),0.0000000001,VLOOKUP(A117,Clients!$B$3:$U$200,19,FALSE)) -> 1e-10 | E117: UE | F117: Commerciale Business | G117: DI | H117: UE hors France | I117: Visa | J117: Electron | K117: P
A118: UECommerciale BusinessDIUE hors FranceVisaVisaP | B118: =IF(AND(ISNA(VLOOKUP(A118,Clients!$B$3:$U$165,19,FALSE)),E118="UE"),$G$199,IF(AND(ISNA(VLOOKUP(A118,Clients!$B$3:$U$165,19,FALSE)),E118="Etranger hors UE"),$G$200,D118/C118)) -> 0 | C118: =IF(ISNA(VLOOKUP(A118,Clients!$B$3:$U$165,18,FALSE)),D118/B118,VLOOKUP(A118,Clients!$B$3:$U$165,18,FALSE)) ->  | D118: =IF(ISNA(VLOOKUP(A118,Clients!$B$3:$U$200,19,FALSE)),0.0000000001,VLOOKUP(A118,Clients!$B$3:$U$200,19,FALSE)) -> 1e-10 | E118: UE | F118: Commerciale Business | G118: DI | H118: UE hors France | I118: Visa | J118: Visa | K118: P
A119: UECommerciale BusinessDIUE hors FranceVisaVPayP | B119: =IF(AND(ISNA(VLOOKUP(A119,Clients!$B$3:$U$165,19,FALSE)),E119="UE"),$G$199,IF(AND(ISNA(VLOOKUP(A119,Clients!$B$3:$U$165,19,FALSE)),E119="Etranger hors UE"),$G$200,D119/C119)) -> 0 | C119: =IF(ISNA(VLOOKUP(A119,Clients!$B$3:$U$165,18,FALSE)),D119/B119,VLOOKUP(A119,Clients!$B$3:$U$165,18,FALSE)) ->  | D119: =IF(ISNA(VLOOKUP(A119,Clients!$B$3:$U$200,19,FALSE)),0.0000000001,VLOOKUP(A119,Clients!$B$3:$U$200,19,FALSE)) -> 1e-10 | E119: UE | F119: Commerciale Business | G119: DI | H119: UE hors France | I119: Visa | J119: VPay | K119: P
A120: UECommerciale CorporateDIUE hors FranceVisaElectronP | B120: =IF(AND(ISNA(VLOOKUP(A120,Clients!$B$3:$U$165,19,FALSE)),E120="UE"),$G$199,IF(AND(ISNA(VLOOKUP(A120,Clients!$B$3:$U$165,19,FALSE)),E120="Etranger hors UE"),$G$200,D120/C120)) -> 0 | C120: =IF(ISNA(VLOOKUP(A120,Clients!$B$3:$U$165,18,FALSE)),D120/B120,VLOOKUP(A120,Clients!$B$3:$U$165,18,FALSE)) ->  | D120: =IF(ISNA(VLOOKUP(A120,Clients!$B$3:$U$200,19,FALSE)),0.0000000001,VLOOKUP(A120,Clients!$B$3:$U$200,19,FALSE)) -> 1e-10 | E120: UE | F120: Commerciale Corporate | G120: DI | H120: UE hors France | I120: Visa | J120: Electron | K120: P
A121: UECommerciale CorporateDIUE hors FranceVisaVisaP | B121: =IF(AND(ISNA(VLOOKUP(A121,Clients!$B$3:$U$165,19,FALSE)),E121="UE"),$G$199,IF(AND(ISNA(VLOOKUP(A121,Clients!$B$3:$U$165,19,FALSE)),E121="Etranger hors UE"),$G$200,D121/C121)) -> 0 | C121: =IF(ISNA(VLOOKUP(A121,Clients!$B$3:$U$165,18,FALSE)),D121/B121,VLOOKUP(A121,Clients!$B$3:$U$165,18,FALSE)) ->  | D121: =IF(ISNA(VLOOKUP(A121,Clients!$B$3:$U$200,19,FALSE)),0.0000000001,VLOOKUP(A121,Clients!$B$3:$U$200,19,FALSE)) -> 1e-10 | E121: UE | F121: Commerciale Corporate | G121: DI | H121: UE hors France | I121: Visa | J121: Visa | K121: P
A122: UECommerciale CorporateDIUE hors FranceVisaVPayP | B122: =IF(AND(ISNA(VLOOKUP(A122,Clients!$B$3:$U$165,19,FALSE)),E122="UE"),$G$199,IF(AND(ISNA(VLOOKUP(A122,Clients!$B$3:$U$165,19,FALSE)),E122="Etranger hors UE"),$G$200,D122/C122)) -> 0 | C122: =IF(ISNA(VLOOKUP(A122,Clients!$B$3:$U$165,18,FALSE)),D122/B122,VLOOKUP(A122,Clients!$B$3:$U$165,18,FALSE)) ->  | D122: =IF(ISNA(VLOOKUP(A122,Clients!$B$3:$U$200,19,FALSE)),0.0000000001,VLOOKUP(A122,Clients!$B$3:$U$200,19,FALSE)) -> 1e-10 | E122: UE | F122: Commerciale Corporate | G122: DI | H122: UE hors France | I122: Visa | J122: VPay | K122: P
A123: UEParticulierDIUE hors FranceVisaElectronP | B123: =IF(AND(ISNA(VLOOKUP(A123,Clients!$B$3:$U$165,19,FALSE)),E123="UE"),$G$199,IF(AND(ISNA(VLOOKUP(A123,Clients!$B$3:$U$165,19,FALSE)),E123="Etranger hors UE"),$G$200,D123/C123)) -> 0 | C123: =IF(ISNA(VLOOKUP(A123,Clients!$B$3:$U$165,18,FALSE)),D123/B123,VLOOKUP(A123,Clients!$B$3:$U$165,18,FALSE)) ->  | D123: =IF(ISNA(VLOOKUP(A123,Clients!$B$3:$U$200,19,FALSE)),0.0000000001,VLOOKUP(A123,Clients!$B$3:$U$200,19,FALSE)) -> 1e-10 | E123: UE | F123: Particulier | G123: DI | H123: UE hors France | I123: Visa | J123: Electron | K123: P
A124: UEParticulierDIUE hors FranceVisaVisaP | B124: =IF(AND(ISNA(VLOOKUP(A124,Clients!$B$3:$U$165,19,FALSE)),E124="UE"),$G$199,IF(AND(ISNA(VLOOKUP(A124,Clients!$B$3:$U$165,19,FALSE)),E124="Etranger hors UE"),$G$200,D124/C124)) -> 0 | C124: =IF(ISNA(VLOOKUP(A124,Clients!$B$3:$U$165,18,FALSE)),D124/B124,VLOOKUP(A124,Clients!$B$3:$U$165,18,FALSE)) ->  | D124: =IF(ISNA(VLOOKUP(A124,Clients!$B$3:$U$200,19,FALSE)),0.0000000001,VLOOKUP(A124,Clients!$B$3:$U$200,19,FALSE)) -> 1e-10 | E124: UE | F124: Particulier | G124: DI | H124: UE hors France | I124: Visa | J124: Visa | K124: P
A125: UEParticulierDIUE hors FranceVisaVPayP | B125: =IF(AND(ISNA(VLOOKUP(A125,Clients!$B$3:$U$165,19,FALSE)),E125="UE"),$G$199,IF(AND(ISNA(VLOOKUP(A125,Clients!$B$3:$U$165,19,FALSE)),E125="Etranger hors UE"),$G$200,D125/C125)) -> 0 | C125: =IF(ISNA(VLOOKUP(A125,Clients!$B$3:$U$165,18,FALSE)),D125/B125,VLOOKUP(A125,Clients!$B$3:$U$165,18,FALSE)) ->  | D125: =IF(ISNA(VLOOKUP(A125,Clients!$B$3:$U$200,19,FALSE)),0.0000000001,VLOOKUP(A125,Clients!$B$3:$U$200,19,FALSE)) -> 1e-10 | E125: UE | F125: Particulier | G125: DI | H125: UE hors France | I125: Visa | J125: VPay | K125: P
A126: UECommerciale BusinessDDFrance hors intra réseauVisa - CBVisa - CBE | B126: =IF(AND(ISNA(VLOOKUP(A126,Clients!$B$3:$U$165,19,FALSE)),E126="UE"),$G$199,IF(AND(ISNA(VLOOKUP(A126,Clients!$B$3:$U$165,19,FALSE)),E126="Etranger hors UE"),$G$200,D126/C126)) -> 0 | C126: =IF(ISNA(VLOOKUP(A126,Clients!$B$3:$U$165,18,FALSE)),D126/B126,VLOOKUP(A126,Clients!$B$3:$U$165,18,FALSE)) ->  | D126: =IF(ISNA(VLOOKUP(A126,Clients!$B$3:$U$200,19,FALSE)),0.0000000001,VLOOKUP(A126,Clients!$B$3:$U$200,19,FALSE)) -> 1e-10 | E126: UE | F126: Commerciale Business | G126: DD | H126: France hors intra réseau | I126: Visa - CB | J126: Visa - CB | K126: E
A127: UECommerciale CorporateDDFrance hors intra réseauVisa - CBVisa - CBE | B127: =IF(AND(ISNA(VLOOKUP(A127,Clients!$B$3:$U$165,19,FALSE)),E127="UE"),$G$199,IF(AND(ISNA(VLOOKUP(A127,Clients!$B$3:$U$165,19,FALSE)),E127="Etranger hors UE"),$G$200,D127/C127)) -> 0 | C127: =IF(ISNA(VLOOKUP(A127,Clients!$B$3:$U$165,18,FALSE)),D127/B127,VLOOKUP(A127,Clients!$B$3:$U$165,18,FALSE)) ->  | D127: =IF(ISNA(VLOOKUP(A127,Clients!$B$3:$U$200,19,FALSE)),0.0000000001,VLOOKUP(A127,Clients!$B$3:$U$200,19,FALSE)) -> 1e-10 | E127: UE | F127: Commerciale Corporate | G127: DD | H127: France hors intra réseau | I127: Visa - CB | J127: Visa - CB | K127: E
A128: UECommerciale BusinessDDFrance hors intra réseauVisa - CBVisa - CBP | B128: =IF(AND(ISNA(VLOOKUP(A128,Clients!$B$3:$U$165,19,FALSE)),E128="UE"),$G$199,IF(AND(ISNA(VLOOKUP(A128,Clients!$B$3:$U$165,19,FALSE)),E128="Etranger hors UE"),$G$200,D128/C128)) -> 0 | C128: =IF(ISNA(VLOOKUP(A128,Clients!$B$3:$U$165,18,FALSE)),D128/B128,VLOOKUP(A128,Clients!$B$3:$U$165,18,FALSE)) ->  | D128: =IF(ISNA(VLOOKUP(A128,Clients!$B$3:$U$200,19,FALSE)),0.0000000001,VLOOKUP(A128,Clients!$B$3:$U$200,19,FALSE)) -> 1e-10 | E128: UE | F128: Commerciale Business | G128: DD | H128: France hors intra réseau | I128: Visa - CB | J128: Visa - CB | K128: P
A129: UECommerciale CorporateDDFrance hors intra réseauVisa - CBVisa - CBP | B129: =IF(AND(ISNA(VLOOKUP(A129,Clients!$B$3:$U$165,19,FALSE)),E129="UE"),$G$199,IF(AND(ISNA(VLOOKUP(A129,Clients!$B$3:$U$165,19,FALSE)),E129="Etranger hors UE"),$G$200,D129/C129)) -> 0 | C129: =IF(ISNA(VLOOKUP(A129,Clients!$B$3:$U$165,18,FALSE)),D129/B129,VLOOKUP(A129,Clients!$B$3:$U$165,18,FALSE)) ->  | D129: =IF(ISNA(VLOOKUP(A129,Clients!$B$3:$U$200,19,FALSE)),0.0000000001,VLOOKUP(A129,Clients!$B$3:$U$200,19,FALSE)) -> 1e-10 | E129: UE | F129: Commerciale Corporate | G129: DD | H129: France hors intra réseau | I129: Visa - CB | J129: Visa - CB | K129: P
A130: UEParticulierDDFrance hors intra réseauVisa - CBElectronP | B130: =IF(AND(ISNA(VLOOKUP(A130,Clients!$B$3:$U$165,19,FALSE)),E130="UE"),$G$199,IF(AND(ISNA(VLOOKUP(A130,Clients!$B$3:$U$165,19,FALSE)),E130="Etranger hors UE"),$G$200,D130/C130)) -> 0 | C130: =IF(ISNA(VLOOKUP(A130,Clients!$B$3:$U$165,18,FALSE)),D130/B130,VLOOKUP(A130,Clients!$B$3:$U$165,18,FALSE)) ->  | D130: =IF(ISNA(VLOOKUP(A130,Clients!$B$3:$U$200,19,FALSE)),0.0000000001,VLOOKUP(A130,Clients!$B$3:$U$200,19,FALSE)) -> 1e-10 | E130: UE | F130: Particulier | G130: DD | H130: France hors intra réseau | I130: Visa - CB | J130: Electron | K130: P
A131: UEParticulierDDFrance hors intra réseauVisa - CBVisa - CBP | B131: =IF(AND(ISNA(VLOOKUP(A131,Clients!$B$3:$U$165,19,FALSE)),E131="UE"),$G$199,IF(AND(ISNA(VLOOKUP(A131,Clients!$B$3:$U$165,19,FALSE)),E131="Etranger hors UE"),$G$200,D131/C131)) -> 0 | C131: =IF(ISNA(VLOOKUP(A131,Clients!$B$3:$U$165,18,FALSE)),D131/B131,VLOOKUP(A131,Clients!$B$3:$U$165,18,FALSE)) ->  | D131: =IF(ISNA(VLOOKUP(A131,Clients!$B$3:$U$200,19,FALSE)),0.0000000001,VLOOKUP(A131,Clients!$B$3:$U$200,19,FALSE)) -> 1e-10 | E131: UE | F131: Particulier | G131: DD | H131: France hors intra réseau | I131: Visa - CB | J131: Visa - CB | K131: P
A132: UECommerciale BusinessDIFrance hors intra réseauVisa - CBVisa - CBE | B132: =IF(AND(ISNA(VLOOKUP(A132,Clients!$B$3:$U$165,19,FALSE)),E132="UE"),$G$199,IF(AND(ISNA(VLOOKUP(A132,Clients!$B$3:$U$165,19,FALSE)),E132="Etranger hors UE"),$G$200,D132/C132)) -> 0 | C132: =IF(ISNA(VLOOKUP(A132,Clients!$B$3:$U$165,18,FALSE)),D132/B132,VLOOKUP(A132,Clients!$B$3:$U$165,18,FALSE)) ->  | D132: =IF(ISNA(VLOOKUP(A132,Clients!$B$3:$U$200,19,FALSE)),0.0000000001,VLOOKUP(A132,Clients!$B$3:$U$200,19,FALSE)) -> 1e-10 | E132: UE | F132: Commerciale Business | G132: DI | H132: France hors intra réseau | I132: Visa - CB | J132: Visa - CB | K132: E
A133: =E133&F133&G133&H133&I133&J133&K133 -> UECommerciale BusinessDIFrance hors intra réseauVisa - CBVPayE | B133: =IF(AND(ISNA(VLOOKUP(A133,Clients!$B$3:$U$165,19,FALSE)),E133="UE"),$G$199,IF(AND(ISNA(VLOOKUP(A133,Clients!$B$3:$U$165,19,FALSE)),E133="Etranger hors UE"),$G$200,D133/C133)) -> 0 | C133: =IF(ISNA(VLOOKUP(A133,Clients!$B$3:$U$165,18,FALSE)),D133/B133,VLOOKUP(A133,Clients!$B$3:$U$165,18,FALSE)) ->  | D133: =IF(ISNA(VLOOKUP(A133,Clients!$B$3:$U$200,19,FALSE)),0.0000000001,VLOOKUP(A133,Clients!$B$3:$U$200,19,FALSE)) -> 1e-10 | E133: UE | F133: Commerciale Business | G133: DI | H133: France hors intra réseau | I133: Visa - CB | J133: VPay | K133: E
A134: UECommerciale CorporateDIFrance hors intra réseauVisa - CBVisa - CBE | B134: =IF(AND(ISNA(VLOOKUP(A134,Clients!$B$3:$U$165,19,FALSE)),E134="UE"),$G$199,IF(AND(ISNA(VLOOKUP(A134,Clients!$B$3:$U$165,19,FALSE)),E134="Etranger hors UE"),$G$200,D134/C134)) -> 0 | C134: =IF(ISNA(VLOOKUP(A134,Clients!$B$3:$U$165,18,FALSE)),D134/B134,VLOOKUP(A134,Clients!$B$3:$U$165,18,FALSE)) ->  | D134: =IF(ISNA(VLOOKUP(A134,Clients!$B$3:$U$200,19,FALSE)),0.0000000001,VLOOKUP(A134,Clients!$B$3:$U$200,19,FALSE)) -> 1e-10 | E134: UE | F134: Commerciale Corporate | G134: DI | H134: France hors intra réseau | I134: Visa - CB | J134: Visa - CB | K134: E
A135: UECommerciale BusinessDIFrance hors intra réseauVisa - CBElectronP | B135: =IF(AND(ISNA(VLOOKUP(A135,Clients!$B$3:$U$165,19,FALSE)),E135="UE"),$G$199,IF(AND(ISNA(VLOOKUP(A135,Clients!$B$3:$U$165,19,FALSE)),E135="Etranger hors UE"),$G$200,D135/C135)) -> 0 | C135: =IF(ISNA(VLOOKUP(A135,Clients!$B$3:$U$165,18,FALSE)),D135/B135,VLOOKUP(A135,Clients!$B$3:$U$165,18,FALSE)) ->  | D135: =IF(ISNA(VLOOKUP(A135,Clients!$B$3:$U$200,19,FALSE)),0.0000000001,VLOOKUP(A135,Clients!$B$3:$U$200,19,FALSE)) -> 1e-10 | E135: UE | F135: Commerciale Business | G135: DI | H135: France hors intra réseau | I135: Visa - CB | J135: Electron | K135: P
A136: UECommerciale BusinessDIFrance hors intra réseauVisa - CBVisa - CBP | B136: =IF(AND(ISNA(VLOOKUP(A136,Clients!$B$3:$U$165,19,FALSE)),E136="UE"),$G$199,IF(AND(ISNA(VLOOKUP(A136,Clients!$B$3:$U$165,19,FALSE)),E136="Etranger hors UE"),$G$200,D136/C136)) -> 0 | C136: =IF(ISNA(VLOOKUP(A136,Clients!$B$3:$U$165,18,FALSE)),D136/B136,VLOOKUP(A136,Clients!$B$3:$U$165,18,FALSE)) ->  | D136: =IF(ISNA(VLOOKUP(A136,Clients!$B$3:$U$200,19,FALSE)),0.0000000001,VLOOKUP(A136,Clients!$B$3:$U$200,19,FALSE)) -> 1e-10 | E136: UE | F136: Commerciale Business | G136: DI | H136: France hors intra réseau | I136: Visa - CB | J136: Visa - CB | K136: P
A137: UECommerciale BusinessDIFrance hors intra réseauVisa - CBVPayP | B137: =IF(AND(ISNA(VLOOKUP(A137,Clients!$B$3:$U$165,19,FALSE)),E137="UE"),$G$199,IF(AND(ISNA(VLOOKUP(A137,Clients!$B$3:$U$165,19,FALSE)),E137="Etranger hors UE"),$G$200,D137/C137)) -> 0 | C137: =IF(ISNA(VLOOKUP(A137,Clients!$B$3:$U$165,18,FALSE)),D137/B137,VLOOKUP(A137,Clients!$B$3:$U$165,18,FALSE)) ->  | D137: =IF(ISNA(VLOOKUP(A137,Clients!$B$3:$U$200,19,FALSE)),0.0000000001,VLOOKUP(A137,Clients!$B$3:$U$200,19,FALSE)) -> 1e-10 | E137: UE | F137: Commerciale Business | G137: DI | H137: France hors intra réseau | I137: Visa - CB | J137: VPay | K137: P
A138: UECommerciale CorporateDIFrance hors intra réseauVisa - CBElectronP | B138: =IF(AND(ISNA(VLOOKUP(A138,Clients!$B$3:$U$165,19,FALSE)),E138="UE"),$G$199,IF(AND(ISNA(VLOOKUP(A138,Clients!$B$3:$U$165,19,FALSE)),E138="Etranger hors UE"),$G$200,D138/C138)) -> 0 | C138: =IF(ISNA(VLOOKUP(A138,Clients!$B$3:$U$165,18,FALSE)),D138/B138,VLOOKUP(A138,Clients!$B$3:$U$165,18,FALSE)) ->  | D138: =IF(ISNA(VLOOKUP(A138,Clients!$B$3:$U$200,19,FALSE)),0.0000000001,VLOOKUP(A138,Clients!$B$3:$U$200,19,FALSE)) -> 1e-10 | E138: UE | F138: Commerciale Corporate | G138: DI | H138: France hors intra réseau | I138: Visa - CB | J138: Electron | K138: P
A139: UECommerciale CorporateDIFrance hors intra réseauVisa - CBVisa - CBP | B139: =IF(AND(ISNA(VLOOKUP(A139,Clients!$B$3:$U$165,19,FALSE)),E139="UE"),$G$199,IF(AND(ISNA(VLOOKUP(A139,Clients!$B$3:$U$165,19,FALSE)),E139="Etranger hors UE"),$G$200,D139/C139)) -> 0 | C139: =IF(ISNA(VLOOKUP(A139,Clients!$B$3:$U$165,18,FALSE)),D139/B139,VLOOKUP(A139,Clients!$B$3:$U$165,18,FALSE)) ->  | D139: =IF(ISNA(VLOOKUP(A139,Clients!$B$3:$U$200,19,FALSE)),0.0000000001,VLOOKUP(A139,Clients!$B$3:$U$200,19,FALSE)) -> 1e-10 | E139: UE | F139: Commerciale Corporate | G139: DI | H139: France hors intra réseau | I139: Visa - CB | J139: Visa - CB | K139: P
A140: UECommerciale CorporateDIFrance hors intra réseauVisa - CBVPayP | B140: =IF(AND(ISNA(VLOOKUP(A140,Clients!$B$3:$U$165,19,FALSE)),E140="UE"),$G$199,IF(AND(ISNA(VLOOKUP(A140,Clients!$B$3:$U$165,19,FALSE)),E140="Etranger hors UE"),$G$200,D140/C140)) -> 0 | C140: =IF(ISNA(VLOOKUP(A140,Clients!$B$3:$U$165,18,FALSE)),D140/B140,VLOOKUP(A140,Clients!$B$3:$U$165,18,FALSE)) ->  | D140: =IF(ISNA(VLOOKUP(A140,Clients!$B$3:$U$200,19,FALSE)),0.0000000001,VLOOKUP(A140,Clients!$B$3:$U$200,19,FALSE)) -> 1e-10 | E140: UE | F140: Commerciale Corporate | G140: DI | H140: France hors intra réseau | I140: Visa - CB | J140: VPay | K140: P
A141: UEParticulierDIFrance hors intra réseauVisa - CBElectronP | B141: =IF(AND(ISNA(VLOOKUP(A141,Clients!$B$3:$U$165,19,FALSE)),E141="UE"),$G$199,IF(AND(ISNA(VLOOKUP(A141,Clients!$B$3:$U$165,19,FALSE)),E141="Etranger hors UE"),$G$200,D141/C141)) -> 0 | C141: =IF(ISNA(VLOOKUP(A141,Clients!$B$3:$U$165,18,FALSE)),D141/B141,VLOOKUP(A141,Clients!$B$3:$U$165,18,FALSE)) ->  | D141: =IF(ISNA(VLOOKUP(A141,Clients!$B$3:$U$200,19,FALSE)),0.0000000001,VLOOKUP(A141,Clients!$B$3:$U$200,19,FALSE)) -> 1e-10 | E141: UE | F141: Particulier | G141: DI | H141: France hors intra réseau | I141: Visa - CB | J141: Electron | K141: P
A142: UEParticulierDIFrance hors intra réseauVisa - CBVisa - CBP | B142: =IF(AND(ISNA(VLOOKUP(A142,Clients!$B$3:$U$165,19,FALSE)),E142="UE"),$G$199,IF(AND(ISNA(VLOOKUP(A142,Clients!$B$3:$U$165,19,FALSE)),E142="Etranger hors UE"),$G$200,D142/C142)) -> 0 | C142: =IF(ISNA(VLOOKUP(A142,Clients!$B$3:$U$165,18,FALSE)),D142/B142,VLOOKUP(A142,Clients!$B$3:$U$165,18,FALSE)) ->  | D142: =IF(ISNA(VLOOKUP(A142,Clients!$B$3:$U$200,19,FALSE)),0.0000000001,VLOOKUP(A142,Clients!$B$3:$U$200,19,FALSE)) -> 1e-10 | E142: UE | F142: Particulier | G142: DI | H142: France hors intra réseau | I142: Visa - CB | J142: Visa - CB | K142: P
A143: UEParticulierDIFrance hors intra réseauVisa - CBVPayP | B143: =IF(AND(ISNA(VLOOKUP(A143,Clients!$B$3:$U$165,19,FALSE)),E143="UE"),$G$199,IF(AND(ISNA(VLOOKUP(A143,Clients!$B$3:$U$165,19,FALSE)),E143="Etranger hors UE"),$G$200,D143/C143)) -> 0 | C143: =IF(ISNA(VLOOKUP(A143,Clients!$B$3:$U$165,18,FALSE)),D143/B143,VLOOKUP(A143,Clients!$B$3:$U$165,18,FALSE)) ->  | D143: =IF(ISNA(VLOOKUP(A143,Clients!$B$3:$U$200,19,FALSE)),0.0000000001,VLOOKUP(A143,Clients!$B$3:$U$200,19,FALSE)) -> 1e-10 | E143: UE | F143: Particulier | G143: DI | H143: France hors intra réseau | I143: Visa - CB | J143: VPay | K143: P
A144: UECommerciale BusinessDDIntra réseauVisa - CBVisa - CBE | B144: =IF(AND(ISNA(VLOOKUP(A144,Clients!$B$3:$U$165,19,FALSE)),E144="UE"),$G$199,IF(AND(ISNA(VLOOKUP(A144,Clients!$B$3:$U$165,19,FALSE)),E144="Etranger hors UE"),$G$200,D144/C144)) -> 0 | C144: =IF(ISNA(VLOOKUP(A144,Clients!$B$3:$U$165,18,FALSE)),D144/B144,VLOOKUP(A144,Clients!$B$3:$U$165,18,FALSE)) ->  | D144: =IF(ISNA(VLOOKUP(A144,Clients!$B$3:$U$200,19,FALSE)),0.0000000001,VLOOKUP(A144,Clients!$B$3:$U$200,19,FALSE)) -> 1e-10 | E144: UE | F144: Commerciale Business | G144: DD | H144: Intra réseau | I144: Visa - CB | J144: Visa - CB | K144: E
A145: UECommerciale BusinessDDIntra réseauVisa - CBVisa - CBP | B145: =IF(AND(ISNA(VLOOKUP(A145,Clients!$B$3:$U$165,19,FALSE)),E145="UE"),$G$199,IF(AND(ISNA(VLOOKUP(A145,Clients!$B$3:$U$165,19,FALSE)),E145="Etranger hors UE"),$G$200,D145/C145)) -> 0 | C145: =IF(ISNA(VLOOKUP(A145,Clients!$B$3:$U$165,18,FALSE)),D145/B145,VLOOKUP(A145,Clients!$B$3:$U$165,18,FALSE)) ->  | D145: =IF(ISNA(VLOOKUP(A145,Clients!$B$3:$U$200,19,FALSE)),0.0000000001,VLOOKUP(A145,Clients!$B$3:$U$200,19,FALSE)) -> 1e-10 | E145: UE | F145: Commerciale Business | G145: DD | H145: Intra réseau | I145: Visa - CB | J145: Visa - CB | K145: P
A146: UECommerciale CorporateDDIntra réseauVisa - CBVisa - CBP | B146: =IF(AND(ISNA(VLOOKUP(A146,Clients!$B$3:$U$165,19,FALSE)),E146="UE"),$G$199,IF(AND(ISNA(VLOOKUP(A146,Clients!$B$3:$U$165,19,FALSE)),E146="Etranger hors UE"),$G$200,D146/C146)) -> 0 | C146: =IF(ISNA(VLOOKUP(A146,Clients!$B$3:$U$165,18,FALSE)),D146/B146,VLOOKUP(A146,Clients!$B$3:$U$165,18,FALSE)) ->  | D146: =IF(ISNA(VLOOKUP(A146,Clients!$B$3:$U$200,19,FALSE)),0.0000000001,VLOOKUP(A146,Clients!$B$3:$U$200,19,FALSE)) -> 1e-10 | E146: UE | F146: Commerciale Corporate | G146: DD | H146: Intra réseau | I146: Visa - CB | J146: Visa - CB | K146: P
A147: UEParticulierDDIntra réseauVisa - CBVisa - CBP | B147: =IF(AND(ISNA(VLOOKUP(A147,Clients!$B$3:$U$165,19,FALSE)),E147="UE"),$G$199,IF(AND(ISNA(VLOOKUP(A147,Clients!$B$3:$U$165,19,FALSE)),E147="Etranger hors UE"),$G$200,D147/C147)) -> 0 | C147: =IF(ISNA(VLOOKUP(A147,Clients!$B$3:$U$165,18,FALSE)),D147/B147,VLOOKUP(A147,Clients!$B$3:$U$165,18,FALSE)) ->  | D147: =IF(ISNA(VLOOKUP(A147,Clients!$B$3:$U$200,19,FALSE)),0.0000000001,VLOOKUP(A147,Clients!$B$3:$U$200,19,FALSE)) -> 1e-10 | E147: UE | F147: Particulier | G147: DD | H147: Intra réseau | I147: Visa - CB | J147: Visa - CB | K147: P
A148: UECommerciale BusinessDIIntra réseauVisa - CBVisa - CBE | B148: =IF(AND(ISNA(VLOOKUP(A148,Clients!$B$3:$U$165,19,FALSE)),E148="UE"),$G$199,IF(AND(ISNA(VLOOKUP(A148,Clients!$B$3:$U$165,19,FALSE)),E148="Etranger hors UE"),$G$200,D148/C148)) -> 0 | C148: =IF(ISNA(VLOOKUP(A148,Clients!$B$3:$U$165,18,FALSE)),D148/B148,VLOOKUP(A148,Clients!$B$3:$U$165,18,FALSE)) ->  | D148: =IF(ISNA(VLOOKUP(A148,Clients!$B$3:$U$200,19,FALSE)),0.0000000001,VLOOKUP(A148,Clients!$B$3:$U$200,19,FALSE)) -> 1e-10 | E148: UE | F148: Commerciale Business | G148: DI | H148: Intra réseau | I148: Visa - CB | J148: Visa - CB | K148: E
A149: UECommerciale BusinessDIIntra réseauVisa - CBElectronP | B149: =IF(AND(ISNA(VLOOKUP(A149,Clients!$B$3:$U$165,19,FALSE)),E149="UE"),$G$199,IF(AND(ISNA(VLOOKUP(A149,Clients!$B$3:$U$165,19,FALSE)),E149="Etranger hors UE"),$G$200,D149/C149)) -> 0 | C149: =IF(ISNA(VLOOKUP(A149,Clients!$B$3:$U$165,18,FALSE)),D149/B149,VLOOKUP(A149,Clients!$B$3:$U$165,18,FALSE)) ->  | D149: =IF(ISNA(VLOOKUP(A149,Clients!$B$3:$U$200,19,FALSE)),0.0000000001,VLOOKUP(A149,Clients!$B$3:$U$200,19,FALSE)) -> 1e-10 | E149: UE | F149: Commerciale Business | G149: DI | H149: Intra réseau | I149: Visa - CB | J149: Electron | K149: P
A150: UECommerciale BusinessDIIntra réseauVisa - CBVisa - CBP | B150: =IF(AND(ISNA(VLOOKUP(A150,Clients!$B$3:$U$165,19,FALSE)),E150="UE"),$G$199,IF(AND(ISNA(VLOOKUP(A150,Clients!$B$3:$U$165,19,FALSE)),E150="Etranger hors UE"),$G$200,D150/C150)) -> 0 | C150: =IF(ISNA(VLOOKUP(A150,Clients!$B$3:$U$165,18,FALSE)),D150/B150,VLOOKUP(A150,Clients!$B$3:$U$165,18,FALSE)) ->  | D150: =IF(ISNA(VLOOKUP(A150,Clients!$B$3:$U$200,19,FALSE)),0.0000000001,VLOOKUP(A150,Clients!$B$3:$U$200,19,FALSE)) -> 1e-10 | E150: UE | F150: Commerciale Business | G150: DI | H150: Intra réseau | I150: Visa - CB | J150: Visa - CB | K150: P
A151: UECommerciale BusinessDIIntra réseauVisa - CBVPayP | B151: =IF(AND(ISNA(VLOOKUP(A151,Clients!$B$3:$U$165,19,FALSE)),E151="UE"),$G$199,IF(AND(ISNA(VLOOKUP(A151,Clients!$B$3:$U$165,19,FALSE)),E151="Etranger hors UE"),$G$200,D151/C151)) -> 0 | C151: =IF(ISNA(VLOOKUP(A151,Clients!$B$3:$U$165,18,FALSE)),D151/B151,VLOOKUP(A151,Clients!$B$3:$U$165,18,FALSE)) ->  | D151: =IF(ISNA(VLOOKUP(A151,Clients!$B$3:$U$200,19,FALSE)),0.0000000001,VLOOKUP(A151,Clients!$B$3:$U$200,19,FALSE)) -> 1e-10 | E151: UE | F151: Commerciale Business | G151: DI | H151: Intra réseau | I151: Visa - CB | J151: VPay | K151: P
A152: UECommerciale CorporateDIIntra réseauVisa - CBElectronP | B152: =IF(AND(ISNA(VLOOKUP(A152,Clients!$B$3:$U$165,19,FALSE)),E152="UE"),$G$199,IF(AND(ISNA(VLOOKUP(A152,Clients!$B$3:$U$165,19,FALSE)),E152="Etranger hors UE"),$G$200,D152/C152)) -> 0 | C152: =IF(ISNA(VLOOKUP(A152,Clients!$B$3:$U$165,18,FALSE)),D152/B152,VLOOKUP(A152,Clients!$B$3:$U$165,18,FALSE)) ->  | D152: =IF(ISNA(VLOOKUP(A152,Clients!$B$3:$U$200,19,FALSE)),0.0000000001,VLOOKUP(A152,Clients!$B$3:$U$200,19,FALSE)) -> 1e-10 | E152: UE | F152: Commerciale Corporate | G152: DI | H152: Intra réseau | I152: Visa - CB | J152: Electron | K152: P
A153: UECommerciale CorporateDIIntra réseauVisa - CBVisa - CBP | B153: =IF(AND(ISNA(VLOOKUP(A153,Clients!$B$3:$U$165,19,FALSE)),E153="UE"),$G$199,IF(AND(ISNA(VLOOKUP(A153,Clients!$B$3:$U$165,19,FALSE)),E153="Etranger hors UE"),$G$200,D153/C153)) -> 0 | C153: =IF(ISNA(VLOOKUP(A153,Clients!$B$3:$U$165,18,FALSE)),D153/B153,VLOOKUP(A153,Clients!$B$3:$U$165,18,FALSE)) ->  | D153: =IF(ISNA(VLOOKUP(A153,Clients!$B$3:$U$200,19,FALSE)),0.0000000001,VLOOKUP(A153,Clients!$B$3:$U$200,19,FALSE)) -> 1e-10 | E153: UE | F153: Commerciale Corporate | G153: DI | H153: Intra réseau | I153: Visa - CB | J153: Visa - CB | K153: P
A154: UECommerciale CorporateDIIntra réseauVisa - CBVPayP | B154: =IF(AND(ISNA(VLOOKUP(A154,Clients!$B$3:$U$165,19,FALSE)),E154="UE"),$G$199,IF(AND(ISNA(VLOOKUP(A154,Clients!$B$3:$U$165,19,FALSE)),E154="Etranger hors UE"),$G$200,D154/C154)) -> 0 | C154: =IF(ISNA(VLOOKUP(A154,Clients!$B$3:$U$165,18,FALSE)),D154/B154,VLOOKUP(A154,Clients!$B$3:$U$165,18,FALSE)) ->  | D154: =IF(ISNA(VLOOKUP(A154,Clients!$B$3:$U$200,19,FALSE)),0.0000000001,VLOOKUP(A154,Clients!$B$3:$U$200,19,FALSE)) -> 1e-10 | E154: UE | F154: Commerciale Corporate | G154: DI | H154: Intra réseau | I154: Visa - CB | J154: VPay | K154: P
A155: UEParticulierDIIntra réseauVisa - CBElectronP | B155: =IF(AND(ISNA(VLOOKUP(A155,Clients!$B$3:$U$165,19,FALSE)),E155="UE"),$G$199,IF(AND(ISNA(VLOOKUP(A155,Clients!$B$3:$U$165,19,FALSE)),E155="Etranger hors UE"),$G$200,D155/C155)) -> 0 | C155: =IF(ISNA(VLOOKUP(A155,Clients!$B$3:$U$165,18,FALSE)),D155/B155,VLOOKUP(A155,Clients!$B$3:$U$165,18,FALSE)) ->  | D155: =IF(ISNA(VLOOKUP(A155,Clients!$B$3:$U$200,19,FALSE)),0.0000000001,VLOOKUP(A155,Clients!$B$3:$U$200,19,FALSE)) -> 1e-10 | E155: UE | F155: Particulier | G155: DI | H155: Intra réseau | I155: Visa - CB | J155: Electron | K155: P
A156: UEParticulierDIIntra réseauVisa - CBVisa - CBP | B156: =IF(AND(ISNA(VLOOKUP(A156,Clients!$B$3:$U$165,19,FALSE)),E156="UE"),$G$199,IF(AND(ISNA(VLOOKUP(A156,Clients!$B$3:$U$165,19,FALSE)),E156="Etranger hors UE"),$G$200,D156/C156)) -> 0 | C156: =IF(ISNA(VLOOKUP(A156,Clients!$B$3:$U$165,18,FALSE)),D156/B156,VLOOKUP(A156,Clients!$B$3:$U$165,18,FALSE)) ->  | D156: =IF(ISNA(VLOOKUP(A156,Clients!$B$3:$U$200,19,FALSE)),0.0000000001,VLOOKUP(A156,Clients!$B$3:$U$200,19,FALSE)) -> 1e-10 | E156: UE | F156: Particulier | G156: DI | H156: Intra réseau | I156: Visa - CB | J156: Visa - CB | K156: P
A157: UEParticulierDIIntra réseauVisa - CBVPayP | B157: =IF(AND(ISNA(VLOOKUP(A157,Clients!$B$3:$U$165,19,FALSE)),E157="UE"),$G$199,IF(AND(ISNA(VLOOKUP(A157,Clients!$B$3:$U$165,19,FALSE)),E157="Etranger hors UE"),$G$200,D157/C157)) -> 0 | C157: =IF(ISNA(VLOOKUP(A157,Clients!$B$3:$U$165,18,FALSE)),D157/B157,VLOOKUP(A157,Clients!$B$3:$U$165,18,FALSE)) ->  | D157: =IF(ISNA(VLOOKUP(A157,Clients!$B$3:$U$200,19,FALSE)),0.0000000001,VLOOKUP(A157,Clients!$B$3:$U$200,19,FALSE)) -> 1e-10 | E157: UE | F157: Particulier | G157: DI | H157: Intra réseau | I157: Visa - CB | J157: VPay | K157: P
A158: UEParticulierDIFrance hors intra réseauMastercardMastercardP | B158: =IF(AND(ISNA(VLOOKUP(A158,Clients!$B$3:$U$165,19,FALSE)),E158="UE"),$G$199,IF(AND(ISNA(VLOOKUP(A158,Clients!$B$3:$U$165,19,FALSE)),E158="Etranger hors UE"),$G$200,D158/C158)) -> 0 | C158: =IF(ISNA(VLOOKUP(A158,Clients!$B$3:$U$165,18,FALSE)),D158/B158,VLOOKUP(A158,Clients!$B$3:$U$165,18,FALSE)) ->  | D158: =IF(ISNA(VLOOKUP(A158,Clients!$B$3:$U$200,19,FALSE)),0.0000000001,VLOOKUP(A158,Clients!$B$3:$U$200,19,FALSE)) -> 1e-10 | E158: UE | F158: Particulier | G158: DI | H158: France hors intra réseau | I158: Mastercard | J158: Mastercard | K158: P
A159: UECommerciale BusinessDIFrance hors intra réseauMastercardMastercardE | B159: =IF(AND(ISNA(VLOOKUP(A159,Clients!$B$3:$U$165,19,FALSE)),E159="UE"),$G$199,IF(AND(ISNA(VLOOKUP(A159,Clients!$B$3:$U$165,19,FALSE)),E159="Etranger hors UE"),$G$200,D159/C159)) -> 0 | C159: =IF(ISNA(VLOOKUP(A159,Clients!$B$3:$U$165,18,FALSE)),D159/B159,VLOOKUP(A159,Clients!$B$3:$U$165,18,FALSE)) ->  | D159: =IF(ISNA(VLOOKUP(A159,Clients!$B$3:$U$200,19,FALSE)),0.0000000001,VLOOKUP(A159,Clients!$B$3:$U$200,19,FALSE)) -> 1e-10 | E159: UE | F159: Commerciale Business | G159: DI | H159: France hors intra réseau | I159: Mastercard | J159: Mastercard | K159: E
A160: UECommerciale BusinessDDFrance hors intra réseauMastercardMastercardE | B160: =IF(AND(ISNA(VLOOKUP(A160,Clients!$B$3:$U$165,19,FALSE)),E160="UE"),$G$199,IF(AND(ISNA(VLOOKUP(A160,Clients!$B$3:$U$165,19,FALSE)),E160="Etranger hors UE"),$G$200,D160/C160)) -> 0 | C160: =IF(ISNA(VLOOKUP(A160,Clients!$B$3:$U$165,18,FALSE)),D160/B160,VLOOKUP(A160,Clients!$B$3:$U$165,18,FALSE)) ->  | D160: =IF(ISNA(VLOOKUP(A160,Clients!$B$3:$U$200,19,FALSE)),0.0000000001,VLOOKUP(A160,Clients!$B$3:$U$200,19,FALSE)) -> 1e-10 | E160: UE | F160: Commerciale Business | G160: DD | H160: France hors intra réseau | I160: Mastercard | J160: Mastercard | K160: E
A161: UECommerciale CorporateDDFrance hors intra réseauMastercardMastercardE | B161: =IF(AND(ISNA(VLOOKUP(A161,Clients!$B$3:$U$165,19,FALSE)),E161="UE"),$G$199,IF(AND(ISNA(VLOOKUP(A161,Clients!$B$3:$U$165,19,FALSE)),E161="Etranger hors UE"),$G$200,D161/C161)) -> 0 | C161: =IF(ISNA(VLOOKUP(A161,Clients!$B$3:$U$165,18,FALSE)),D161/B161,VLOOKUP(A161,Clients!$B$3:$U$165,18,FALSE)) ->  | D161: =IF(ISNA(VLOOKUP(A161,Clients!$B$3:$U$200,19,FALSE)),0.0000000001,VLOOKUP(A161,Clients!$B$3:$U$200,19,FALSE)) -> 1e-10 | E161: UE | F161: Commerciale Corporate | G161: DD | H161: France hors intra réseau | I161: Mastercard | J161: Mastercard | K161: E
A162: UECommerciale BusinessDIFrance hors intra réseauVisaVisaE | B162: =IF(AND(ISNA(VLOOKUP(A162,Clients!$B$3:$U$165,19,FALSE)),E162="UE"),$G$199,IF(AND(ISNA(VLOOKUP(A162,Clients!$B$3:$U$165,19,FALSE)),E162="Etranger hors UE"),$G$200,D162/C162)) -> 0 | C162: =IF(ISNA(VLOOKUP(A162,Clients!$B$3:$U$165,18,FALSE)),D162/B162,VLOOKUP(A162,Clients!$B$3:$U$165,18,FALSE)) ->  | D162: =IF(ISNA(VLOOKUP(A162,Clients!$B$3:$U$200,19,FALSE)),0.0000000001,VLOOKUP(A162,Clients!$B$3:$U$200,19,FALSE)) -> 1e-10 | E162: UE | F162: Commerciale Business | G162: DI | H162: France hors intra réseau | I162: Visa | J162: Visa | K162: E
A163: UECommerciale BusinessDDFrance hors intra réseauVisaVisaE | B163: =IF(AND(ISNA(VLOOKUP(A163,Clients!$B$3:$U$165,19,FALSE)),E163="UE"),$G$199,IF(AND(ISNA(VLOOKUP(A163,Clients!$B$3:$U$165,19,FALSE)),E163="Etranger hors UE"),$G$200,D163/C163)) -> 0 | C163: =IF(ISNA(VLOOKUP(A163,Clients!$B$3:$U$165,18,FALSE)),D163/B163,VLOOKUP(A163,Clients!$B$3:$U$165,18,FALSE)) ->  | D163: =IF(ISNA(VLOOKUP(A163,Clients!$B$3:$U$200,19,FALSE)),0.0000000001,VLOOKUP(A163,Clients!$B$3:$U$200,19,FALSE)) -> 1e-10 | E163: UE | F163: Commerciale Business | G163: DD | H163: France hors intra réseau | I163: Visa | J163: Visa | K163: E
A164: UECommerciale CorporateDDFrance hors intra réseauVisaVisaE | B164: =IF(AND(ISNA(VLOOKUP(A164,Clients!$B$3:$U$165,19,FALSE)),E164="UE"),$G$199,IF(AND(ISNA(VLOOKUP(A164,Clients!$B$3:$U$165,19,FALSE)),E164="Etranger hors UE"),$G$200,D164/C164)) -> 0 | C164: =IF(ISNA(VLOOKUP(A164,Clients!$B$3:$U$165,18,FALSE)),D164/B164,VLOOKUP(A164,Clients!$B$3:$U$165,18,FALSE)) ->  | D164: =IF(ISNA(VLOOKUP(A164,Clients!$B$3:$U$200,19,FALSE)),0.0000000001,VLOOKUP(A164,Clients!$B$3:$U$200,19,FALSE)) -> 1e-10 | E164: UE | F164: Commerciale Corporate | G164: DD | H164: France hors intra réseau | I164: Visa | J164: Visa | K164: E
A165: UECommerciale CorporateDDFrance hors intra réseauMastercardMastercardP | B165: =IF(AND(ISNA(VLOOKUP(A165,Clients!$B$3:$U$165,19,FALSE)),E165="UE"),$G$199,IF(AND(ISNA(VLOOKUP(A165,Clients!$B$3:$U$165,19,FALSE)),E165="Etranger hors UE"),$G$200,D165/C165)) -> 0 | C165: =IF(ISNA(VLOOKUP(A165,Clients!$B$3:$U$165,18,FALSE)),D165/B165,VLOOKUP(A165,Clients!$B$3:$U$165,18,FALSE)) ->  | D165: =IF(ISNA(VLOOKUP(A165,Clients!$B$3:$U$200,19,FALSE)),0.0000000001,VLOOKUP(A165,Clients!$B$3:$U$200,19,FALSE)) -> 1e-10 | E165: UE | F165: Commerciale Corporate | G165: DD | H165: France hors intra réseau | I165: Mastercard | J165: Mastercard | K165: P
A166: UECommerciale CorporateDDFrance hors intra réseauVisaVisaP | B166: =IF(AND(ISNA(VLOOKUP(A166,Clients!$B$3:$U$165,19,FALSE)),E166="UE"),$G$199,IF(AND(ISNA(VLOOKUP(A166,Clients!$B$3:$U$165,19,FALSE)),E166="Etranger hors UE"),$G$200,D166/C166)) -> 0 | C166: =IF(ISNA(VLOOKUP(A166,Clients!$B$3:$U$165,18,FALSE)),D166/B166,VLOOKUP(A166,Clients!$B$3:$U$165,18,FALSE)) ->  | D166: =IF(ISNA(VLOOKUP(A166,Clients!$B$3:$U$200,19,FALSE)),0.0000000001,VLOOKUP(A166,Clients!$B$3:$U$200,19,FALSE)) -> 1e-10 | E166: UE | F166: Commerciale Corporate | G166: DD | H166: France hors intra réseau | I166: Visa | J166: Visa | K166: P
A167: UEParticulierDIIntra réseauVisaVisaP | B167: =IF(AND(ISNA(VLOOKUP(A167,Clients!$B$3:$U$165,19,FALSE)),E167="UE"),$G$199,IF(AND(ISNA(VLOOKUP(A167,Clients!$B$3:$U$165,19,FALSE)),E167="Etranger hors UE"),$G$200,D167/C167)) -> 0 | C167: =IF(ISNA(VLOOKUP(A167,Clients!$B$3:$U$165,18,FALSE)),D167/B167,VLOOKUP(A167,Clients!$B$3:$U$165,18,FALSE)) ->  | D167: =IF(ISNA(VLOOKUP(A167,Clients!$B$3:$U$200,19,FALSE)),0.0000000001,VLOOKUP(A167,Clients!$B$3:$U$200,19,FALSE)) -> 1e-10 | E167: UE | F167: Particulier | G167: DI | H167: Intra réseau | I167: Visa | J167: Visa | K167: P
A168: UEParticulierDDIntra réseauVisaVisaP | B168: =IF(AND(ISNA(VLOOKUP(A168,Clients!$B$3:$U$165,19,FALSE)),E168="UE"),$G$199,IF(AND(ISNA(VLOOKUP(A168,Clients!$B$3:$U$165,19,FALSE)),E168="Etranger hors UE"),$G$200,D168/C168)) -> 0 | C168: =IF(ISNA(VLOOKUP(A168,Clients!$B$3:$U$165,18,FALSE)),D168/B168,VLOOKUP(A168,Clients!$B$3:$U$165,18,FALSE)) ->  | D168: =IF(ISNA(VLOOKUP(A168,Clients!$B$3:$U$200,19,FALSE)),0.0000000001,VLOOKUP(A168,Clients!$B$3:$U$200,19,FALSE)) -> 1e-10 | E168: UE | F168: Particulier | G168: DD | H168: Intra réseau | I168: Visa | J168: Visa | K168: P
A169: UECommerciale BusinessDIIntra réseauVisaVisaE | B169: =IF(AND(ISNA(VLOOKUP(A169,Clients!$B$3:$U$165,19,FALSE)),E169="UE"),$G$199,IF(AND(ISNA(VLOOKUP(A169,Clients!$B$3:$U$165,19,FALSE)),E169="Etranger hors UE"),$G$200,D169/C169)) -> 0 | C169: =IF(ISNA(VLOOKUP(A169,Clients!$B$3:$U$165,18,FALSE)),D169/B169,VLOOKUP(A169,Clients!$B$3:$U$165,18,FALSE)) ->  | D169: =IF(ISNA(VLOOKUP(A169,Clients!$B$3:$U$200,19,FALSE)),0.0000000001,VLOOKUP(A169,Clients!$B$3:$U$200,19,FALSE)) -> 1e-10 | E169: UE | F169: Commerciale Business | G169: DI | H169: Intra réseau | I169: Visa | J169: Visa | K169: E
A170: UECommerciale BusinessDDIntra réseauVisaVisaE | B170: =IF(AND(ISNA(VLOOKUP(A170,Clients!$B$3:$U$165,19,FALSE)),E170="UE"),$G$199,IF(AND(ISNA(VLOOKUP(A170,Clients!$B$3:$U$165,19,FALSE)),E170="Etranger hors UE"),$G$200,D170/C170)) -> 0 | C170: =IF(ISNA(VLOOKUP(A170,Clients!$B$3:$U$165,18,FALSE)),D170/B170,VLOOKUP(A170,Clients!$B$3:$U$165,18,FALSE)) ->  | D170: =IF(ISNA(VLOOKUP(A170,Clients!$B$3:$U$200,19,FALSE)),0.0000000001,VLOOKUP(A170,Clients!$B$3:$U$200,19,FALSE)) -> 1e-10 | E170: UE | F170: Commerciale Business | G170: DD | H170: Intra réseau | I170: Visa | J170: Visa | K170: E
A171: UECommerciale CorporateDDIntra réseauVisaVisaP | B171: =IF(AND(ISNA(VLOOKUP(A171,Clients!$B$3:$U$165,19,FALSE)),E171="UE"),$G$199,IF(AND(ISNA(VLOOKUP(A171,Clients!$B$3:$U$165,19,FALSE)),E171="Etranger hors UE"),$G$200,D171/C171)) -> 0 | C171: =IF(ISNA(VLOOKUP(A171,Clients!$B$3:$U$165,18,FALSE)),D171/B171,VLOOKUP(A171,Clients!$B$3:$U$165,18,FALSE)) ->  | D171: =IF(ISNA(VLOOKUP(A171,Clients!$B$3:$U$200,19,FALSE)),0.0000000001,VLOOKUP(A171,Clients!$B$3:$U$200,19,FALSE)) -> 1e-10 | E171: UE | F171: Commerciale Corporate | G171: DD | H171: Intra réseau | I171: Visa | J171: Visa | K171: P
A172: UECommerciale CorporateDDIntra réseauVisaVisaE | B172: =IF(AND(ISNA(VLOOKUP(A172,Clients!$B$3:$U$165,19,FALSE)),E172="UE"),$G$199,IF(AND(ISNA(VLOOKUP(A172,Clients!$B$3:$U$165,19,FALSE)),E172="Etranger hors UE"),$G$200,D172/C172)) -> 0 | C172: =IF(ISNA(VLOOKUP(A172,Clients!$B$3:$U$165,18,FALSE)),D172/B172,VLOOKUP(A172,Clients!$B$3:$U$165,18,FALSE)) ->  | D172: =IF(ISNA(VLOOKUP(A172,Clients!$B$3:$U$200,19,FALSE)),0.0000000001,VLOOKUP(A172,Clients!$B$3:$U$200,19,FALSE)) -> 1e-10 | E172: UE | F172: Commerciale Corporate | G172: DD | H172: Intra réseau | I172: Visa | J172: Visa | K172: E
A173: UEParticulierDIInter réseauVisaVisaP | B173: =IF(AND(ISNA(VLOOKUP(A173,Clients!$B$3:$U$165,19,FALSE)),E173="UE"),$G$199,IF(AND(ISNA(VLOOKUP(A173,Clients!$B$3:$U$165,19,FALSE)),E173="Etranger hors UE"),$G$200,D173/C173)) -> 0 | C173: =IF(ISNA(VLOOKUP(A173,Clients!$B$3:$U$165,18,FALSE)),D173/B173,VLOOKUP(A173,Clients!$B$3:$U$165,18,FALSE)) ->  | D173: =IF(ISNA(VLOOKUP(A173,Clients!$B$3:$U$200,19,FALSE)),0.0000000001,VLOOKUP(A173,Clients!$B$3:$U$200,19,FALSE)) -> 1e-10 | E173: UE | F173: Particulier | G173: DI | H173: Inter réseau | I173: Visa | J173: Visa | K173: P
A174: UEParticulierDDInter réseauVisaVisaP | B174: =IF(AND(ISNA(VLOOKUP(A174,Clients!$B$3:$U$165,19,FALSE)),E174="UE"),$G$199,IF(AND(ISNA(VLOOKUP(A174,Clients!$B$3:$U$165,19,FALSE)),E174="Etranger hors UE"),$G$200,D174/C174)) -> 0 | C174: =IF(ISNA(VLOOKUP(A174,Clients!$B$3:$U$165,18,FALSE)),D174/B174,VLOOKUP(A174,Clients!$B$3:$U$165,18,FALSE)) ->  | D174: =IF(ISNA(VLOOKUP(A174,Clients!$B$3:$U$200,19,FALSE)),0.0000000001,VLOOKUP(A174,Clients!$B$3:$U$200,19,FALSE)) -> 1e-10 | E174: UE | F174: Particulier | G174: DD | H174: Inter réseau | I174: Visa | J174: Visa | K174: P
A175: UECommerciale BusinessDDInter réseauVisaVisaE | B175: =IF(AND(ISNA(VLOOKUP(A175,Clients!$B$3:$U$165,19,FALSE)),E175="UE"),$G$199,IF(AND(ISNA(VLOOKUP(A175,Clients!$B$3:$U$165,19,FALSE)),E175="Etranger hors UE"),$G$200,D175/C175)) -> 0 | C175: =IF(ISNA(VLOOKUP(A175,Clients!$B$3:$U$165,18,FALSE)),D175/B175,VLOOKUP(A175,Clients!$B$3:$U$165,18,FALSE)) ->  | D175: =IF(ISNA(VLOOKUP(A175,Clients!$B$3:$U$200,19,FALSE)),0.0000000001,VLOOKUP(A175,Clients!$B$3:$U$200,19,FALSE)) -> 1e-10 | E175: UE | F175: Commerciale Business | G175: DI | H175: Inter réseau | I175: Visa | J175: Visa | K175: E
A176: UECommerciale BusinessDIInter réseauVisaVisaE | B176: =IF(AND(ISNA(VLOOKUP(A176,Clients!$B$3:$U$165,19,FALSE)),E176="UE"),$G$199,IF(AND(ISNA(VLOOKUP(A176,Clients!$B$3:$U$165,19,FALSE)),E176="Etranger hors UE"),$G$200,D176/C176)) -> 0 | C176: =IF(ISNA(VLOOKUP(A176,Clients!$B$3:$U$165,18,FALSE)),D176/B176,VLOOKUP(A176,Clients!$B$3:$U$165,18,FALSE)) ->  | D176: =IF(ISNA(VLOOKUP(A176,Clients!$B$3:$U$200,19,FALSE)),0.0000000001,VLOOKUP(A176,Clients!$B$3:$U$200,19,FALSE)) -> 1e-10 | E176: UE | F176: Commerciale Business | G176: DD | H176: Inter réseau | I176: Visa | J176: Visa | K176: E
A177: UECommerciale CorporateDDInter réseauVisaVisaE | B177: =IF(AND(ISNA(VLOOKUP(A177,Clients!$B$3:$U$165,19,FALSE)),E177="UE"),$G$199,IF(AND(ISNA(VLOOKUP(A177,Clients!$B$3:$U$165,19,FALSE)),E177="Etranger hors UE"),$G$200,D177/C177)) -> 0 | C177: =IF(ISNA(VLOOKUP(A177,Clients!$B$3:$U$165,18,FALSE)),D177/B177,VLOOKUP(A177,Clients!$B$3:$U$165,18,FALSE)) ->  | D177: =IF(ISNA(VLOOKUP(A177,Clients!$B$3:$U$200,19,FALSE)),0.0000000001,VLOOKUP(A177,Clients!$B$3:$U$200,19,FALSE)) -> 1e-10 | E177: UE | F177: Commerciale Corporate | G177: DD | H177: Inter réseau | I177: Visa | J177: Visa | K177: P
A178: UECommerciale CorporateDDInter réseauVisaVisaP | B178: =IF(AND(ISNA(VLOOKUP(A178,Clients!$B$3:$U$165,19,FALSE)),E178="UE"),$G$199,IF(AND(ISNA(VLOOKUP(A178,Clients!$B$3:$U$165,19,FALSE)),E178="Etranger hors UE"),$G$200,D178/C178)) -> 0 | C178: =IF(ISNA(VLOOKUP(A178,Clients!$B$3:$U$165,18,FALSE)),D178/B178,VLOOKUP(A178,Clients!$B$3:$U$165,18,FALSE)) ->  | D178: =IF(ISNA(VLOOKUP(A178,Clients!$B$3:$U$200,19,FALSE)),0.0000000001,VLOOKUP(A178,Clients!$B$3:$U$200,19,FALSE)) -> 1e-10 | E178: UE | F178: Commerciale Corporate | G178: DD | H178: Inter réseau | I178: Visa | J178: Visa | K178: E
C179: =SUM(C4:C178) ->  | D179: =SUM(D4:D178) -> 1.75e-08
C183: Compens autres flux | D183: Compens Intra | G183: GR2 | H183: Autor | I183: Compens
B184: Tarif GR1 | C184: =VLOOKUP(B185,C185:E191,2,FALSE) -> 0.0172 | D184: =VLOOKUP(B185,C185:E191,3,FALSE) -> 0.0081 | G184: Tranche AUTO | H184: ='Tranches GR'!I20 ->  | I184: ='Tranches GR'!I17 -> 
B185: =IF(Hypothèses!B18="",1,VLOOKUP(Hypothèses!B18,'Grand remettant'!A2:D292,4,FALSE)) -> 1 | C185: 1 | D185: 0.0172 | E185: 0.0081 | G185: Tranche forcée | H185: =IF(Hypothèses!C21="","",Hypothèses!C21) ->  | I185: =IF(Hypothèses!C22="","",Hypothèses!C22) -> 
C186: 2 | D186: 0.0162 | E186: 0.0076
C187: 3 | D187: 0.015 | E187: 0.007 | G187: Tarif GR2
C188: 4 | D188: 0.0141 | E188: 0.0066 | G188: Autorisation | H188: =IF(AND(Hypothèses!B21="",Hypothèses!C21=""),"",IF(Calculs!H185<>"",VLOOKUP(Calculs!H185,'Tranches GR'!G5:J14,4,FALSE),VLOOKUP(Calculs!H184,'Tranches GR'!G5:J14,4,FALSE))) -> 
C189: 5 | D189: 0.0127 | E189: 0.006 | G189: Compensation | H189: =IF(AND(Hypothèses!B22="",Hypothèses!C22=""),"",IF(Calculs!I185<>"",VLOOKUP(Calculs!I185,'Tranches GR'!G5:K14,5,FALSE),VLOOKUP(Calculs!I184,'Tranches GR'!G5:K14,5,FALSE))) -> 
C190: 6 | D190: 0.0111 | E190: 0.0056
C191: 7 | D191: 0.009 | E191: 0.005 | G191: Tarif NEXO
G192: Tranche retenue GR2 | H192: =IF(Calculs!I185<>"",Calculs!I185,Calculs!I184) -> 
G193: Tarif Nexo standard | H193: 0.0085
G194: Tarif Nexo GR2 | H194: =VLOOKUP(H192,'Tranches GR'!G4:J14,4,FALSE) -> 
G196: Tarif Portal standard | H196: 0.0035
G197: Tarif Portal GR2 | H197: =IF(H192>=6,0,H196) -> 0
B199: CA UE | C199: =SUMIF(E4:E178,"UE",D4:D178) -> 1.16e-08 | D199: NB UE | E199: =SUMIF(E4:E178,"UE",C4:C178) ->  | F199: Panier UE | G199: =Clients!$W$8 -> 0
B200: CA hors UE | C200: =SUMIF(E4:E178,"Etranger hors UE",D4:D178) -> 5.9e-09 | D200: NB hors UE | E200: =SUMIF(E4:E178,"Etranger hors UE",C4:C178) ->  | F200: Panier Hors UE | G200: =Clients!$W$9 -> 0
B201: CA total | C201: =C199+C200 -> 1.75e-08 | D201: NB Total | E201: =E199+E200 ->  | F201: Panier global | G201: =C201/E201 -> 
B206: Poids autor France | C206: =IF(Hypothèses!C32="",Hypothèses!B32,Hypothèses!C32) -> 
B207: Card present | C207: =IF(OR(Hypothèses!$B$15="Internet",Hypothèses!$B$15="Internet-Solution Groupe",Hypothèses!$B$15="VAD"),"non","oui") -> oui
C208: Normal
B209: CA intra | C209: =SUMIF(H4:H178,"Intra réseau",D4:D178) -> 3.1e-09
B210: CA inter réseau | C210: =SUMIF(H5:H179,"Inter réseau",D5:D179) -> 6e-10
B211: CA France | C211: =SUMIF(H4:H178,"France hors intra réseau",D4:D178) -> 4.4e-09
... 1366 more rows

Sheet Deliassage (hidden)
A1: Marque | B1: Type carte | C1: Region | D1: concat | E1: concat2 | F1: Charges | G1: Charges MIF+ | H1: Charges MIF++ | I1: CA | J1: Nombre | K1: Pt mort | L1: Pt mort MIF+ | M1: Pt mort MIF++
A2: CB | B2: Commerciale | C2: Intra réseau | D2: =CONCATENATE(A2," ",B2," ",C2) -> CB Commerciale Intra réseau | E2: =CONCATENATE(A2," ",B2) -> CB Commerciale | F2: =IF(Hypothèses!$E$8='Codes '!$H$21,SUMIFS(Calculs!$G$1246:$G$1420,Calculs!$A$1246:$A$1420,Deliassage!$A$2:$A$63,Calculs!$B$1246:$B$1420,Deliassage!$B$2:$B$46,Calculs!$C$1246:$C$1420,Deliassage!$C$2:$C$75),SUMIFS(Calculs!$G$1460:$G$1634,Calculs!$A$1460:$A$1634,Deliassage!$A$2:$A$63,Calculs!$B$1460:$B$1634,Deliassage!$B$2:$B$46,Calculs!$C$1460:$C$1634,Deliassage!$C$2:$C$75)) ->  | G2: =IF(Hypothèses!$E$8='Codes '!$H$21,SUMIFS(Calculs!$F$1246:$F$1420,Calculs!$A$1246:$A$1420,Deliassage!$A$2:$A$63,Calculs!$B$1246:$B$1420,Deliassage!$B$2:$B$46,Calculs!$C$1246:$C$1420,Deliassage!$C$2:$C$75),SUMIFS(Calculs!$F$1460:$F$1634,Calculs!$A$1460:$A$1634,Deliassage!$A$2:$A$63,Calculs!$B$1460:$B$1634,Deliassage!$B$2:$B$46,Calculs!$C$1460:$C$1634,Deliassage!$C$2:$C$75)) ->  | H2: =IF(Hypothèses!$E$8='Codes '!$H$21,SUMIFS(Calculs!$E$1246:$E$1420,Calculs!$A$1246:$A$1420,Deliassage!$A$2:$A$63,Calculs!$B$1246:$B$1420,Deliassage!$B$2:$B$46,Calculs!$C$1246:$C$1420,Deliassage!$C$2:$C$75),SUMIFS(Calculs!$E$1460:$E$1634,Calculs!$A$1460:$A$1634,Deliassage!$A$2:$A$63,Calculs!$B$1460:$B$1634,Deliassage!$B$2:$B$46,Calculs!$C$1460:$C$1634,Deliassage!$C$2:$C$75)) ->  | I2: =SUMIFS(Calculs!$Y$1246:$Y$1420,Calculs!$A$1246:$A$1420,Deliassage!$A$2:$A$63,Calculs!$B$1246:$B$1420,Deliassage!$B$2:$B$46,Calculs!$C$1246:$C$1420,Deliassage!$C$2:$C$75) ->  | J2: =SUMIFS(Calculs!$AB$1246:$AB$1420,Calculs!$A$1246:$A$1420,Deliassage!$A$2:$A$63,Calculs!$B$1246:$B$1420,Deliassage!$B$2:$B$46,Calculs!$C$1246:$C$1420,Deliassage!$C$2:$C$75) -> 0 | K2: =IF(I2=0,0,(F2/I2)*100) ->  | L2: =IF(I2=0,0,(G2/I2)*100) ->  | M2: =IF(I2=0,0,(H2/I2)*100) -> 
A3: CB | B3: Commerciale | C3: UE | D3: =CONCATENATE(A3," ",B3," ",C3) -> CB Commerciale UE | E3: =CONCATENATE(A3," ",B3) -> CB Commerciale | F3: =IF(Hypothèses!$E$8='Codes '!$H$21,SUMIFS(Calculs!$G$1246:$G$1420,Calculs!$A$1246:$A$1420,Deliassage!$A$2:$A$63,Calculs!$B$1246:$B$1420,Deliassage!$B$2:$B$46,Calculs!$C$1246:$C$1420,Deliassage!$C$2:$C$75),SUMIFS(Calculs!$G$1460:$G$1634,Calculs!$A$1460:$A$1634,Deliassage!$A$2:$A$63,Calculs!$B$1460:$B$1634,Deliassage!$B$2:$B$46,Calculs!$C$1460:$C$1634,Deliassage!$C$2:$C$75)) ->  | G3: =IF(Hypothèses!$E$8='Codes '!$H$21,SUMIFS(Calculs!$F$1246:$F$1420,Calculs!$A$1246:$A$1420,Deliassage!$A$2:$A$63,Calculs!$B$1246:$B$1420,Deliassage!$B$2:$B$46,Calculs!$C$1246:$C$1420,Deliassage!$C$2:$C$75),SUMIFS(Calculs!$F$1460:$F$1634,Calculs!$A$1460:$A$1634,Deliassage!$A$2:$A$63,Calculs!$B$1460:$B$1634,Deliassage!$B$2:$B$46,Calculs!$C$1460:$C$1634,Deliassage!$C$2:$C$75)) ->  | H3: =IF(Hypothèses!$E$8='Codes '!$H$21,SUMIFS(Calculs!$E$1246:$E$1420,Calculs!$A$1246:$A$1420,Deliassage!$A$2:$A$63,Calculs!$B$1246:$B$1420,Deliassage!$B$2:$B$46,Calculs!$C$1246:$C$1420,Deliassage!$C$2:$C$75),SUMIFS(Calculs!$E$1460:$E$1634,Calculs!$A$1460:$A$1634,Deliassage!$A$2:$A$63,Calculs!$B$1460:$B$1634,Deliassage!$B$2:$B$46,Calculs!$C$1460:$C$1634,Deliassage!$C$2:$C$75)) ->  | I3: =SUMIFS(Calculs!$Y$1246:$Y$1420,Calculs!$A$1246:$A$1420,Deliassage!$A$2:$A$63,Calculs!$B$1246:$B$1420,Deliassage!$B$2:$B$46,Calculs!$C$1246:$C$1420,Deliassage!$C$2:$C$75) ->  | J3: =SUMIFS(Calculs!$AB$1246:$AB$1420,Calculs!$A$1246:$A$1420,Deliassage!$A$2:$A$63,Calculs!$B$1246:$B$1420,Deliassage!$B$2:$B$46,Calculs!$C$1246:$C$1420,Deliassage!$C$2:$C$75) -> 0 | K3: =IF(I3=0,0,(F3/I3)*100) ->  | L3: =IF(I3=0,0,(G3/I3)*100) ->  | M3: =IF(I3=0,0,(H3/I3)*100) -> 
A4: CB | B4: DD | C4: Intra réseau | D4: CB DD Intra réseau | E4: CB DD | F4: =IF(Hypothèses!$E$8='Codes '!$H$21,SUMIFS(Calculs!$G$1246:$G$1420,Calculs!$A$1246:$A$1420,Deliassage!$A$2:$A$63,Calculs!$B$1246:$B$1420,Deliassage!$B$2:$B$46,Calculs!$C$1246:$C$1420,Deliassage!$C$2:$C$75),SUMIFS(Calculs!$G$1460:$G$1634,Calculs!$A$1460:$A$1634,Deliassage!$A$2:$A$63,Calculs!$B$1460:$B$1634,Deliassage!$B$2:$B$46,Calculs!$C$1460:$C$1634,Deliassage!$C$2:$C$75)) ->  | G4: =IF(Hypothèses!$E$8='Codes '!$H$21,SUMIFS(Calculs!$F$1246:$F$1420,Calculs!$A$1246:$A$1420,Deliassage!$A$2:$A$63,Calculs!$B$1246:$B$1420,Deliassage!$B$2:$B$46,Calculs!$C$1246:$C$1420,Deliassage!$C$2:$C$75),SUMIFS(Calculs!$F$1460:$F$1634,Calculs!$A$1460:$A$1634,Deliassage!$A$2:$A$63,Calculs!$B$1460:$B$1634,Deliassage!$B$2:$B$46,Calculs!$C$1460:$C$1634,Deliassage!$C$2:$C$75)) ->  | H4: =IF(Hypothèses!$E$8='Codes '!$H$21,SUMIFS(Calculs!$E$1246:$E$1420,Calculs!$A$1246:$A$1420,Deliassage!$A$2:$A$63,Calculs!$B$1246:$B$1420,Deliassage!$B$2:$B$46,Calculs!$C$1246:$C$1420,Deliassage!$C$2:$C$75),SUMIFS(Calculs!$E$1460:$E$1634,Calculs!$A$1460:$A$1634,Deliassage!$A$2:$A$63,Calculs!$B$1460:$B$1634,Deliassage!$B$2:$B$46,Calculs!$C$1460:$C$1634,Deliassage!$C$2:$C$75)) ->  | I4: =SUMIFS(Calculs!$Y$1246:$Y$1420,Calculs!$A$1246:$A$1420,Deliassage!$A$2:$A$63,Calculs!$B$1246:$B$1420,Deliassage!$B$2:$B$46,Calculs!$C$1246:$C$1420,Deliassage!$C$2:$C$75) ->  | J4: =SUMIFS(Calculs!$AB$1246:$AB$1420,Calculs!$A$1246:$A$1420,Deliassage!$A$2:$A$63,Calculs!$B$1246:$B$1420,Deliassage!$B$2:$B$46,Calculs!$C$1246:$C$1420,Deliassage!$C$2:$C$75) -> 0
A5: CB | B5: DD | C5: UE | D5: CB DD UE | E5: CB DD | F5: =IF(Hypothèses!$E$8='Codes '!$H$21,SUMIFS(Calculs!$G$1246:$G$1420,Calculs!$A$1246:$A$1420,Deliassage!$A$2:$A$63,Calculs!$B$1246:$B$1420,Deliassage!$B$2:$B$46,Calculs!$C$1246:$C$1420,Deliassage!$C$2:$C$75),SUMIFS(Calculs!$G$1460:$G$1634,Calculs!$A$1460:$A$1634,Deliassage!$A$2:$A$63,Calculs!$B$1460:$B$1634,Deliassage!$B$2:$B$46,Calculs!$C$1460:$C$1634,Deliassage!$C$2:$C$75)) ->  | G5: =IF(Hypothèses!$E$8='Codes '!$H$21,SUMIFS(Calculs!$F$1246:$F$1420,Calculs!$A$1246:$A$1420,Deliassage!$A$2:$A$63,Calculs!$B$1246:$B$1420,Deliassage!$B$2:$B$46,Calculs!$C$1246:$C$1420,Deliassage!$C$2:$C$75),SUMIFS(Calculs!$F$1460:$F$1634,Calculs!$A$1460:$A$1634,Deliassage!$A$2:$A$63,Calculs!$B$1460:$B$1634,Deliassage!$B$2:$B$46,Calculs!$C$1460:$C$1634,Deliassage!$C$2:$C$75)) ->  | H5: =IF(Hypothèses!$E$8='Codes '!$H$21,SUMIFS(Calculs!$E$1246:$E$1420,Calculs!$A$1246:$A$1420,Deliassage!$A$2:$A$63,Calculs!$B$1246:$B$1420,Deliassage!$B$2:$B$46,Calculs!$C$1246:$C$1420,Deliassage!$C$2:$C$75),SUMIFS(Calculs!$E$1460:$E$1634,Calculs!$A$1460:$A$1634,Deliassage!$A$2:$A$63,Calculs!$B$1460:$B$1634,Deliassage!$B$2:$B$46,Calculs!$C$1460:$C$1634,Deliassage!$C$2:$C$75)) ->  | I5: =SUMIFS(Calculs!$Y$1246:$Y$1420,Calculs!$A$1246:$A$1420,Deliassage!$A$2:$A$63,Calculs!$B$1246:$B$1420,Deliassage!$B$2:$B$46,Calculs!$C$1246:$C$1420,Deliassage!$C$2:$C$75) ->  | J5: =SUMIFS(Calculs!$AB$1246:$AB$1420,Calculs!$A$1246:$A$1420,Deliassage!$A$2:$A$63,Calculs!$B$1246:$B$1420,Deliassage!$B$2:$B$46,Calculs!$C$1246:$C$1420,Deliassage!$C$2:$C$75) -> 0
A6: CB | B6: DI | C6: Intra réseau | D6: CB DI Intra réseau | E6: CB DI | F6: =IF(Hypothèses!$E$8='Codes '!$H$21,SUMIFS(Calculs!$G$1246:$G$1420,Calculs!$A$1246:$A$1420,Deliassage!$A$2:$A$63,Calculs!$B$1246:$B$1420,Deliassage!$B$2:$B$46,Calculs!$C$1246:$C$1420,Deliassage!$C$2:$C$75),SUMIFS(Calculs!$G$1460:$G$1634,Calculs!$A$1460:$A$1634,Deliassage!$A$2:$A$63,Calculs!$B$1460:$B$1634,Deliassage!$B$2:$B$46,Calculs!$C$1460:$C$1634,Deliassage!$C$2:$C$75)) ->  | G6: =IF(Hypothèses!$E$8='Codes '!$H$21,SUMIFS(Calculs!$F$1246:$F$1420,Calculs!$A$1246:$A$1420,Deliassage!$A$2:$A$63,Calculs!$B$1246:$B$1420,Deliassage!$B$2:$B$46,Calculs!$C$1246:$C$1420,Deliassage!$C$2:$C$75),SUMIFS(Calculs!$F$1460:$F$1634,Calculs!$A$1460:$A$1634,Deliassage!$A$2:$A$63,Calculs!$B$1460:$B$1634,Deliassage!$B$2:$B$46,Calculs!$C$1460:$C$1634,Deliassage!$C$2:$C$75)) ->  | H6: =IF(Hypothèses!$E$8='Codes '!$H$21,SUMIFS(Calculs!$E$1246:$E$1420,Calculs!$A$1246:$A$1420,Deliassage!$A$2:$A$63,Calculs!$B$1246:$B$1420,Deliassage!$B$2:$B$46,Calculs!$C$1246:$C$1420,Deliassage!$C$2:$C$75),SUMIFS(Calculs!$E$1460:$E$1634,Calculs!$A$1460:$A$1634,Deliassage!$A$2:$A$63,Calculs!$B$1460:$B$1634,Deliassage!$B$2:$B$46,Calculs!$C$1460:$C$1634,Deliassage!$C$2:$C$75)) ->  | I6: =SUMIFS(Calculs!$Y$1246:$Y$1420,Calculs!$A$1246:$A$1420,Deliassage!$A$2:$A$63,Calculs!$B$1246:$B$1420,Deliassage!$B$2:$B$46,Calculs!$C$1246:$C$1420,Deliassage!$C$2:$C$75) ->  | J6: =SUMIFS(Calculs!$AB$1246:$AB$1420,Calculs!$A$1246:$A$1420,Deliassage!$A$2:$A$63,Calculs!$B$1246:$B$1420,Deliassage!$B$2:$B$46,Calculs!$C$1246:$C$1420,Deliassage!$C$2:$C$75) -> 0
A7: CB | B7: DI | C7: UE | D7: CB DI UE | E7: CB DI | F7: =IF(Hypothèses!$E$8='Codes '!$H$21,SUMIFS(Calculs!$G$1246:$G$1420,Calculs!$A$1246:$A$1420,Deliassage!$A$2:$A$63,Calculs!$B$1246:$B$1420,Deliassage!$B$2:$B$46,Calculs!$C$1246:$C$1420,Deliassage!$C$2:$C$75),SUMIFS(Calculs!$G$1460:$G$1634,Calculs!$A$1460:$A$1634,Deliassage!$A$2:$A$63,Calculs!$B$1460:$B$1634,Deliassage!$B$2:$B$46,Calculs!$C$1460:$C$1634,Deliassage!$C$2:$C$75)) ->  | G7: =IF(Hypothèses!$E$8='Codes '!$H$21,SUMIFS(Calculs!$F$1246:$F$1420,Calculs!$A$1246:$A$1420,Deliassage!$A$2:$A$63,Calculs!$B$1246:$B$1420,Deliassage!$B$2:$B$46,Calculs!$C$1246:$C$1420,Deliassage!$C$2:$C$75),SUMIFS(Calculs!$F$1460:$F$1634,Calculs!$A$1460:$A$1634,Deliassage!$A$2:$A$63,Calculs!$B$1460:$B$1634,Deliassage!$B$2:$B$46,Calculs!$C$1460:$C$1634,Deliassage!$C$2:$C$75)) ->  | H7: =IF(Hypothèses!$E$8='Codes '!$H$21,SUMIFS(Calculs!$E$1246:$E$1420,Calculs!$A$1246:$A$1420,Deliassage!$A$2:$A$63,Calculs!$B$1246:$B$1420,Deliassage!$B$2:$B$46,Calculs!$C$1246:$C$1420,Deliassage!$C$2:$C$75),SUMIFS(Calculs!$E$1460:$E$1634,Calculs!$A$1460:$A$1634,Deliassage!$A$2:$A$63,Calculs!$B$1460:$B$1634,Deliassage!$B$2:$B$46,Calculs!$C$1460:$C$1634,Deliassage!$C$2:$C$75)) ->  | I7: =SUMIFS(Calculs!$Y$1246:$Y$1420,Calculs!$A$1246:$A$1420,Deliassage!$A$2:$A$63,Calculs!$B$1246:$B$1420,Deliassage!$B$2:$B$46,Calculs!$C$1246:$C$1420,Deliassage!$C$2:$C$75) ->  | J7: =SUMIFS(Calculs!$AB$1246:$AB$1420,Calculs!$A$1246:$A$1420,Deliassage!$A$2:$A$63,Calculs!$B$1246:$B$1420,Deliassage!$B$2:$B$46,Calculs!$C$1246:$C$1420,Deliassage!$C$2:$C$75) -> 0
A8: Electron | B8: Commerciale | C8: hors UE | D8: Electron Commerciale hors UE | E8: Electron Commerciale | F8: =IF(Hypothèses!$E$8='Codes '!$H$21,SUMIFS(Calculs!$G$1246:$G$1420,Calculs!$A$1246:$A$1420,Deliassage!$A$2:$A$63,Calculs!$B$1246:$B$1420,Deliassage!$B$2:$B$46,Calculs!$C$1246:$C$1420,Deliassage!$C$2:$C$75),SUMIFS(Calculs!$G$1460:$G$1634,Calculs!$A$1460:$A$1634,Deliassage!$A$2:$A$63,Calculs!$B$1460:$B$1634,Deliassage!$B$2:$B$46,Calculs!$C$1460:$C$1634,Deliassage!$C$2:$C$75)) -> 0 | G8: =IF(Hypothèses!$E$8='Codes '!$H$21,SUMIFS(Calculs!$F$1246:$F$1420,Calculs!$A$1246:$A$1420,Deliassage!$A$2:$A$63,Calculs!$B$1246:$B$1420,Deliassage!$B$2:$B$46,Calculs!$C$1246:$C$1420,Deliassage!$C$2:$C$75),SUMIFS(Calculs!$F$1460:$F$1634,Calculs!$A$1460:$A$1634,Deliassage!$A$2:$A$63,Calculs!$B$1460:$B$1634,Deliassage!$B$2:$B$46,Calculs!$C$1460:$C$1634,Deliassage!$C$2:$C$75)) -> 0 | H8: =IF(Hypothèses!$E$8='Codes '!$H$21,SUMIFS(Calculs!$E$1246:$E$1420,Calculs!$A$1246:$A$1420,Deliassage!$A$2:$A$63,Calculs!$B$1246:$B$1420,Deliassage!$B$2:$B$46,Calculs!$C$1246:$C$1420,Deliassage!$C$2:$C$75),SUMIFS(Calculs!$E$1460:$E$1634,Calculs!$A$1460:$A$1634,Deliassage!$A$2:$A$63,Calculs!$B$1460:$B$1634,Deliassage!$B$2:$B$46,Calculs!$C$1460:$C$1634,Deliassage!$C$2:$C$75)) -> 0 | I8: =SUMIFS(Calculs!$Y$1246:$Y$1420,Calculs!$A$1246:$A$1420,Deliassage!$A$2:$A$63,Calculs!$B$1246:$B$1420,Deliassage!$B$2:$B$46,Calculs!$C$1246:$C$1420,Deliassage!$C$2:$C$75) ->  | J8: =SUMIFS(Calculs!$AB$1246:$AB$1420,Calculs!$A$1246:$A$1420,Deliassage!$A$2:$A$63,Calculs!$B$1246:$B$1420,Deliassage!$B$2:$B$46,Calculs!$C$1246:$C$1420,Deliassage!$C$2:$C$75) -> 0
A9: Electron | B9: Commerciale | C9: Intra réseau | D9: Electron Commerciale Intra réseau | E9: Electron Commerciale | F9: =IF(Hypothèses!$E$8='Codes '!$H$21,SUMIFS(Calculs!$G$1246:$G$1420,Calculs!$A$1246:$A$1420,Deliassage!$A$2:$A$63,Calculs!$B$1246:$B$1420,Deliassage!$B$2:$B$46,Calculs!$C$1246:$C$1420,Deliassage!$C$2:$C$75),SUMIFS(Calculs!$G$1460:$G$1634,Calculs!$A$1460:$A$1634,Deliassage!$A$2:$A$63,Calculs!$B$1460:$B$1634,Deliassage!$B$2:$B$46,Calculs!$C$1460:$C$1634,Deliassage!$C$2:$C$75)) -> 0 | G9: =IF(Hypothèses!$E$8='Codes '!$H$21,SUMIFS(Calculs!$F$1246:$F$1420,Calculs!$A$1246:$A$1420,Deliassage!$A$2:$A$63,Calculs!$B$1246:$B$1420,Deliassage!$B$2:$B$46,Calculs!$C$1246:$C$1420,Deliassage!$C$2:$C$75),SUMIFS(Calculs!$F$1460:$F$1634,Calculs!$A$1460:$A$1634,Deliassage!$A$2:$A$63,Calculs!$B$1460:$B$1634,Deliassage!$B$2:$B$46,Calculs!$C$1460:$C$1634,Deliassage!$C$2:$C$75)) -> 0 | H9: =IF(Hypothèses!$E$8='Codes '!$H$21,SUMIFS(Calculs!$E$1246:$E$1420,Calculs!$A$1246:$A$1420,Deliassage!$A$2:$A$63,Calculs!$B$1246:$B$1420,Deliassage!$B$2:$B$46,Calculs!$C$1246:$C$1420,Deliassage!$C$2:$C$75),SUMIFS(Calculs!$E$1460:$E$1634,Calculs!$A$1460:$A$1634,Deliassage!$A$2:$A$63,Calculs!$B$1460:$B$1634,Deliassage!$B$2:$B$46,Calculs!$C$1460:$C$1634,Deliassage!$C$2:$C$75)) -> 0 | I9: =SUMIFS(Calculs!$Y$1246:$Y$1420,Calculs!$A$1246:$A$1420,Deliassage!$A$2:$A$63,Calculs!$B$1246:$B$1420,Deliassage!$B$2:$B$46,Calculs!$C$1246:$C$1420,Deliassage!$C$2:$C$75) ->  | J9: =SUMIFS(Calculs!$AB$1246:$AB$1420,Calculs!$A$1246:$A$1420,Deliassage!$A$2:$A$63,Calculs!$B$1246:$B$1420,Deliassage!$B$2:$B$46,Calculs!$C$1246:$C$1420,Deliassage!$C$2:$C$75) -> 0
A10: Electron | B10: Commerciale | C10: UE | D10: Electron Commerciale UE | E10: Electron Commerciale | F10: =IF(Hypothèses!$E$8='Codes '!$H$21,SUMIFS(Calculs!$G$1246:$G$1420,Calculs!$A$1246:$A$1420,Deliassage!$A$2:$A$63,Calculs!$B$1246:$B$1420,Deliassage!$B$2:$B$46,Calculs!$C$1246:$C$1420,Deliassage!$C$2:$C$75),SUMIFS(Calculs!$G$1460:$G$1634,Calculs!$A$1460:$A$1634,Deliassage!$A$2:$A$63,Calculs!$B$1460:$B$1634,Deliassage!$B$2:$B$46,Calculs!$C$1460:$C$1634,Deliassage!$C$2:$C$75)) -> 0 | G10: =IF(Hypothèses!$E$8='Codes '!$H$21,SUMIFS(Calculs!$F$1246:$F$1420,Calculs!$A$1246:$A$1420,Deliassage!$A$2:$A$63,Calculs!$B$1246:$B$1420,Deliassage!$B$2:$B$46,Calculs!$C$1246:$C$1420,Deliassage!$C$2:$C$75),SUMIFS(Calculs!$F$1460:$F$1634,Calculs!$A$1460:$A$1634,Deliassage!$A$2:$A$63,Calculs!$B$1460:$B$1634,Deliassage!$B$2:$B$46,Calculs!$C$1460:$C$1634,Deliassage!$C$2:$C$75)) -> 0 | H10: =IF(Hypothèses!$E$8='Codes '!$H$21,SUMIFS(Calculs!$E$1246:$E$1420,Calculs!$A$1246:$A$1420,Deliassage!$A$2:$A$63,Calculs!$B$1246:$B$1420,Deliassage!$B$2:$B$46,Calculs!$C$1246:$C$1420,Deliassage!$C$2:$C$75),SUMIFS(Calculs!$E$1460:$E$1634,Calculs!$A$1460:$A$1634,Deliassage!$A$2:$A$63,Calculs!$B$1460:$B$1634,Deliassage!$B$2:$B$46,Calculs!$C$1460:$C$1634,Deliassage!$C$2:$C$75)) -> 0 | I10: =SUMIFS(Calculs!$Y$1246:$Y$1420,Calculs!$A$1246:$A$1420,Deliassage!$A$2:$A$63,Calculs!$B$1246:$B$1420,Deliassage!$B$2:$B$46,Calculs!$C$1246:$C$1420,Deliassage!$C$2:$C$75) ->  | J10: =SUMIFS(Calculs!$AB$1246:$AB$1420,Calculs!$A$1246:$A$1420,Deliassage!$A$2:$A$63,Calculs!$B$1246:$B$1420,Deliassage!$B$2:$B$46,Calculs!$C$1246:$C$1420,Deliassage!$C$2:$C$75) -> 0
A11: Electron | B11: DD | C11: hors UE | D11: Electron DD hors UE | E11: Electron DD | F11: =IF(Hypothèses!$E$8='Codes '!$H$21,SUMIFS(Calculs!$G$1246:$G$1420,Calculs!$A$1246:$A$1420,Deliassage!$A$2:$A$63,Calculs!$B$1246:$B$1420,Deliassage!$B$2:$B$46,Calculs!$C$1246:$C$1420,Deliassage!$C$2:$C$75),SUMIFS(Calculs!$G$1460:$G$1634,Calculs!$A$1460:$A$1634,Deliassage!$A$2:$A$63,Calculs!$B$1460:$B$1634,Deliassage!$B$2:$B$46,Calculs!$C$1460:$C$1634,Deliassage!$C$2:$C$75)) -> 0 | G11: =IF(Hypothèses!$E$8='Codes '!$H$21,SUMIFS(Calculs!$F$1246:$F$1420,Calculs!$A$1246:$A$1420,Deliassage!$A$2:$A$63,Calculs!$B$1246:$B$1420,Deliassage!$B$2:$B$46,Calculs!$C$1246:$C$1420,Deliassage!$C$2:$C$75),SUMIFS(Calculs!$F$1460:$F$1634,Calculs!$A$1460:$A$1634,Deliassage!$A$2:$A$63,Calculs!$B$1460:$B$1634,Deliassage!$B$2:$B$46,Calculs!$C$1460:$C$1634,Deliassage!$C$2:$C$75)) -> 0 | H11: =IF(Hypothèses!$E$8='Codes '!$H$21,SUMIFS(Calculs!$E$1246:$E$1420,Calculs!$A$1246:$A$1420,Deliassage!$A$2:$A$63,Calculs!$B$1246:$B$1420,Deliassage!$B$2:$B$46,Calculs!$C$1246:$C$1420,Deliassage!$C$2:$C$75),SUMIFS(Calculs!$E$1460:$E$1634,Calculs!$A$1460:$A$1634,Deliassage!$A$2:$A$63,Calculs!$B$1460:$B$1634,Deliassage!$B$2:$B$46,Calculs!$C$1460:$C$1634,Deliassage!$C$2:$C$75)) -> 0 | I11: =SUMIFS(Calculs!$Y$1246:$Y$1420,Calculs!$A$1246:$A$1420,Deliassage!$A$2:$A$63,Calculs!$B$1246:$B$1420,Deliassage!$B$2:$B$46,Calculs!$C$1246:$C$1420,Deliassage!$C$2:$C$75) ->  | J11: =SUMIFS(Calculs!$AB$1246:$AB$1420,Calculs!$A$1246:$A$1420,Deliassage!$A$2:$A$63,Calculs!$B$1246:$B$1420,Deliassage!$B$2:$B$46,Calculs!$C$1246:$C$1420,Deliassage!$C$2:$C$75) -> 0
A12: Electron | B12: DD | C12: UE | D12: Electron DD UE | E12: Electron DD | F12: =IF(Hypothèses!$E$8='Codes '!$H$21,SUMIFS(Calculs!$G$1246:$G$1420,Calculs!$A$1246:$A$1420,Deliassage!$A$2:$A$63,Calculs!$B$1246:$B$1420,Deliassage!$B$2:$B$46,Calculs!$C$1246:$C$1420,Deliassage!$C$2:$C$75),SUMIFS(Calculs!$G$1460:$G$1634,Calculs!$A$1460:$A$1634,Deliassage!$A$2:$A$63,Calculs!$B$1460:$B$1634,Deliassage!$B$2:$B$46,Calculs!$C$1460:$C$1634,Deliassage!$C$2:$C$75)) -> 0 | G12: =IF(Hypothèses!$E$8='Codes '!$H$21,SUMIFS(Calculs!$F$1246:$F$1420,Calculs!$A$1246:$A$1420,Deliassage!$A$2:$A$63,Calculs!$B$1246:$B$1420,Deliassage!$B$2:$B$46,Calculs!$C$1246:$C$1420,Deliassage!$C$2:$C$75),SUMIFS(Calculs!$F$1460:$F$1634,Calculs!$A$1460:$A$1634,Deliassage!$A$2:$A$63,Calculs!$B$1460:$B$1634,Deliassage!$B$2:$B$46,Calculs!$C$1460:$C$1634,Deliassage!$C$2:$C$75)) -> 0 | H12: =IF(Hypothèses!$E$8='Codes '!$H$21,SUMIFS(Calculs!$E$1246:$E$1420,Calculs!$A$1246:$A$1420,Deliassage!$A$2:$A$63,Calculs!$B$1246:$B$1420,Deliassage!$B$2:$B$46,Calculs!$C$1246:$C$1420,Deliassage!$C$2:$C$75),SUMIFS(Calculs!$E$1460:$E$1634,Calculs!$A$1460:$A$1634,Deliassage!$A$2:$A$63,Calculs!$B$1460:$B$1634,Deliassage!$B$2:$B$46,Calculs!$C$1460:$C$1634,Deliassage!$C$2:$C$75)) -> 0 | I12: =SUMIFS(Calculs!$Y$1246:$Y$1420,Calculs!$A$1246:$A$1420,Deliassage!$A$2:$A$63,Calculs!$B$1246:$B$1420,Deliassage!$B$2:$B$46,Calculs!$C$1246:$C$1420,Deliassage!$C$2:$C$75) ->  | J12: =SUMIFS(Calculs!$AB$1246:$AB$1420,Calculs!$A$1246:$A$1420,Deliassage!$A$2:$A$63,Calculs!$B$1246:$B$1420,Deliassage!$B$2:$B$46,Calculs!$C$1246:$C$1420,Deliassage!$C$2:$C$75) -> 0
A13: Electron | B13: DI | C13: hors UE | D13: Electron DI hors UE | E13: Electron DI | F13: =IF(Hypothèses!$E$8='Codes '!$H$21,SUMIFS(Calculs!$G$1246:$G$1420,Calculs!$A$1246:$A$1420,Deliassage!$A$2:$A$63,Calculs!$B$1246:$B$1420,Deliassage!$B$2:$B$46,Calculs!$C$1246:$C$1420,Deliassage!$C$2:$C$75),SUMIFS(Calculs!$G$1460:$G$1634,Calculs!$A$1460:$A$1634,Deliassage!$A$2:$A$63,Calculs!$B$1460:$B$1634,Deliassage!$B$2:$B$46,Calculs!$C$1460:$C$1634,Deliassage!$C$2:$C$75)) -> 0 | G13: =IF(Hypothèses!$E$8='Codes '!$H$21,SUMIFS(Calculs!$F$1246:$F$1420,Calculs!$A$1246:$A$1420,Deliassage!$A$2:$A$63,Calculs!$B$1246:$B$1420,Deliassage!$B$2:$B$46,Calculs!$C$1246:$C$1420,Deliassage!$C$2:$C$75),SUMIFS(Calculs!$F$1460:$F$1634,Calculs!$A$1460:$A$1634,Deliassage!$A$2:$A$63,Calculs!$B$1460:$B$1634,Deliassage!$B$2:$B$46,Calculs!$C$1460:$C$1634,Deliassage!$C$2:$C$75)) -> 0 | H13: =IF(Hypothèses!$E$8='Codes '!$H$21,SUMIFS(Calculs!$E$1246:$E$1420,Calculs!$A$1246:$A$1420,Deliassage!$A$2:$A$63,Calculs!$B$1246:$B$1420,Deliassage!$B$2:$B$46,Calculs!$C$1246:$C$1420,Deliassage!$C$2:$C$75),SUMIFS(Calculs!$E$1460:$E$1634,Calculs!$A$1460:$A$1634,Deliassage!$A$2:$A$63,Calculs!$B$1460:$B$1634,Deliassage!$B$2:$B$46,Calculs!$C$1460:$C$1634,Deliassage!$C$2:$C$75)) -> 0 | I13: =SUMIFS(Calculs!$Y$1246:$Y$1420,Calculs!$A$1246:$A$1420,Deliassage!$A$2:$A$63,Calculs!$B$1246:$B$1420,Deliassage!$B$2:$B$46,Calculs!$C$1246:$C$1420,Deliassage!$C$2:$C$75) ->  | J13: =SUMIFS(Calculs!$AB$1246:$AB$1420,Calculs!$A$1246:$A$1420,Deliassage!$A$2:$A$63,Calculs!$B$1246:$B$1420,Deliassage!$B$2:$B$46,Calculs!$C$1246:$C$1420,Deliassage!$C$2:$C$75) -> 0
A14: Electron | B14: DI | C14: Intra réseau | D14: Electron DI Intra réseau | E14: Electron DI | F14: =IF(Hypothèses!$E$8='Codes '!$H$21,SUMIFS(Calculs!$G$1246:$G$1420,Calculs!$A$1246:$A$1420,Deliassage!$A$2:$A$63,Calculs!$B$1246:$B$1420,Deliassage!$B$2:$B$46,Calculs!$C$1246:$C$1420,Deliassage!$C$2:$C$75),SUMIFS(Calculs!$G$1460:$G$1634,Calculs!$A$1460:$A$1634,Deliassage!$A$2:$A$63,Calculs!$B$1460:$B$1634,Deliassage!$B$2:$B$46,Calculs!$C$1460:$C$1634,Deliassage!$C$2:$C$75)) -> 0 | G14: =IF(Hypothèses!$E$8='Codes '!$H$21,SUMIFS(Calculs!$F$1246:$F$1420,Calculs!$A$1246:$A$1420,Deliassage!$A$2:$A$63,Calculs!$B$1246:$B$1420,Deliassage!$B$2:$B$46,Calculs!$C$1246:$C$1420,Deliassage!$C$2:$C$75),SUMIFS(Calculs!$F$1460:$F$1634,Calculs!$A$1460:$A$1634,Deliassage!$A$2:$A$63,Calculs!$B$1460:$B$1634,Deliassage!$B$2:$B$46,Calculs!$C$1460:$C$1634,Deliassage!$C$2:$C$75)) -> 0 | H14: =IF(Hypothèses!$E$8='Codes '!$H$21,SUMIFS(Calculs!$E$1246:$E$1420,Calculs!$A$1246:$A$1420,Deliassage!$A$2:$A$63,Calculs!$B$1246:$B$1420,Deliassage!$B$2:$B$46,Calculs!$C$1246:$C$1420,Deliassage!$C$2:$C$75),SUMIFS(Calculs!$E$1460:$E$1634,Calculs!$A$1460:$A$1634,Deliassage!$A$2:$A$63,Calculs!$B$1460:$B$1634,Deliassage!$B$2:$B$46,Calculs!$C$1460:$C$1634,Deliassage!$C$2:$C$75)) -> 0 | I14: =SUMIFS(Calculs!$Y$1246:$Y$1420,Calculs!$A$1246:$A$1420,Deliassage!$A$2:$A$63,Calculs!$B$1246:$B$1420,Deliassage!$B$2:$B$46,Calculs!$C$1246:$C$1420,Deliassage!$C$2:$C$75) ->  | J14: =SUMIFS(Calculs!$AB$1246:$AB$1420,Calculs!$A$1246:$A$1420,Deliassage!$A$2:$A$63,Calculs!$B$1246:$B$1420,Deliassage!$B$2:$B$46,Calculs!$C$1246:$C$1420,Deliassage!$C$2:$C$75) -> 0
A15: Electron | B15: DI | C15: UE | D15: Electron DI UE | E15: Electron DI | F15: =IF(Hypothèses!$E$8='Codes '!$H$21,SUMIFS(Calculs!$G$1246:$G$1420,Calculs!$A$1246:$A$1420,Deliassage!$A$2:$A$63,Calculs!$B$1246:$B$1420,Deliassage!$B$2:$B$46,Calculs!$C$1246:$C$1420,Deliassage!$C$2:$C$75),SUMIFS(Calculs!$G$1460:$G$1634,Calculs!$A$1460:$A$1634,Deliassage!$A$2:$A$63,Calculs!$B$1460:$B$1634,Deliassage!$B$2:$B$46,Calculs!$C$1460:$C$1634,Deliassage!$C$2:$C$75)) -> 0 | G15: =IF(Hypothèses!$E$8='Codes '!$H$21,SUMIFS(Calculs!$F$1246:$F$1420,Calculs!$A$1246:$A$1420,Deliassage!$A$2:$A$63,Calculs!$B$1246:$B$1420,Deliassage!$B$2:$B$46,Calculs!$C$1246:$C$1420,Deliassage!$C$2:$C$75),SUMIFS(Calculs!$F$1460:$F$1634,Calculs!$A$1460:$A$1634,Deliassage!$A$2:$A$63,Calculs!$B$1460:$B$1634,Deliassage!$B$2:$B$46,Calculs!$C$1460:$C$1634,Deliassage!$C$2:$C$75)) -> 0 | H15: =IF(Hypothèses!$E$8='Codes '!$H$21,SUMIFS(Calculs!$E$1246:$E$1420,Calculs!$A$1246:$A$1420,Deliassage!$A$2:$A$63,Calculs!$B$1246:$B$1420,Deliassage!$B$2:$B$46,Calculs!$C$1246:$C$1420,Deliassage!$C$2:$C$75),SUMIFS(Calculs!$E$1460:$E$1634,Calculs!$A$1460:$A$1634,Deliassage!$A$2:$A$63,Calculs!$B$1460:$B$1634,Deliassage!$B$2:$B$46,Calculs!$C$1460:$C$1634,Deliassage!$C$2:$C$75)) -> 0 | I15: =SUMIFS(Calculs!$Y$1246:$Y$1420,Calculs!$A$1246:$A$1420,Deliassage!$A$2:$A$63,Calculs!$B$1246:$B$1420,Deliassage!$B$2:$B$46,Calculs!$C$1246:$C$1420,Deliassage!$C$2:$C$75) ->  | J15: =SUMIFS(Calculs!$AB$1246:$AB$1420,Calculs!$A$1246:$A$1420,Deliassage!$A$2:$A$63,Calculs!$B$1246:$B$1420,Deliassage!$B$2:$B$46,Calculs!$C$1246:$C$1420,Deliassage!$C$2:$C$75) -> 0
A16: Maestro | B16: Commerciale | C16: hors UE | D16: Maestro Commerciale hors UE | E16: Maestro Commerciale | F16: =IF(Hypothèses!$E$8='Codes '!$H$21,SUMIFS(Calculs!$G$1246:$G$1420,Calculs!$A$1246:$A$1420,Deliassage!$A$2:$A$63,Calculs!$B$1246:$B$1420,Deliassage!$B$2:$B$46,Calculs!$C$1246:$C$1420,Deliassage!$C$2:$C$75),SUMIFS(Calculs!$G$1460:$G$1634,Calculs!$A$1460:$A$1634,Deliassage!$A$2:$A$63,Calculs!$B$1460:$B$1634,Deliassage!$B$2:$B$46,Calculs!$C$1460:$C$1634,Deliassage!$C$2:$C$75)) -> 0 | G16: =IF(Hypothèses!$E$8='Codes '!$H$21,SUMIFS(Calculs!$F$1246:$F$1420,Calculs!$A$1246:$A$1420,Deliassage!$A$2:$A$63,Calculs!$B$1246:$B$1420,Deliassage!$B$2:$B$46,Calculs!$C$1246:$C$1420,Deliassage!$C$2:$C$75),SUMIFS(Calculs!$F$1460:$F$1634,Calculs!$A$1460:$A$1634,Deliassage!$A$2:$A$63,Calculs!$B$1460:$B$1634,Deliassage!$B$2:$B$46,Calculs!$C$1460:$C$1634,Deliassage!$C$2:$C$75)) -> 0 | H16: =IF(Hypothèses!$E$8='Codes '!$H$21,SUMIFS(Calculs!$E$1246:$E$1420,Calculs!$A$1246:$A$1420,Deliassage!$A$2:$A$63,Calculs!$B$1246:$B$1420,Deliassage!$B$2:$B$46,Calculs!$C$1246:$C$1420,Deliassage!$C$2:$C$75),SUMIFS(Calculs!$E$1460:$E$1634,Calculs!$A$1460:$A$1634,Deliassage!$A$2:$A$63,Calculs!$B$1460:$B$1634,Deliassage!$B$2:$B$46,Calculs!$C$1460:$C$1634,Deliassage!$C$2:$C$75)) -> 0 | I16: =SUMIFS(Calculs!$Y$1246:$Y$1420,Calculs!$A$1246:$A$1420,Deliassage!$A$2:$A$63,Calculs!$B$1246:$B$1420,Deliassage!$B$2:$B$46,Calculs!$C$1246:$C$1420,Deliassage!$C$2:$C$75) ->  | J16: =SUMIFS(Calculs!$AB$1246:$AB$1420,Calculs!$A$1246:$A$1420,Deliassage!$A$2:$A$63,Calculs!$B$1246:$B$1420,Deliassage!$B$2:$B$46,Calculs!$C$1246:$C$1420,Deliassage!$C$2:$C$75) -> 0
A17: Maestro | B17: Commerciale | C17: Intra réseau | D17: Maestro Commerciale Intra réseau | E17: Maestro Commerciale | F17: =IF(Hypothèses!$E$8='Codes '!$H$21,SUMIFS(Calculs!$G$1246:$G$1420,Calculs!$A$1246:$A$1420,Deliassage!$A$2:$A$63,Calculs!$B$1246:$B$1420,Deliassage!$B$2:$B$46,Calculs!$C$1246:$C$1420,Deliassage!$C$2:$C$75),SUMIFS(Calculs!$G$1460:$G$1634,Calculs!$A$1460:$A$1634,Deliassage!$A$2:$A$63,Calculs!$B$1460:$B$1634,Deliassage!$B$2:$B$46,Calculs!$C$1460:$C$1634,Deliassage!$C$2:$C$75)) -> 0 | G17: =IF(Hypothèses!$E$8='Codes '!$H$21,SUMIFS(Calculs!$F$1246:$F$1420,Calculs!$A$1246:$A$1420,Deliassage!$A$2:$A$63,Calculs!$B$1246:$B$1420,Deliassage!$B$2:$B$46,Calculs!$C$1246:$C$1420,Deliassage!$C$2:$C$75),SUMIFS(Calculs!$F$1460:$F$1634,Calculs!$A$1460:$A$1634,Deliassage!$A$2:$A$63,Calculs!$B$1460:$B$1634,Deliassage!$B$2:$B$46,Calculs!$C$1460:$C$1634,Deliassage!$C$2:$C$75)) -> 0 | H17: =IF(Hypothèses!$E$8='Codes '!$H$21,SUMIFS(Calculs!$E$1246:$E$1420,Calculs!$A$1246:$A$1420,Deliassage!$A$2:$A$63,Calculs!$B$1246:$B$1420,Deliassage!$B$2:$B$46,Calculs!$C$1246:$C$1420,Deliassage!$C$2:$C$75),SUMIFS(Calculs!$E$1460:$E$1634,Calculs!$A$1460:$A$1634,Deliassage!$A$2:$A$63,Calculs!$B$1460:$B$1634,Deliassage!$B$2:$B$46,Calculs!$C$1460:$C$1634,Deliassage!$C$2:$C$75)) -> 0 | I17: =SUMIFS(Calculs!$Y$1246:$Y$1420,Calculs!$A$1246:$A$1420,Deliassage!$A$2:$A$63,Calculs!$B$1246:$B$1420,Deliassage!$B$2:$B$46,Calculs!$C$1246:$C$1420,Deliassage!$C$2:$C$75) ->  | J17: =SUMIFS(Calculs!$AB$1246:$AB$1420,Calculs!$A$1246:$A$1420,Deliassage!$A$2:$A$63,Calculs!$B$1246:$B$1420,Deliassage!$B$2:$B$46,Calculs!$C$1246:$C$1420,Deliassage!$C$2:$C$75) -> 0
A18: Maestro | B18: Commerciale | C18: UE | D18: Maestro Commerciale UE | E18: Maestro Commerciale | F18: =IF(Hypothèses!$E$8='Codes '!$H$21,SUMIFS(Calculs!$G$1246:$G$1420,Calculs!$A$1246:$A$1420,Deliassage!$A$2:$A$63,Calculs!$B$1246:$B$1420,Deliassage!$B$2:$B$46,Calculs!$C$1246:$C$1420,Deliassage!$C$2:$C$75),SUMIFS(Calculs!$G$1460:$G$1634,Calculs!$A$1460:$A$1634,Deliassage!$A$2:$A$63,Calculs!$B$1460:$B$1634,Deliassage!$B$2:$B$46,Calculs!$C$1460:$C$1634,Deliassage!$C$2:$C$75)) -> 0 | G18: =IF(Hypothèses!$E$8='Codes '!$H$21,SUMIFS(Calculs!$F$1246:$F$1420,Calculs!$A$1246:$A$1420,Deliassage!$A$2:$A$63,Calculs!$B$1246:$B$1420,Deliassage!$B$2:$B$46,Calculs!$C$1246:$C$1420,Deliassage!$C$2:$C$75),SUMIFS(Calculs!$F$1460:$F$1634,Calculs!$A$1460:$A$1634,Deliassage!$A$2:$A$63,Calculs!$B$1460:$B$1634,Deliassage!$B$2:$B$46,Calculs!$C$1460:$C$1634,Deliassage!$C$2:$C$75)) -> 0 | H18: =IF(Hypothèses!$E$8='Codes '!$H$21,SUMIFS(Calculs!$E$1246:$E$1420,Calculs!$A$1246:$A$1420,Deliassage!$A$2:$A$63,Calculs!$B$1246:$B$1420,Deliassage!$B$2:$B$46,Calculs!$C$1246:$C$1420,Deliassage!$C$2:$C$75),SUMIFS(Calculs!$E$1460:$E$1634,Calculs!$A$1460:$A$1634,Deliassage!$A$2:$A$63,Calculs!$B$1460:$B$1634,Deliassage!$B$2:$B$46,Calculs!$C$1460:$C$1634,Deliassage!$C$2:$C$75)) -> 0 | I18: =SUMIFS(Calculs!$Y$1246:$Y$1420,Calculs!$A$1246:$A$1420,Deliassage!$A$2:$A$63,Calculs!$B$1246:$B$1420,Deliassage!$B$2:$B$46,Calculs!$C$1246:$C$1420,Deliassage!$C$2:$C$75) ->  | J18: =SUMIFS(Calculs!$AB$1246:$AB$1420,Calculs!$A$1246:$A$1420,Deliassage!$A$2:$A$63,Calculs!$B$1246:$B$1420,Deliassage!$B$2:$B$46,Calculs!$C$1246:$C$1420,Deliassage!$C$2:$C$75) -> 0
A19: Maestro | B19: DD | C19: UE | D19: Maestro DD UE | E19: Maestro DD | F19: =IF(Hypothèses!$E$8='Codes '!$H$21,SUMIFS(Calculs!$G$1246:$G$1420,Calculs!$A$1246:$A$1420,Deliassage!$A$2:$A$63,Calculs!$B$1246:$B$1420,Deliassage!$B$2:$B$46,Calculs!$C$1246:$C$1420,Deliassage!$C$2:$C$75),SUMIFS(Calculs!$G$1460:$G$1634,Calculs!$A$1460:$A$1634,Deliassage!$A$2:$A$63,Calculs!$B$1460:$B$1634,Deliassage!$B$2:$B$46,Calculs!$C$1460:$C$1634,Deliassage!$C$2:$C$75)) -> 0 | G19: =IF(Hypothèses!$E$8='Codes '!$H$21,SUMIFS(Calculs!$F$1246:$F$1420,Calculs!$A$1246:$A$1420,Deliassage!$A$2:$A$63,Calculs!$B$1246:$B$1420,Deliassage!$B$2:$B$46,Calculs!$C$1246:$C$1420,Deliassage!$C$2:$C$75),SUMIFS(Calculs!$F$1460:$F$1634,Calculs!$A$1460:$A$1634,Deliassage!$A$2:$A$63,Calculs!$B$1460:$B$1634,Deliassage!$B$2:$B$46,Calculs!$C$1460:$C$1634,Deliassage!$C$2:$C$75)) -> 0 | H19: =IF(Hypothèses!$E$8='Codes '!$H$21,SUMIFS(Calculs!$E$1246:$E$1420,Calculs!$A$1246:$A$1420,Deliassage!$A$2:$A$63,Calculs!$B$1246:$B$1420,Deliassage!$B$2:$B$46,Calculs!$C$1246:$C$1420,Deliassage!$C$2:$C$75),SUMIFS(Calculs!$E$1460:$E$1634,Calculs!$A$1460:$A$1634,Deliassage!$A$2:$A$63,Calculs!$B$1460:$B$1634,Deliassage!$B$2:$B$46,Calculs!$C$1460:$C$1634,Deliassage!$C$2:$C$75)) -> 0 | I19: =SUMIFS(Calculs!$Y$1246:$Y$1420,Calculs!$A$1246:$A$1420,Deliassage!$A$2:$A$63,Calculs!$B$1246:$B$1420,Deliassage!$B$2:$B$46,Calculs!$C$1246:$C$1420,Deliassage!$C$2:$C$75) ->  | J19: =SUMIFS(Calculs!$AB$1246:$AB$1420,Calculs!$A$1246:$A$1420,Deliassage!$A$2:$A$63,Calculs!$B$1246:$B$1420,Deliassage!$B$2:$B$46,Calculs!$C$1246:$C$1420,Deliassage!$C$2:$C$75) -> 0
A20: Maestro | B20: DI | C20: hors UE | D20: Maestro DI hors UE | E20: Maestro DI | F20: =IF(Hypothèses!$E$8='Codes '!$H$21,SUMIFS(Calculs!$G$1246:$G$1420,Calculs!$A$1246:$A$1420,Deliassage!$A$2:$A$63,Calculs!$B$1246:$B$1420,Deliassage!$B$2:$B$46,Calculs!$C$1246:$C$1420,Deliassage!$C$2:$C$75),SUMIFS(Calculs!$G$1460:$G$1634,Calculs!$A$1460:$A$1634,Deliassage!$A$2:$A$63,Calculs!$B$1460:$B$1634,Deliassage!$B$2:$B$46,Calculs!$C$1460:$C$1634,Deliassage!$C$2:$C$75)) -> 0 | G20: =IF(Hypothèses!$E$8='Codes '!$H$21,SUMIFS(Calculs!$F$1246:$F$1420,Calculs!$A$1246:$A$1420,Deliassage!$A$2:$A$63,Calculs!$B$1246:$B$1420,Deliassage!$B$2:$B$46,Calculs!$C$1246:$C$1420,Deliassage!$C$2:$C$75),SUMIFS(Calculs!$F$1460:$F$1634,Calculs!$A$1460:$A$1634,Deliassage!$A$2:$A$63,Calculs!$B$1460:$B$1634,Deliassage!$B$2:$B$46,Calculs!$C$1460:$C$1634,Deliassage!$C$2:$C$75)) -> 0 | H20: =IF(Hypothèses!$E$8='Codes '!$H$21,SUMIFS(Calculs!$E$1246:$E$1420,Calculs!$A$1246:$A$1420,Deliassage!$A$2:$A$63,Calculs!$B$1246:$B$1420,Deliassage!$B$2:$B$46,Calculs!$C$1246:$C$1420,Deliassage!$C$2:$C$75),SUMIFS(Calculs!$E$1460:$E$1634,Calculs!$A$1460:$A$1634,Deliassage!$A$2:$A$63,Calculs!$B$1460:$B$1634,Deliassage!$B$2:$B$46,Calculs!$C$1460:$C$1634,Deliassage!$C$2:$C$75)) -> 0 | I20: =SUMIFS(Calculs!$Y$1246:$Y$1420,Calculs!$A$1246:$A$1420,Deliassage!$A$2:$A$63,Calculs!$B$1246:$B$1420,Deliassage!$B$2:$B$46,Calculs!$C$1246:$C$1420,Deliassage!$C$2:$C$75) ->  | J20: =SUMIFS(Calculs!$AB$1246:$AB$1420,Calculs!$A$1246:$A$1420,Deliassage!$A$2:$A$63,Calculs!$B$1246:$B$1420,Deliassage!$B$2:$B$46,Calculs!$C$1246:$C$1420,Deliassage!$C$2:$C$75) -> 0
A21: Maestro | B21: DI | C21: Intra réseau | D21: Maestro DI Intra réseau | E21: Maestro DI | F21: =IF(Hypothèses!$E$8='Codes '!$H$21,SUMIFS(Calculs!$G$1246:$G$1420,Calculs!$A$1246:$A$1420,Deliassage!$A$2:$A$63,Calculs!$B$1246:$B$1420,Deliassage!$B$2:$B$46,Calculs!$C$1246:$C$1420,Deliassage!$C$2:$C$75),SUMIFS(Calculs!$G$1460:$G$1634,Calculs!$A$1460:$A$1634,Deliassage!$A$2:$A$63,Calculs!$B$1460:$B$1634,Deliassage!$B$2:$B$46,Calculs!$C$1460:$C$1634,Deliassage!$C$2:$C$75)) -> 0 | G21: =IF(Hypothèses!$E$8='Codes '!$H$21,SUMIFS(Calculs!$F$1246:$F$1420,Calculs!$A$1246:$A$1420,Deliassage!$A$2:$A$63,Calculs!$B$1246:$B$1420,Deliassage!$B$2:$B$46,Calculs!$C$1246:$C$1420,Deliassage!$C$2:$C$75),SUMIFS(Calculs!$F$1460:$F$1634,Calculs!$A$1460:$A$1634,Deliassage!$A$2:$A$63,Calculs!$B$1460:$B$1634,Deliassage!$B$2:$B$46,Calculs!$C$1460:$C$1634,Deliassage!$C$2:$C$75)) -> 0 | H21: =IF(Hypothèses!$E$8='Codes '!$H$21,SUMIFS(Calculs!$E$1246:$E$1420,Calculs!$A$1246:$A$1420,Deliassage!$A$2:$A$63,Calculs!$B$1246:$B$1420,Deliassage!$B$2:$B$46,Calculs!$C$1246:$C$1420,Deliassage!$C$2:$C$75),SUMIFS(Calculs!$E$1460:$E$1634,Calculs!$A$1460:$A$1634,Deliassage!$A$2:$A$63,Calculs!$B$1460:$B$1634,Deliassage!$B$2:$B$46,Calculs!$C$1460:$C$1634,Deliassage!$C$2:$C$75)) -> 0 | I21: =SUMIFS(Calculs!$Y$1246:$Y$1420,Calculs!$A$1246:$A$1420,Deliassage!$A$2:$A$63,Calculs!$B$1246:$B$1420,Deliassage!$B$2:$B$46,Calculs!$C$1246:$C$1420,Deliassage!$C$2:$C$75) ->  | J21: =SUMIFS(Calculs!$AB$1246:$AB$1420,Calculs!$A$1246:$A$1420,Deliassage!$A$2:$A$63,Calculs!$B$1246:$B$1420,Deliassage!$B$2:$B$46,Calculs!$C$1246:$C$1420,Deliassage!$C$2:$C$75) -> 0
A22: Maestro | B22: DI | C22: UE | D22: Maestro DI UE | E22: Maestro DI | F22: =IF(Hypothèses!$E$8='Codes '!$H$21,SUMIFS(Calculs!$G$1246:$G$1420,Calculs!$A$1246:$A$1420,Deliassage!$A$2:$A$63,Calculs!$B$1246:$B$1420,Deliassage!$B$2:$B$46,Calculs!$C$1246:$C$1420,Deliassage!$C$2:$C$75),SUMIFS(Calculs!$G$1460:$G$1634,Calculs!$A$1460:$A$1634,Deliassage!$A$2:$A$63,Calculs!$B$1460:$B$1634,Deliassage!$B$2:$B$46,Calculs!$C$1460:$C$1634,Deliassage!$C$2:$C$75)) -> 0 | G22: =IF(Hypothèses!$E$8='Codes '!$H$21,SUMIFS(Calculs!$F$1246:$F$1420,Calculs!$A$1246:$A$1420,Deliassage!$A$2:$A$63,Calculs!$B$1246:$B$1420,Deliassage!$B$2:$B$46,Calculs!$C$1246:$C$1420,Deliassage!$C$2:$C$75),SUMIFS(Calculs!$F$1460:$F$1634,Calculs!$A$1460:$A$1634,Deliassage!$A$2:$A$63,Calculs!$B$1460:$B$1634,Deliassage!$B$2:$B$46,Calculs!$C$1460:$C$1634,Deliassage!$C$2:$C$75)) -> 0 | H22: =IF(Hypothèses!$E$8='Codes '!$H$21,SUMIFS(Calculs!$E$1246:$E$1420,Calculs!$A$1246:$A$1420,Deliassage!$A$2:$A$63,Calculs!$B$1246:$B$1420,Deliassage!$B$2:$B$46,Calculs!$C$1246:$C$1420,Deliassage!$C$2:$C$75),SUMIFS(Calculs!$E$1460:$E$1634,Calculs!$A$1460:$A$1634,Deliassage!$A$2:$A$63,Calculs!$B$1460:$B$1634,Deliassage!$B$2:$B$46,Calculs!$C$1460:$C$1634,Deliassage!$C$2:$C$75)) -> 0 | I22: =SUMIFS(Calculs!$Y$1246:$Y$1420,Calculs!$A$1246:$A$1420,Deliassage!$A$2:$A$63,Calculs!$B$1246:$B$1420,Deliassage!$B$2:$B$46,Calculs!$C$1246:$C$1420,Deliassage!$C$2:$C$75) ->  | J22: =SUMIFS(Calculs!$AB$1246:$AB$1420,Calculs!$A$1246:$A$1420,Deliassage!$A$2:$A$63,Calculs!$B$1246:$B$1420,Deliassage!$B$2:$B$46,Calculs!$C$1246:$C$1420,Deliassage!$C$2:$C$75) -> 0
A23: Mastercard | B23: Commerciale | C23: hors UE | D23: Mastercard Commerciale hors UE | E23: Mastercard Commerciale | F23: =IF(Hypothèses!$E$8='Codes '!$H$21,SUMIFS(Calculs!$G$1246:$G$1420,Calculs!$A$1246:$A$1420,Deliassage!$A$2:$A$63,Calculs!$B$1246:$B$1420,Deliassage!$B$2:$B$46,Calculs!$C$1246:$C$1420,Deliassage!$C$2:$C$75),SUMIFS(Calculs!$G$1460:$G$1634,Calculs!$A$1460:$A$1634,Deliassage!$A$2:$A$63,Calculs!$B$1460:$B$1634,Deliassage!$B$2:$B$46,Calculs!$C$1460:$C$1634,Deliassage!$C$2:$C$75)) -> 0 | G23: =IF(Hypothèses!$E$8='Codes '!$H$21,SUMIFS(Calculs!$F$1246:$F$1420,Calculs!$A$1246:$A$1420,Deliassage!$A$2:$A$63,Calculs!$B$1246:$B$1420,Deliassage!$B$2:$B$46,Calculs!$C$1246:$C$1420,Deliassage!$C$2:$C$75),SUMIFS(Calculs!$F$1460:$F$1634,Calculs!$A$1460:$A$1634,Deliassage!$A$2:$A$63,Calculs!$B$1460:$B$1634,Deliassage!$B$2:$B$46,Calculs!$C$1460:$C$1634,Deliassage!$C$2:$C$75)) -> 0 | H23: =IF(Hypothèses!$E$8='Codes '!$H$21,SUMIFS(Calculs!$E$1246:$E$1420,Calculs!$A$1246:$A$1420,Deliassage!$A$2:$A$63,Calculs!$B$1246:$B$1420,Deliassage!$B$2:$B$46,Calculs!$C$1246:$C$1420,Deliassage!$C$2:$C$75),SUMIFS(Calculs!$E$1460:$E$1634,Calculs!$A$1460:$A$1634,Deliassage!$A$2:$A$63,Calculs!$B$1460:$B$1634,Deliassage!$B$2:$B$46,Calculs!$C$1460:$C$1634,Deliassage!$C$2:$C$75)) -> 0 | I23: =SUMIFS(Calculs!$Y$1246:$Y$1420,Calculs!$A$1246:$A$1420,Deliassage!$A$2:$A$63,Calculs!$B$1246:$B$1420,Deliassage!$B$2:$B$46,Calculs!$C$1246:$C$1420,Deliassage!$C$2:$C$75) ->  | J23: =SUMIFS(Calculs!$AB$1246:$AB$1420,Calculs!$A$1246:$A$1420,Deliassage!$A$2:$A$63,Calculs!$B$1246:$B$1420,Deliassage!$B$2:$B$46,Calculs!$C$1246:$C$1420,Deliassage!$C$2:$C$75) -> 0
A24: Mastercard | B24: Commerciale | C24: UE | D24: Mastercard Commerciale UE | E24: Mastercard Commerciale | F24: =IF(Hypothèses!$E$8='Codes '!$H$21,SUMIFS(Calculs!$G$1246:$G$1420,Calculs!$A$1246:$A$1420,Deliassage!$A$2:$A$63,Calculs!$B$1246:$B$1420,Deliassage!$B$2:$B$46,Calculs!$C$1246:$C$1420,Deliassage!$C$2:$C$75),SUMIFS(Calculs!$G$1460:$G$1634,Calculs!$A$1460:$A$1634,Deliassage!$A$2:$A$63,Calculs!$B$1460:$B$1634,Deliassage!$B$2:$B$46,Calculs!$C$1460:$C$1634,Deliassage!$C$2:$C$75)) -> 0 | G24: =IF(Hypothèses!$E$8='Codes '!$H$21,SUMIFS(Calculs!$F$1246:$F$1420,Calculs!$A$1246:$A$1420,Deliassage!$A$2:$A$63,Calculs!$B$1246:$B$1420,Deliassage!$B$2:$B$46,Calculs!$C$1246:$C$1420,Deliassage!$C$2:$C$75),SUMIFS(Calculs!$F$1460:$F$1634,Calculs!$A$1460:$A$1634,Deliassage!$A$2:$A$63,Calculs!$B$1460:$B$1634,Deliassage!$B$2:$B$46,Calculs!$C$1460:$C$1634,Deliassage!$C$2:$C$75)) -> 0 | H24: =IF(Hypothèses!$E$8='Codes '!$H$21,SUMIFS(Calculs!$E$1246:$E$1420,Calculs!$A$1246:$A$1420,Deliassage!$A$2:$A$63,Calculs!$B$1246:$B$1420,Deliassage!$B$2:$B$46,Calculs!$C$1246:$C$1420,Deliassage!$C$2:$C$75),SUMIFS(Calculs!$E$1460:$E$1634,Calculs!$A$1460:$A$1634,Deliassage!$A$2:$A$63,Calculs!$B$1460:$B$1634,Deliassage!$B$2:$B$46,Calculs!$C$1460:$C$1634,Deliassage!$C$2:$C$75)) -> 0 | I24: =SUMIFS(Calculs!$Y$1246:$Y$1420,Calculs!$A$1246:$A$1420,Deliassage!$A$2:$A$63,Calculs!$B$1246:$B$1420,Deliassage!$B$2:$B$46,Calculs!$C$1246:$C$1420,Deliassage!$C$2:$C$75) ->  | J24: =SUMIFS(Calculs!$AB$1246:$AB$1420,Calculs!$A$1246:$A$1420,Deliassage!$A$2:$A$63,Calculs!$B$1246:$B$1420,Deliassage!$B$2:$B$46,Calculs!$C$1246:$C$1420,Deliassage!$C$2:$C$75) -> 0
A25: Mastercard | B25: DD | C25: hors UE | D25: Mastercard DD hors UE | E25: Mastercard DD | F25: =IF(Hypothèses!$E$8='Codes '!$H$21,SUMIFS(Calculs!$G$1246:$G$1420,Calculs!$A$1246:$A$1420,Deliassage!$A$2:$A$63,Calculs!$B$1246:$B$1420,Deliassage!$B$2:$B$46,Calculs!$C$1246:$C$1420,Deliassage!$C$2:$C$75),SUMIFS(Calculs!$G$1460:$G$1634,Calculs!$A$1460:$A$1634,Deliassage!$A$2:$A$63,Calculs!$B$1460:$B$1634,Deliassage!$B$2:$B$46,Calculs!$C$1460:$C$1634,Deliassage!$C$2:$C$75)) -> 0 | G25: =IF(Hypothèses!$E$8='Codes '!$H$21,SUMIFS(Calculs!$F$1246:$F$1420,Calculs!$A$1246:$A$1420,Deliassage!$A$2:$A$63,Calculs!$B$1246:$B$1420,Deliassage!$B$2:$B$46,Calculs!$C$1246:$C$1420,Deliassage!$C$2:$C$75),SUMIFS(Calculs!$F$1460:$F$1634,Calculs!$A$1460:$A$1634,Deliassage!$A$2:$A$63,Calculs!$B$1460:$B$1634,Deliassage!$B$2:$B$46,Calculs!$C$1460:$C$1634,Deliassage!$C$2:$C$75)) -> 0 | H25: =IF(Hypothèses!$E$8='Codes '!$H$21,SUMIFS(Calculs!$E$1246:$E$1420,Calculs!$A$1246:$A$1420,Deliassage!$A$2:$A$63,Calculs!$B$1246:$B$1420,Deliassage!$B$2:$B$46,Calculs!$C$1246:$C$1420,Deliassage!$C$2:$C$75),SUMIFS(Calculs!$E$1460:$E$1634,Calculs!$A$1460:$A$1634,Deliassage!$A$2:$A$63,Calculs!$B$1460:$B$1634,Deliassage!$B$2:$B$46,Calculs!$C$1460:$C$1634,Deliassage!$C$2:$C$75)) -> 0 | I25: =SUMIFS(Calculs!$Y$1246:$Y$1420,Calculs!$A$1246:$A$1420,Deliassage!$A$2:$A$63,Calculs!$B$1246:$B$1420,Deliassage!$B$2:$B$46,Calculs!$C$1246:$C$1420,Deliassage!$C$2:$C$75) ->  | J25: =SUMIFS(Calculs!$AB$1246:$AB$1420,Calculs!$A$1246:$A$1420,Deliassage!$A$2:$A$63,Calculs!$B$1246:$B$1420,Deliassage!$B$2:$B$46,Calculs!$C$1246:$C$1420,Deliassage!$C$2:$C$75) -> 0
A26: Mastercard | B26: DD | C26: UE | D26: Mastercard DD UE | E26: Mastercard DD | F26: =IF(Hypothèses!$E$8='Codes '!$H$21,SUMIFS(Calculs!$G$1246:$G$1420,Calculs!$A$1246:$A$1420,Deliassage!$A$2:$A$63,Calculs!$B$1246:$B$1420,Deliassage!$B$2:$B$46,Calculs!$C$1246:$C$1420,Deliassage!$C$2:$C$75),SUMIFS(Calculs!$G$1460:$G$1634,Calculs!$A$1460:$A$1634,Deliassage!$A$2:$A$63,Calculs!$B$1460:$B$1634,Deliassage!$B$2:$B$46,Calculs!$C$1460:$C$1634,Deliassage!$C$2:$C$75)) -> 0 | G26: =IF(Hypothèses!$E$8='Codes '!$H$21,SUMIFS(Calculs!$F$1246:$F$1420,Calculs!$A$1246:$A$1420,Deliassage!$A$2:$A$63,Calculs!$B$1246:$B$1420,Deliassage!$B$2:$B$46,Calculs!$C$1246:$C$1420,Deliassage!$C$2:$C$75),SUMIFS(Calculs!$F$1460:$F$1634,Calculs!$A$1460:$A$1634,Deliassage!$A$2:$A$63,Calculs!$B$1460:$B$1634,Deliassage!$B$2:$B$46,Calculs!$C$1460:$C$1634,Deliassage!$C$2:$C$75)) -> 0 | H26: =IF(Hypothèses!$E$8='Codes '!$H$21,SUMIFS(Calculs!$E$1246:$E$1420,Calculs!$A$1246:$A$1420,Deliassage!$A$2:$A$63,Calculs!$B$1246:$B$1420,Deliassage!$B$2:$B$46,Calculs!$C$1246:$C$1420,Deliassage!$C$2:$C$75),SUMIFS(Calculs!$E$1460:$E$1634,Calculs!$A$1460:$A$1634,Deliassage!$A$2:$A$63,Calculs!$B$1460:$B$1634,Deliassage!$B$2:$B$46,Calculs!$C$1460:$C$1634,Deliassage!$C$2:$C$75)) -> 0 | I26: =SUMIFS(Calculs!$Y$1246:$Y$1420,Calculs!$A$1246:$A$1420,Deliassage!$A$2:$A$63,Calculs!$B$1246:$B$1420,Deliassage!$B$2:$B$46,Calculs!$C$1246:$C$1420,Deliassage!$C$2:$C$75) ->  | J26: =SUMIFS(Calculs!$AB$1246:$AB$1420,Calculs!$A$1246:$A$1420,Deliassage!$A$2:$A$63,Calculs!$B$1246:$B$1420,Deliassage!$B$2:$B$46,Calculs!$C$1246:$C$1420,Deliassage!$C$2:$C$75) -> 0
A27: Mastercard | B27: DI | C27: hors UE | D27: Mastercard DI hors UE | E27: Mastercard DI | F27: =IF(Hypothèses!$E$8='Codes '!$H$21,SUMIFS(Calculs!$G$1246:$G$1420,Calculs!$A$1246:$A$1420,Deliassage!$A$2:$A$63,Calculs!$B$1246:$B$1420,Deliassage!$B$2:$B$46,Calculs!$C$1246:$C$1420,Deliassage!$C$2:$C$75),SUMIFS(Calculs!$G$1460:$G$1634,Calculs!$A$1460:$A$1634,Deliassage!$A$2:$A$63,Calculs!$B$1460:$B$1634,Deliassage!$B$2:$B$46,Calculs!$C$1460:$C$1634,Deliassage!$C$2:$C$75)) -> 0 | G27: =IF(Hypothèses!$E$8='Codes '!$H$21,SUMIFS(Calculs!$F$1246:$F$1420,Calculs!$A$1246:$A$1420,Deliassage!$A$2:$A$63,Calculs!$B$1246:$B$1420,Deliassage!$B$2:$B$46,Calculs!$C$1246:$C$1420,Deliassage!$C$2:$C$75),SUMIFS(Calculs!$F$1460:$F$1634,Calculs!$A$1460:$A$1634,Deliassage!$A$2:$A$63,Calculs!$B$1460:$B$1634,Deliassage!$B$2:$B$46,Calculs!$C$1460:$C$1634,Deliassage!$C$2:$C$75)) -> 0 | H27: =IF(Hypothèses!$E$8='Codes '!$H$21,SUMIFS(Calculs!$E$1246:$E$1420,Calculs!$A$1246:$A$1420,Deliassage!$A$2:$A$63,Calculs!$B$1246:$B$1420,Deliassage!$B$2:$B$46,Calculs!$C$1246:$C$1420,Deliassage!$C$2:$C$75),SUMIFS(Calculs!$E$1460:$E$1634,Calculs!$A$1460:$A$1634,Deliassage!$A$2:$A$63,Calculs!$B$1460:$B$1634,Deliassage!$B$2:$B$46,Calculs!$C$1460:$C$1634,Deliassage!$C$2:$C$75)) -> 0 | I27: =SUMIFS(Calculs!$Y$1246:$Y$1420,Calculs!$A$1246:$A$1420,Deliassage!$A$2:$A$63,Calculs!$B$1246:$B$1420,Deliassage!$B$2:$B$46,Calculs!$C$1246:$C$1420,Deliassage!$C$2:$C$75) ->  | J27: =SUMIFS(Calculs!$AB$1246:$AB$1420,Calculs!$A$1246:$A$1420,Deliassage!$A$2:$A$63,Calculs!$B$1246:$B$1420,Deliassage!$B$2:$B$46,Calculs!$C$1246:$C$1420,Deliassage!$C$2:$C$75) -> 0
A28: Mastercard | B28: DI | C28: UE | D28: Mastercard DI UE | E28: Mastercard DI | F28: =IF(Hypothèses!$E$8='Codes '!$H$21,SUMIFS(Calculs!$G$1246:$G$1420,Calculs!$A$1246:$A$1420,Deliassage!$A$2:$A$63,Calculs!$B$1246:$B$1420,Deliassage!$B$2:$B$46,Calculs!$C$1246:$C$1420,Deliassage!$C$2:$C$75),SUMIFS(Calculs!$G$1460:$G$1634,Calculs!$A$1460:$A$1634,Deliassage!$A$2:$A$63,Calculs!$B$1460:$B$1634,Deliassage!$B$2:$B$46,Calculs!$C$1460:$C$1634,Deliassage!$C$2:$C$75)) -> 0 | G28: =IF(Hypothèses!$E$8='Codes '!$H$21,SUMIFS(Calculs!$F$1246:$F$1420,Calculs!$A$1246:$A$1420,Deliassage!$A$2:$A$63,Calculs!$B$1246:$B$1420,Deliassage!$B$2:$B$46,Calculs!$C$1246:$C$1420,Deliassage!$C$2:$C$75),SUMIFS(Calculs!$F$1460:$F$1634,Calculs!$A$1460:$A$1634,Deliassage!$A$2:$A$63,Calculs!$B$1460:$B$1634,Deliassage!$B$2:$B$46,Calculs!$C$1460:$C$1634,Deliassage!$C$2:$C$75)) -> 0 | H28: =IF(Hypothèses!$E$8='Codes '!$H$21,SUMIFS(Calculs!$E$1246:$E$1420,Calculs!$A$1246:$A$1420,Deliassage!$A$2:$A$63,Calculs!$B$1246:$B$1420,Deliassage!$B$2:$B$46,Calculs!$C$1246:$C$1420,Deliassage!$C$2:$C$75),SUMIFS(Calculs!$E$1460:$E$1634,Calculs!$A$1460:$A$1634,Deliassage!$A$2:$A$63,Calculs!$B$1460:$B$1634,Deliassage!$B$2:$B$46,Calculs!$C$1460:$C$1634,Deliassage!$C$2:$C$75)) -> 0 | I28: =SUMIFS(Calculs!$Y$1246:$Y$1420,Calculs!$A$1246:$A$1420,Deliassage!$A$2:$A$63,Calculs!$B$1246:$B$1420,Deliassage!$B$2:$B$46,Calculs!$C$1246:$C$1420,Deliassage!$C$2:$C$75) ->  | J28: =SUMIFS(Calculs!$AB$1246:$AB$1420,Calculs!$A$1246:$A$1420,Deliassage!$A$2:$A$63,Calculs!$B$1246:$B$1420,Deliassage!$B$2:$B$46,Calculs!$C$1246:$C$1420,Deliassage!$C$2:$C$75) -> 0
A29: Visa | B29: Commerciale | C29: hors UE | D29: Visa Commerciale hors UE | E29: Visa Commerciale | F29: =IF(Hypothèses!$E$8='Codes '!$H$21,SUMIFS(Calculs!$G$1246:$G$1420,Calculs!$A$1246:$A$1420,Deliassage!$A$2:$A$63,Calculs!$B$1246:$B$1420,Deliassage!$B$2:$B$46,Calculs!$C$1246:$C$1420,Deliassage!$C$2:$C$75),SUMIFS(Calculs!$G$1460:$G$1634,Calculs!$A$1460:$A$1634,Deliassage!$A$2:$A$63,Calculs!$B$1460:$B$1634,Deliassage!$B$2:$B$46,Calculs!$C$1460:$C$1634,Deliassage!$C$2:$C$75)) -> 0 | G29: =IF(Hypothèses!$E$8='Codes '!$H$21,SUMIFS(Calculs!$F$1246:$F$1420,Calculs!$A$1246:$A$1420,Deliassage!$A$2:$A$63,Calculs!$B$1246:$B$1420,Deliassage!$B$2:$B$46,Calculs!$C$1246:$C$1420,Deliassage!$C$2:$C$75),SUMIFS(Calculs!$F$1460:$F$1634,Calculs!$A$1460:$A$1634,Deliassage!$A$2:$A$63,Calculs!$B$1460:$B$1634,Deliassage!$B$2:$B$46,Calculs!$C$1460:$C$1634,Deliassage!$C$2:$C$75)) -> 0 | H29: =IF(Hypothèses!$E$8='Codes '!$H$21,SUMIFS(Calculs!$E$1246:$E$1420,Calculs!$A$1246:$A$1420,Deliassage!$A$2:$A$63,Calculs!$B$1246:$B$1420,Deliassage!$B$2:$B$46,Calculs!$C$1246:$C$1420,Deliassage!$C$2:$C$75),SUMIFS(Calculs!$E$1460:$E$1634,Calculs!$A$1460:$A$1634,Deliassage!$A$2:$A$63,Calculs!$B$1460:$B$1634,Deliassage!$B$2:$B$46,Calculs!$C$1460:$C$1634,Deliassage!$C$2:$C$75)) -> 0 | I29: =SUMIFS(Calculs!$Y$1246:$Y$1420,Calculs!$A$1246:$A$1420,Deliassage!$A$2:$A$63,Calculs!$B$1246:$B$1420,Deliassage!$B$2:$B$46,Calculs!$C$1246:$C$1420,Deliassage!$C$2:$C$75) ->  | J29: =SUMIFS(Calculs!$AB$1246:$AB$1420,Calculs!$A$1246:$A$1420,Deliassage!$A$2:$A$63,Calculs!$B$1246:$B$1420,Deliassage!$B$2:$B$46,Calculs!$C$1246:$C$1420,Deliassage!$C$2:$C$75) -> 0
A30: Visa | B30: Commerciale | C30: UE | D30: Visa Commerciale UE | E30: Visa Commerciale | F30: =IF(Hypothèses!$E$8='Codes '!$H$21,SUMIFS(Calculs!$G$1246:$G$1420,Calculs!$A$1246:$A$1420,Deliassage!$A$2:$A$63,Calculs!$B$1246:$B$1420,Deliassage!$B$2:$B$46,Calculs!$C$1246:$C$1420,Deliassage!$C$2:$C$75),SUMIFS(Calculs!$G$1460:$G$1634,Calculs!$A$1460:$A$1634,Deliassage!$A$2:$A$63,Calculs!$B$1460:$B$1634,Deliassage!$B$2:$B$46,Calculs!$C$1460:$C$1634,Deliassage!$C$2:$C$75)) -> 0 | G30: =IF(Hypothèses!$E$8='Codes '!$H$21,SUMIFS(Calculs!$F$1246:$F$1420,Calculs!$A$1246:$A$1420,Deliassage!$A$2:$A$63,Calculs!$B$1246:$B$1420,Deliassage!$B$2:$B$46,Calculs!$C$1246:$C$1420,Deliassage!$C$2:$C$75),SUMIFS(Calculs!$F$1460:$F$1634,Calculs!$A$1460:$A$1634,Deliassage!$A$2:$A$63,Calculs!$B$1460:$B$1634,Deliassage!$B$2:$B$46,Calculs!$C$1460:$C$1634,Deliassage!$C$2:$C$75)) -> 0 | H30: =IF(Hypothèses!$E$8='Codes '!$H$21,SUMIFS(Calculs!$E$1246:$E$1420,Calculs!$A$1246:$A$1420,Deliassage!$A$2:$A$63,Calculs!$B$1246:$B$1420,Deliassage!$B$2:$B$46,Calculs!$C$1246:$C$1420,Deliassage!$C$2:$C$75),SUMIFS(Calculs!$E$1460:$E$1634,Calculs!$A$1460:$A$1634,Deliassage!$A$2:$A$63,Calculs!$B$1460:$B$1634,Deliassage!$B$2:$B$46,Calculs!$C$1460:$C$1634,Deliassage!$C$2:$C$75)) -> 0 | I30: =SUMIFS(Calculs!$Y$1246:$Y$1420,Calculs!$A$1246:$A$1420,Deliassage!$A$2:$A$63,Calculs!$B$1246:$B$1420,Deliassage!$B$2:$B$46,Calculs!$C$1246:$C$1420,Deliassage!$C$2:$C$75) ->  | J30: =SUMIFS(Calculs!$AB$1246:$AB$1420,Calculs!$A$1246:$A$1420,Deliassage!$A$2:$A$63,Calculs!$B$1246:$B$1420,Deliassage!$B$2:$B$46,Calculs!$C$1246:$C$1420,Deliassage!$C$2:$C$75) -> 0
A31: Visa | B31: DD | C31: hors UE | D31: Visa DD hors UE | E31: Visa DD | F31: =IF(Hypothèses!$E$8='Codes '!$H$21,SUMIFS(Calculs!$G$1246:$G$1420,Calculs!$A$1246:$A$1420,Deliassage!$A$2:$A$63,Calculs!$B$1246:$B$1420,Deliassage!$B$2:$B$46,Calculs!$C$1246:$C$1420,Deliassage!$C$2:$C$75),SUMIFS(Calculs!$G$1460:$G$1634,Calculs!$A$1460:$A$1634,Deliassage!$A$2:$A$63,Calculs!$B$1460:$B$1634,Deliassage!$B$2:$B$46,Calculs!$C$1460:$C$1634,Deliassage!$C$2:$C$75)) -> 0 | G31: =IF(Hypothèses!$E$8='Codes '!$H$21,SUMIFS(Calculs!$F$1246:$F$1420,Calculs!$A$1246:$A$1420,Deliassage!$A$2:$A$63,Calculs!$B$1246:$B$1420,Deliassage!$B$2:$B$46,Calculs!$C$1246:$C$1420,Deliassage!$C$2:$C$75),SUMIFS(Calculs!$F$1460:$F$1634,Calculs!$A$1460:$A$1634,Deliassage!$A$2:$A$63,Calculs!$B$1460:$B$1634,Deliassage!$B$2:$B$46,Calculs!$C$1460:$C$1634,Deliassage!$C$2:$C$75)) -> 0 | H31: =IF(Hypothèses!$E$8='Codes '!$H$21,SUMIFS(Calculs!$E$1246:$E$1420,Calculs!$A$1246:$A$1420,Deliassage!$A$2:$A$63,Calculs!$B$1246:$B$1420,Deliassage!$B$2:$B$46,Calculs!$C$1246:$C$1420,Deliassage!$C$2:$C$75),SUMIFS(Calculs!$E$1460:$E$1634,Calculs!$A$1460:$A$1634,Deliassage!$A$2:$A$63,Calculs!$B$1460:$B$1634,Deliassage!$B$2:$B$46,Calculs!$C$1460:$C$1634,Deliassage!$C$2:$C$75)) -> 0 | I31: =SUMIFS(Calculs!$Y$1246:$Y$1420,Calculs!$A$1246:$A$1420,Deliassage!$A$2:$A$63,Calculs!$B$1246:$B$1420,Deliassage!$B$2:$B$46,Calculs!$C$1246:$C$1420,Deliassage!$C$2:$C$75) ->  | J31: =SUMIFS(Calculs!$AB$1246:$AB$1420,Calculs!$A$1246:$A$1420,Deliassage!$A$2:$A$63,Calculs!$B$1246:$B$1420,Deliassage!$B$2:$B$46,Calculs!$C$1246:$C$1420,Deliassage!$C$2:$C$75) -> 0
A32: Visa | B32: DD | C32: UE | D32: Visa DD UE | E32: Visa DD | F32: =IF(Hypothèses!$E$8='Codes '!$H$21,SUMIFS(Calculs!$G$1246:$G$1420,Calculs!$A$1246:$A$1420,Deliassage!$A$2:$A$63,Calculs!$B$1246:$B$1420,Deliassage!$B$2:$B$46,Calculs!$C$1246:$C$1420,Deliassage!$C$2:$C$75),SUMIFS(Calculs!$G$1460:$G$1634,Calculs!$A$1460:$A$1634,Deliassage!$A$2:$A$63,Calculs!$B$1460:$B$1634,Deliassage!$B$2:$B$46,Calculs!$C$1460:$C$1634,Deliassage!$C$2:$C$75)) -> 0 | G32: =IF(Hypothèses!$E$8='Codes '!$H$21,SUMIFS(Calculs!$F$1246:$F$1420,Calculs!$A$1246:$A$1420,Deliassage!$A$2:$A$63,Calculs!$B$1246:$B$1420,Deliassage!$B$2:$B$46,Calculs!$C$1246:$C$1420,Deliassage!$C$2:$C$75),SUMIFS(Calculs!$F$1460:$F$1634,Calculs!$A$1460:$A$1634,Deliassage!$A$2:$A$63,Calculs!$B$1460:$B$1634,Deliassage!$B$2:$B$46,Calculs!$C$1460:$C$1634,Deliassage!$C$2:$C$75)) -> 0 | H32: =IF(Hypothèses!$E$8='Codes '!$H$21,SUMIFS(Calculs!$E$1246:$E$1420,Calculs!$A$1246:$A$1420,Deliassage!$A$2:$A$63,Calculs!$B$1246:$B$1420,Deliassage!$B$2:$B$46,Calculs!$C$1246:$C$1420,Deliassage!$C$2:$C$75),SUMIFS(Calculs!$E$1460:$E$1634,Calculs!$A$1460:$A$1634,Deliassage!$A$2:$A$63,Calculs!$B$1460:$B$1634,Deliassage!$B$2:$B$46,Calculs!$C$1460:$C$1634,Deliassage!$C$2:$C$75)) -> 0 | I32: =SUMIFS(Calculs!$Y$1246:$Y$1420,Calculs!$A$1246:$A$1420,Deliassage!$A$2:$A$63,Calculs!$B$1246:$B$1420,Deliassage!$B$2:$B$46,Calculs!$C$1246:$C$1420,Deliassage!$C$2:$C$75) ->  | J32: =SUMIFS(Calculs!$AB$1246:$AB$1420,Calculs!$A$1246:$A$1420,Deliassage!$A$2:$A$63,Calculs!$B$1246:$B$1420,Deliassage!$B$2:$B$46,Calculs!$C$1246:$C$1420,Deliassage!$C$2:$C$75) -> 0
A33: Visa | B33: DI | C33: hors UE | D33: Visa DI hors UE | E33: Visa DI | F33: =IF(Hypothèses!$E$8='Codes '!$H$21,SUMIFS(Calculs!$G$1246:$G$1420,Calculs!$A$1246:$A$1420,Deliassage!$A$2:$A$63,Calculs!$B$1246:$B$1420,Deliassage!$B$2:$B$46,Calculs!$C$1246:$C$1420,Deliassage!$C$2:$C$75),SUMIFS(Calculs!$G$1460:$G$1634,Calculs!$A$1460:$A$1634,Deliassage!$A$2:$A$63,Calculs!$B$1460:$B$1634,Deliassage!$B$2:$B$46,Calculs!$C$1460:$C$1634,Deliassage!$C$2:$C$75)) -> 0 | G33: =IF(Hypothèses!$E$8='Codes '!$H$21,SUMIFS(Calculs!$F$1246:$F$1420,Calculs!$A$1246:$A$1420,Deliassage!$A$2:$A$63,Calculs!$B$1246:$B$1420,Deliassage!$B$2:$B$46,Calculs!$C$1246:$C$1420,Deliassage!$C$2:$C$75),SUMIFS(Calculs!$F$1460:$F$1634,Calculs!$A$1460:$A$1634,Deliassage!$A$2:$A$63,Calculs!$B$1460:$B$1634,Deliassage!$B$2:$B$46,Calculs!$C$1460:$C$1634,Deliassage!$C$2:$C$75)) -> 0 | H33: =IF(Hypothèses!$E$8='Codes '!$H$21,SUMIFS(Calculs!$E$1246:$E$1420,Calculs!$A$1246:$A$1420,Deliassage!$A$2:$A$63,Calculs!$B$1246:$B$1420,Deliassage!$B$2:$B$46,Calculs!$C$1246:$C$1420,Deliassage!$C$2:$C$75),SUMIFS(Calculs!$E$1460:$E$1634,Calculs!$A$1460:$A$1634,Deliassage!$A$2:$A$63,Calculs!$B$1460:$B$1634,Deliassage!$B$2:$B$46,Calculs!$C$1460:$C$1634,Deliassage!$C$2:$C$75)) -> 0 | I33: =SUMIFS(Calculs!$Y$1246:$Y$1420,Calculs!$A$1246:$A$1420,Deliassage!$A$2:$A$63,Calculs!$B$1246:$B$1420,Deliassage!$B$2:$B$46,Calculs!$C$1246:$C$1420,Deliassage!$C$2:$C$75) ->  | J33: =SUMIFS(Calculs!$AB$1246:$AB$1420,Calculs!$A$1246:$A$1420,Deliassage!$A$2:$A$63,Calculs!$B$1246:$B$1420,Deliassage!$B$2:$B$46,Calculs!$C$1246:$C$1420,Deliassage!$C$2:$C$75) -> 0
A34: Visa | B34: DI | C34: UE | D34: Visa DI UE | E34: Visa DI | F34: =IF(Hypothèses!$E$8='Codes '!$H$21,SUMIFS(Calculs!$G$1246:$G$1420,Calculs!$A$1246:$A$1420,Deliassage!$A$2:$A$63,Calculs!$B$1246:$B$1420,Deliassage!$B$2:$B$46,Calculs!$C$1246:$C$1420,Deliassage!$C$2:$C$75),SUMIFS(Calculs!$G$1460:$G$1634,Calculs!$A$1460:$A$1634,Deliassage!$A$2:$A$63,Calculs!$B$1460:$B$1634,Deliassage!$B$2:$B$46,Calculs!$C$1460:$C$1634,Deliassage!$C$2:$C$75)) -> 0 | G34: =IF(Hypothèses!$E$8='Codes '!$H$21,SUMIFS(Calculs!$F$1246:$F$1420,Calculs!$A$1246:$A$1420,Deliassage!$A$2:$A$63,Calculs!$B$1246:$B$1420,Deliassage!$B$2:$B$46,Calculs!$C$1246:$C$1420,Deliassage!$C$2:$C$75),SUMIFS(Calculs!$F$1460:$F$1634,Calculs!$A$1460:$A$1634,Deliassage!$A$2:$A$63,Calculs!$B$1460:$B$1634,Deliassage!$B$2:$B$46,Calculs!$C$1460:$C$1634,Deliassage!$C$2:$C$75)) -> 0 | H34: =IF(Hypothèses!$E$8='Codes '!$H$21,SUMIFS(Calculs!$E$1246:$E$1420,Calculs!$A$1246:$A$1420,Deliassage!$A$2:$A$63,Calculs!$B$1246:$B$1420,Deliassage!$B$2:$B$46,Calculs!$C$1246:$C$1420,Deliassage!$C$2:$C$75),SUMIFS(Calculs!$E$1460:$E$1634,Calculs!$A$1460:$A$1634,Deliassage!$A$2:$A$63,Calculs!$B$1460:$B$1634,Deliassage!$B$2:$B$46,Calculs!$C$1460:$C$1634,Deliassage!$C$2:$C$75)) -> 0 | I34: =SUMIFS(Calculs!$Y$1246:$Y$1420,Calculs!$A$1246:$A$1420,Deliassage!$A$2:$A$63,Calculs!$B$1246:$B$1420,Deliassage!$B$2:$B$46,Calculs!$C$1246:$C$1420,Deliassage!$C$2:$C$75) ->  | J34: =SUMIFS(Calculs!$AB$1246:$AB$1420,Calculs!$A$1246:$A$1420,Deliassage!$A$2:$A$63,Calculs!$B$1246:$B$1420,Deliassage!$B$2:$B$46,Calculs!$C$1246:$C$1420,Deliassage!$C$2:$C$75) -> 0
A35: Visa | B35: DI | C35: Intra réseau | D35: Visa DI Intra réseau | E35: Visa DI | F35: =IF(Hypothèses!$E$8='Codes '!$H$21,SUMIFS(Calculs!$G$1246:$G$1420,Calculs!$A$1246:$A$1420,Deliassage!$A$2:$A$63,Calculs!$B$1246:$B$1420,Deliassage!$B$2:$B$46,Calculs!$C$1246:$C$1420,Deliassage!$C$2:$C$75),SUMIFS(Calculs!$G$1460:$G$1634,Calculs!$A$1460:$A$1634,Deliassage!$A$2:$A$63,Calculs!$B$1460:$B$1634,Deliassage!$B$2:$B$46,Calculs!$C$1460:$C$1634,Deliassage!$C$2:$C$75)) -> 0 | G35: =IF(Hypothèses!$E$8='Codes '!$H$21,SUMIFS(Calculs!$F$1246:$F$1420,Calculs!$A$1246:$A$1420,Deliassage!$A$2:$A$63,Calculs!$B$1246:$B$1420,Deliassage!$B$2:$B$46,Calculs!$C$1246:$C$1420,Deliassage!$C$2:$C$75),SUMIFS(Calculs!$F$1460:$F$1634,Calculs!$A$1460:$A$1634,Deliassage!$A$2:$A$63,Calculs!$B$1460:$B$1634,Deliassage!$B$2:$B$46,Calculs!$C$1460:$C$1634,Deliassage!$C$2:$C$75)) -> 0 | H35: =IF(Hypothèses!$E$8='Codes '!$H$21,SUMIFS(Calculs!$E$1246:$E$1420,Calculs!$A$1246:$A$1420,Deliassage!$A$2:$A$63,Calculs!$B$1246:$B$1420,Deliassage!$B$2:$B$46,Calculs!$C$1246:$C$1420,Deliassage!$C$2:$C$75),SUMIFS(Calculs!$E$1460:$E$1634,Calculs!$A$1460:$A$1634,Deliassage!$A$2:$A$63,Calculs!$B$1460:$B$1634,Deliassage!$B$2:$B$46,Calculs!$C$1460:$C$1634,Deliassage!$C$2:$C$75)) -> 0 | I35: =SUMIFS(Calculs!$Y$1246:$Y$1420,Calculs!$A$1246:$A$1420,Deliassage!$A$2:$A$63,Calculs!$B$1246:$B$1420,Deliassage!$B$2:$B$46,Calculs!$C$1246:$C$1420,Deliassage!$C$2:$C$75) ->  | J35: =SUMIFS(Calculs!$AB$1246:$AB$1420,Calculs!$A$1246:$A$1420,Deliassage!$A$2:$A$63,Calculs!$B$1246:$B$1420,Deliassage!$B$2:$B$46,Calculs!$C$1246:$C$1420,Deliassage!$C$2:$C$75) -> 0 | K35: =IF(I35=0,0,(F35/I35)*100) ->  | L35: =IF(I35=0,0,(G35/I35)*100) ->  | M35: =IF(I35=0,0,(H35/I35)*100) -> 
A36: Visa | B36: DD | C36: Intra réseau | D36: Visa DD Intra réseau | E36: Visa DD | F36: =IF(Hypothèses!$E$8='Codes '!$H$21,SUMIFS(Calculs!$G$1246:$G$1420,Calculs!$A$1246:$A$1420,Deliassage!$A$2:$A$63,Calculs!$B$1246:$B$1420,Deliassage!$B$2:$B$46,Calculs!$C$1246:$C$1420,Deliassage!$C$2:$C$75),SUMIFS(Calculs!$G$1460:$G$1634,Calculs!$A$1460:$A$1634,Deliassage!$A$2:$A$63,Calculs!$B$1460:$B$1634,Deliassage!$B$2:$B$46,Calculs!$C$1460:$C$1634,Deliassage!$C$2:$C$75)) -> 0 | G36: =IF(Hypothèses!$E$8='Codes '!$H$21,SUMIFS(Calculs!$F$1246:$F$1420,Calculs!$A$1246:$A$1420,Deliassage!$A$2:$A$63,Calculs!$B$1246:$B$1420,Deliassage!$B$2:$B$46,Calculs!$C$1246:$C$1420,Deliassage!$C$2:$C$75),SUMIFS(Calculs!$F$1460:$F$1634,Calculs!$A$1460:$A$1634,Deliassage!$A$2:$A$63,Calculs!$B$1460:$B$1634,Deliassage!$B$2:$B$46,Calculs!$C$1460:$C$1634,Deliassage!$C$2:$C$75)) -> 0 | H36: =IF(Hypothèses!$E$8='Codes '!$H$21,SUMIFS(Calculs!$E$1246:$E$1420,Calculs!$A$1246:$A$1420,Deliassage!$A$2:$A$63,Calculs!$B$1246:$B$1420,Deliassage!$B$2:$B$46,Calculs!$C$1246:$C$1420,Deliassage!$C$2:$C$75),SUMIFS(Calculs!$E$1460:$E$1634,Calculs!$A$1460:$A$1634,Deliassage!$A$2:$A$63,Calculs!$B$1460:$B$1634,Deliassage!$B$2:$B$46,Calculs!$C$1460:$C$1634,Deliassage!$C$2:$C$75)) -> 0 | I36: =SUMIFS(Calculs!$Y$1246:$Y$1420,Calculs!$A$1246:$A$1420,Deliassage!$A$2:$A$63,Calculs!$B$1246:$B$1420,Deliassage!$B$2:$B$46,Calculs!$C$1246:$C$1420,Deliassage!$C$2:$C$75) ->  | J36: =SUMIFS(Calculs!$AB$1246:$AB$1420,Calculs!$A$1246:$A$1420,Deliassage!$A$2:$A$63,Calculs!$B$1246:$B$1420,Deliassage!$B$2:$B$46,Calculs!$C$1246:$C$1420,Deliassage!$C$2:$C$75) -> 0 | K36: =IF(I36=0,0,(F36/I36)*100) ->  | L36: =IF(I36=0,0,(G36/I36)*100) ->  | M36: =IF(I36=0,0,(H36/I36)*100) -> 
A37: Visa | B37: Commerciale | C37: Intra réseau | D37: Visa Commerciale Intra réseau | E37: Visa Commerciale | F37: =IF(Hypothèses!$E$8='Codes '!$H$21,SUMIFS(Calculs!$G$1246:$G$1420,Calculs!$A$1246:$A$1420,Deliassage!$A$2:$A$63,Calculs!$B$1246:$B$1420,Deliassage!$B$2:$B$46,Calculs!$C$1246:$C$1420,Deliassage!$C$2:$C$75),SUMIFS(Calculs!$G$1460:$G$1634,Calculs!$A$1460:$A$1634,Deliassage!$A$2:$A$63,Calculs!$B$1460:$B$1634,Deliassage!$B$2:$B$46,Calculs!$C$1460:$C$1634,Deliassage!$C$2:$C$75)) -> 0 | G37: =IF(Hypothèses!$E$8='Codes '!$H$21,SUMIFS(Calculs!$F$1246:$F$1420,Calculs!$A$1246:$A$1420,Deliassage!$A$2:$A$63,Calculs!$B$1246:$B$1420,Deliassage!$B$2:$B$46,Calculs!$C$1246:$C$1420,Deliassage!$C$2:$C$75),SUMIFS(Calculs!$F$1460:$F$1634,Calculs!$A$1460:$A$1634,Deliassage!$A$2:$A$63,Calculs!$B$1460:$B$1634,Deliassage!$B$2:$B$46,Calculs!$C$1460:$C$1634,Deliassage!$C$2:$C$75)) -> 0 | H37: =IF(Hypothèses!$E$8='Codes '!$H$21,SUMIFS(Calculs!$E$1246:$E$1420,Calculs!$A$1246:$A$1420,Deliassage!$A$2:$A$63,Calculs!$B$1246:$B$1420,Deliassage!$B$2:$B$46,Calculs!$C$1246:$C$1420,Deliassage!$C$2:$C$75),SUMIFS(Calculs!$E$1460:$E$1634,Calculs!$A$1460:$A$1634,Deliassage!$A$2:$A$63,Calculs!$B$1460:$B$1634,Deliassage!$B$2:$B$46,Calculs!$C$1460:$C$1634,Deliassage!$C$2:$C$75)) -> 0 | I37: =SUMIFS(Calculs!$Y$1246:$Y$1420,Calculs!$A$1246:$A$1420,Deliassage!$A$2:$A$63,Calculs!$B$1246:$B$1420,Deliassage!$B$2:$B$46,Calculs!$C$1246:$C$1420,Deliassage!$C$2:$C$75) ->  | J37: =SUMIFS(Calculs!$AB$1246:$AB$1420,Calculs!$A$1246:$A$1420,Deliassage!$A$2:$A$63,Calculs!$B$1246:$B$1420,Deliassage!$B$2:$B$46,Calculs!$C$1246:$C$1420,Deliassage!$C$2:$C$75) -> 0 | K37: =IF(I37=0,0,(F37/I37)*100) ->  | L37: =IF(I37=0,0,(G37/I37)*100) ->  | M37: =IF(I37=0,0,(H37/I37)*100) -> 
